Workbook

Sheet PowerRanking (hidden)
A1: Team Name | B1: Powerband | D1: Top Half Check
A2: =IF('Team List'!C4="","",'Team List'!C4) ->  | C2: =IF(A2="","",B2+'Team List'!A4) ->  | D2: =IF(A2="","",IF(RANK(C2,C:C,1)/COUNT(C:C)>0.5,1,0)) -> 
A3: =IF('Team List'!C5="","",'Team List'!C5) ->  | C3: =IF(A3="","",B3+'Team List'!A5) ->  | D3: =IF(A3="","",IF(RANK(C3,C:C,1)/COUNT(C:C)>0.5,1,0)) -> 
A4: =IF('Team List'!C6="","",'Team List'!C6) ->  | C4: =IF(A4="","",B4+'Team List'!A6) -> 
A5: =IF('Team List'!C7="","",'Team List'!C7) ->  | C5: =IF(A5="","",B5+'Team List'!A7) -> 
A6: =IF('Team List'!C8="","",'Team List'!C8) ->  | C6: =IF(A6="","",B6+'Team List'!A8) -> 
A7: =IF('Team List'!C9="","",'Team List'!C9) ->  | C7: =IF(A7="","",B7+'Team List'!A9) -> 
A8: =IF('Team List'!C10="","",'Team List'!C10) ->  | C8: =IF(A8="","",B8+'Team List'!A10) -> 
A9: =IF('Team List'!C11="","",'Team List'!C11) ->  | C9: =IF(A9="","",B9+'Team List'!A11) -> 
A10: =IF('Team List'!C12="","",'Team List'!C12) ->  | C10: =IF(A10="","",B10+'Team List'!A12) -> 
A11: =IF('Team List'!C13="","",'Team List'!C13) ->  | C11: =IF(A11="","",B11+'Team List'!A13) -> 
A12: =IF('Team List'!C14="","",'Team List'!C14) ->  | C12: =IF(A12="","",B12+'Team List'!A14) -> 
A13: =IF('Team List'!C15="","",'Team List'!C15) ->  | C13: =IF(A13="","",B13+'Team List'!A15) -> 
A14: =IF('Team List'!C16="","",'Team List'!C16) ->  | C14: =IF(A14="","",B14+'Team List'!A16) -> 
A15: =IF('Team List'!C17="","",'Team List'!C17) ->  | C15: =IF(A15="","",B15+'Team List'!A17) -> 
A16: =IF('Team List'!C18="","",'Team List'!C18) ->  | C16: =IF(A16="","",B16+'Team List'!A18) -> 
A17: =IF('Team List'!C19="","",'Team List'!C19) ->  | C17: =IF(A17="","",B17+'Team List'!A19) -> 
A18: =IF('Team List'!C20="","",'Team List'!C20) ->  | C18: =IF(A18="","",B18+'Team List'!A20) -> 
A19: =IF('Team List'!C21="","",'Team List'!C21) ->  | C19: =IF(A19="","",B19+'Team List'!A21) -> 
A20: =IF('Team List'!C22="","",'Team List'!C22) ->  | C20: =IF(A20="","",B20+'Team List'!A22) -> 
A21: =IF('Team List'!C23="","",'Team List'!C23) ->  | C21: =IF(A21="","",B21+'Team List'!A23) -> 
A22: =IF('Team List'!C24="","",'Team List'!C24) ->  | C22: =IF(A22="","",B22+'Team List'!A24) -> 
A23: =IF('Team List'!C25="","",'Team List'!C25) ->  | C23: =IF(A23="","",B23+'Team List'!A25) -> 
A24: =IF('Team List'!C26="","",'Team List'!C26) ->  | C24: =IF(A24="","",B24+'Team List'!A26) -> 
A25: =IF('Team List'!C27="","",'Team List'!C27) ->  | C25: =IF(A25="","",B25+'Team List'!A27) -> 
A26: =IF('Team List'!C28="","",'Team List'!C28) ->  | C26: =IF(A26="","",B26+'Team List'!A28) -> 
A27: =IF('Team List'!C29="","",'Team List'!C29) ->  | C27: =IF(A27="","",B27+'Team List'!A29) -> 
A28: =IF('Team List'!C30="","",'Team List'!C30) ->  | C28: =IF(A28="","",B28+'Team List'!A30) -> 
A29: =IF('Team List'!C31="","",'Team List'!C31) ->  | C29: =IF(A29="","",B29+'Team List'!A31) -> 
A30: =IF('Team List'!C32="","",'Team List'!C32) ->  | C30: =IF(A30="","",B30+'Team List'!A32) -> 
A31: =IF('Team List'!C33="","",'Team List'!C33) ->  | C31: =IF(A31="","",B31+'Team List'!A33) -> 
A32: =IF('Team List'!C34="","",'Team List'!C34) ->  | C32: =IF(A32="","",B32+'Team List'!A34) -> 
A33: =IF('Team List'!C35="","",'Team List'!C35) ->  | C33: =IF(A33="","",B33+'Team List'!A35) -> 
A34: =IF('Team List'!C36="","",'Team List'!C36) ->  | C34: =IF(A34="","",B34+'Team List'!A36) -> 
A35: =IF('Team List'!C37="","",'Team List'!C37) ->  | C35: =IF(A35="","",B35+'Team List'!A37) -> 
A36: =IF('Team List'!C38="","",'Team List'!C38) ->  | C36: =IF(A36="","",B36+'Team List'!A38) -> 
A37: =IF('Team List'!C39="","",'Team List'!C39) ->  | C37: =IF(A37="","",B37+'Team List'!A39) -> 
A38: =IF('Team List'!C40="","",'Team List'!C40) ->  | C38: =IF(A38="","",B38+'Team List'!A40) -> 
A39: =IF('Team List'!C41="","",'Team List'!C41) ->  | C39: =IF(A39="","",B39+'Team List'!A41) -> 
A40: =IF('Team List'!C42="","",'Team List'!C42) ->  | C40: =IF(A40="","",B40+'Team List'!A42) -> 
A41: =IF('Team List'!C43="","",'Team List'!C43) ->  | C41: =IF(A41="","",B41+'Team List'!A43) -> 
A42: =IF('Team List'!C44="","",'Team List'!C44) ->  | C42: =IF(A42="","",B42+'Team List'!A44) -> 
A43: =IF('Team List'!C45="","",'Team List'!C45) ->  | C43: =IF(A43="","",B43+'Team List'!A45) -> 
A44: =IF('Team List'!C46="","",'Team List'!C46) ->  | C44: =IF(A44="","",B44+'Team List'!A46) -> 
A45: =IF('Team List'!C47="","",'Team List'!C47) ->  | C45: =IF(A45="","",B45+'Team List'!A47) -> 
A46: =IF('Team List'!C48="","",'Team List'!C48) ->  | C46: =IF(A46="","",B46+'Team List'!A48) -> 
A47: =IF('Team List'!C49="","",'Team List'!C49) ->  | C47: =IF(A47="","",B47+'Team List'!A49) -> 
A48: =IF('Team List'!C50="","",'Team List'!C50) ->  | C48: =IF(A48="","",B48+'Team List'!A50) -> 
A49: =IF('Team List'!C51="","",'Team List'!C51) ->  | C49: =IF(A49="","",B49+'Team List'!A51) -> 
A50: =IF('Team List'!C52="","",'Team List'!C52) ->  | C50: =IF(A50="","",B50+'Team List'!A52) -> 
A51: =IF('Team List'!C53="","",'Team List'!C53) ->  | C51: =IF(A51="","",B51+'Team List'!A53) -> 
A52: =IF('Team List'!C54="","",'Team List'!C54) ->  | C52: =IF(A52="","",B52+'Team List'!A54) -> 
A53: =IF('Team List'!C55="","",'Team List'!C55) ->  | C53: =IF(A53="","",B53+'Team List'!A55) -> 
A54: =IF('Team List'!C56="","",'Team List'!C56) ->  | C54: =IF(A54="","",B54+'Team List'!A56) -> 
A55: =IF('Team List'!C57="","",'Team List'!C57) ->  | C55: =IF(A55="","",B55+'Team List'!A57) -> 
A56: =IF('Team List'!C58="","",'Team List'!C58) ->  | C56: =IF(A56="","",B56+'Team List'!A58) -> 
A57: =IF('Team List'!C59="","",'Team List'!C59) ->  | C57: =IF(A57="","",B57+'Team List'!A59) -> 
A58: =IF('Team List'!C60="","",'Team List'!C60) ->  | C58: =IF(A58="","",B58+'Team List'!A60) -> 
A59: =IF('Team List'!C61="","",'Team List'!C61) ->  | C59: =IF(A59="","",B59+'Team List'!A61) -> 
A60: =IF('Team List'!C62="","",'Team List'!C62) ->  | C60: =IF(A60="","",B60+'Team List'!A62) -> 
A61: =IF('Team List'!C63="","",'Team List'!C63) ->  | C61: =IF(A61="","",B61+'Team List'!A63) -> 
A62: =IF('Team List'!C64="","",'Team List'!C64) ->  | C62: =IF(A62="","",B62+'Team List'!A64) -> 
A63: =IF('Team List'!C65="","",'Team List'!C65) ->  | C63: =IF(A63="","",B63+'Team List'!A65) -> 
A64: =IF('Team List'!C66="","",'Team List'!C66) ->  | C64: =IF(A64="","",B64+'Team List'!A66) -> 
A65: =IF('Team List'!C67="","",'Team List'!C67) ->  | C65: =IF(A65="","",B65+'Team List'!A67) -> 

Sheet Pairing (hidden)
A1: Count of active teams: | B1: =COUNTIF('Team List'!D1:D67,"Yes") -> 0 | H1: Backup loc: | I1: C:\DMK\ | J1: TEST: | K1: FALSE | R1: Suboptimal | T1: LP | U1: =VLOOKUP(B1,Z8:AA71,2,0) -> 
A2: Required Pairs: | B2: =ROUNDUP(B1/2,0) -> 0 | H2: Secondary: | I2: E:\DMK\ | L2: X | M2: Team #
A3: Bye Required: | B3: =IF(MOD(B1,2)=1,"Yes","No") -> No | I3: 1st ranked available team 1: | J3: =VLOOKUP(1,B7:C71,2,0) -> T08 | K3: …with Xth ranked available team 2: | L3: 1 | M3: =VLOOKUP(L3,F7:G71,2,0) -> T40
K4: Valid team remaining? | L4: =IF(COUNTIF(E7:E71,M4)>0,"Yes","No") -> No | M4: >=0 | N4: 9
A5: FIRST TEAM OF PAIR | D5: =VLOOKUP(SMALL(D7:D70,1),D7:G70,4,0) -> T20 | E5: SECOND TEAM OF PAIR | K5: # of attempts: | L5: 0 | M5: =IF((B2-MOD(L5,B2)+1)>B2,1,B2-MOD(L5,B2)+1) ->  | N5: =ROUNDUP(L5/B2,0)+1 -> 
A6: Use Score: | B6: Use Rank | C6: Team | E6: Use Score: | F6: Use Rank | G6: Team | J6: Rank: | K6: Team: | L6: =IF(OR(AND(LARGE(L7:L70,1)>B1,B3<>"Yes"),AND(LARGE(L7:L70,1)>B1+1,B3="Yes")),"Invalid Team Picked","Teams OK") -> Teams OK | Y6: Check for Bye
A7: =IF(COUNTIF(K$7:K$71,C7)>0,'Team List'!$BB4*-1,'Team List'!$BB4) -> 4.333219621 | B7: =RANK(A7,A$7:A$71) -> 7 | C7: T01 | D7: =COUNTIF(K$7:K$70,G7)+IF(G7=J$3,1,0) -> 1 | E7: =IF(OR(COUNTIF(K$7:K$71,G7)>0,G7=$J$3),ABS('Team List'!$BB4)*-1,IF(COUNTIF('Team List'!C4:AX4,Pairing!$J$3)>0,'Team List'!$BB4/10000,'Team List'!$BB4)) -> -4.333219621 | F7: =RANK(E7,E$7:E$71) -> 30 | G7: T01 | I7: Pitch 1 | J7: =IF(K7="","",IF(K7="Bye","Bye",VLOOKUP(K7,'Team List'!B:BF,42,0))) -> 0 | K7: T01 | L7: =IF(K7="",-1,VLOOKUP(IF(K7="Bye","T00",K7),'Team List'!B:AQ,39,0)) -> 0 | S7: 1 | T7: T30 | Y7: Use Score: | Z7: Use Rank | AA7: Team
A8: =IF(COUNTIF(K$7:K$71,C8)>0,'Team List'!$BB5*-1,'Team List'!$BB5) -> 7.648230765 | B8: =RANK(A8,A$7:A$71) -> 2 | C8: T02 | D8: =COUNTIF(K$7:K$70,G8)+IF(G8=J$3,1,0) -> 1 | E8: =IF(OR(COUNTIF(K$7:K$71,G8)>0,G8=$J$3),ABS('Team List'!$BB5)*-1,IF(COUNTIF('Team List'!C5:AX5,Pairing!$J$3)>0,'Team List'!$BB5/10000,'Team List'!$BB5)) -> -7.648230765 | F8: =RANK(E8,E$7:E$71) -> 48 | G8: T02 | J8: =IF(K8="","",IF(K8="Bye","Bye",VLOOKUP(K8,'Team List'!B:BF,42,0))) -> 0 | K8: T08 | L8: =IF(K8="",-1,VLOOKUP(IF(K8="Bye","T00",K8),'Team List'!B:AQ,39,0)) -> 0 | S8: 2 | T8: T31 | Y8: =IF(COUNTIF('Team List'!C4:AX4,"Bye")>0,'Team List'!$BB4+1000000000,'Team List'!$BB4) -> -4.333219621 | Z8: =RANK(Y8,Y$7:Y$71) -> 30 | AA8: T01
A9: =IF(COUNTIF(K$7:K$71,C9)>0,'Team List'!$BB6*-1,'Team List'!$BB6) -> 6.131222754 | B9: 4 | C9: T03 | D9: 1 | E9: =IF(OR(COUNTIF(K$7:K$71,G9)>0,G9=$J$3),ABS('Team List'!$BB6)*-1,IF(COUNTIF('Team List'!C6:AX6,Pairing!$J$3)>0,'Team List'!$BB6/10000,'Team List'!$BB6)) -> -6.131222754 | F9: 38 | G9: T03 | I9: Pitch 2 | J9: =IF(K9="","",IF(K9="Bye","Bye",VLOOKUP(K9,'Team List'!B:BF,42,0))) -> 0 | K9: T02 | L9: =IF(K9="",-1,VLOOKUP(IF(K9="Bye","T00",K9),'Team List'!B:AQ,39,0)) -> 0 | S9: 3 | T9: T23 | Y9: =IF(COUNTIF('Team List'!C5:AX5,"Bye")>0,'Team List'!$BB5+1000000000,'Team List'!$BB5) -> -7.648230765 | Z9: =RANK(Y9,Y$7:Y$71) -> 48 | AA9: T02
A10: =IF(COUNTIF(K$7:K$71,C10)>0,'Team List'!$BB7*-1,'Team List'!$BB7) -> 4.059913585 | B10: 8 | C10: T04 | D10: 1 | E10: =IF(OR(COUNTIF(K$7:K$71,G10)>0,G10=$J$3),ABS('Team List'!$BB7)*-1,IF(COUNTIF('Team List'!C7:AX7,Pairing!$J$3)>0,'Team List'!$BB7/10000,'Team List'!$BB7)) -> -4.059913585 | F10: 26 | G10: T04 | J10: =IF(K10="","",IF(K10="Bye","Bye",VLOOKUP(K10,'Team List'!B:BF,42,0))) -> 0 | K10: T06 | L10: =IF(K10="",-1,VLOOKUP(IF(K10="Bye","T00",K10),'Team List'!B:AQ,39,0)) -> 0 | S10: 4 | T10: T08 | Y10: =IF(COUNTIF('Team List'!C6:AX6,"Bye")>0,'Team List'!$BB6+1000000000,'Team List'!$BB6) -> -6.131222754 | Z10: 38 | AA10: T03
A11: =IF(COUNTIF(K$7:K$71,C11)>0,'Team List'!$BB8*-1,'Team List'!$BB8) -> 7.422440339 | B11: 3 | C11: T05 | D11: 1 | E11: =IF(OR(COUNTIF(K$7:K$71,G11)>0,G11=$J$3),ABS('Team List'!$BB8)*-1,IF(COUNTIF('Team List'!C8:AX8,Pairing!$J$3)>0,'Team List'!$BB8/10000,'Team List'!$BB8)) -> -7.422440339 | F11: 47 | G11: T05 | I11: Pitch 3 | J11: =IF(K11="","",IF(K11="Bye","Bye",VLOOKUP(K11,'Team List'!B:BF,42,0))) -> 0 | K11: T03 | L11: =IF(K11="",-1,VLOOKUP(IF(K11="Bye","T00",K11),'Team List'!B:AQ,39,0)) -> 0 | S11: 5 | T11: T01 | Y11: =IF(COUNTIF('Team List'!C7:AX7,"Bye")>0,'Team List'!$BB7+1000000000,'Team List'!$BB7) -> -4.059913585 | Z11: 26 | AA11: T04
A12: =IF(COUNTIF(K$7:K$71,C12)>0,'Team List'!$BB9*-1,'Team List'!$BB9) -> 3.140621351 | B12: 13 | C12: T06 | D12: 1 | E12: =IF(OR(COUNTIF(K$7:K$71,G12)>0,G12=$J$3),ABS('Team List'!$BB9)*-1,IF(COUNTIF('Team List'!C9:AX9,Pairing!$J$3)>0,'Team List'!$BB9/10000,'Team List'!$BB9)) -> -3.140621351 | F12: 18 | G12: T06 | J12: =IF(K12="","",IF(K12="Bye","Bye",VLOOKUP(K12,'Team List'!B:BF,42,0))) -> 0 | K12: T10 | L12: =IF(K12="",-1,VLOOKUP(IF(K12="Bye","T00",K12),'Team List'!B:AQ,39,0)) -> 0 | S12: 6 | T12: T05 | Y12: =IF(COUNTIF('Team List'!C8:AX8,"Bye")>0,'Team List'!$BB8+1000000000,'Team List'!$BB8) -> -7.422440339 | Z12: 47 | AA12: T05
A13: =IF(COUNTIF(K$7:K$71,C13)>0,'Team List'!$BB10*-1,'Team List'!$BB10) -> 5.274139944 | B13: 6 | C13: T07 | D13: 1 | E13: =IF(OR(COUNTIF(K$7:K$71,G13)>0,G13=$J$3),ABS('Team List'!$BB10)*-1,IF(COUNTIF('Team List'!C10:AX10,Pairing!$J$3)>0,'Team List'!$BB10/10000,'Team List'!$BB10)) -> -5.274139944 | F13: 35 | G13: T07 | I13: Pitch 4 | J13: =IF(K13="","",IF(K13="Bye","Bye",VLOOKUP(K13,'Team List'!B:BF,42,0))) -> 0 | K13: T04 | L13: =IF(K13="",-1,VLOOKUP(IF(K13="Bye","T00",K13),'Team List'!B:AQ,39,0)) -> 0 | S13: 7 | T13: T13 | Y13: =IF(COUNTIF('Team List'!C9:AX9,"Bye")>0,'Team List'!$BB9+1000000000,'Team List'!$BB9) -> -3.140621351 | Z13: 18 | AA13: T06
A14: =IF(COUNTIF(K$7:K$71,C14)>0,'Team List'!$BB11*-1,'Team List'!$BB11) -> 9.451487669 | B14: 1 | C14: T08 | D14: 2 | E14: =IF(OR(COUNTIF(K$7:K$71,G14)>0,G14=$J$3),ABS('Team List'!$BB11)*-1,IF(COUNTIF('Team List'!C11:AX11,Pairing!$J$3)>0,'Team List'!$BB11/10000,'Team List'!$BB11)) -> -9.451487669 | F14: 59 | G14: T08 | J14: =IF(K14="","",IF(K14="Bye","Bye",VLOOKUP(K14,'Team List'!B:BF,42,0))) -> 0 | K14: T09 | L14: =IF(K14="",-1,VLOOKUP(IF(K14="Bye","T00",K14),'Team List'!B:AQ,39,0)) -> 0 | S14: 8 | T14: T07 | Y14: =IF(COUNTIF('Team List'!C10:AX10,"Bye")>0,'Team List'!$BB10+1000000000,'Team List'!$BB10) -> -5.274139944 | Z14: 35 | AA14: T07
A15: =IF(COUNTIF(K$7:K$71,C15)>0,'Team List'!$BB12*-1,'Team List'!$BB12) -> 1.289951587 | B15: 18 | C15: T09 | D15: 1 | E15: =IF(OR(COUNTIF(K$7:K$71,G15)>0,G15=$J$3),ABS('Team List'!$BB12)*-1,IF(COUNTIF('Team List'!C12:AX12,Pairing!$J$3)>0,'Team List'!$BB12/10000,'Team List'!$BB12)) -> -1.289951587 | F15: 7 | G15: T09 | I15: Pitch 5 | J15: =IF(K15="","",IF(K15="Bye","Bye",VLOOKUP(K15,'Team List'!B:BF,42,0))) -> 0 | K15: T05 | L15: =IF(K15="",-1,VLOOKUP(IF(K15="Bye","T00",K15),'Team List'!B:AQ,39,0)) -> 0 | S15: 9 | T15: T03 | Y15: =IF(COUNTIF('Team List'!C11:AX11,"Bye")>0,'Team List'!$BB11+1000000000,'Team List'!$BB11) -> -9.451487669 | Z15: 59 | AA15: T08
A16: =IF(COUNTIF(K$7:K$71,C16)>0,'Team List'!$BB13*-1,'Team List'!$BB13) -> 2.383402495 | B16: 16 | C16: T10 | D16: 1 | E16: =IF(OR(COUNTIF(K$7:K$71,G16)>0,G16=$J$3),ABS('Team List'!$BB13)*-1,IF(COUNTIF('Team List'!C13:AX13,Pairing!$J$3)>0,'Team List'!$BB13/10000,'Team List'!$BB13)) -> -2.383402495 | F16: 13 | G16: T10 | J16: =IF(K16="","",IF(K16="Bye","Bye",VLOOKUP(K16,'Team List'!B:BF,42,0))) -> 0 | K16: T07 | L16: =IF(K16="",-1,VLOOKUP(IF(K16="Bye","T00",K16),'Team List'!B:AQ,39,0)) -> 0 | S16: 10 | T16: T04 | Y16: =IF(COUNTIF('Team List'!C12:AX12,"Bye")>0,'Team List'!$BB12+1000000000,'Team List'!$BB12) -> -1.289951587 | Z16: 7 | AA16: T09
A17: =IF(COUNTIF(K$7:K$71,C17)>0,'Team List'!$BB14*-1,'Team List'!$BB14) -> 0.639705009 | B17: 19 | C17: T11 | D17: 1 | E17: =IF(OR(COUNTIF(K$7:K$71,G17)>0,G17=$J$3),ABS('Team List'!$BB14)*-1,IF(COUNTIF('Team List'!C14:AX14,Pairing!$J$3)>0,'Team List'!$BB14/10000,'Team List'!$BB14)) -> -0.639705009 | F17: 2 | G17: T11 | I17: Pitch 6 | J17: =IF(K17="","",IF(K17="Bye","Bye",VLOOKUP(K17,'Team List'!B:BF,42,0))) -> 0 | K17: T12 | L17: =IF(K17="",-1,VLOOKUP(IF(K17="Bye","T00",K17),'Team List'!B:AQ,39,0)) -> 0 | S17: 11 | T17: T06 | Y17: =IF(COUNTIF('Team List'!C13:AX13,"Bye")>0,'Team List'!$BB13+1000000000,'Team List'!$BB13) -> -2.383402495 | Z17: 13 | AA17: T10
A18: =IF(COUNTIF(K$7:K$71,C18)>0,'Team List'!$BB15*-1,'Team List'!$BB15) -> 3.912559224 | B18: 10 | C18: T12 | D18: 1 | E18: =IF(OR(COUNTIF(K$7:K$71,G18)>0,G18=$J$3),ABS('Team List'!$BB15)*-1,IF(COUNTIF('Team List'!C15:AX15,Pairing!$J$3)>0,'Team List'!$BB15/10000,'Team List'!$BB15)) -> -3.912559224 | F18: 24 | G18: T12 | J18: =IF(K18="","",IF(K18="Bye","Bye",VLOOKUP(K18,'Team List'!B:BF,42,0))) -> 0 | K18: T11 | L18: =IF(K18="",-1,VLOOKUP(IF(K18="Bye","T00",K18),'Team List'!B:AQ,39,0)) -> 0 | S18: 12 | T18: T22 | Y18: =IF(COUNTIF('Team List'!C14:AX14,"Bye")>0,'Team List'!$BB14+1000000000,'Team List'!$BB14) -> -0.639705009 | Z18: 2 | AA18: T11
A19: =IF(COUNTIF(K$7:K$71,C19)>0,'Team List'!$BB16*-1,'Team List'!$BB16) -> 2.522710213 | B19: 15 | C19: T13 | D19: 1 | E19: =IF(OR(COUNTIF(K$7:K$71,G19)>0,G19=$J$3),ABS('Team List'!$BB16)*-1,IF(COUNTIF('Team List'!C16:AX16,Pairing!$J$3)>0,'Team List'!$BB16/10000,'Team List'!$BB16)) -> -2.522710213 | F19: 14 | G19: T13 | I19: Pitch 7 | J19: =IF(K19="","",IF(K19="Bye","Bye",VLOOKUP(K19,'Team List'!B:BF,42,0))) -> 0 | K19: T17 | L19: =IF(K19="",-1,VLOOKUP(IF(K19="Bye","T00",K19),'Team List'!B:AQ,39,0)) -> 0 | S19: 13 | T19: T12 | Y19: =IF(COUNTIF('Team List'!C15:AX15,"Bye")>0,'Team List'!$BB15+1000000000,'Team List'!$BB15) -> -3.912559224 | Z19: 24 | AA19: T12
A20: =IF(COUNTIF(K$7:K$71,C20)>0,'Team List'!$BB17*-1,'Team List'!$BB17) -> 2.259450453 | B20: 17 | C20: T14 | D20: 1 | E20: =IF(OR(COUNTIF(K$7:K$71,G20)>0,G20=$J$3),ABS('Team List'!$BB17)*-1,IF(COUNTIF('Team List'!C17:AX17,Pairing!$J$3)>0,'Team List'!$BB17/10000,'Team List'!$BB17)) -> -2.259450453 | F20: 12 | G20: T14 | J20: =IF(K20="","",IF(K20="Bye","Bye",VLOOKUP(K20,'Team List'!B:BF,42,0))) -> 0 | K20: T14 | L20: =IF(K20="",-1,VLOOKUP(IF(K20="Bye","T00",K20),'Team List'!B:AQ,39,0)) -> 0 | S20: 14 | T20: T10 | Y20: =IF(COUNTIF('Team List'!C16:AX16,"Bye")>0,'Team List'!$BB16+1000000000,'Team List'!$BB16) -> -2.522710213 | Z20: 14 | AA20: T13
A21: =IF(COUNTIF(K$7:K$71,C21)>0,'Team List'!$BB18*-1,'Team List'!$BB18) -> 3.439564067 | B21: 11 | C21: T15 | D21: 1 | E21: =IF(OR(COUNTIF(K$7:K$71,G21)>0,G21=$J$3),ABS('Team List'!$BB18)*-1,IF(COUNTIF('Team List'!C18:AX18,Pairing!$J$3)>0,'Team List'!$BB18/10000,'Team List'!$BB18)) -> -3.439564067 | F21: 21 | G21: T15 | I21: Pitch 8 | J21: =IF(K21="","",IF(K21="Bye","Bye",VLOOKUP(K21,'Team List'!B:BF,42,0))) -> 0 | K21: T16 | L21: =IF(K21="",-1,VLOOKUP(IF(K21="Bye","T00",K21),'Team List'!B:AQ,39,0)) -> 0 | S21: 15 | T21: T11 | Y21: =IF(COUNTIF('Team List'!C17:AX17,"Bye")>0,'Team List'!$BB17+1000000000,'Team List'!$BB17) -> -2.259450453 | Z21: 12 | AA21: T14
A22: =IF(COUNTIF(K$7:K$71,C22)>0,'Team List'!$BB19*-1,'Team List'!$BB19) -> 2.980404971 | B22: 14 | C22: T16 | D22: 1 | E22: =IF(OR(COUNTIF(K$7:K$71,G22)>0,G22=$J$3),ABS('Team List'!$BB19)*-1,IF(COUNTIF('Team List'!C19:AX19,Pairing!$J$3)>0,'Team List'!$BB19/10000,'Team List'!$BB19)) -> -2.980404971 | F22: 17 | G22: T16 | J22: =IF(K22="","",IF(K22="Bye","Bye",VLOOKUP(K22,'Team List'!B:BF,42,0))) -> 0 | K22: T15 | L22: =IF(K22="",-1,VLOOKUP(IF(K22="Bye","T00",K22),'Team List'!B:AQ,39,0)) -> 0 | S22: 16 | T22: T15 | Y22: =IF(COUNTIF('Team List'!C18:AX18,"Bye")>0,'Team List'!$BB18+1000000000,'Team List'!$BB18) -> -3.439564067 | Z22: 21 | AA22: T15
A23: =IF(COUNTIF(K$7:K$71,C23)>0,'Team List'!$BB20*-1,'Team List'!$BB20) -> 3.354452154 | B23: 12 | C23: T17 | D23: 1 | E23: =IF(OR(COUNTIF(K$7:K$71,G23)>0,G23=$J$3),ABS('Team List'!$BB20)*-1,IF(COUNTIF('Team List'!C20:AX20,Pairing!$J$3)>0,'Team List'!$BB20/10000,'Team List'!$BB20)) -> -3.354452154 | F23: 19 | G23: T17 | I23: Pitch 9 | J23: =IF(K23="","",IF(K23="Bye","Bye",VLOOKUP(K23,'Team List'!B:BF,42,0))) -> 0 | K23: T18 | L23: =IF(K23="",-1,VLOOKUP(IF(K23="Bye","T00",K23),'Team List'!B:AQ,39,0)) -> 0 | S23: 17 | T23: T02 | Y23: =IF(COUNTIF('Team List'!C19:AX19,"Bye")>0,'Team List'!$BB19+1000000000,'Team List'!$BB19) -> -2.980404971 | Z23: 17 | AA23: T16
A24: =IF(COUNTIF(K$7:K$71,C24)>0,'Team List'!$BB21*-1,'Team List'!$BB21) -> 3.945366055 | B24: 9 | C24: T18 | D24: 1 | E24: =IF(OR(COUNTIF(K$7:K$71,G24)>0,G24=$J$3),ABS('Team List'!$BB21)*-1,IF(COUNTIF('Team List'!C21:AX21,Pairing!$J$3)>0,'Team List'!$BB21/10000,'Team List'!$BB21)) -> -3.945366055 | F24: 25 | G24: T18 | J24: =IF(K24="","",IF(K24="Bye","Bye",VLOOKUP(K24,'Team List'!B:BF,42,0))) -> 0 | K24: T19 | L24: =IF(K24="",-1,VLOOKUP(IF(K24="Bye","T00",K24),'Team List'!B:AQ,39,0)) -> 0 | S24: 18 | Y24: =IF(COUNTIF('Team List'!C20:AX20,"Bye")>0,'Team List'!$BB20+1000000000,'Team List'!$BB20) -> -3.354452154 | Z24: 19 | AA24: T17
A25: =IF(COUNTIF(K$7:K$71,C25)>0,'Team List'!$BB22*-1,'Team List'!$BB22) -> 5.302692634 | B25: 5 | C25: T19 | D25: 1 | E25: =IF(OR(COUNTIF(K$7:K$71,G25)>0,G25=$J$3),ABS('Team List'!$BB22)*-1,IF(COUNTIF('Team List'!C22:AX22,Pairing!$J$3)>0,'Team List'!$BB22/10000,'Team List'!$BB22)) -> -5.302692634 | F25: 36 | G25: T19 | I25: Pitch 10 | J25: =IF(K25="","",IF(K25="Bye","Bye",VLOOKUP(K25,'Team List'!B:BF,42,0))) -> 0 | K25: T13 | L25: =IF(K25="",-1,VLOOKUP(IF(K25="Bye","T00",K25),'Team List'!B:AQ,39,0)) -> 0 | S25: 19 | Y25: =IF(COUNTIF('Team List'!C21:AX21,"Bye")>0,'Team List'!$BB21+1000000000,'Team List'!$BB21) -> -3.945366055 | Z25: 25 | AA25: T18
A26: =IF(COUNTIF(K$7:K$71,C26)>0,'Team List'!$BB23*-1,'Team List'!$BB23) -> -3.854929297 | B26: 33 | C26: T20 | D26: 0 | E26: =IF(OR(COUNTIF(K$7:K$71,G26)>0,G26=$J$3),ABS('Team List'!$BB23)*-1,IF(COUNTIF('Team List'!C23:AX23,Pairing!$J$3)>0,'Team List'!$BB23/10000,'Team List'!$BB23)) -> -3.854929297 | F26: 23 | G26: T20 | J26: =IF(K26="","",IF(K26="Bye","Bye",VLOOKUP(K26,'Team List'!B:BF,42,0))) -> Bye | K26: Bye | L26: =IF(K26="",-1,VLOOKUP(IF(K26="Bye","T00",K26),'Team List'!B:AQ,39,0)) -> 0 | S26: 20 | Y26: =IF(COUNTIF('Team List'!C22:AX22,"Bye")>0,'Team List'!$BB22+1000000000,'Team List'!$BB22) -> -5.302692634 | Z26: 36 | AA26: T19
A27: =IF(COUNTIF(K$7:K$71,C27)>0,'Team List'!$BB24*-1,'Team List'!$BB24) -> -4.690265376 | B27: 40 | C27: T21 | D27: 0 | E27: =IF(OR(COUNTIF(K$7:K$71,G27)>0,G27=$J$3),ABS('Team List'!$BB24)*-1,IF(COUNTIF('Team List'!C24:AX24,Pairing!$J$3)>0,'Team List'!$BB24/10000,'Team List'!$BB24)) -> -4.690265376 | F27: 34 | G27: T21 | I27: Pitch 11 | J27: =IF(K27="","",IF(K27="Bye","Bye",VLOOKUP(K27,'Team List'!B:BF,42,0))) ->  | L27: =IF(K27="",-1,VLOOKUP(IF(K27="Bye","T00",K27),'Team List'!B:AQ,39,0)) -> -1 | S27: 21 | T27: T27 | Y27: =IF(COUNTIF('Team List'!C23:AX23,"Bye")>0,'Team List'!$BB23+1000000000,'Team List'!$BB23) -> -3.854929297 | Z27: 23 | AA27: T20
A28: =IF(COUNTIF(K$7:K$71,C28)>0,'Team List'!$BB25*-1,'Team List'!$BB25) -> -7.693861624 | B28: 50 | C28: T22 | D28: 0 | E28: =IF(OR(COUNTIF(K$7:K$71,G28)>0,G28=$J$3),ABS('Team List'!$BB25)*-1,IF(COUNTIF('Team List'!C25:AX25,Pairing!$J$3)>0,'Team List'!$BB25/10000,'Team List'!$BB25)) -> -7.693861624 | F28: 49 | G28: T22 | J28: =IF(K28="","",IF(K28="Bye","Bye",VLOOKUP(K28,'Team List'!B:BF,42,0))) ->  | L28: =IF(K28="",-1,VLOOKUP(IF(K28="Bye","T00",K28),'Team List'!B:AQ,39,0)) -> -1 | S28: 22 | T28: T14 | Y28: =IF(COUNTIF('Team List'!C24:AX24,"Bye")>0,'Team List'!$BB24+1000000000,'Team List'!$BB24) -> -4.690265376 | Z28: 34 | AA28: T21
A29: =IF(COUNTIF(K$7:K$71,C29)>0,'Team List'!$BB26*-1,'Team List'!$BB26) -> -4.318948419 | B29: 36 | C29: T23 | D29: 0 | E29: =IF(OR(COUNTIF(K$7:K$71,G29)>0,G29=$J$3),ABS('Team List'!$BB26)*-1,IF(COUNTIF('Team List'!C26:AX26,Pairing!$J$3)>0,'Team List'!$BB26/10000,'Team List'!$BB26)) -> -4.318948419 | F29: 29 | G29: T23 | I29: Pitch 12 | J29: =IF(K29="","",IF(K29="Bye","Bye",VLOOKUP(K29,'Team List'!B:BF,42,0))) ->  | L29: =IF(K29="",-1,VLOOKUP(IF(K29="Bye","T00",K29),'Team List'!B:AQ,39,0)) -> -1 | S29: 23 | T29: T32 | Y29: =IF(COUNTIF('Team List'!C25:AX25,"Bye")>0,'Team List'!$BB25+1000000000,'Team List'!$BB25) -> -7.693861624 | Z29: 49 | AA29: T22
A30: =IF(COUNTIF(K$7:K$71,C30)>0,'Team List'!$BB27*-1,'Team List'!$BB27) -> -9.876598071 | B30: 63 | C30: T24 | D30: 0 | E30: =IF(OR(COUNTIF(K$7:K$71,G30)>0,G30=$J$3),ABS('Team List'!$BB27)*-1,IF(COUNTIF('Team List'!C27:AX27,Pairing!$J$3)>0,'Team List'!$BB27/10000,'Team List'!$BB27)) -> -9.876598071 | F30: 63 | G30: T24 | J30: =IF(K30="","",IF(K30="Bye","Bye",VLOOKUP(K30,'Team List'!B:BF,42,0))) ->  | L30: =IF(K30="",-1,VLOOKUP(IF(K30="Bye","T00",K30),'Team List'!B:AQ,39,0)) -> -1 | S30: 24 | T30: T09 | Y30: =IF(COUNTIF('Team List'!C26:AX26,"Bye")>0,'Team List'!$BB26+1000000000,'Team List'!$BB26) -> -4.318948419 | Z30: 29 | AA30: T23
A31: =IF(COUNTIF(K$7:K$71,C31)>0,'Team List'!$BB28*-1,'Team List'!$BB28) -> -9.007628961 | B31: 57 | C31: T25 | D31: 0 | E31: =IF(OR(COUNTIF(K$7:K$71,G31)>0,G31=$J$3),ABS('Team List'!$BB28)*-1,IF(COUNTIF('Team List'!C28:AX28,Pairing!$J$3)>0,'Team List'!$BB28/10000,'Team List'!$BB28)) -> -9.007628961 | F31: 56 | G31: T25 | I31: Pitch 13 | J31: =IF(K31="","",IF(K31="Bye","Bye",VLOOKUP(K31,'Team List'!B:BF,42,0))) ->  | L31: =IF(K31="",-1,VLOOKUP(IF(K31="Bye","T00",K31),'Team List'!B:AQ,39,0)) -> -1 | S31: 25 | T31: T16 | Y31: =IF(COUNTIF('Team List'!C27:AX27,"Bye")>0,'Team List'!$BB27+1000000000,'Team List'!$BB27) -> -9.876598071 | Z31: 63 | AA31: T24
A32: =IF(COUNTIF(K$7:K$71,C32)>0,'Team List'!$BB29*-1,'Team List'!$BB29) -> -4.072396047 | B32: 34 | C32: T26 | D32: 0 | E32: =IF(OR(COUNTIF(K$7:K$71,G32)>0,G32=$J$3),ABS('Team List'!$BB29)*-1,IF(COUNTIF('Team List'!C29:AX29,Pairing!$J$3)>0,'Team List'!$BB29/10000,'Team List'!$BB29)) -> -4.072396047 | F32: 27 | G32: T26 | J32: =IF(K32="","",IF(K32="Bye","Bye",VLOOKUP(K32,'Team List'!B:BF,42,0))) ->  | L32: =IF(K32="",-1,VLOOKUP(IF(K32="Bye","T00",K32),'Team List'!B:AQ,39,0)) -> -1 | S32: 26 | T32: T21 | Y32: =IF(COUNTIF('Team List'!C28:AX28,"Bye")>0,'Team List'!$BB28+1000000000,'Team List'!$BB28) -> -9.007628961 | Z32: 56 | AA32: T25
A33: =IF(COUNTIF(K$7:K$71,C33)>0,'Team List'!$BB30*-1,'Team List'!$BB30) -> -2.04867698 | B33: 26 | C33: T27 | D33: 0 | E33: =IF(OR(COUNTIF(K$7:K$71,G33)>0,G33=$J$3),ABS('Team List'!$BB30)*-1,IF(COUNTIF('Team List'!C30:AX30,Pairing!$J$3)>0,'Team List'!$BB30/10000,'Team List'!$BB30)) -> -2.04867698 | F33: 9 | G33: T27 | I33: Pitch 14 | J33: =IF(K33="","",IF(K33="Bye","Bye",VLOOKUP(K33,'Team List'!B:BF,42,0))) ->  | L33: =IF(K33="",-1,VLOOKUP(IF(K33="Bye","T00",K33),'Team List'!B:AQ,39,0)) -> -1 | S33: 27 | T33: T18 | Y33: =IF(COUNTIF('Team List'!C29:AX29,"Bye")>0,'Team List'!$BB29+1000000000,'Team List'!$BB29) -> -4.072396047 | Z33: 27 | AA33: T26
A34: =IF(COUNTIF(K$7:K$71,C34)>0,'Team List'!$BB31*-1,'Team List'!$BB31) -> -2.110726043 | B34: 28 | C34: T28 | D34: 0 | E34: =IF(OR(COUNTIF(K$7:K$71,G34)>0,G34=$J$3),ABS('Team List'!$BB31)*-1,IF(COUNTIF('Team List'!C31:AX31,Pairing!$J$3)>0,'Team List'!$BB31/10000,'Team List'!$BB31)) -> -2.110726043 | F34: 11 | G34: T28 | J34: =IF(K34="","",IF(K34="Bye","Bye",VLOOKUP(K34,'Team List'!B:BF,42,0))) ->  | L34: =IF(K34="",-1,VLOOKUP(IF(K34="Bye","T00",K34),'Team List'!B:AQ,39,0)) -> -1 | S34: 28 | T34: T29 | Y34: =IF(COUNTIF('Team List'!C30:AX30,"Bye")>0,'Team List'!$BB30+1000000000,'Team List'!$BB30) -> -2.04867698 | Z34: 9 | AA34: T27
A35: =IF(COUNTIF(K$7:K$71,C35)>0,'Team List'!$BB32*-1,'Team List'!$BB32) -> -3.720107803 | B35: 32 | C35: T29 | D35: 0 | E35: =IF(OR(COUNTIF(K$7:K$71,G35)>0,G35=$J$3),ABS('Team List'!$BB32)*-1,IF(COUNTIF('Team List'!C32:AX32,Pairing!$J$3)>0,'Team List'!$BB32/10000,'Team List'!$BB32)) -> -3.720107803 | F35: 22 | G35: T29 | I35: Pitch 15 | J35: =IF(K35="","",IF(K35="Bye","Bye",VLOOKUP(K35,'Team List'!B:BF,42,0))) ->  | L35: =IF(K35="",-1,VLOOKUP(IF(K35="Bye","T00",K35),'Team List'!B:AQ,39,0)) -> -1 | S35: 29 | T35: T26 | Y35: =IF(COUNTIF('Team List'!C31:AX31,"Bye")>0,'Team List'!$BB31+1000000000,'Team List'!$BB31) -> -2.110726043 | Z35: 11 | AA35: T28
A36: =IF(COUNTIF(K$7:K$71,C36)>0,'Team List'!$BB33*-1,'Team List'!$BB33) -> -4.28649334 | B36: 35 | C36: T30 | D36: 0 | E36: =IF(OR(COUNTIF(K$7:K$71,G36)>0,G36=$J$3),ABS('Team List'!$BB33)*-1,IF(COUNTIF('Team List'!C33:AX33,Pairing!$J$3)>0,'Team List'!$BB33/10000,'Team List'!$BB33)) -> -4.28649334 | F36: 28 | G36: T30 | J36: =IF(K36="","",IF(K36="Bye","Bye",VLOOKUP(K36,'Team List'!B:BF,42,0))) ->  | L36: =IF(K36="",-1,VLOOKUP(IF(K36="Bye","T00",K36),'Team List'!B:AQ,39,0)) -> -1 | S36: 30 | T36: T25 | Y36: =IF(COUNTIF('Team List'!C32:AX32,"Bye")>0,'Team List'!$BB32+1000000000,'Team List'!$BB32) -> -3.720107803 | Z36: 22 | AA36: T29
A37: =IF(COUNTIF(K$7:K$71,C37)>0,'Team List'!$BB34*-1,'Team List'!$BB34) -> -3.431964547 | B37: 31 | C37: T31 | D37: 0 | E37: =IF(OR(COUNTIF(K$7:K$71,G37)>0,G37=$J$3),ABS('Team List'!$BB34)*-1,IF(COUNTIF('Team List'!C34:AX34,Pairing!$J$3)>0,'Team List'!$BB34/10000,'Team List'!$BB34)) -> -3.431964547 | F37: 20 | G37: T31 | I37: Pitch 16 | J37: =IF(K37="","",IF(K37="Bye","Bye",VLOOKUP(K37,'Team List'!B:BF,42,0))) ->  | L37: =IF(K37="",-1,VLOOKUP(IF(K37="Bye","T00",K37),'Team List'!B:AQ,39,0)) -> -1 | S37: 31 | T37: T17 | Y37: =IF(COUNTIF('Team List'!C33:AX33,"Bye")>0,'Team List'!$BB33+1000000000,'Team List'!$BB33) -> -4.28649334 | Z37: 28 | AA37: T30
A38: =IF(COUNTIF(K$7:K$71,C38)>0,'Team List'!$BB35*-1,'Team List'!$BB35) -> -4.444235348 | B38: 39 | C38: T32 | D38: 0 | E38: =IF(OR(COUNTIF(K$7:K$71,G38)>0,G38=$J$3),ABS('Team List'!$BB35)*-1,IF(COUNTIF('Team List'!C35:AX35,Pairing!$J$3)>0,'Team List'!$BB35/10000,'Team List'!$BB35)) -> -4.444235348 | F38: 33 | G38: T32 | J38: =IF(K38="","",IF(K38="Bye","Bye",VLOOKUP(K38,'Team List'!B:BF,42,0))) ->  | L38: =IF(K38="",-1,VLOOKUP(IF(K38="Bye","T00",K38),'Team List'!B:AQ,39,0)) -> -1 | S38: 32 | T38: T24 | Y38: =IF(COUNTIF('Team List'!C34:AX34,"Bye")>0,'Team List'!$BB34+1000000000,'Team List'!$BB34) -> -3.431964547 | Z38: 20 | AA38: T31
A39: =IF(COUNTIF(K$7:K$71,C39)>0,'Team List'!$BB36*-1,'Team List'!$BB36) -> -7.786252329 | B39: 51 | C39: T33 | D39: 0 | E39: =IF(OR(COUNTIF(K$7:K$71,G39)>0,G39=$J$3),ABS('Team List'!$BB36)*-1,IF(COUNTIF('Team List'!C36:AX36,Pairing!$J$3)>0,'Team List'!$BB36/10000,'Team List'!$BB36)) -> -7.786252329 | F39: 50 | G39: T33 | I39: Pitch 17 | J39: =IF(K39="","",IF(K39="Bye","Bye",VLOOKUP(K39,'Team List'!B:BF,42,0))) ->  | L39: =IF(K39="",-1,VLOOKUP(IF(K39="Bye","T00",K39),'Team List'!B:AQ,39,0)) -> -1 | S39: 33 | T39: T28 | Y39: =IF(COUNTIF('Team List'!C35:AX35,"Bye")>0,'Team List'!$BB35+1000000000,'Team List'!$BB35) -> -4.444235348 | Z39: 33 | AA39: T32
A40: =IF(COUNTIF(K$7:K$71,C40)>0,'Team List'!$BB37*-1,'Team List'!$BB37) -> -2.06111771 | B40: 27 | C40: T34 | D40: 0 | E40: =IF(OR(COUNTIF(K$7:K$71,G40)>0,G40=$J$3),ABS('Team List'!$BB37)*-1,IF(COUNTIF('Team List'!C37:AX37,Pairing!$J$3)>0,'Team List'!$BB37/10000,'Team List'!$BB37)) -> -2.06111771 | F40: 10 | G40: T34 | J40: =IF(K40="","",IF(K40="Bye","Bye",VLOOKUP(K40,'Team List'!B:BF,42,0))) ->  | L40: =IF(K40="",-1,VLOOKUP(IF(K40="Bye","T00",K40),'Team List'!B:AQ,39,0)) -> -1 | S40: 34 | T40: T20 | Y40: =IF(COUNTIF('Team List'!C36:AX36,"Bye")>0,'Team List'!$BB36+1000000000,'Team List'!$BB36) -> -7.786252329 | Z40: 50 | AA40: T33
A41: =IF(COUNTIF(K$7:K$71,C41)>0,'Team List'!$BB38*-1,'Team List'!$BB38) -> -8.502186484 | B41: 55 | C41: T35 | D41: 0 | E41: =IF(OR(COUNTIF(K$7:K$71,G41)>0,G41=$J$3),ABS('Team List'!$BB38)*-1,IF(COUNTIF('Team List'!C38:AX38,Pairing!$J$3)>0,'Team List'!$BB38/10000,'Team List'!$BB38)) -> -8.502186484 | F41: 54 | G41: T35 | I41: Pitch 18 | J41: =IF(K41="","",IF(K41="Bye","Bye",VLOOKUP(K41,'Team List'!B:BF,42,0))) ->  | L41: =IF(K41="",-1,VLOOKUP(IF(K41="Bye","T00",K41),'Team List'!B:AQ,39,0)) -> -1 | S41: 35 | T41: T19 | Y41: =IF(COUNTIF('Team List'!C37:AX37,"Bye")>0,'Team List'!$BB37+1000000000,'Team List'!$BB37) -> -2.06111771 | Z41: 10 | AA41: T34
A42: =IF(COUNTIF(K$7:K$71,C42)>0,'Team List'!$BB39*-1,'Team List'!$BB39) -> -7.804522443 | B42: 52 | C42: T36 | D42: 0 | E42: =IF(OR(COUNTIF(K$7:K$71,G42)>0,G42=$J$3),ABS('Team List'!$BB39)*-1,IF(COUNTIF('Team List'!C39:AX39,Pairing!$J$3)>0,'Team List'!$BB39/10000,'Team List'!$BB39)) -> -7.804522443 | F42: 51 | G42: T36 | J42: =IF(K42="","",IF(K42="Bye","Bye",VLOOKUP(K42,'Team List'!B:BF,42,0))) ->  | L42: =IF(K42="",-1,VLOOKUP(IF(K42="Bye","T00",K42),'Team List'!B:AQ,39,0)) -> -1 | S42: 36 | Y42: =IF(COUNTIF('Team List'!C38:AX38,"Bye")>0,'Team List'!$BB38+1000000000,'Team List'!$BB38) -> -8.502186484 | Z42: 54 | AA42: T35
A43: =IF(COUNTIF(K$7:K$71,C43)>0,'Team List'!$BB40*-1,'Team List'!$BB40) -> -6.920808096 | B43: 47 | C43: T37 | D43: 0 | E43: =IF(OR(COUNTIF(K$7:K$71,G43)>0,G43=$J$3),ABS('Team List'!$BB40)*-1,IF(COUNTIF('Team List'!C40:AX40,Pairing!$J$3)>0,'Team List'!$BB40/10000,'Team List'!$BB40)) -> -6.920808096 | F43: 44 | G43: T37 | I43: Pitch 19 | J43: =IF(K43="","",IF(K43="Bye","Bye",VLOOKUP(K43,'Team List'!B:BF,42,0))) ->  | L43: =IF(K43="",-1,VLOOKUP(IF(K43="Bye","T00",K43),'Team List'!B:AQ,39,0)) -> -1 | S43: 37 | Y43: =IF(COUNTIF('Team List'!C39:AX39,"Bye")>0,'Team List'!$BB39+1000000000,'Team List'!$BB39) -> -7.804522443 | Z43: 51 | AA43: T36
A44: =IF(COUNTIF(K$7:K$71,C44)>0,'Team List'!$BB41*-1,'Team List'!$BB41) -> -1.040355838 | B44: 23 | C44: T38 | D44: 0 | E44: =IF(OR(COUNTIF(K$7:K$71,G44)>0,G44=$J$3),ABS('Team List'!$BB41)*-1,IF(COUNTIF('Team List'!C41:AX41,Pairing!$J$3)>0,'Team List'!$BB41/10000,'Team List'!$BB41)) -> -1.040355838 | F44: 5 | G44: T38 | J44: =IF(K44="","",IF(K44="Bye","Bye",VLOOKUP(K44,'Team List'!B:BF,42,0))) ->  | L44: =IF(K44="",-1,VLOOKUP(IF(K44="Bye","T00",K44),'Team List'!B:AQ,39,0)) -> -1 | S44: 38 | Y44: =IF(COUNTIF('Team List'!C40:AX40,"Bye")>0,'Team List'!$BB40+1000000000,'Team List'!$BB40) -> -6.920808096 | Z44: 44 | AA44: T37
A45: =IF(COUNTIF(K$7:K$71,C45)>0,'Team List'!$BB42*-1,'Team List'!$BB42) -> -2.708216248 | B45: 30 | C45: T39 | D45: 0 | E45: =IF(OR(COUNTIF(K$7:K$71,G45)>0,G45=$J$3),ABS('Team List'!$BB42)*-1,IF(COUNTIF('Team List'!C42:AX42,Pairing!$J$3)>0,'Team List'!$BB42/10000,'Team List'!$BB42)) -> -2.708216248 | F45: 16 | G45: T39 | I45: Pitch 20 | J45: =IF(K45="","",IF(K45="Bye","Bye",VLOOKUP(K45,'Team List'!B:BF,42,0))) ->  | L45: =IF(K45="",-1,VLOOKUP(IF(K45="Bye","T00",K45),'Team List'!B:AQ,39,0)) -> -1 | S45: 39 | Y45: =IF(COUNTIF('Team List'!C41:AX41,"Bye")>0,'Team List'!$BB41+1000000000,'Team List'!$BB41) -> -1.040355838 | Z45: 5 | AA45: T38
A46: =IF(COUNTIF(K$7:K$71,C46)>0,'Team List'!$BB43*-1,'Team List'!$BB43) -> -0.3984023527 | B46: 20 | C46: T40 | D46: 0 | E46: =IF(OR(COUNTIF(K$7:K$71,G46)>0,G46=$J$3),ABS('Team List'!$BB43)*-1,IF(COUNTIF('Team List'!C43:AX43,Pairing!$J$3)>0,'Team List'!$BB43/10000,'Team List'!$BB43)) -> -0.3984023527 | F46: 1 | G46: T40 | J46: =IF(K46="","",IF(K46="Bye","Bye",VLOOKUP(K46,'Team List'!B:BF,42,0))) ->  | L46: =IF(K46="",-1,VLOOKUP(IF(K46="Bye","T00",K46),'Team List'!B:AQ,39,0)) -> -1 | S46: 40 | Y46: =IF(COUNTIF('Team List'!C42:AX42,"Bye")>0,'Team List'!$BB42+1000000000,'Team List'!$BB42) -> -2.708216248 | Z46: 16 | AA46: T39
A47: =IF(COUNTIF(K$7:K$71,C47)>0,'Team List'!$BB44*-1,'Team List'!$BB44) -> -1.043292384 | B47: 24 | C47: T41 | D47: 0 | E47: =IF(OR(COUNTIF(K$7:K$71,G47)>0,G47=$J$3),ABS('Team List'!$BB44)*-1,IF(COUNTIF('Team List'!C44:AX44,Pairing!$J$3)>0,'Team List'!$BB44/10000,'Team List'!$BB44)) -> -1.043292384 | F47: 6 | G47: T41 | I47: Pitch 21 | J47: =IF(K47="","",IF(K47="Bye","Bye",VLOOKUP(K47,'Team List'!B:BF,42,0))) ->  | L47: =IF(K47="",-1,VLOOKUP(IF(K47="Bye","T00",K47),'Team List'!B:AQ,39,0)) -> -1 | S47: 41 | Y47: =IF(COUNTIF('Team List'!C43:AX43,"Bye")>0,'Team List'!$BB43+1000000000,'Team List'!$BB43) -> -0.3984023527 | Z47: 1 | AA47: T40
A48: =IF(COUNTIF(K$7:K$71,C48)>0,'Team List'!$BB45*-1,'Team List'!$BB45) -> -8.761717355 | B48: 56 | C48: T42 | D48: 0 | E48: =IF(OR(COUNTIF(K$7:K$71,G48)>0,G48=$J$3),ABS('Team List'!$BB45)*-1,IF(COUNTIF('Team List'!C45:AX45,Pairing!$J$3)>0,'Team List'!$BB45/10000,'Team List'!$BB45)) -> -8.761717355 | F48: 55 | G48: T42 | J48: =IF(K48="","",IF(K48="Bye","Bye",VLOOKUP(K48,'Team List'!B:BF,42,0))) ->  | L48: =IF(K48="",-1,VLOOKUP(IF(K48="Bye","T00",K48),'Team List'!B:AQ,39,0)) -> -1 | S48: 42 | Y48: =IF(COUNTIF('Team List'!C44:AX44,"Bye")>0,'Team List'!$BB44+1000000000,'Team List'!$BB44) -> -1.043292384 | Z48: 6 | AA48: T41
A49: =IF(COUNTIF(K$7:K$71,C49)>0,'Team List'!$BB46*-1,'Team List'!$BB46) -> -0.8168192006 | B49: 22 | C49: T43 | D49: 0 | E49: =IF(OR(COUNTIF(K$7:K$71,G49)>0,G49=$J$3),ABS('Team List'!$BB46)*-1,IF(COUNTIF('Team List'!C46:AX46,Pairing!$J$3)>0,'Team List'!$BB46/10000,'Team List'!$BB46)) -> -0.8168192006 | F49: 4 | G49: T43 | I49: Pitch 22 | J49: =IF(K49="","",IF(K49="Bye","Bye",VLOOKUP(K49,'Team List'!B:BF,42,0))) ->  | L49: =IF(K49="",-1,VLOOKUP(IF(K49="Bye","T00",K49),'Team List'!B:AQ,39,0)) -> -1 | S49: 43 | Y49: =IF(COUNTIF('Team List'!C45:AX45,"Bye")>0,'Team List'!$BB45+1000000000,'Team List'!$BB45) -> -8.761717355 | Z49: 55 | AA49: T42
A50: =IF(COUNTIF(K$7:K$71,C50)>0,'Team List'!$BB47*-1,'Team List'!$BB47) -> -9.860047085 | B50: 62 | C50: T44 | D50: 0 | E50: =IF(OR(COUNTIF(K$7:K$71,G50)>0,G50=$J$3),ABS('Team List'!$BB47)*-1,IF(COUNTIF('Team List'!C47:AX47,Pairing!$J$3)>0,'Team List'!$BB47/10000,'Team List'!$BB47)) -> -9.860047085 | F50: 62 | G50: T44 | J50: =IF(K50="","",IF(K50="Bye","Bye",VLOOKUP(K50,'Team List'!B:BF,42,0))) ->  | L50: =IF(K50="",-1,VLOOKUP(IF(K50="Bye","T00",K50),'Team List'!B:AQ,39,0)) -> -1 | S50: 44 | Y50: =IF(COUNTIF('Team List'!C46:AX46,"Bye")>0,'Team List'!$BB46+1000000000,'Team List'!$BB46) -> -0.8168192006 | Z50: 4 | AA50: T43
A51: =IF(COUNTIF(K$7:K$71,C51)>0,'Team List'!$BB48*-1,'Team List'!$BB48) -> -9.781814789 | B51: 61 | C51: T45 | D51: 0 | E51: =IF(OR(COUNTIF(K$7:K$71,G51)>0,G51=$J$3),ABS('Team List'!$BB48)*-1,IF(COUNTIF('Team List'!C48:AX48,Pairing!$J$3)>0,'Team List'!$BB48/10000,'Team List'!$BB48)) -> -9.781814789 | F51: 61 | G51: T45 | I51: Pitch 23 | J51: =IF(K51="","",IF(K51="Bye","Bye",VLOOKUP(K51,'Team List'!B:BF,42,0))) ->  | L51: =IF(K51="",-1,VLOOKUP(IF(K51="Bye","T00",K51),'Team List'!B:AQ,39,0)) -> -1 | S51: 45 | Y51: =IF(COUNTIF('Team List'!C47:AX47,"Bye")>0,'Team List'!$BB47+1000000000,'Team List'!$BB47) -> -9.860047085 | Z51: 62 | AA51: T44
A52: =IF(COUNTIF(K$7:K$71,C52)>0,'Team List'!$BB49*-1,'Team List'!$BB49) -> -7.858528121 | B52: 53 | C52: T46 | D52: 0 | E52: =IF(OR(COUNTIF(K$7:K$71,G52)>0,G52=$J$3),ABS('Team List'!$BB49)*-1,IF(COUNTIF('Team List'!C49:AX49,Pairing!$J$3)>0,'Team List'!$BB49/10000,'Team List'!$BB49)) -> -7.858528121 | F52: 52 | G52: T46 | J52: =IF(K52="","",IF(K52="Bye","Bye",VLOOKUP(K52,'Team List'!B:BF,42,0))) ->  | L52: =IF(K52="",-1,VLOOKUP(IF(K52="Bye","T00",K52),'Team List'!B:AQ,39,0)) -> -1 | S52: 46 | Y52: =IF(COUNTIF('Team List'!C48:AX48,"Bye")>0,'Team List'!$BB48+1000000000,'Team List'!$BB48) -> -9.781814789 | Z52: 61 | AA52: T45
A53: =IF(COUNTIF(K$7:K$71,C53)>0,'Team List'!$BB50*-1,'Team List'!$BB50) -> -0.6515112668 | B53: 21 | C53: T47 | D53: 0 | E53: =IF(OR(COUNTIF(K$7:K$71,G53)>0,G53=$J$3),ABS('Team List'!$BB50)*-1,IF(COUNTIF('Team List'!C50:AX50,Pairing!$J$3)>0,'Team List'!$BB50/10000,'Team List'!$BB50)) -> -0.6515112668 | F53: 3 | G53: T47 | I53: Pitch 24 | J53: =IF(K53="","",IF(K53="Bye","Bye",VLOOKUP(K53,'Team List'!B:BF,42,0))) ->  | L53: =IF(K53="",-1,VLOOKUP(IF(K53="Bye","T00",K53),'Team List'!B:AQ,39,0)) -> -1 | S53: 47 | Y53: =IF(COUNTIF('Team List'!C49:AX49,"Bye")>0,'Team List'!$BB49+1000000000,'Team List'!$BB49) -> -7.858528121 | Z53: 52 | AA53: T46
A54: =IF(COUNTIF(K$7:K$71,C54)>0,'Team List'!$BB51*-1,'Team List'!$BB51) -> -6.2760732 | B54: 43 | C54: T48 | D54: 0 | E54: =IF(OR(COUNTIF(K$7:K$71,G54)>0,G54=$J$3),ABS('Team List'!$BB51)*-1,IF(COUNTIF('Team List'!C51:AX51,Pairing!$J$3)>0,'Team List'!$BB51/10000,'Team List'!$BB51)) -> -6.2760732 | F54: 40 | G54: T48 | J54: =IF(K54="","",IF(K54="Bye","Bye",VLOOKUP(K54,'Team List'!B:BF,42,0))) ->  | L54: =IF(K54="",-1,VLOOKUP(IF(K54="Bye","T00",K54),'Team List'!B:AQ,39,0)) -> -1 | S54: 48 | Y54: =IF(COUNTIF('Team List'!C50:AX50,"Bye")>0,'Team List'!$BB50+1000000000,'Team List'!$BB50) -> -0.6515112668 | Z54: 3 | AA54: T47
A55: =IF(COUNTIF(K$7:K$71,C55)>0,'Team List'!$BB52*-1,'Team List'!$BB52) -> -4.413061754 | B55: 37 | C55: T49 | D55: 0 | E55: =IF(OR(COUNTIF(K$7:K$71,G55)>0,G55=$J$3),ABS('Team List'!$BB52)*-1,IF(COUNTIF('Team List'!C52:AX52,Pairing!$J$3)>0,'Team List'!$BB52/10000,'Team List'!$BB52)) -> -4.413061754 | F55: 31 | G55: T49 | I55: Pitch 25 | J55: =IF(K55="","",IF(K55="Bye","Bye",VLOOKUP(K55,'Team List'!B:BF,42,0))) ->  | L55: =IF(K55="",-1,VLOOKUP(IF(K55="Bye","T00",K55),'Team List'!B:AQ,39,0)) -> -1 | S55: 49 | Y55: =IF(COUNTIF('Team List'!C51:AX51,"Bye")>0,'Team List'!$BB51+1000000000,'Team List'!$BB51) -> -6.2760732 | Z55: 40 | AA55: T48
A56: =IF(COUNTIF(K$7:K$71,C56)>0,'Team List'!$BB53*-1,'Team List'!$BB53) -> -6.957777878 | B56: 48 | C56: T50 | D56: 0 | E56: =IF(OR(COUNTIF(K$7:K$71,G56)>0,G56=$J$3),ABS('Team List'!$BB53)*-1,IF(COUNTIF('Team List'!C53:AX53,Pairing!$J$3)>0,'Team List'!$BB53/10000,'Team List'!$BB53)) -> -6.957777878 | F56: 45 | G56: T50 | J56: =IF(K56="","",IF(K56="Bye","Bye",VLOOKUP(K56,'Team List'!B:BF,42,0))) ->  | L56: =IF(K56="",-1,VLOOKUP(IF(K56="Bye","T00",K56),'Team List'!B:AQ,39,0)) -> -1 | S56: 50 | Y56: =IF(COUNTIF('Team List'!C52:AX52,"Bye")>0,'Team List'!$BB52+1000000000,'Team List'!$BB52) -> -4.413061754 | Z56: 31 | AA56: T49
A57: =IF(COUNTIF(K$7:K$71,C57)>0,'Team List'!$BB54*-1,'Team List'!$BB54) -> -8.036408248 | B57: 54 | C57: T51 | D57: 0 | E57: =IF(OR(COUNTIF(K$7:K$71,G57)>0,G57=$J$3),ABS('Team List'!$BB54)*-1,IF(COUNTIF('Team List'!C54:AX54,Pairing!$J$3)>0,'Team List'!$BB54/10000,'Team List'!$BB54)) -> -8.036408248 | F57: 53 | G57: T51 | I57: Pitch 26 | J57: =IF(K57="","",IF(K57="Bye","Bye",VLOOKUP(K57,'Team List'!B:BF,42,0))) ->  | L57: =IF(K57="",-1,VLOOKUP(IF(K57="Bye","T00",K57),'Team List'!B:AQ,39,0)) -> -1 | S57: 51 | Y57: =IF(COUNTIF('Team List'!C53:AX53,"Bye")>0,'Team List'!$BB53+1000000000,'Team List'!$BB53) -> -6.957777878 | Z57: 45 | AA57: T50
A58: =IF(COUNTIF(K$7:K$71,C58)>0,'Team List'!$BB55*-1,'Team List'!$BB55) -> -7.334855535 | B58: 49 | C58: T52 | D58: 0 | E58: =IF(OR(COUNTIF(K$7:K$71,G58)>0,G58=$J$3),ABS('Team List'!$BB55)*-1,IF(COUNTIF('Team List'!C55:AX55,Pairing!$J$3)>0,'Team List'!$BB55/10000,'Team List'!$BB55)) -> -7.334855535 | F58: 46 | G58: T52 | J58: =IF(K58="","",IF(K58="Bye","Bye",VLOOKUP(K58,'Team List'!B:BF,42,0))) ->  | L58: =IF(K58="",-1,VLOOKUP(IF(K58="Bye","T00",K58),'Team List'!B:AQ,39,0)) -> -1 | S58: 52 | Y58: =IF(COUNTIF('Team List'!C54:AX54,"Bye")>0,'Team List'!$BB54+1000000000,'Team List'!$BB54) -> -8.036408248 | Z58: 53 | AA58: T51
A59: =IF(COUNTIF(K$7:K$71,C59)>0,'Team List'!$BB56*-1,'Team List'!$BB56) -> -2.70296429 | B59: 29 | C59: T53 | D59: 0 | E59: =IF(OR(COUNTIF(K$7:K$71,G59)>0,G59=$J$3),ABS('Team List'!$BB56)*-1,IF(COUNTIF('Team List'!C56:AX56,Pairing!$J$3)>0,'Team List'!$BB56/10000,'Team List'!$BB56)) -> -2.70296429 | F59: 15 | G59: T53 | I59: Pitch 27 | J59: =IF(K59="","",IF(K59="Bye","Bye",VLOOKUP(K59,'Team List'!B:BF,42,0))) ->  | L59: =IF(K59="",-1,VLOOKUP(IF(K59="Bye","T00",K59),'Team List'!B:AQ,39,0)) -> -1 | S59: 53 | Y59: =IF(COUNTIF('Team List'!C55:AX55,"Bye")>0,'Team List'!$BB55+1000000000,'Team List'!$BB55) -> -7.334855535 | Z59: 46 | AA59: T52
A60: =IF(COUNTIF(K$7:K$71,C60)>0,'Team List'!$BB57*-1,'Team List'!$BB57) -> -6.868981683 | B60: 46 | C60: T54 | D60: 0 | E60: =IF(OR(COUNTIF(K$7:K$71,G60)>0,G60=$J$3),ABS('Team List'!$BB57)*-1,IF(COUNTIF('Team List'!C57:AX57,Pairing!$J$3)>0,'Team List'!$BB57/10000,'Team List'!$BB57)) -> -6.868981683 | F60: 43 | G60: T54 | J60: =IF(K60="","",IF(K60="Bye","Bye",VLOOKUP(K60,'Team List'!B:BF,42,0))) ->  | L60: =IF(K60="",-1,VLOOKUP(IF(K60="Bye","T00",K60),'Team List'!B:AQ,39,0)) -> -1 | S60: 54 | Y60: =IF(COUNTIF('Team List'!C56:AX56,"Bye")>0,'Team List'!$BB56+1000000000,'Team List'!$BB56) -> -2.70296429 | Z60: 15 | AA60: T53
A61: =IF(COUNTIF(K$7:K$71,C61)>0,'Team List'!$BB58*-1,'Team List'!$BB58) -> -9.072445681 | B61: 59 | C61: T55 | D61: 0 | E61: =IF(OR(COUNTIF(K$7:K$71,G61)>0,G61=$J$3),ABS('Team List'!$BB58)*-1,IF(COUNTIF('Team List'!C58:AX58,Pairing!$J$3)>0,'Team List'!$BB58/10000,'Team List'!$BB58)) -> -9.072445681 | F61: 58 | G61: T55 | I61: Pitch 28 | J61: =IF(K61="","",IF(K61="Bye","Bye",VLOOKUP(K61,'Team List'!B:BF,42,0))) ->  | L61: =IF(K61="",-1,VLOOKUP(IF(K61="Bye","T00",K61),'Team List'!B:AQ,39,0)) -> -1 | S61: 55 | Y61: =IF(COUNTIF('Team List'!C57:AX57,"Bye")>0,'Team List'!$BB57+1000000000,'Team List'!$BB57) -> -6.868981683 | Z61: 43 | AA61: T54
A62: =IF(COUNTIF(K$7:K$71,C62)>0,'Team List'!$BB59*-1,'Team List'!$BB59) -> -6.410634676 | B62: 44 | C62: T56 | D62: 0 | E62: =IF(OR(COUNTIF(K$7:K$71,G62)>0,G62=$J$3),ABS('Team List'!$BB59)*-1,IF(COUNTIF('Team List'!C59:AX59,Pairing!$J$3)>0,'Team List'!$BB59/10000,'Team List'!$BB59)) -> -6.410634676 | F62: 41 | G62: T56 | J62: =IF(K62="","",IF(K62="Bye","Bye",VLOOKUP(K62,'Team List'!B:BF,42,0))) ->  | L62: =IF(K62="",-1,VLOOKUP(IF(K62="Bye","T00",K62),'Team List'!B:AQ,39,0)) -> -1 | S62: 56 | Y62: =IF(COUNTIF('Team List'!C58:AX58,"Bye")>0,'Team List'!$BB58+1000000000,'Team List'!$BB58) -> -9.072445681 | Z62: 58 | AA62: T55
A63: =IF(COUNTIF(K$7:K$71,C63)>0,'Team List'!$BB60*-1,'Team List'!$BB60) -> -9.897378823 | B63: 64 | C63: T57 | D63: 0 | E63: =IF(OR(COUNTIF(K$7:K$71,G63)>0,G63=$J$3),ABS('Team List'!$BB60)*-1,IF(COUNTIF('Team List'!C60:AX60,Pairing!$J$3)>0,'Team List'!$BB60/10000,'Team List'!$BB60)) -> -9.897378823 | F63: 64 | G63: T57 | I63: Pitch 29 | J63: =IF(K63="","",IF(K63="Bye","Bye",VLOOKUP(K63,'Team List'!B:BF,42,0))) ->  | L63: =IF(K63="",-1,VLOOKUP(IF(K63="Bye","T00",K63),'Team List'!B:AQ,39,0)) -> -1 | S63: 57 | Y63: =IF(COUNTIF('Team List'!C59:AX59,"Bye")>0,'Team List'!$BB59+1000000000,'Team List'!$BB59) -> -6.410634676 | Z63: 41 | AA63: T56
A64: =IF(COUNTIF(K$7:K$71,C64)>0,'Team List'!$BB61*-1,'Team List'!$BB61) -> -9.555091714 | B64: 60 | C64: T58 | D64: 0 | E64: =IF(OR(COUNTIF(K$7:K$71,G64)>0,G64=$J$3),ABS('Team List'!$BB61)*-1,IF(COUNTIF('Team List'!C61:AX61,Pairing!$J$3)>0,'Team List'!$BB61/10000,'Team List'!$BB61)) -> -9.555091714 | F64: 60 | G64: T58 | J64: =IF(K64="","",IF(K64="Bye","Bye",VLOOKUP(K64,'Team List'!B:BF,42,0))) ->  | L64: =IF(K64="",-1,VLOOKUP(IF(K64="Bye","T00",K64),'Team List'!B:AQ,39,0)) -> -1 | S64: 58 | Y64: =IF(COUNTIF('Team List'!C60:AX60,"Bye")>0,'Team List'!$BB60+1000000000,'Team List'!$BB60) -> -9.897378823 | Z64: 64 | AA64: T57
A65: =IF(COUNTIF(K$7:K$71,C65)>0,'Team List'!$BB62*-1,'Team List'!$BB62) -> -5.342108864 | B65: 41 | C65: T59 | D65: 0 | E65: =IF(OR(COUNTIF(K$7:K$71,G65)>0,G65=$J$3),ABS('Team List'!$BB62)*-1,IF(COUNTIF('Team List'!C62:AX62,Pairing!$J$3)>0,'Team List'!$BB62/10000,'Team List'!$BB62)) -> -5.342108864 | F65: 37 | G65: T59 | I65: Pitch 30 | J65: =IF(K65="","",IF(K65="Bye","Bye",VLOOKUP(K65,'Team List'!B:BF,42,0))) ->  | L65: =IF(K65="",-1,VLOOKUP(IF(K65="Bye","T00",K65),'Team List'!B:AQ,39,0)) -> -1 | S65: 59 | Y65: =IF(COUNTIF('Team List'!C61:AX61,"Bye")>0,'Team List'!$BB61+1000000000,'Team List'!$BB61) -> -9.555091714 | Z65: 60 | AA65: T58
A66: =IF(COUNTIF(K$7:K$71,C66)>0,'Team List'!$BB63*-1,'Team List'!$BB63) -> -6.131408755 | B66: 42 | C66: T60 | D66: 0 | E66: =IF(OR(COUNTIF(K$7:K$71,G66)>0,G66=$J$3),ABS('Team List'!$BB63)*-1,IF(COUNTIF('Team List'!C63:AX63,Pairing!$J$3)>0,'Team List'!$BB63/10000,'Team List'!$BB63)) -> -6.131408755 | F66: 39 | G66: T60 | J66: =IF(K66="","",IF(K66="Bye","Bye",VLOOKUP(K66,'Team List'!B:BF,42,0))) ->  | L66: =IF(K66="",-1,VLOOKUP(IF(K66="Bye","T00",K66),'Team List'!B:AQ,39,0)) -> -1 | S66: 60 | Y66: =IF(COUNTIF('Team List'!C62:AX62,"Bye")>0,'Team List'!$BB62+1000000000,'Team List'!$BB62) -> -5.342108864 | Z66: 37 | AA66: T59
A67: =IF(COUNTIF(K$7:K$71,C67)>0,'Team List'!$BB64*-1,'Team List'!$BB64) -> -9.035029821 | B67: 58 | C67: T61 | D67: 0 | E67: =IF(OR(COUNTIF(K$7:K$71,G67)>0,G67=$J$3),ABS('Team List'!$BB64)*-1,IF(COUNTIF('Team List'!C64:AX64,Pairing!$J$3)>0,'Team List'!$BB64/10000,'Team List'!$BB64)) -> -9.035029821 | F67: 57 | G67: T61 | I67: Pitch 31 | J67: =IF(K67="","",IF(K67="Bye","Bye",VLOOKUP(K67,'Team List'!B:BF,42,0))) ->  | L67: =IF(K67="",-1,VLOOKUP(IF(K67="Bye","T00",K67),'Team List'!B:AQ,39,0)) -> -1 | S67: 61 | Y67: =IF(COUNTIF('Team List'!C63:AX63,"Bye")>0,'Team List'!$BB63+1000000000,'Team List'!$BB63) -> -6.131408755 | Z67: 39 | AA67: T60
A68: =IF(COUNTIF(K$7:K$71,C68)>0,'Team List'!$BB65*-1,'Team List'!$BB65) -> -1.812235873 | B68: 25 | C68: T62 | D68: 0 | E68: =IF(OR(COUNTIF(K$7:K$71,G68)>0,G68=$J$3),ABS('Team List'!$BB65)*-1,IF(COUNTIF('Team List'!C65:AX65,Pairing!$J$3)>0,'Team List'!$BB65/10000,'Team List'!$BB65)) -> -1.812235873 | F68: 8 | G68: T62 | J68: =IF(K68="","",IF(K68="Bye","Bye",VLOOKUP(K68,'Team List'!B:BF,42,0))) ->  | L68: =IF(K68="",-1,VLOOKUP(IF(K68="Bye","T00",K68),'Team List'!B:AQ,39,0)) -> -1 | S68: 62 | Y68: =IF(COUNTIF('Team List'!C64:AX64,"Bye")>0,'Team List'!$BB64+1000000000,'Team List'!$BB64) -> -9.035029821 | Z68: 57 | AA68: T61
A69: =IF(COUNTIF(K$7:K$71,C69)>0,'Team List'!$BB66*-1,'Team List'!$BB66) -> -6.48338696 | B69: 45 | C69: T63 | D69: 0 | E69: =IF(OR(COUNTIF(K$7:K$71,G69)>0,G69=$J$3),ABS('Team List'!$BB66)*-1,IF(COUNTIF('Team List'!C66:AX66,Pairing!$J$3)>0,'Team List'!$BB66/10000,'Team List'!$BB66)) -> -6.48338696 | F69: 42 | G69: T63 | I69: Pitch 32 | J69: =IF(K69="","",IF(K69="Bye","Bye",VLOOKUP(K69,'Team List'!B:BF,42,0))) ->  | L69: =IF(K69="",-1,VLOOKUP(IF(K69="Bye","T00",K69),'Team List'!B:AQ,39,0)) -> -1 | S69: 63 | Y69: =IF(COUNTIF('Team List'!C65:AX65,"Bye")>0,'Team List'!$BB65+1000000000,'Team List'!$BB65) -> -1.812235873 | Z69: 8 | AA69: T62
A70: =IF(COUNTIF(K$7:K$71,C70)>0,'Team List'!$BB67*-1,'Team List'!$BB67) -> -4.42161716 | B70: 38 | C70: T64 | D70: 0 | E70: =IF(OR(COUNTIF(K$7:K$71,G70)>0,G70=$J$3),ABS('Team List'!$BB67)*-1,IF(COUNTIF('Team List'!C67:AX67,Pairing!$J$3)>0,'Team List'!$BB67/10000,'Team List'!$BB67)) -> -4.42161716 | F70: 32 | G70: T64 | J70: =IF(K70="","",IF(K70="Bye","Bye",VLOOKUP(K70,'Team List'!B:BF,42,0))) ->  | L70: =IF(K70="",-1,VLOOKUP(IF(K70="Bye","T00",K70),'Team List'!B:AQ,39,0)) -> -1 | S70: 64 | Y70: =IF(COUNTIF('Team List'!C66:AX66,"Bye")>0,'Team List'!$BB66+1000000000,'Team List'!$BB66) -> -6.48338696 | Z70: 42 | AA70: T63
A71: =IF(OR(COUNTIF(K$7:K$71,C71)>0,$B3<>"Yes"),-100,0) -> -100 | B71: 65 | C71: Bye | Y71: =IF(COUNTIF('Team List'!C67:AX67,"Bye")>0,'Team List'!$BB67+1000000000,'Team List'!$BB67) -> -4.42161716 | Z71: 32 | AA71: T64
Y72: =IF(COUNTIF('Team List'!C68:AX68,"Bye")>0,'Team List'!$BB68+1000000000,'Team List'!$BB68) -> 1000000000 | AA72: Bye

Sheet Accel_Pairing (hidden)
A1: Count of active teams: | B1: =COUNTIF('Team List'!D1:D67,"Yes") -> 0 | R1: Rankings
A2: Required Pairs: | B2: =ROUNDUP(B1/2,0) -> 0 | L2: X | M2: Team #
A3: Bye Required: | B3: =IF(MOD(B1,2)=1,"Yes","No") -> No | I3: 1st ranked available team 1: | J3: =VLOOKUP(1,B7:C71,2,0) -> T40 | K3: …with Xth ranked available team 2: | L3: 1 | M3: =VLOOKUP(L3,F7:G71,2,0) -> T40
A4: Accelerated Pairing ON | B4: No | C4: Type: | D4: 0 | K4: Valid team remaining? | L4: =IF(COUNTIF(E7:E71,M4)>0,"Yes","No") -> No | M4: >=0 | N4: 8
A5: FIRST TEAM OF PAIR | D5: =VLOOKUP(SMALL(D7:D70,1),D7:G70,4,0) -> T01 | E5: SECOND TEAM OF PAIR | K5: # of attempts: | L5: 0 | M5: =IF((B2-MOD(L5,B2)+1)>B2,1,B2-MOD(L5,B2)+1) ->  | N5: =ROUNDUP(L5/B2,0)+1 -> 
A6: Use Score: | B6: Use Rank | C6: Team | E6: Use Score: | F6: Use Rank | G6: Team | J6: Rank: | K6: Team: | L6: =IF(OR(AND(LARGE(L7:L70,1)>B1,B3<>"Yes"),AND(LARGE(L7:L70,1)>B1+1,B3="Yes")),"Invalid Team Picked","Teams OK") -> Teams OK | P6: Pair# | U6: Opp | W6: RandVal
A7: ='Team List'!$BB4 -> -4.333219621 | B7: =RANK(A7,A$7:A$71) -> 30 | C7: T01 | D7: =COUNTIF(K$7:K$70,G7)+IF(G7=J$3,1,0) -> 0 | E7: =IF(OR(COUNTIF(K$7:K$71,G7)>0,COUNTIF('Team List'!4:4,$J$3)>0),ABS('Team List'!$BB4)*-1,'Team List'!$BB4) -> -4.333219621 | F7: =RANK(E7,E$7:E$71) -> 30 | G7: T01 | I7: Pitch 1 | J7: =IF(K7="","",IF(K7="Bye","Bye",VLOOKUP(K7,'Team List'!B:BF,42,0))) ->  | K7: =IF(S7="","",IF(VLOOKUP(ROUNDDOWN(((ROW(H7)-1)/2)-2,0),P:U,4,0)="T00","Bye",VLOOKUP(ROUNDDOWN(((ROW(H7)-1)/2)-2,0),P:U,4,0))) ->  | L7: =IF(K7="",-1,VLOOKUP(K7,'Team List'!B:BF,39,0)) -> -1 | P7: =IF(W7="","",RANK(W7,$W$7:$W$70)) ->  | R7: 1 | S7: =IF(VLOOKUP(VLOOKUP(R7,'Team List'!BC:BD,2,0),'Team List'!B:D,3,0)<>"Yes","",VLOOKUP(R7,'Team List'!BC:BD,2,0)) ->  | U7: =IF(ISERROR(VLOOKUP(R7+$B$2,R:S,2,0)),"",VLOOKUP(R7+$B$2,R:S,2,0)) ->  | W7: =IF(U7="","",IF(U7="T00",0,'Team List'!A4)) -> 
A8: ='Team List'!$BB5 -> -7.648230765 | B8: =RANK(A8,A$7:A$71) -> 48 | C8: T02 | D8: =COUNTIF(K$7:K$70,G8)+IF(G8=J$3,1,0) -> 0 | E8: =IF(OR(COUNTIF(K$7:K$71,G8)>0,COUNTIF('Team List'!5:5,$J$3)>0),ABS('Team List'!$BB5)*-1,'Team List'!$BB5) -> -7.648230765 | F8: =RANK(E8,E$7:E$71) -> 48 | G8: T02 | J8: =IF(K8="","",IF(K8="Bye","Bye",VLOOKUP(K8,'Team List'!B:BF,42,0))) ->  | K8: =IF(S8="","",IF(VLOOKUP(ROUNDDOWN(((ROW(H8)-1)/2)-2,0),P:U,6,0)="T00","Bye",VLOOKUP(ROUNDDOWN(((ROW(H8)-1)/2)-2,0),P:U,6,0))) ->  | L8: =IF(K8="",-1,VLOOKUP(K8,'Team List'!B:BF,39,0)) -> -1 | P8: =IF(W8="","",RANK(W8,$W$7:$W$70)) ->  | R8: 2 | S8: =IF(VLOOKUP(VLOOKUP(R8,'Team List'!BC:BD,2,0),'Team List'!B:D,3,0)<>"Yes","",VLOOKUP(R8,'Team List'!BC:BD,2,0)) ->  | U8: =IF(ISERROR(VLOOKUP(R8+$B$2,R:S,2,0)),"",VLOOKUP(R8+$B$2,R:S,2,0)) ->  | W8: =IF(U8="","",IF(U8="T00",0,'Team List'!A5)) -> 
A9: ='Team List'!$BB6 -> -6.131222754 | B9: 38 | C9: T03 | D9: 0 | E9: =IF(OR(COUNTIF(K$7:K$71,G9)>0,COUNTIF('Team List'!6:6,$J$3)>0),ABS('Team List'!$BB6)*-1,'Team List'!$BB6) -> -6.131222754 | F9: 38 | G9: T03 | I9: Pitch 2 | J9: =IF(K9="","",IF(K9="Bye","Bye",VLOOKUP(K9,'Team List'!B:BF,42,0))) ->  | K9: =IF(S9="","",IF(VLOOKUP(ROUNDDOWN(((ROW(H9)-1)/2)-2,0),P:U,4,0)="T00","Bye",VLOOKUP(ROUNDDOWN(((ROW(H9)-1)/2)-2,0),P:U,4,0))) ->  | L9: =IF(K9="",-1,VLOOKUP(K9,'Team List'!B:BF,39,0)) -> -1 | R9: 3 | S9: =IF(VLOOKUP(VLOOKUP(R9,'Team List'!BC:BD,2,0),'Team List'!B:D,3,0)<>"Yes","",VLOOKUP(R9,'Team List'!BC:BD,2,0)) ->  | W9: =IF(U9="","",IF(U9="T00",0,'Team List'!A6)) -> 
A10: ='Team List'!$BB7 -> -4.059913585 | B10: 26 | C10: T04 | D10: 0 | E10: =IF(OR(COUNTIF(K$7:K$71,G10)>0,COUNTIF('Team List'!7:7,$J$3)>0),ABS('Team List'!$BB7)*-1,'Team List'!$BB7) -> -4.059913585 | F10: 26 | G10: T04 | J10: =IF(K10="","",IF(K10="Bye","Bye",VLOOKUP(K10,'Team List'!B:BF,42,0))) ->  | K10: =IF(S10="","",IF(VLOOKUP(ROUNDDOWN(((ROW(H10)-1)/2)-2,0),P:U,6,0)="T00","Bye",VLOOKUP(ROUNDDOWN(((ROW(H10)-1)/2)-2,0),P:U,6,0))) ->  | L10: =IF(K10="",-1,VLOOKUP(K10,'Team List'!B:BF,39,0)) -> -1 | R10: 4 | S10: =IF(VLOOKUP(VLOOKUP(R10,'Team List'!BC:BD,2,0),'Team List'!B:D,3,0)<>"Yes","",VLOOKUP(R10,'Team List'!BC:BD,2,0)) ->  | W10: =IF(U10="","",IF(U10="T00",0,'Team List'!A7)) -> 
A11: ='Team List'!$BB8 -> -7.422440339 | B11: 47 | C11: T05 | D11: 0 | E11: =IF(OR(COUNTIF(K$7:K$71,G11)>0,COUNTIF('Team List'!8:8,$J$3)>0),ABS('Team List'!$BB8)*-1,'Team List'!$BB8) -> -7.422440339 | F11: 47 | G11: T05 | I11: Pitch 3 | J11: =IF(K11="","",IF(K11="Bye","Bye",VLOOKUP(K11,'Team List'!B:BF,42,0))) ->  | K11: =IF(S11="","",IF(VLOOKUP(ROUNDDOWN(((ROW(H11)-1)/2)-2,0),P:U,4,0)="T00","Bye",VLOOKUP(ROUNDDOWN(((ROW(H11)-1)/2)-2,0),P:U,4,0))) ->  | L11: =IF(K11="",-1,VLOOKUP(K11,'Team List'!B:BF,39,0)) -> -1 | R11: 5 | S11: =IF(VLOOKUP(VLOOKUP(R11,'Team List'!BC:BD,2,0),'Team List'!B:D,3,0)<>"Yes","",VLOOKUP(R11,'Team List'!BC:BD,2,0)) ->  | W11: =IF(U11="","",IF(U11="T00",0,'Team List'!A8)) -> 
A12: ='Team List'!$BB9 -> -3.140621351 | B12: 18 | C12: T06 | D12: 0 | E12: =IF(OR(COUNTIF(K$7:K$71,G12)>0,COUNTIF('Team List'!9:9,$J$3)>0),ABS('Team List'!$BB9)*-1,'Team List'!$BB9) -> -3.140621351 | F12: 18 | G12: T06 | J12: =IF(K12="","",IF(K12="Bye","Bye",VLOOKUP(K12,'Team List'!B:BF,42,0))) ->  | K12: =IF(S12="","",IF(VLOOKUP(ROUNDDOWN(((ROW(H12)-1)/2)-2,0),P:U,6,0)="T00","Bye",VLOOKUP(ROUNDDOWN(((ROW(H12)-1)/2)-2,0),P:U,6,0))) ->  | L12: =IF(K12="",-1,VLOOKUP(K12,'Team List'!B:BF,39,0)) -> -1 | R12: 6 | S12: =IF(VLOOKUP(VLOOKUP(R12,'Team List'!BC:BD,2,0),'Team List'!B:D,3,0)<>"Yes","",VLOOKUP(R12,'Team List'!BC:BD,2,0)) ->  | W12: =IF(U12="","",IF(U12="T00",0,'Team List'!A9)) -> 
A13: ='Team List'!$BB10 -> -5.274139944 | B13: 35 | C13: T07 | D13: 0 | E13: =IF(OR(COUNTIF(K$7:K$71,G13)>0,COUNTIF('Team List'!10:10,$J$3)>0),ABS('Team List'!$BB10)*-1,'Team List'!$BB10) -> -5.274139944 | F13: 35 | G13: T07 | I13: Pitch 4 | J13: =IF(K13="","",IF(K13="Bye","Bye",VLOOKUP(K13,'Team List'!B:BF,42,0))) ->  | K13: =IF(S13="","",IF(VLOOKUP(ROUNDDOWN(((ROW(H13)-1)/2)-2,0),P:U,4,0)="T00","Bye",VLOOKUP(ROUNDDOWN(((ROW(H13)-1)/2)-2,0),P:U,4,0))) ->  | L13: =IF(K13="",-1,VLOOKUP(K13,'Team List'!B:BF,39,0)) -> -1 | R13: 7 | S13: =IF(VLOOKUP(VLOOKUP(R13,'Team List'!BC:BD,2,0),'Team List'!B:D,3,0)<>"Yes","",VLOOKUP(R13,'Team List'!BC:BD,2,0)) ->  | W13: =IF(U13="","",IF(U13="T00",0,'Team List'!A10)) -> 
A14: ='Team List'!$BB11 -> -9.451487669 | B14: 59 | C14: T08 | D14: 0 | E14: =IF(OR(COUNTIF(K$7:K$71,G14)>0,COUNTIF('Team List'!11:11,$J$3)>0),ABS('Team List'!$BB11)*-1,'Team List'!$BB11) -> -9.451487669 | F14: 59 | G14: T08 | J14: =IF(K14="","",IF(K14="Bye","Bye",VLOOKUP(K14,'Team List'!B:BF,42,0))) ->  | K14: =IF(S14="","",IF(VLOOKUP(ROUNDDOWN(((ROW(H14)-1)/2)-2,0),P:U,6,0)="T00","Bye",VLOOKUP(ROUNDDOWN(((ROW(H14)-1)/2)-2,0),P:U,6,0))) ->  | L14: =IF(K14="",-1,VLOOKUP(K14,'Team List'!B:BF,39,0)) -> -1 | R14: 8 | S14: =IF(VLOOKUP(VLOOKUP(R14,'Team List'!BC:BD,2,0),'Team List'!B:D,3,0)<>"Yes","",VLOOKUP(R14,'Team List'!BC:BD,2,0)) ->  | W14: =IF(U14="","",IF(U14="T00",0,'Team List'!A11)) -> 
A15: ='Team List'!$BB12 -> -1.289951587 | B15: 7 | C15: T09 | D15: 0 | E15: =IF(OR(COUNTIF(K$7:K$71,G15)>0,COUNTIF('Team List'!12:12,$J$3)>0),ABS('Team List'!$BB12)*-1,'Team List'!$BB12) -> -1.289951587 | F15: 7 | G15: T09 | I15: Pitch 5 | J15: =IF(K15="","",IF(K15="Bye","Bye",VLOOKUP(K15,'Team List'!B:BF,42,0))) ->  | K15: =IF(S15="","",IF(VLOOKUP(ROUNDDOWN(((ROW(H15)-1)/2)-2,0),P:U,4,0)="T00","Bye",VLOOKUP(ROUNDDOWN(((ROW(H15)-1)/2)-2,0),P:U,4,0))) ->  | L15: =IF(K15="",-1,VLOOKUP(K15,'Team List'!B:BF,39,0)) -> -1 | R15: 9 | S15: =IF(VLOOKUP(VLOOKUP(R15,'Team List'!BC:BD,2,0),'Team List'!B:D,3,0)<>"Yes","",VLOOKUP(R15,'Team List'!BC:BD,2,0)) ->  | W15: =IF(U15="","",IF(U15="T00",0,'Team List'!A12)) -> 
A16: ='Team List'!$BB13 -> -2.383402495 | B16: 13 | C16: T10 | D16: 0 | E16: =IF(OR(COUNTIF(K$7:K$71,G16)>0,COUNTIF('Team List'!13:13,$J$3)>0),ABS('Team List'!$BB13)*-1,'Team List'!$BB13) -> -2.383402495 | F16: 13 | G16: T10 | J16: =IF(K16="","",IF(K16="Bye","Bye",VLOOKUP(K16,'Team List'!B:BF,42,0))) ->  | K16: =IF(S16="","",IF(VLOOKUP(ROUNDDOWN(((ROW(H16)-1)/2)-2,0),P:U,6,0)="T00","Bye",VLOOKUP(ROUNDDOWN(((ROW(H16)-1)/2)-2,0),P:U,6,0))) ->  | L16: =IF(K16="",-1,VLOOKUP(K16,'Team List'!B:BF,39,0)) -> -1 | R16: 10 | S16: =IF(VLOOKUP(VLOOKUP(R16,'Team List'!BC:BD,2,0),'Team List'!B:D,3,0)<>"Yes","",VLOOKUP(R16,'Team List'!BC:BD,2,0)) ->  | W16: =IF(U16="","",IF(U16="T00",0,'Team List'!A13)) -> 
A17: ='Team List'!$BB14 -> -0.639705009 | B17: 2 | C17: T11 | D17: 0 | E17: =IF(OR(COUNTIF(K$7:K$71,G17)>0,COUNTIF('Team List'!14:14,$J$3)>0),ABS('Team List'!$BB14)*-1,'Team List'!$BB14) -> -0.639705009 | F17: 2 | G17: T11 | I17: Pitch 6 | J17: =IF(K17="","",IF(K17="Bye","Bye",VLOOKUP(K17,'Team List'!B:BF,42,0))) ->  | K17: =IF(S17="","",IF(VLOOKUP(ROUNDDOWN(((ROW(H17)-1)/2)-2,0),P:U,4,0)="T00","Bye",VLOOKUP(ROUNDDOWN(((ROW(H17)-1)/2)-2,0),P:U,4,0))) ->  | L17: =IF(K17="",-1,VLOOKUP(K17,'Team List'!B:BF,39,0)) -> -1 | R17: 11 | S17: =IF(VLOOKUP(VLOOKUP(R17,'Team List'!BC:BD,2,0),'Team List'!B:D,3,0)<>"Yes","",VLOOKUP(R17,'Team List'!BC:BD,2,0)) ->  | W17: =IF(U17="","",IF(U17="T00",0,'Team List'!A14)) -> 
A18: ='Team List'!$BB15 -> -3.912559224 | B18: 24 | C18: T12 | D18: 0 | E18: =IF(OR(COUNTIF(K$7:K$71,G18)>0,COUNTIF('Team List'!15:15,$J$3)>0),ABS('Team List'!$BB15)*-1,'Team List'!$BB15) -> -3.912559224 | F18: 24 | G18: T12 | J18: =IF(K18="","",IF(K18="Bye","Bye",VLOOKUP(K18,'Team List'!B:BF,42,0))) ->  | K18: =IF(S18="","",IF(VLOOKUP(ROUNDDOWN(((ROW(H18)-1)/2)-2,0),P:U,6,0)="T00","Bye",VLOOKUP(ROUNDDOWN(((ROW(H18)-1)/2)-2,0),P:U,6,0))) ->  | L18: =IF(K18="",-1,VLOOKUP(K18,'Team List'!B:BF,39,0)) -> -1 | R18: 12 | S18: =IF(VLOOKUP(VLOOKUP(R18,'Team List'!BC:BD,2,0),'Team List'!B:D,3,0)<>"Yes","",VLOOKUP(R18,'Team List'!BC:BD,2,0)) ->  | W18: =IF(U18="","",IF(U18="T00",0,'Team List'!A15)) -> 
A19: ='Team List'!$BB16 -> -2.522710213 | B19: 14 | C19: T13 | D19: 0 | E19: =IF(OR(COUNTIF(K$7:K$71,G19)>0,COUNTIF('Team List'!16:16,$J$3)>0),ABS('Team List'!$BB16)*-1,'Team List'!$BB16) -> -2.522710213 | F19: 14 | G19: T13 | I19: Pitch 7 | J19: =IF(K19="","",IF(K19="Bye","Bye",VLOOKUP(K19,'Team List'!B:BF,42,0))) ->  | K19: =IF(S19="","",IF(VLOOKUP(ROUNDDOWN(((ROW(H19)-1)/2)-2,0),P:U,4,0)="T00","Bye",VLOOKUP(ROUNDDOWN(((ROW(H19)-1)/2)-2,0),P:U,4,0))) ->  | L19: =IF(K19="",-1,VLOOKUP(K19,'Team List'!B:BF,39,0)) -> -1 | R19: 13 | S19: =IF(VLOOKUP(VLOOKUP(R19,'Team List'!BC:BD,2,0),'Team List'!B:D,3,0)<>"Yes","",VLOOKUP(R19,'Team List'!BC:BD,2,0)) ->  | W19: =IF(U19="","",IF(U19="T00",0,'Team List'!A16)) -> 
A20: ='Team List'!$BB17 -> -2.259450453 | B20: 12 | C20: T14 | D20: 0 | E20: =IF(OR(COUNTIF(K$7:K$71,G20)>0,COUNTIF('Team List'!17:17,$J$3)>0),ABS('Team List'!$BB17)*-1,'Team List'!$BB17) -> -2.259450453 | F20: 12 | G20: T14 | J20: =IF(K20="","",IF(K20="Bye","Bye",VLOOKUP(K20,'Team List'!B:BF,42,0))) ->  | K20: =IF(S20="","",IF(VLOOKUP(ROUNDDOWN(((ROW(H20)-1)/2)-2,0),P:U,6,0)="T00","Bye",VLOOKUP(ROUNDDOWN(((ROW(H20)-1)/2)-2,0),P:U,6,0))) ->  | L20: =IF(K20="",-1,VLOOKUP(K20,'Team List'!B:BF,39,0)) -> -1 | R20: 14 | S20: =IF(VLOOKUP(VLOOKUP(R20,'Team List'!BC:BD,2,0),'Team List'!B:D,3,0)<>"Yes","",VLOOKUP(R20,'Team List'!BC:BD,2,0)) ->  | W20: =IF(U20="","",IF(U20="T00",0,'Team List'!A17)) -> 
A21: ='Team List'!$BB18 -> -3.439564067 | B21: 21 | C21: T15 | D21: 0 | E21: =IF(OR(COUNTIF(K$7:K$71,G21)>0,COUNTIF('Team List'!18:18,$J$3)>0),ABS('Team List'!$BB18)*-1,'Team List'!$BB18) -> -3.439564067 | F21: 21 | G21: T15 | I21: Pitch 8 | J21: =IF(K21="","",IF(K21="Bye","Bye",VLOOKUP(K21,'Team List'!B:BF,42,0))) ->  | K21: =IF(S21="","",IF(VLOOKUP(ROUNDDOWN(((ROW(H21)-1)/2)-2,0),P:U,4,0)="T00","Bye",VLOOKUP(ROUNDDOWN(((ROW(H21)-1)/2)-2,0),P:U,4,0))) ->  | L21: =IF(K21="",-1,VLOOKUP(K21,'Team List'!B:BF,39,0)) -> -1 | R21: 15 | S21: =IF(VLOOKUP(VLOOKUP(R21,'Team List'!BC:BD,2,0),'Team List'!B:D,3,0)<>"Yes","",VLOOKUP(R21,'Team List'!BC:BD,2,0)) ->  | W21: =IF(U21="","",IF(U21="T00",0,'Team List'!A18)) -> 
A22: ='Team List'!$BB19 -> -2.980404971 | B22: 17 | C22: T16 | D22: 0 | E22: =IF(OR(COUNTIF(K$7:K$71,G22)>0,COUNTIF('Team List'!19:19,$J$3)>0),ABS('Team List'!$BB19)*-1,'Team List'!$BB19) -> -2.980404971 | F22: 17 | G22: T16 | J22: =IF(K22="","",IF(K22="Bye","Bye",VLOOKUP(K22,'Team List'!B:BF,42,0))) ->  | K22: =IF(S22="","",IF(VLOOKUP(ROUNDDOWN(((ROW(H22)-1)/2)-2,0),P:U,6,0)="T00","Bye",VLOOKUP(ROUNDDOWN(((ROW(H22)-1)/2)-2,0),P:U,6,0))) ->  | L22: =IF(K22="",-1,VLOOKUP(K22,'Team List'!B:BF,39,0)) -> -1 | R22: 16 | S22: =IF(VLOOKUP(VLOOKUP(R22,'Team List'!BC:BD,2,0),'Team List'!B:D,3,0)<>"Yes","",VLOOKUP(R22,'Team List'!BC:BD,2,0)) ->  | W22: =IF(U22="","",IF(U22="T00",0,'Team List'!A19)) -> 
A23: ='Team List'!$BB20 -> -3.354452154 | B23: 19 | C23: T17 | D23: 0 | E23: =IF(OR(COUNTIF(K$7:K$71,G23)>0,COUNTIF('Team List'!20:20,$J$3)>0),ABS('Team List'!$BB20)*-1,'Team List'!$BB20) -> -3.354452154 | F23: 19 | G23: T17 | I23: Pitch 9 | J23: =IF(K23="","",IF(K23="Bye","Bye",VLOOKUP(K23,'Team List'!B:BF,42,0))) ->  | K23: =IF(S23="","",IF(VLOOKUP(ROUNDDOWN(((ROW(H23)-1)/2)-2,0),P:U,4,0)="T00","Bye",VLOOKUP(ROUNDDOWN(((ROW(H23)-1)/2)-2,0),P:U,4,0))) ->  | L23: =IF(K23="",-1,VLOOKUP(K23,'Team List'!B:BF,39,0)) -> -1 | R23: 17 | S23: =IF(VLOOKUP(VLOOKUP(R23,'Team List'!BC:BD,2,0),'Team List'!B:D,3,0)<>"Yes","",VLOOKUP(R23,'Team List'!BC:BD,2,0)) ->  | W23: =IF(U23="","",IF(U23="T00",0,'Team List'!A20)) -> 
A24: ='Team List'!$BB21 -> -3.945366055 | B24: 25 | C24: T18 | D24: 0 | E24: =IF(OR(COUNTIF(K$7:K$71,G24)>0,COUNTIF('Team List'!21:21,$J$3)>0),ABS('Team List'!$BB21)*-1,'Team List'!$BB21) -> -3.945366055 | F24: 25 | G24: T18 | J24: =IF(K24="","",IF(K24="Bye","Bye",VLOOKUP(K24,'Team List'!B:BF,42,0))) ->  | K24: =IF(S24="","",IF(VLOOKUP(ROUNDDOWN(((ROW(H24)-1)/2)-2,0),P:U,6,0)="T00","Bye",VLOOKUP(ROUNDDOWN(((ROW(H24)-1)/2)-2,0),P:U,6,0))) ->  | L24: =IF(K24="",-1,VLOOKUP(K24,'Team List'!B:BF,39,0)) -> -1 | R24: 18 | S24: =IF(VLOOKUP(VLOOKUP(R24,'Team List'!BC:BD,2,0),'Team List'!B:D,3,0)<>"Yes","",VLOOKUP(R24,'Team List'!BC:BD,2,0)) ->  | W24: =IF(U24="","",IF(U24="T00",0,'Team List'!A21)) -> 
A25: ='Team List'!$BB22 -> -5.302692634 | B25: 36 | C25: T19 | D25: 0 | E25: =IF(OR(COUNTIF(K$7:K$71,G25)>0,COUNTIF('Team List'!22:22,$J$3)>0),ABS('Team List'!$BB22)*-1,'Team List'!$BB22) -> -5.302692634 | F25: 36 | G25: T19 | I25: Pitch 10 | J25: =IF(K25="","",IF(K25="Bye","Bye",VLOOKUP(K25,'Team List'!B:BF,42,0))) ->  | K25: =IF(S25="","",IF(VLOOKUP(ROUNDDOWN(((ROW(H25)-1)/2)-2,0),P:U,4,0)="T00","Bye",VLOOKUP(ROUNDDOWN(((ROW(H25)-1)/2)-2,0),P:U,4,0))) ->  | L25: =IF(K25="",-1,VLOOKUP(K25,'Team List'!B:BF,39,0)) -> -1 | R25: 19 | S25: =IF(VLOOKUP(VLOOKUP(R25,'Team List'!BC:BD,2,0),'Team List'!B:D,3,0)<>"Yes","",VLOOKUP(R25,'Team List'!BC:BD,2,0)) ->  | W25: =IF(U25="","",IF(U25="T00",0,'Team List'!A22)) -> 
A26: ='Team List'!$BB23 -> -3.854929297 | B26: 23 | C26: T20 | D26: 0 | E26: =IF(OR(COUNTIF(K$7:K$71,G26)>0,COUNTIF('Team List'!23:23,$J$3)>0),ABS('Team List'!$BB23)*-1,'Team List'!$BB23) -> -3.854929297 | F26: 23 | G26: T20 | J26: =IF(K26="","",IF(K26="Bye","Bye",VLOOKUP(K26,'Team List'!B:BF,42,0))) ->  | K26: =IF(S26="","",IF(VLOOKUP(ROUNDDOWN(((ROW(H26)-1)/2)-2,0),P:U,6,0)="T00","Bye",VLOOKUP(ROUNDDOWN(((ROW(H26)-1)/2)-2,0),P:U,6,0))) ->  | L26: =IF(K26="",-1,VLOOKUP(K26,'Team List'!B:BF,39,0)) -> -1 | R26: 20 | S26: =IF(VLOOKUP(VLOOKUP(R26,'Team List'!BC:BD,2,0),'Team List'!B:D,3,0)<>"Yes","",VLOOKUP(R26,'Team List'!BC:BD,2,0)) ->  | W26: =IF(U26="","",IF(U26="T00",0,'Team List'!A23)) -> 
A27: ='Team List'!$BB24 -> -4.690265376 | B27: 34 | C27: T21 | D27: 0 | E27: =IF(OR(COUNTIF(K$7:K$71,G27)>0,COUNTIF('Team List'!24:24,$J$3)>0),ABS('Team List'!$BB24)*-1,'Team List'!$BB24) -> -4.690265376 | F27: 34 | G27: T21 | I27: Pitch 11 | J27: =IF(K27="","",IF(K27="Bye","Bye",VLOOKUP(K27,'Team List'!B:BF,42,0))) ->  | K27: =IF(S27="","",IF(VLOOKUP(ROUNDDOWN(((ROW(H27)-1)/2)-2,0),P:U,4,0)="T00","Bye",VLOOKUP(ROUNDDOWN(((ROW(H27)-1)/2)-2,0),P:U,4,0))) ->  | L27: =IF(K27="",-1,VLOOKUP(K27,'Team List'!B:BF,39,0)) -> -1 | R27: 21 | S27: =IF(VLOOKUP(VLOOKUP(R27,'Team List'!BC:BD,2,0),'Team List'!B:D,3,0)<>"Yes","",VLOOKUP(R27,'Team List'!BC:BD,2,0)) ->  | W27: =IF(U27="","",IF(U27="T00",0,'Team List'!A24)) -> 
A28: ='Team List'!$BB25 -> -7.693861624 | B28: 49 | C28: T22 | D28: 0 | E28: =IF(OR(COUNTIF(K$7:K$71,G28)>0,COUNTIF('Team List'!25:25,$J$3)>0),ABS('Team List'!$BB25)*-1,'Team List'!$BB25) -> -7.693861624 | F28: 49 | G28: T22 | J28: =IF(K28="","",IF(K28="Bye","Bye",VLOOKUP(K28,'Team List'!B:BF,42,0))) ->  | K28: =IF(S28="","",IF(VLOOKUP(ROUNDDOWN(((ROW(H28)-1)/2)-2,0),P:U,6,0)="T00","Bye",VLOOKUP(ROUNDDOWN(((ROW(H28)-1)/2)-2,0),P:U,6,0))) ->  | L28: =IF(K28="",-1,VLOOKUP(K28,'Team List'!B:BF,39,0)) -> -1 | R28: 22 | S28: =IF(VLOOKUP(VLOOKUP(R28,'Team List'!BC:BD,2,0),'Team List'!B:D,3,0)<>"Yes","",VLOOKUP(R28,'Team List'!BC:BD,2,0)) ->  | W28: =IF(U28="","",IF(U28="T00",0,'Team List'!A25)) -> 
A29: ='Team List'!$BB26 -> -4.318948419 | B29: 29 | C29: T23 | D29: 0 | E29: =IF(OR(COUNTIF(K$7:K$71,G29)>0,COUNTIF('Team List'!26:26,$J$3)>0),ABS('Team List'!$BB26)*-1,'Team List'!$BB26) -> -4.318948419 | F29: 29 | G29: T23 | I29: Pitch 12 | J29: =IF(K29="","",IF(K29="Bye","Bye",VLOOKUP(K29,'Team List'!B:BF,42,0))) ->  | K29: =IF(S29="","",IF(VLOOKUP(ROUNDDOWN(((ROW(H29)-1)/2)-2,0),P:U,4,0)="T00","Bye",VLOOKUP(ROUNDDOWN(((ROW(H29)-1)/2)-2,0),P:U,4,0))) ->  | L29: =IF(K29="",-1,VLOOKUP(K29,'Team List'!B:BF,39,0)) -> -1 | R29: 23 | S29: =IF(VLOOKUP(VLOOKUP(R29,'Team List'!BC:BD,2,0),'Team List'!B:D,3,0)<>"Yes","",VLOOKUP(R29,'Team List'!BC:BD,2,0)) ->  | W29: =IF(U29="","",IF(U29="T00",0,'Team List'!A26)) -> 
A30: ='Team List'!$BB27 -> -9.876598071 | B30: 63 | C30: T24 | D30: 0 | E30: =IF(OR(COUNTIF(K$7:K$71,G30)>0,COUNTIF('Team List'!27:27,$J$3)>0),ABS('Team List'!$BB27)*-1,'Team List'!$BB27) -> -9.876598071 | F30: 63 | G30: T24 | J30: =IF(K30="","",IF(K30="Bye","Bye",VLOOKUP(K30,'Team List'!B:BF,42,0))) ->  | K30: =IF(S30="","",IF(VLOOKUP(ROUNDDOWN(((ROW(H30)-1)/2)-2,0),P:U,6,0)="T00","Bye",VLOOKUP(ROUNDDOWN(((ROW(H30)-1)/2)-2,0),P:U,6,0))) ->  | L30: =IF(K30="",-1,VLOOKUP(K30,'Team List'!B:BF,39,0)) -> -1 | R30: 24 | S30: =IF(VLOOKUP(VLOOKUP(R30,'Team List'!BC:BD,2,0),'Team List'!B:D,3,0)<>"Yes","",VLOOKUP(R30,'Team List'!BC:BD,2,0)) ->  | W30: =IF(U30="","",IF(U30="T00",0,'Team List'!A27)) -> 
A31: ='Team List'!$BB28 -> -9.007628961 | B31: 56 | C31: T25 | D31: 0 | E31: =IF(OR(COUNTIF(K$7:K$71,G31)>0,COUNTIF('Team List'!28:28,$J$3)>0),ABS('Team List'!$BB28)*-1,'Team List'!$BB28) -> -9.007628961 | F31: 56 | G31: T25 | I31: Pitch 13 | J31: =IF(K31="","",IF(K31="Bye","Bye",VLOOKUP(K31,'Team List'!B:BF,42,0))) ->  | K31: =IF(S31="","",IF(VLOOKUP(ROUNDDOWN(((ROW(H31)-1)/2)-2,0),P:U,4,0)="T00","Bye",VLOOKUP(ROUNDDOWN(((ROW(H31)-1)/2)-2,0),P:U,4,0))) ->  | L31: =IF(K31="",-1,VLOOKUP(K31,'Team List'!B:BF,39,0)) -> -1 | R31: 25 | S31: =IF(VLOOKUP(VLOOKUP(R31,'Team List'!BC:BD,2,0),'Team List'!B:D,3,0)<>"Yes","",VLOOKUP(R31,'Team List'!BC:BD,2,0)) ->  | W31: =IF(U31="","",IF(U31="T00",0,'Team List'!A28)) -> 
A32: ='Team List'!$BB29 -> -4.072396047 | B32: 27 | C32: T26 | D32: 0 | E32: =IF(OR(COUNTIF(K$7:K$71,G32)>0,COUNTIF('Team List'!29:29,$J$3)>0),ABS('Team List'!$BB29)*-1,'Team List'!$BB29) -> -4.072396047 | F32: 27 | G32: T26 | J32: =IF(K32="","",IF(K32="Bye","Bye",VLOOKUP(K32,'Team List'!B:BF,42,0))) ->  | K32: =IF(S32="","",IF(VLOOKUP(ROUNDDOWN(((ROW(H32)-1)/2)-2,0),P:U,6,0)="T00","Bye",VLOOKUP(ROUNDDOWN(((ROW(H32)-1)/2)-2,0),P:U,6,0))) ->  | L32: =IF(K32="",-1,VLOOKUP(K32,'Team List'!B:BF,39,0)) -> -1 | R32: 26 | S32: =IF(VLOOKUP(VLOOKUP(R32,'Team List'!BC:BD,2,0),'Team List'!B:D,3,0)<>"Yes","",VLOOKUP(R32,'Team List'!BC:BD,2,0)) ->  | W32: =IF(U32="","",IF(U32="T00",0,'Team List'!A29)) -> 
A33: ='Team List'!$BB30 -> -2.04867698 | B33: 9 | C33: T27 | D33: 0 | E33: =IF(OR(COUNTIF(K$7:K$71,G33)>0,COUNTIF('Team List'!30:30,$J$3)>0),ABS('Team List'!$BB30)*-1,'Team List'!$BB30) -> -2.04867698 | F33: 9 | G33: T27 | I33: Pitch 14 | J33: =IF(K33="","",IF(K33="Bye","Bye",VLOOKUP(K33,'Team List'!B:BF,42,0))) ->  | K33: =IF(S33="","",IF(VLOOKUP(ROUNDDOWN(((ROW(H33)-1)/2)-2,0),P:U,4,0)="T00","Bye",VLOOKUP(ROUNDDOWN(((ROW(H33)-1)/2)-2,0),P:U,4,0))) ->  | L33: =IF(K33="",-1,VLOOKUP(K33,'Team List'!B:BF,39,0)) -> -1 | R33: 27 | S33: =IF(VLOOKUP(VLOOKUP(R33,'Team List'!BC:BD,2,0),'Team List'!B:D,3,0)<>"Yes","",VLOOKUP(R33,'Team List'!BC:BD,2,0)) ->  | W33: =IF(U33="","",IF(U33="T00",0,'Team List'!A30)) -> 
A34: ='Team List'!$BB31 -> -2.110726043 | B34: 11 | C34: T28 | D34: 0 | E34: =IF(OR(COUNTIF(K$7:K$71,G34)>0,COUNTIF('Team List'!31:31,$J$3)>0),ABS('Team List'!$BB31)*-1,'Team List'!$BB31) -> -2.110726043 | F34: 11 | G34: T28 | J34: =IF(K34="","",IF(K34="Bye","Bye",VLOOKUP(K34,'Team List'!B:BF,42,0))) ->  | K34: =IF(S34="","",IF(VLOOKUP(ROUNDDOWN(((ROW(H34)-1)/2)-2,0),P:U,6,0)="T00","Bye",VLOOKUP(ROUNDDOWN(((ROW(H34)-1)/2)-2,0),P:U,6,0))) ->  | L34: =IF(K34="",-1,VLOOKUP(K34,'Team List'!B:BF,39,0)) -> -1 | R34: 28 | S34: =IF(VLOOKUP(VLOOKUP(R34,'Team List'!BC:BD,2,0),'Team List'!B:D,3,0)<>"Yes","",VLOOKUP(R34,'Team List'!BC:BD,2,0)) ->  | W34: =IF(U34="","",IF(U34="T00",0,'Team List'!A31)) -> 
A35: ='Team List'!$BB32 -> -3.720107803 | B35: 22 | C35: T29 | D35: 0 | E35: =IF(OR(COUNTIF(K$7:K$71,G35)>0,COUNTIF('Team List'!32:32,$J$3)>0),ABS('Team List'!$BB32)*-1,'Team List'!$BB32) -> -3.720107803 | F35: 22 | G35: T29 | I35: Pitch 15 | J35: =IF(K35="","",IF(K35="Bye","Bye",VLOOKUP(K35,'Team List'!B:BF,42,0))) ->  | K35: =IF(S35="","",IF(VLOOKUP(ROUNDDOWN(((ROW(H35)-1)/2)-2,0),P:U,4,0)="T00","Bye",VLOOKUP(ROUNDDOWN(((ROW(H35)-1)/2)-2,0),P:U,4,0))) ->  | L35: =IF(K35="",-1,VLOOKUP(K35,'Team List'!B:BF,39,0)) -> -1 | R35: 29 | S35: =IF(VLOOKUP(VLOOKUP(R35,'Team List'!BC:BD,2,0),'Team List'!B:D,3,0)<>"Yes","",VLOOKUP(R35,'Team List'!BC:BD,2,0)) ->  | W35: =IF(U35="","",IF(U35="T00",0,'Team List'!A32)) -> 
A36: ='Team List'!$BB33 -> -4.28649334 | B36: 28 | C36: T30 | D36: 0 | E36: =IF(OR(COUNTIF(K$7:K$71,G36)>0,COUNTIF('Team List'!33:33,$J$3)>0),ABS('Team List'!$BB33)*-1,'Team List'!$BB33) -> -4.28649334 | F36: 28 | G36: T30 | J36: =IF(K36="","",IF(K36="Bye","Bye",VLOOKUP(K36,'Team List'!B:BF,42,0))) ->  | K36: =IF(S36="","",IF(VLOOKUP(ROUNDDOWN(((ROW(H36)-1)/2)-2,0),P:U,6,0)="T00","Bye",VLOOKUP(ROUNDDOWN(((ROW(H36)-1)/2)-2,0),P:U,6,0))) ->  | L36: =IF(K36="",-1,VLOOKUP(K36,'Team List'!B:BF,39,0)) -> -1 | R36: 30 | S36: =IF(VLOOKUP(VLOOKUP(R36,'Team List'!BC:BD,2,0),'Team List'!B:D,3,0)<>"Yes","",VLOOKUP(R36,'Team List'!BC:BD,2,0)) ->  | W36: =IF(U36="","",IF(U36="T00",0,'Team List'!A33)) -> 
A37: ='Team List'!$BB34 -> -3.431964547 | B37: 20 | C37: T31 | D37: 0 | E37: =IF(OR(COUNTIF(K$7:K$71,G37)>0,COUNTIF('Team List'!34:34,$J$3)>0),ABS('Team List'!$BB34)*-1,'Team List'!$BB34) -> -3.431964547 | F37: 20 | G37: T31 | I37: Pitch 16 | J37: =IF(K37="","",IF(K37="Bye","Bye",VLOOKUP(K37,'Team List'!B:BF,42,0))) ->  | K37: =IF(S37="","",IF(VLOOKUP(ROUNDDOWN(((ROW(H37)-1)/2)-2,0),P:U,4,0)="T00","Bye",VLOOKUP(ROUNDDOWN(((ROW(H37)-1)/2)-2,0),P:U,4,0))) ->  | L37: =IF(K37="",-1,VLOOKUP(K37,'Team List'!B:BF,39,0)) -> -1 | R37: 31 | S37: =IF(VLOOKUP(VLOOKUP(R37,'Team List'!BC:BD,2,0),'Team List'!B:D,3,0)<>"Yes","",VLOOKUP(R37,'Team List'!BC:BD,2,0)) ->  | W37: =IF(U37="","",IF(U37="T00",0,'Team List'!A34)) -> 
A38: ='Team List'!$BB35 -> -4.444235348 | B38: 33 | C38: T32 | D38: 0 | E38: =IF(OR(COUNTIF(K$7:K$71,G38)>0,COUNTIF('Team List'!35:35,$J$3)>0),ABS('Team List'!$BB35)*-1,'Team List'!$BB35) -> -4.444235348 | F38: 33 | G38: T32 | J38: =IF(K38="","",IF(K38="Bye","Bye",VLOOKUP(K38,'Team List'!B:BF,42,0))) ->  | K38: =IF(S38="","",IF(VLOOKUP(ROUNDDOWN(((ROW(H38)-1)/2)-2,0),P:U,6,0)="T00","Bye",VLOOKUP(ROUNDDOWN(((ROW(H38)-1)/2)-2,0),P:U,6,0))) ->  | L38: =IF(K38="",-1,VLOOKUP(K38,'Team List'!B:BF,39,0)) -> -1 | R38: 32 | S38: =IF(VLOOKUP(VLOOKUP(R38,'Team List'!BC:BD,2,0),'Team List'!B:D,3,0)<>"Yes","",VLOOKUP(R38,'Team List'!BC:BD,2,0)) ->  | W38: =IF(U38="","",IF(U38="T00",0,'Team List'!A35)) -> 
A39: ='Team List'!$BB36 -> -7.786252329 | B39: 50 | C39: T33 | D39: 0 | E39: =IF(OR(COUNTIF(K$7:K$71,G39)>0,COUNTIF('Team List'!36:36,$J$3)>0),ABS('Team List'!$BB36)*-1,'Team List'!$BB36) -> -7.786252329 | F39: 50 | G39: T33 | I39: Pitch 17 | J39: =IF(K39="","",IF(K39="Bye","Bye",VLOOKUP(K39,'Team List'!B:BF,42,0))) ->  | K39: =IF(S39="","",IF(VLOOKUP(ROUNDDOWN(((ROW(H39)-1)/2)-2,0),P:U,4,0)="T00","Bye",VLOOKUP(ROUNDDOWN(((ROW(H39)-1)/2)-2,0),P:U,4,0))) ->  | L39: =IF(K39="",-1,VLOOKUP(K39,'Team List'!B:BF,39,0)) -> -1 | R39: 33 | S39: =IF(VLOOKUP(VLOOKUP(R39,'Team List'!BC:BD,2,0),'Team List'!B:D,3,0)<>"Yes","",VLOOKUP(R39,'Team List'!BC:BD,2,0)) ->  | W39: =IF(U39="","",IF(U39="T00",0,'Team List'!A36)) -> 
A40: ='Team List'!$BB37 -> -2.06111771 | B40: 10 | C40: T34 | D40: 0 | E40: =IF(OR(COUNTIF(K$7:K$71,G40)>0,COUNTIF('Team List'!37:37,$J$3)>0),ABS('Team List'!$BB37)*-1,'Team List'!$BB37) -> -2.06111771 | F40: 10 | G40: T34 | J40: =IF(K40="","",IF(K40="Bye","Bye",VLOOKUP(K40,'Team List'!B:BF,42,0))) ->  | K40: =IF(S40="","",IF(VLOOKUP(ROUNDDOWN(((ROW(H40)-1)/2)-2,0),P:U,6,0)="T00","Bye",VLOOKUP(ROUNDDOWN(((ROW(H40)-1)/2)-2,0),P:U,6,0))) ->  | L40: =IF(K40="",-1,VLOOKUP(K40,'Team List'!B:BF,39,0)) -> -1 | R40: 34 | S40: =IF(VLOOKUP(VLOOKUP(R40,'Team List'!BC:BD,2,0),'Team List'!B:D,3,0)<>"Yes","",VLOOKUP(R40,'Team List'!BC:BD,2,0)) ->  | W40: =IF(U40="","",IF(U40="T00",0,'Team List'!A37)) -> 
A41: ='Team List'!$BB38 -> -8.502186484 | B41: 54 | C41: T35 | D41: 0 | E41: =IF(OR(COUNTIF(K$7:K$71,G41)>0,COUNTIF('Team List'!38:38,$J$3)>0),ABS('Team List'!$BB38)*-1,'Team List'!$BB38) -> -8.502186484 | F41: 54 | G41: T35 | I41: Pitch 18 | J41: =IF(K41="","",IF(K41="Bye","Bye",VLOOKUP(K41,'Team List'!B:BF,42,0))) ->  | K41: =IF(S41="","",IF(VLOOKUP(ROUNDDOWN(((ROW(H41)-1)/2)-2,0),P:U,4,0)="T00","Bye",VLOOKUP(ROUNDDOWN(((ROW(H41)-1)/2)-2,0),P:U,4,0))) ->  | L41: =IF(K41="",-1,VLOOKUP(K41,'Team List'!B:BF,39,0)) -> -1 | R41: 35 | S41: =IF(VLOOKUP(VLOOKUP(R41,'Team List'!BC:BD,2,0),'Team List'!B:D,3,0)<>"Yes","",VLOOKUP(R41,'Team List'!BC:BD,2,0)) ->  | W41: =IF(U41="","",IF(U41="T00",0,'Team List'!A38)) -> 
A42: ='Team List'!$BB39 -> -7.804522443 | B42: 51 | C42: T36 | D42: 0 | E42: =IF(OR(COUNTIF(K$7:K$71,G42)>0,COUNTIF('Team List'!39:39,$J$3)>0),ABS('Team List'!$BB39)*-1,'Team List'!$BB39) -> -7.804522443 | F42: 51 | G42: T36 | J42: =IF(K42="","",IF(K42="Bye","Bye",VLOOKUP(K42,'Team List'!B:BF,42,0))) ->  | K42: =IF(S42="","",IF(VLOOKUP(ROUNDDOWN(((ROW(H42)-1)/2)-2,0),P:U,6,0)="T00","Bye",VLOOKUP(ROUNDDOWN(((ROW(H42)-1)/2)-2,0),P:U,6,0))) ->  | L42: =IF(K42="",-1,VLOOKUP(K42,'Team List'!B:BF,39,0)) -> -1 | R42: 36 | S42: =IF(VLOOKUP(VLOOKUP(R42,'Team List'!BC:BD,2,0),'Team List'!B:D,3,0)<>"Yes","",VLOOKUP(R42,'Team List'!BC:BD,2,0)) ->  | W42: =IF(U42="","",IF(U42="T00",0,'Team List'!A39)) -> 
A43: ='Team List'!$BB40 -> -6.920808096 | B43: 44 | C43: T37 | D43: 0 | E43: =IF(OR(COUNTIF(K$7:K$71,G43)>0,COUNTIF('Team List'!40:40,$J$3)>0),ABS('Team List'!$BB40)*-1,'Team List'!$BB40) -> -6.920808096 | F43: 44 | G43: T37 | I43: Pitch 19 | J43: =IF(K43="","",IF(K43="Bye","Bye",VLOOKUP(K43,'Team List'!B:BF,42,0))) ->  | K43: =IF(S43="","",IF(VLOOKUP(ROUNDDOWN(((ROW(H43)-1)/2)-2,0),P:U,4,0)="T00","Bye",VLOOKUP(ROUNDDOWN(((ROW(H43)-1)/2)-2,0),P:U,4,0))) ->  | L43: =IF(K43="",-1,VLOOKUP(K43,'Team List'!B:BF,39,0)) -> -1 | R43: 37 | S43: =IF(VLOOKUP(VLOOKUP(R43,'Team List'!BC:BD,2,0),'Team List'!B:D,3,0)<>"Yes","",VLOOKUP(R43,'Team List'!BC:BD,2,0)) ->  | W43: =IF(U43="","",IF(U43="T00",0,'Team List'!A40)) -> 
A44: ='Team List'!$BB41 -> -1.040355838 | B44: 5 | C44: T38 | D44: 0 | E44: =IF(OR(COUNTIF(K$7:K$71,G44)>0,COUNTIF('Team List'!41:41,$J$3)>0),ABS('Team List'!$BB41)*-1,'Team List'!$BB41) -> -1.040355838 | F44: 5 | G44: T38 | J44: =IF(K44="","",IF(K44="Bye","Bye",VLOOKUP(K44,'Team List'!B:BF,42,0))) ->  | K44: =IF(S44="","",IF(VLOOKUP(ROUNDDOWN(((ROW(H44)-1)/2)-2,0),P:U,6,0)="T00","Bye",VLOOKUP(ROUNDDOWN(((ROW(H44)-1)/2)-2,0),P:U,6,0))) ->  | L44: =IF(K44="",-1,VLOOKUP(K44,'Team List'!B:BF,39,0)) -> -1 | R44: 38 | S44: =IF(VLOOKUP(VLOOKUP(R44,'Team List'!BC:BD,2,0),'Team List'!B:D,3,0)<>"Yes","",VLOOKUP(R44,'Team List'!BC:BD,2,0)) ->  | W44: =IF(U44="","",IF(U44="T00",0,'Team List'!A41)) -> 
A45: ='Team List'!$BB42 -> -2.708216248 | B45: 16 | C45: T39 | D45: 0 | E45: =IF(OR(COUNTIF(K$7:K$71,G45)>0,COUNTIF('Team List'!42:42,$J$3)>0),ABS('Team List'!$BB42)*-1,'Team List'!$BB42) -> -2.708216248 | F45: 16 | G45: T39 | I45: Pitch 20 | J45: =IF(K45="","",IF(K45="Bye","Bye",VLOOKUP(K45,'Team List'!B:BF,42,0))) ->  | K45: =IF(S45="","",IF(VLOOKUP(ROUNDDOWN(((ROW(H45)-1)/2)-2,0),P:U,4,0)="T00","Bye",VLOOKUP(ROUNDDOWN(((ROW(H45)-1)/2)-2,0),P:U,4,0))) ->  | L45: =IF(K45="",-1,VLOOKUP(K45,'Team List'!B:BF,39,0)) -> -1 | R45: 39 | S45: =IF(VLOOKUP(VLOOKUP(R45,'Team List'!BC:BD,2,0),'Team List'!B:D,3,0)<>"Yes","",VLOOKUP(R45,'Team List'!BC:BD,2,0)) ->  | W45: =IF(U45="","",IF(U45="T00",0,'Team List'!A42)) -> 
A46: ='Team List'!$BB43 -> -0.3984023527 | B46: 1 | C46: T40 | D46: 1 | E46: =IF(OR(COUNTIF(K$7:K$71,G46)>0,COUNTIF('Team List'!43:43,$J$3)>0),ABS('Team List'!$BB43)*-1,'Team List'!$BB43) -> -0.3984023527 | F46: 1 | G46: T40 | J46: =IF(K46="","",IF(K46="Bye","Bye",VLOOKUP(K46,'Team List'!B:BF,42,0))) ->  | K46: =IF(S46="","",IF(VLOOKUP(ROUNDDOWN(((ROW(H46)-1)/2)-2,0),P:U,6,0)="T00","Bye",VLOOKUP(ROUNDDOWN(((ROW(H46)-1)/2)-2,0),P:U,6,0))) ->  | L46: =IF(K46="",-1,VLOOKUP(K46,'Team List'!B:BF,39,0)) -> -1 | R46: 40 | S46: =IF(VLOOKUP(VLOOKUP(R46,'Team List'!BC:BD,2,0),'Team List'!B:D,3,0)<>"Yes","",VLOOKUP(R46,'Team List'!BC:BD,2,0)) ->  | W46: =IF(U46="","",IF(U46="T00",0,'Team List'!A43)) -> 
A47: ='Team List'!$BB44 -> -1.043292384 | B47: 6 | C47: T41 | D47: 0 | E47: =IF(OR(COUNTIF(K$7:K$71,G47)>0,COUNTIF('Team List'!44:44,$J$3)>0),ABS('Team List'!$BB44)*-1,'Team List'!$BB44) -> -1.043292384 | F47: 6 | G47: T41 | I47: Pitch 21 | J47: =IF(K47="","",IF(K47="Bye","Bye",VLOOKUP(K47,'Team List'!B:BF,42,0))) ->  | K47: =IF(S47="","",IF(VLOOKUP(ROUNDDOWN(((ROW(H47)-1)/2)-2,0),P:U,4,0)="T00","Bye",VLOOKUP(ROUNDDOWN(((ROW(H47)-1)/2)-2,0),P:U,4,0))) ->  | L47: =IF(K47="",-1,VLOOKUP(K47,'Team List'!B:BF,39,0)) -> -1 | R47: 41 | S47: =IF(VLOOKUP(VLOOKUP(R47,'Team List'!BC:BD,2,0),'Team List'!B:D,3,0)<>"Yes","",VLOOKUP(R47,'Team List'!BC:BD,2,0)) ->  | W47: =IF(U47="","",IF(U47="T00",0,'Team List'!A44)) -> 
A48: ='Team List'!$BB45 -> -8.761717355 | B48: 55 | C48: T42 | D48: 0 | E48: =IF(OR(COUNTIF(K$7:K$71,G48)>0,COUNTIF('Team List'!45:45,$J$3)>0),ABS('Team List'!$BB45)*-1,'Team List'!$BB45) -> -8.761717355 | F48: 55 | G48: T42 | J48: =IF(K48="","",IF(K48="Bye","Bye",VLOOKUP(K48,'Team List'!B:BF,42,0))) ->  | K48: =IF(S48="","",IF(VLOOKUP(ROUNDDOWN(((ROW(H48)-1)/2)-2,0),P:U,6,0)="T00","Bye",VLOOKUP(ROUNDDOWN(((ROW(H48)-1)/2)-2,0),P:U,6,0))) ->  | L48: =IF(K48="",-1,VLOOKUP(K48,'Team List'!B:BF,39,0)) -> -1 | R48: 42 | S48: =IF(VLOOKUP(VLOOKUP(R48,'Team List'!BC:BD,2,0),'Team List'!B:D,3,0)<>"Yes","",VLOOKUP(R48,'Team List'!BC:BD,2,0)) ->  | W48: =IF(U48="","",IF(U48="T00",0,'Team List'!A45)) -> 
A49: ='Team List'!$BB46 -> -0.8168192006 | B49: 4 | C49: T43 | D49: 0 | E49: =IF(OR(COUNTIF(K$7:K$71,G49)>0,COUNTIF('Team List'!46:46,$J$3)>0),ABS('Team List'!$BB46)*-1,'Team List'!$BB46) -> -0.8168192006 | F49: 4 | G49: T43 | I49: Pitch 22 | J49: =IF(K49="","",IF(K49="Bye","Bye",VLOOKUP(K49,'Team List'!B:BF,42,0))) ->  | K49: =IF(S49="","",IF(VLOOKUP(ROUNDDOWN(((ROW(H49)-1)/2)-2,0),P:U,4,0)="T00","Bye",VLOOKUP(ROUNDDOWN(((ROW(H49)-1)/2)-2,0),P:U,4,0))) ->  | L49: =IF(K49="",-1,VLOOKUP(K49,'Team List'!B:BF,39,0)) -> -1 | R49: 43 | S49: =IF(VLOOKUP(VLOOKUP(R49,'Team List'!BC:BD,2,0),'Team List'!B:D,3,0)<>"Yes","",VLOOKUP(R49,'Team List'!BC:BD,2,0)) ->  | W49: =IF(U49="","",IF(U49="T00",0,'Team List'!A46)) -> 
A50: ='Team List'!$BB47 -> -9.860047085 | B50: 62 | C50: T44 | D50: 0 | E50: =IF(OR(COUNTIF(K$7:K$71,G50)>0,COUNTIF('Team List'!47:47,$J$3)>0),ABS('Team List'!$BB47)*-1,'Team List'!$BB47) -> -9.860047085 | F50: 62 | G50: T44 | J50: =IF(K50="","",IF(K50="Bye","Bye",VLOOKUP(K50,'Team List'!B:BF,42,0))) ->  | K50: =IF(S50="","",IF(VLOOKUP(ROUNDDOWN(((ROW(H50)-1)/2)-2,0),P:U,6,0)="T00","Bye",VLOOKUP(ROUNDDOWN(((ROW(H50)-1)/2)-2,0),P:U,6,0))) ->  | L50: =IF(K50="",-1,VLOOKUP(K50,'Team List'!B:BF,39,0)) -> -1 | R50: 44 | S50: =IF(VLOOKUP(VLOOKUP(R50,'Team List'!BC:BD,2,0),'Team List'!B:D,3,0)<>"Yes","",VLOOKUP(R50,'Team List'!BC:BD,2,0)) ->  | W50: =IF(U50="","",IF(U50="T00",0,'Team List'!A47)) -> 
A51: ='Team List'!$BB48 -> -9.781814789 | B51: 61 | C51: T45 | D51: 0 | E51: =IF(OR(COUNTIF(K$7:K$71,G51)>0,COUNTIF('Team List'!48:48,$J$3)>0),ABS('Team List'!$BB48)*-1,'Team List'!$BB48) -> -9.781814789 | F51: 61 | G51: T45 | I51: Pitch 23 | J51: =IF(K51="","",IF(K51="Bye","Bye",VLOOKUP(K51,'Team List'!B:BF,42,0))) ->  | K51: =IF(S51="","",IF(VLOOKUP(ROUNDDOWN(((ROW(H51)-1)/2)-2,0),P:U,4,0)="T00","Bye",VLOOKUP(ROUNDDOWN(((ROW(H51)-1)/2)-2,0),P:U,4,0))) ->  | L51: =IF(K51="",-1,VLOOKUP(K51,'Team List'!B:BF,39,0)) -> -1 | R51: 45 | S51: =IF(VLOOKUP(VLOOKUP(R51,'Team List'!BC:BD,2,0),'Team List'!B:D,3,0)<>"Yes","",VLOOKUP(R51,'Team List'!BC:BD,2,0)) ->  | W51: =IF(U51="","",IF(U51="T00",0,'Team List'!A48)) -> 
A52: ='Team List'!$BB49 -> -7.858528121 | B52: 52 | C52: T46 | D52: 0 | E52: =IF(OR(COUNTIF(K$7:K$71,G52)>0,COUNTIF('Team List'!49:49,$J$3)>0),ABS('Team List'!$BB49)*-1,'Team List'!$BB49) -> -7.858528121 | F52: 52 | G52: T46 | J52: =IF(K52="","",IF(K52="Bye","Bye",VLOOKUP(K52,'Team List'!B:BF,42,0))) ->  | K52: =IF(S52="","",IF(VLOOKUP(ROUNDDOWN(((ROW(H52)-1)/2)-2,0),P:U,6,0)="T00","Bye",VLOOKUP(ROUNDDOWN(((ROW(H52)-1)/2)-2,0),P:U,6,0))) ->  | L52: =IF(K52="",-1,VLOOKUP(K52,'Team List'!B:BF,39,0)) -> -1 | R52: 46 | S52: =IF(VLOOKUP(VLOOKUP(R52,'Team List'!BC:BD,2,0),'Team List'!B:D,3,0)<>"Yes","",VLOOKUP(R52,'Team List'!BC:BD,2,0)) ->  | W52: =IF(U52="","",IF(U52="T00",0,'Team List'!A49)) -> 
A53: ='Team List'!$BB50 -> -0.6515112668 | B53: 3 | C53: T47 | D53: 0 | E53: =IF(OR(COUNTIF(K$7:K$71,G53)>0,COUNTIF('Team List'!50:50,$J$3)>0),ABS('Team List'!$BB50)*-1,'Team List'!$BB50) -> -0.6515112668 | F53: 3 | G53: T47 | I53: Pitch 24 | J53: =IF(K53="","",IF(K53="Bye","Bye",VLOOKUP(K53,'Team List'!B:BF,42,0))) ->  | K53: =IF(S53="","",IF(VLOOKUP(ROUNDDOWN(((ROW(H53)-1)/2)-2,0),P:U,4,0)="T00","Bye",VLOOKUP(ROUNDDOWN(((ROW(H53)-1)/2)-2,0),P:U,4,0))) ->  | L53: =IF(K53="",-1,VLOOKUP(K53,'Team List'!B:BF,39,0)) -> -1 | R53: 47 | S53: =IF(VLOOKUP(VLOOKUP(R53,'Team List'!BC:BD,2,0),'Team List'!B:D,3,0)<>"Yes","",VLOOKUP(R53,'Team List'!BC:BD,2,0)) ->  | W53: =IF(U53="","",IF(U53="T00",0,'Team List'!A50)) -> 
A54: ='Team List'!$BB51 -> -6.2760732 | B54: 40 | C54: T48 | D54: 0 | E54: =IF(OR(COUNTIF(K$7:K$71,G54)>0,COUNTIF('Team List'!51:51,$J$3)>0),ABS('Team List'!$BB51)*-1,'Team List'!$BB51) -> -6.2760732 | F54: 40 | G54: T48 | J54: =IF(K54="","",IF(K54="Bye","Bye",VLOOKUP(K54,'Team List'!B:BF,42,0))) ->  | K54: =IF(S54="","",IF(VLOOKUP(ROUNDDOWN(((ROW(H54)-1)/2)-2,0),P:U,6,0)="T00","Bye",VLOOKUP(ROUNDDOWN(((ROW(H54)-1)/2)-2,0),P:U,6,0))) ->  | L54: =IF(K54="",-1,VLOOKUP(K54,'Team List'!B:BF,39,0)) -> -1 | R54: 48 | S54: =IF(VLOOKUP(VLOOKUP(R54,'Team List'!BC:BD,2,0),'Team List'!B:D,3,0)<>"Yes","",VLOOKUP(R54,'Team List'!BC:BD,2,0)) ->  | W54: =IF(U54="","",IF(U54="T00",0,'Team List'!A51)) -> 
A55: ='Team List'!$BB52 -> -4.413061754 | B55: 31 | C55: T49 | D55: 0 | E55: =IF(OR(COUNTIF(K$7:K$71,G55)>0,COUNTIF('Team List'!52:52,$J$3)>0),ABS('Team List'!$BB52)*-1,'Team List'!$BB52) -> -4.413061754 | F55: 31 | G55: T49 | I55: Pitch 25 | J55: =IF(K55="","",IF(K55="Bye","Bye",VLOOKUP(K55,'Team List'!B:BF,42,0))) ->  | K55: =IF(S55="","",IF(VLOOKUP(ROUNDDOWN(((ROW(H55)-1)/2)-2,0),P:U,4,0)="T00","Bye",VLOOKUP(ROUNDDOWN(((ROW(H55)-1)/2)-2,0),P:U,4,0))) ->  | L55: =IF(K55="",-1,VLOOKUP(K55,'Team List'!B:BF,39,0)) -> -1 | R55: 49 | S55: =IF(VLOOKUP(VLOOKUP(R55,'Team List'!BC:BD,2,0),'Team List'!B:D,3,0)<>"Yes","",VLOOKUP(R55,'Team List'!BC:BD,2,0)) ->  | W55: =IF(U55="","",IF(U55="T00",0,'Team List'!A52)) -> 
A56: ='Team List'!$BB53 -> -6.957777878 | B56: 45 | C56: T50 | D56: 0 | E56: =IF(OR(COUNTIF(K$7:K$71,G56)>0,COUNTIF('Team List'!53:53,$J$3)>0),ABS('Team List'!$BB53)*-1,'Team List'!$BB53) -> -6.957777878 | F56: 45 | G56: T50 | J56: =IF(K56="","",IF(K56="Bye","Bye",VLOOKUP(K56,'Team List'!B:BF,42,0))) ->  | K56: =IF(S56="","",IF(VLOOKUP(ROUNDDOWN(((ROW(H56)-1)/2)-2,0),P:U,6,0)="T00","Bye",VLOOKUP(ROUNDDOWN(((ROW(H56)-1)/2)-2,0),P:U,6,0))) ->  | L56: =IF(K56="",-1,VLOOKUP(K56,'Team List'!B:BF,39,0)) -> -1 | R56: 50 | S56: =IF(VLOOKUP(VLOOKUP(R56,'Team List'!BC:BD,2,0),'Team List'!B:D,3,0)<>"Yes","",VLOOKUP(R56,'Team List'!BC:BD,2,0)) ->  | W56: =IF(U56="","",IF(U56="T00",0,'Team List'!A53)) -> 
A57: ='Team List'!$BB54 -> -8.036408248 | B57: 53 | C57: T51 | D57: 0 | E57: =IF(OR(COUNTIF(K$7:K$71,G57)>0,COUNTIF('Team List'!54:54,$J$3)>0),ABS('Team List'!$BB54)*-1,'Team List'!$BB54) -> -8.036408248 | F57: 53 | G57: T51 | I57: Pitch 26 | J57: =IF(K57="","",IF(K57="Bye","Bye",VLOOKUP(K57,'Team List'!B:BF,42,0))) ->  | K57: =IF(S57="","",IF(VLOOKUP(ROUNDDOWN(((ROW(H57)-1)/2)-2,0),P:U,4,0)="T00","Bye",VLOOKUP(ROUNDDOWN(((ROW(H57)-1)/2)-2,0),P:U,4,0))) ->  | L57: =IF(K57="",-1,VLOOKUP(K57,'Team List'!B:BF,39,0)) -> -1 | R57: 51 | S57: =IF(VLOOKUP(VLOOKUP(R57,'Team List'!BC:BD,2,0),'Team List'!B:D,3,0)<>"Yes","",VLOOKUP(R57,'Team List'!BC:BD,2,0)) ->  | W57: =IF(U57="","",IF(U57="T00",0,'Team List'!A54)) -> 
A58: ='Team List'!$BB55 -> -7.334855535 | B58: 46 | C58: T52 | D58: 0 | E58: =IF(OR(COUNTIF(K$7:K$71,G58)>0,COUNTIF('Team List'!55:55,$J$3)>0),ABS('Team List'!$BB55)*-1,'Team List'!$BB55) -> -7.334855535 | F58: 46 | G58: T52 | J58: =IF(K58="","",IF(K58="Bye","Bye",VLOOKUP(K58,'Team List'!B:BF,42,0))) ->  | K58: =IF(S58="","",IF(VLOOKUP(ROUNDDOWN(((ROW(H58)-1)/2)-2,0),P:U,6,0)="T00","Bye",VLOOKUP(ROUNDDOWN(((ROW(H58)-1)/2)-2,0),P:U,6,0))) ->  | L58: =IF(K58="",-1,VLOOKUP(K58,'Team List'!B:BF,39,0)) -> -1 | R58: 52 | S58: =IF(VLOOKUP(VLOOKUP(R58,'Team List'!BC:BD,2,0),'Team List'!B:D,3,0)<>"Yes","",VLOOKUP(R58,'Team List'!BC:BD,2,0)) ->  | W58: =IF(U58="","",IF(U58="T00",0,'Team List'!A55)) -> 
A59: ='Team List'!$BB56 -> -2.70296429 | B59: 15 | C59: T53 | D59: 0 | E59: =IF(OR(COUNTIF(K$7:K$71,G59)>0,COUNTIF('Team List'!56:56,$J$3)>0),ABS('Team List'!$BB56)*-1,'Team List'!$BB56) -> -2.70296429 | F59: 15 | G59: T53 | I59: Pitch 27 | J59: =IF(K59="","",IF(K59="Bye","Bye",VLOOKUP(K59,'Team List'!B:BF,42,0))) ->  | K59: =IF(S59="","",IF(VLOOKUP(ROUNDDOWN(((ROW(H59)-1)/2)-2,0),P:U,4,0)="T00","Bye",VLOOKUP(ROUNDDOWN(((ROW(H59)-1)/2)-2,0),P:U,4,0))) ->  | L59: =IF(K59="",-1,VLOOKUP(K59,'Team List'!B:BF,39,0)) -> -1 | R59: 53 | S59: =IF(VLOOKUP(VLOOKUP(R59,'Team List'!BC:BD,2,0),'Team List'!B:D,3,0)<>"Yes","",VLOOKUP(R59,'Team List'!BC:BD,2,0)) ->  | W59: =IF(U59="","",IF(U59="T00",0,'Team List'!A56)) -> 
A60: ='Team List'!$BB57 -> -6.868981683 | B60: 43 | C60: T54 | D60: 0 | E60: =IF(OR(COUNTIF(K$7:K$71,G60)>0,COUNTIF('Team List'!57:57,$J$3)>0),ABS('Team List'!$BB57)*-1,'Team List'!$BB57) -> -6.868981683 | F60: 43 | G60: T54 | J60: =IF(K60="","",IF(K60="Bye","Bye",VLOOKUP(K60,'Team List'!B:BF,42,0))) ->  | K60: =IF(S60="","",IF(VLOOKUP(ROUNDDOWN(((ROW(H60)-1)/2)-2,0),P:U,6,0)="T00","Bye",VLOOKUP(ROUNDDOWN(((ROW(H60)-1)/2)-2,0),P:U,6,0))) ->  | L60: =IF(K60="",-1,VLOOKUP(K60,'Team List'!B:BF,39,0)) -> -1 | R60: 54 | S60: =IF(VLOOKUP(VLOOKUP(R60,'Team List'!BC:BD,2,0),'Team List'!B:D,3,0)<>"Yes","",VLOOKUP(R60,'Team List'!BC:BD,2,0)) ->  | W60: =IF(U60="","",IF(U60="T00",0,'Team List'!A57)) -> 
A61: ='Team List'!$BB58 -> -9.072445681 | B61: 58 | C61: T55 | D61: 0 | E61: =IF(OR(COUNTIF(K$7:K$71,G61)>0,COUNTIF('Team List'!58:58,$J$3)>0),ABS('Team List'!$BB58)*-1,'Team List'!$BB58) -> -9.072445681 | F61: 58 | G61: T55 | I61: Pitch 28 | J61: =IF(K61="","",IF(K61="Bye","Bye",VLOOKUP(K61,'Team List'!B:BF,42,0))) ->  | K61: =IF(S61="","",IF(VLOOKUP(ROUNDDOWN(((ROW(H61)-1)/2)-2,0),P:U,4,0)="T00","Bye",VLOOKUP(ROUNDDOWN(((ROW(H61)-1)/2)-2,0),P:U,4,0))) ->  | L61: =IF(K61="",-1,VLOOKUP(K61,'Team List'!B:BF,39,0)) -> -1 | R61: 55 | S61: =IF(VLOOKUP(VLOOKUP(R61,'Team List'!BC:BD,2,0),'Team List'!B:D,3,0)<>"Yes","",VLOOKUP(R61,'Team List'!BC:BD,2,0)) ->  | W61: =IF(U61="","",IF(U61="T00",0,'Team List'!A58)) -> 
A62: ='Team List'!$BB59 -> -6.410634676 | B62: 41 | C62: T56 | D62: 0 | E62: =IF(OR(COUNTIF(K$7:K$71,G62)>0,COUNTIF('Team List'!59:59,$J$3)>0),ABS('Team List'!$BB59)*-1,'Team List'!$BB59) -> -6.410634676 | F62: 41 | G62: T56 | J62: =IF(K62="","",IF(K62="Bye","Bye",VLOOKUP(K62,'Team List'!B:BF,42,0))) ->  | K62: =IF(S62="","",IF(VLOOKUP(ROUNDDOWN(((ROW(H62)-1)/2)-2,0),P:U,6,0)="T00","Bye",VLOOKUP(ROUNDDOWN(((ROW(H62)-1)/2)-2,0),P:U,6,0))) ->  | L62: =IF(K62="",-1,VLOOKUP(K62,'Team List'!B:BF,39,0)) -> -1 | R62: 56 | S62: =IF(VLOOKUP(VLOOKUP(R62,'Team List'!BC:BD,2,0),'Team List'!B:D,3,0)<>"Yes","",VLOOKUP(R62,'Team List'!BC:BD,2,0)) ->  | W62: =IF(U62="","",IF(U62="T00",0,'Team List'!A59)) -> 
A63: ='Team List'!$BB60 -> -9.897378823 | B63: 64 | C63: T57 | D63: 0 | E63: =IF(OR(COUNTIF(K$7:K$71,G63)>0,COUNTIF('Team List'!60:60,$J$3)>0),ABS('Team List'!$BB60)*-1,'Team List'!$BB60) -> -9.897378823 | F63: 64 | G63: T57 | I63: Pitch 29 | J63: =IF(K63="","",IF(K63="Bye","Bye",VLOOKUP(K63,'Team List'!B:BF,42,0))) ->  | K63: =IF(S63="","",IF(VLOOKUP(ROUNDDOWN(((ROW(H63)-1)/2)-2,0),P:U,4,0)="T00","Bye",VLOOKUP(ROUNDDOWN(((ROW(H63)-1)/2)-2,0),P:U,4,0))) ->  | L63: =IF(K63="",-1,VLOOKUP(K63,'Team List'!B:BF,39,0)) -> -1 | R63: 57 | S63: =IF(VLOOKUP(VLOOKUP(R63,'Team List'!BC:BD,2,0),'Team List'!B:D,3,0)<>"Yes","",VLOOKUP(R63,'Team List'!BC:BD,2,0)) ->  | W63: =IF(U63="","",IF(U63="T00",0,'Team List'!A60)) -> 
A64: ='Team List'!$BB61 -> -9.555091714 | B64: 60 | C64: T58 | D64: 0 | E64: =IF(OR(COUNTIF(K$7:K$71,G64)>0,COUNTIF('Team List'!61:61,$J$3)>0),ABS('Team List'!$BB61)*-1,'Team List'!$BB61) -> -9.555091714 | F64: 60 | G64: T58 | J64: =IF(K64="","",IF(K64="Bye","Bye",VLOOKUP(K64,'Team List'!B:BF,42,0))) ->  | K64: =IF(S64="","",IF(VLOOKUP(ROUNDDOWN(((ROW(H64)-1)/2)-2,0),P:U,6,0)="T00","Bye",VLOOKUP(ROUNDDOWN(((ROW(H64)-1)/2)-2,0),P:U,6,0))) ->  | L64: =IF(K64="",-1,VLOOKUP(K64,'Team List'!B:BF,39,0)) -> -1 | R64: 58 | S64: =IF(VLOOKUP(VLOOKUP(R64,'Team List'!BC:BD,2,0),'Team List'!B:D,3,0)<>"Yes","",VLOOKUP(R64,'Team List'!BC:BD,2,0)) ->  | W64: =IF(U64="","",IF(U64="T00",0,'Team List'!A61)) -> 
A65: ='Team List'!$BB62 -> -5.342108864 | B65: 37 | C65: T59 | D65: 0 | E65: =IF(OR(COUNTIF(K$7:K$71,G65)>0,COUNTIF('Team List'!62:62,$J$3)>0),ABS('Team List'!$BB62)*-1,'Team List'!$BB62) -> -5.342108864 | F65: 37 | G65: T59 | I65: Pitch 30 | J65: =IF(K65="","",IF(K65="Bye","Bye",VLOOKUP(K65,'Team List'!B:BF,42,0))) ->  | K65: =IF(S65="","",IF(VLOOKUP(ROUNDDOWN(((ROW(H65)-1)/2)-2,0),P:U,4,0)="T00","Bye",VLOOKUP(ROUNDDOWN(((ROW(H65)-1)/2)-2,0),P:U,4,0))) ->  | L65: =IF(K65="",-1,VLOOKUP(K65,'Team List'!B:BF,39,0)) -> -1 | R65: 59 | S65: =IF(VLOOKUP(VLOOKUP(R65,'Team List'!BC:BD,2,0),'Team List'!B:D,3,0)<>"Yes","",VLOOKUP(R65,'Team List'!BC:BD,2,0)) ->  | W65: =IF(U65="","",IF(U65="T00",0,'Team List'!A62)) -> 
A66: ='Team List'!$BB63 -> -6.131408755 | B66: 39 | C66: T60 | D66: 0 | E66: =IF(OR(COUNTIF(K$7:K$71,G66)>0,COUNTIF('Team List'!63:63,$J$3)>0),ABS('Team List'!$BB63)*-1,'Team List'!$BB63) -> -6.131408755 | F66: 39 | G66: T60 | J66: =IF(K66="","",IF(K66="Bye","Bye",VLOOKUP(K66,'Team List'!B:BF,42,0))) ->  | K66: =IF(S66="","",IF(VLOOKUP(ROUNDDOWN(((ROW(H66)-1)/2)-2,0),P:U,6,0)="T00","Bye",VLOOKUP(ROUNDDOWN(((ROW(H66)-1)/2)-2,0),P:U,6,0))) ->  | L66: =IF(K66="",-1,VLOOKUP(K66,'Team List'!B:BF,39,0)) -> -1 | R66: 60 | S66: =IF(VLOOKUP(VLOOKUP(R66,'Team List'!BC:BD,2,0),'Team List'!B:D,3,0)<>"Yes","",VLOOKUP(R66,'Team List'!BC:BD,2,0)) ->  | W66: =IF(U66="","",IF(U66="T00",0,'Team List'!A63)) -> 
A67: ='Team List'!$BB64 -> -9.035029821 | B67: 57 | C67: T61 | D67: 0 | E67: =IF(OR(COUNTIF(K$7:K$71,G67)>0,COUNTIF('Team List'!64:64,$J$3)>0),ABS('Team List'!$BB64)*-1,'Team List'!$BB64) -> -9.035029821 | F67: 57 | G67: T61 | I67: Pitch 31 | J67: =IF(K67="","",IF(K67="Bye","Bye",VLOOKUP(K67,'Team List'!B:BF,42,0))) ->  | K67: =IF(S67="","",IF(VLOOKUP(ROUNDDOWN(((ROW(H67)-1)/2)-2,0),P:U,4,0)="T00","Bye",VLOOKUP(ROUNDDOWN(((ROW(H67)-1)/2)-2,0),P:U,4,0))) ->  | L67: =IF(K67="",-1,VLOOKUP(K67,'Team List'!B:BF,39,0)) -> -1 | R67: 61 | S67: =IF(VLOOKUP(VLOOKUP(R67,'Team List'!BC:BD,2,0),'Team List'!B:D,3,0)<>"Yes","",VLOOKUP(R67,'Team List'!BC:BD,2,0)) ->  | W67: =IF(U67="","",IF(U67="T00",0,'Team List'!A64)) -> 
A68: ='Team List'!$BB65 -> -1.812235873 | B68: 8 | C68: T62 | D68: 0 | E68: =IF(OR(COUNTIF(K$7:K$71,G68)>0,COUNTIF('Team List'!65:65,$J$3)>0),ABS('Team List'!$BB65)*-1,'Team List'!$BB65) -> -1.812235873 | F68: 8 | G68: T62 | J68: =IF(K68="","",IF(K68="Bye","Bye",VLOOKUP(K68,'Team List'!B:BF,42,0))) ->  | K68: =IF(S68="","",IF(VLOOKUP(ROUNDDOWN(((ROW(H68)-1)/2)-2,0),P:U,6,0)="T00","Bye",VLOOKUP(ROUNDDOWN(((ROW(H68)-1)/2)-2,0),P:U,6,0))) ->  | L68: =IF(K68="",-1,VLOOKUP(K68,'Team List'!B:BF,39,0)) -> -1 | R68: 62 | S68: =IF(VLOOKUP(VLOOKUP(R68,'Team List'!BC:BD,2,0),'Team List'!B:D,3,0)<>"Yes","",VLOOKUP(R68,'Team List'!BC:BD,2,0)) ->  | W68: =IF(U68="","",IF(U68="T00",0,'Team List'!A65)) -> 
A69: ='Team List'!$BB66 -> -6.48338696 | B69: 42 | C69: T63 | D69: 0 | E69: =IF(OR(COUNTIF(K$7:K$71,G69)>0,COUNTIF('Team List'!66:66,$J$3)>0),ABS('Team List'!$BB66)*-1,'Team List'!$BB66) -> -6.48338696 | F69: 42 | G69: T63 | I69: Pitch 32 | J69: =IF(K69="","",IF(K69="Bye","Bye",VLOOKUP(K69,'Team List'!B:BF,42,0))) ->  | K69: =IF(S69="","",IF(VLOOKUP(ROUNDDOWN(((ROW(H69)-1)/2)-2,0),P:U,4,0)="T00","Bye",VLOOKUP(ROUNDDOWN(((ROW(H69)-1)/2)-2,0),P:U,4,0))) ->  | L69: =IF(K69="",-1,VLOOKUP(K69,'Team List'!B:BF,39,0)) -> -1 | R69: 63 | S69: =IF(VLOOKUP(VLOOKUP(R69,'Team List'!BC:BD,2,0),'Team List'!B:D,3,0)<>"Yes","",VLOOKUP(R69,'Team List'!BC:BD,2,0)) ->  | W69: =IF(U69="","",IF(U69="T00",0,'Team List'!A66)) -> 
A70: ='Team List'!$BB67 -> -4.42161716 | B70: 32 | C70: T64 | D70: 0 | E70: =IF(OR(COUNTIF(K$7:K$71,G70)>0,COUNTIF('Team List'!67:67,$J$3)>0),ABS('Team List'!$BB67)*-1,'Team List'!$BB67) -> -4.42161716 | F70: 32 | G70: T64 | J70: =IF(K70="","",IF(K70="Bye","Bye",VLOOKUP(K70,'Team List'!B:BF,42,0))) ->  | K70: =IF(S70="","",IF(VLOOKUP(ROUNDDOWN(((ROW(H70)-1)/2)-2,0),P:U,6,0)="T00","Bye",VLOOKUP(ROUNDDOWN(((ROW(H70)-1)/2)-2,0),P:U,6,0))) ->  | L70: =IF(K70="",-1,VLOOKUP(K70,'Team List'!B:BF,39,0)) -> -1 | R70: 64 | S70: =IF(VLOOKUP(VLOOKUP(R70,'Team List'!BC:BD,2,0),'Team List'!B:D,3,0)<>"Yes","",VLOOKUP(R70,'Team List'!BC:BD,2,0)) ->  | W70: =IF(U70="","",IF(U70="T00",0,'Team List'!A67)) -> 
A71: =IF(OR(COUNTIF(K$7:K$71,C71)>0,$B3<>"Yes"),-100,0) -> -100 | B71: 65 | C71: Bye | E71: =IF(OR(COUNTIF(O$7:O$71,G71)>0,$B3<>"Yes"),-100,0) -> -100 | F71: 65 | G71: Bye

Sheet Accel_Pairing_2 (hidden)
A1: Count of active teams: | B1: =COUNTIF('Team List'!D1:D67,"Yes") -> 0 | E1: 8 | G1: 9 | I1: 10 | K1: 11 | M1: 12 | O1: 13 | Q1: 14 | S1: 15 | U1: 16 | W1: 17 | Y1: 18 | AA1: 19 | AC1: 20 | AE1: 21 | AG1: 22 | AI1: 23 | AK1: 24 | AM1: 25 | AO1: 26 | AQ1: 27 | AS1: 28 | AU1: 29 | AW1: 30 | AY1: 31 | BA1: 32 | BC1: 33 | BE1: 34 | BG1: 35 | BI1: 36 | BK1: 37 | BM1: 38 | BO1: 39 | BQ1: 40 | BS1: 41 | BU1: 42 | BW1: 43 | BY1: 44 | CA1: 45 | CC1: 46 | CE1: 47 | CG1: 48 | CI1: 49 | CK1: 50 | CM1: 51 | CO1: 52 | CQ1: 53 | CS1: 54 | CU1: 55 | CW1: 56 | CY1: 57 | DA1: 58 | DC1: 59 | DE1: 60 | DG1: 61 | DI1: 62 | DK1: 63 | DM1: 64
A2: Required Pairs: | B2: =ROUNDUP(B1/2,0) -> 0 | E2: 1 | F2: 3 | G2: 1 | H2: 3 | I2: 1 | J2: 3 | K2: 1 | L2: 3 | M2: 1 | N2: 4 | O2: 1 | P2: 4 | Q2: 1 | R2: 4 | S2: 1 | T2: 4 | U2: 1 | V2: 5 | W2: 1 | X2: 5 | Y2: 1 | Z2: 5 | AA2: 1 | AB2: 5 | AC2: 1 | AD2: 6 | AE2: 1 | AF2: 6 | AG2: 1 | AH2: 6 | AI2: 1 | AJ2: 6 | AK2: 1 | AL2: 7 | AM2: 1 | AN2: 7 | AO2: 1 | AP2: 7 | AQ2: 1 | AR2: 7 | AS2: 1 | AT2: 8 | AU2: 1 | AV2: 8 | AW2: 1 | AX2: 8 | AY2: 1 | AZ2: 8 | BA2: 1 | BB2: 9 | BC2: 1 | BD2: 9 | BE2: 1 | BF2: 9 | BG2: 1 | BH2: 9 | BI2: 1 | BJ2: 10 | BK2: 1 | BL2: 10 | BM2: 1 | BN2: 10 | BO2: 1 | BP2: 10 | BQ2: 1 | BR2: 11 | BS2: 1 | BT2: 11 | BU2: 1 | BV2: 11 | BW2: 1 | BX2: 11 | BY2: 1 | BZ2: 12 | CA2: 1 | CB2: 12 | CC2: 1 | CD2: 12 | CE2: 1 | CF2: 12 | CG2: 1 | CH2: 13 | CI2: 1 | CJ2: 13 | CK2: 1 | CL2: 13 | CM2: 1 | CN2: 13 | CO2: 1 | CP2: 14 | CQ2: 1 | CR2: 14 | CS2: 1 | CT2: 14 | CU2: 1 | CV2: 14 | CW2: 1 | CX2: 15 | CY2: 1 | CZ2: 15 | DA2: 1 | DB2: 15 | DC2: 1 | DD2: 15 | DE2: 1 | DF2: 16 | DG2: 1 | DH2: 16 | DI2: 1 | DJ2: 16 | DK2: 1 | DL2: 16 | DM2: 1 | DN2: 17
A3: Bye Required: | B3: =IF(MOD(B1,2)=1,"Yes","No") -> No | E3: 2 | F3: 4 | G3: 2 | H3: 4 | I3: 2 | J3: 4 | K3: 2 | L3: 4 | M3: 2 | N3: 5 | O3: 2 | P3: 5 | Q3: 2 | R3: 5 | S3: 2 | T3: 5 | U3: 2 | V3: 6 | W3: 2 | X3: 6 | Y3: 2 | Z3: 6 | AA3: 2 | AB3: 6 | AC3: 2 | AD3: 7 | AE3: 2 | AF3: 7 | AG3: 2 | AH3: 7 | AI3: 2 | AJ3: 7 | AK3: 2 | AL3: 8 | AM3: 2 | AN3: 8 | AO3: 2 | AP3: 8 | AQ3: 2 | AR3: 8 | AS3: 2 | AT3: 9 | AU3: 2 | AV3: 9 | AW3: 2 | AX3: 9 | AY3: 2 | AZ3: 9 | BA3: 2 | BB3: 10 | BC3: 2 | BD3: 10 | BE3: 2 | BF3: 10 | BG3: 2 | BH3: 10 | BI3: 2 | BJ3: 11 | BK3: 2 | BL3: 11 | BM3: 2 | BN3: 11 | BO3: 2 | BP3: 11 | BQ3: 2 | BR3: 12 | BS3: 2 | BT3: 12 | BU3: 2 | BV3: 12 | BW3: 2 | BX3: 12 | BY3: 2 | BZ3: 13 | CA3: 2 | CB3: 13 | CC3: 2 | CD3: 13 | CE3: 2 | CF3: 13 | CG3: 2 | CH3: 14 | CI3: 2 | CJ3: 14 | CK3: 2 | CL3: 14 | CM3: 2 | CN3: 14 | CO3: 2 | CP3: 15 | CQ3: 2 | CR3: 15 | CS3: 2 | CT3: 15 | CU3: 2 | CV3: 15 | CW3: 2 | CX3: 16 | CY3: 2 | CZ3: 16 | DA3: 2 | DB3: 16 | DC3: 2 | DD3: 16 | DE3: 2 | DF3: 17 | DG3: 2 | DH3: 17 | DI3: 2 | DJ3: 17 | DK3: 2 | DL3: 17 | DM3: 2 | DN3: 18
A4: Accelerated Pairing ON | B4: No | C4: Type: | D4: 0 | E4: 5 | F4: 7 | G4: 5 | H4: 7 | I4: 5 | J4: 7 | K4: 5 | L4: 7 | M4: 3 | N4: 6 | O4: 3 | P4: 6 | Q4: 3 | R4: 6 | S4: 3 | T4: 6 | U4: 3 | V4: 7 | W4: 3 | X4: 7 | Y4: 3 | Z4: 7 | AA4: 3 | AB4: 7 | AC4: 3 | AD4: 8 | AE4: 3 | AF4: 8 | AG4: 3 | AH4: 8 | AI4: 3 | AJ4: 8 | AK4: 3 | AL4: 9 | AM4: 3 | AN4: 9 | AO4: 3 | AP4: 9 | AQ4: 3 | AR4: 9 | AS4: 3 | AT4: 10 | AU4: 3 | AV4: 10 | AW4: 3 | AX4: 10 | AY4: 3 | AZ4: 10 | BA4: 3 | BB4: 11 | BC4: 3 | BD4: 11 | BE4: 3 | BF4: 11 | BG4: 3 | BH4: 11 | BI4: 3 | BJ4: 12 | BK4: 3 | BL4: 12 | BM4: 3 | BN4: 12 | BO4: 3 | BP4: 12 | BQ4: 3 | BR4: 13 | BS4: 3 | BT4: 13 | BU4: 3 | BV4: 13 | BW4: 3 | BX4: 13 | BY4: 3 | BZ4: 14 | CA4: 3 | CB4: 14 | CC4: 3 | CD4: 14 | CE4: 3 | CF4: 14 | CG4: 3 | CH4: 15 | CI4: 3 | CJ4: 15 | CK4: 3 | CL4: 15 | CM4: 3 | CN4: 15 | CO4: 3 | CP4: 16 | CQ4: 3 | CR4: 16 | CS4: 3 | CT4: 16 | CU4: 3 | CV4: 16 | CW4: 3 | CX4: 17 | CY4: 3 | CZ4: 17 | DA4: 3 | DB4: 17 | DC4: 3 | DD4: 17 | DE4: 3 | DF4: 18 | DG4: 3 | DH4: 18 | DI4: 3 | DJ4: 18 | DK4: 3 | DL4: 18 | DM4: 3 | DN4: 19
E5: 6 | F5: 8 | G5: 6 | H5: 8 | I5: 6 | J5: 8 | K5: 6 | L5: 8 | M5: 7 | N5: 10 | O5: 7 | P5: 10 | Q5: 7 | R5: 10 | S5: 7 | T5: 10 | U5: 4 | V5: 8 | W5: 4 | X5: 8 | Y5: 4 | Z5: 8 | AA5: 4 | AB5: 8 | AC5: 4 | AD5: 9 | AE5: 4 | AF5: 9 | AG5: 4 | AH5: 9 | AI5: 4 | AJ5: 9 | AK5: 4 | AL5: 10 | AM5: 4 | AN5: 10 | AO5: 4 | AP5: 10 | AQ5: 4 | AR5: 10 | AS5: 4 | AT5: 11 | AU5: 4 | AV5: 11 | AW5: 4 | AX5: 11 | AY5: 4 | AZ5: 11 | BA5: 4 | BB5: 12 | BC5: 4 | BD5: 12 | BE5: 4 | BF5: 12 | BG5: 4 | BH5: 12 | BI5: 4 | BJ5: 13 | BK5: 4 | BL5: 13 | BM5: 4 | BN5: 13 | BO5: 4 | BP5: 13 | BQ5: 4 | BR5: 14 | BS5: 4 | BT5: 14 | BU5: 4 | BV5: 14 | BW5: 4 | BX5: 14 | BY5: 4 | BZ5: 15 | CA5: 4 | CB5: 15 | CC5: 4 | CD5: 15 | CE5: 4 | CF5: 15 | CG5: 4 | CH5: 16 | CI5: 4 | CJ5: 16 | CK5: 4 | CL5: 16 | CM5: 4 | CN5: 16 | CO5: 4 | CP5: 17 | CQ5: 4 | CR5: 17 | CS5: 4 | CT5: 17 | CU5: 4 | CV5: 17 | CW5: 4 | CX5: 18 | CY5: 4 | CZ5: 18 | DA5: 4 | DB5: 18 | DC5: 4 | DD5: 18 | DE5: 4 | DF5: 19 | DG5: 4 | DH5: 19 | DI5: 4 | DJ5: 19 | DK5: 4 | DL5: 19 | DM5: 4 | DN5: 20
B6: Rank: | C6: Team: | G6: 9 | H6: BYE | I6: 9 | J6: 10 | K6: 9 | L6: 10 | M6: 8 | N6: 11 | O6: 8 | P6: 11 | Q6: 8 | R6: 11 | S6: 8 | T6: 11 | U6: 9 | V6: 13 | W6: 9 | X6: 13 | Y6: 9 | Z6: 13 | AA6: 9 | AB6: 13 | AC6: 5 | AD6: 10 | AE6: 5 | AF6: 10 | AG6: 5 | AH6: 10 | AI6: 5 | AJ6: 10 | AK6: 5 | AL6: 11 | AM6: 5 | AN6: 11 | AO6: 5 | AP6: 11 | AQ6: 5 | AR6: 11 | AS6: 5 | AT6: 12 | AU6: 5 | AV6: 12 | AW6: 5 | AX6: 12 | AY6: 5 | AZ6: 12 | BA6: 5 | BB6: 13 | BC6: 5 | BD6: 13 | BE6: 5 | BF6: 13 | BG6: 5 | BH6: 13 | BI6: 5 | BJ6: 14 | BK6: 5 | BL6: 14 | BM6: 5 | BN6: 14 | BO6: 5 | BP6: 14 | BQ6: 5 | BR6: 15 | BS6: 5 | BT6: 15 | BU6: 5 | BV6: 15 | BW6: 5 | BX6: 15 | BY6: 5 | BZ6: 16 | CA6: 5 | CB6: 16 | CC6: 5 | CD6: 16 | CE6: 5 | CF6: 16 | CG6: 5 | CH6: 17 | CI6: 5 | CJ6: 17 | CK6: 5 | CL6: 17 | CM6: 5 | CN6: 17 | CO6: 5 | CP6: 18 | CQ6: 5 | CR6: 18 | CS6: 5 | CT6: 18 | CU6: 5 | CV6: 18 | CW6: 5 | CX6: 19 | CY6: 5 | CZ6: 19 | DA6: 5 | DB6: 19 | DC6: 5 | DD6: 19 | DE6: 5 | DF6: 20 | DG6: 5 | DH6: 20 | DI6: 5 | DJ6: 20 | DK6: 5 | DL6: 20 | DM6: 5 | DN6: 21
A7: 1 | B7: =IF(A7<$B$2,1,IF(A7=$B$2,1,"")) ->  | C7: =IF(B7="","",VLOOKUP(INDEX($E$2:$DN$33,A7,(($B$1-7)*2)-1),'Team List'!BC:BD,2,0)) ->  | K7: 11 | L7: BYE | M7: 9 | N7: 12 | O7: 9 | P7: 12 | Q7: 9 | R7: 12 | S7: 9 | T7: 12 | U7: 10 | V7: 14 | W7: 10 | X7: 14 | Y7: 10 | Z7: 14 | AA7: 10 | AB7: 14 | AC7: 11 | AD7: 16 | AE7: 11 | AF7: 16 | AG7: 11 | AH7: 16 | AI7: 11 | AJ7: 16 | AK7: 6 | AL7: 12 | AM7: 6 | AN7: 12 | AO7: 6 | AP7: 12 | AQ7: 6 | AR7: 12 | AS7: 6 | AT7: 13 | AU7: 6 | AV7: 13 | AW7: 6 | AX7: 13 | AY7: 6 | AZ7: 13 | BA7: 6 | BB7: 14 | BC7: 6 | BD7: 14 | BE7: 6 | BF7: 14 | BG7: 6 | BH7: 14 | BI7: 6 | BJ7: 15 | BK7: 6 | BL7: 15 | BM7: 6 | BN7: 15 | BO7: 6 | BP7: 15 | BQ7: 6 | BR7: 16 | BS7: 6 | BT7: 16 | BU7: 6 | BV7: 16 | BW7: 6 | BX7: 16 | BY7: 6 | BZ7: 17 | CA7: 6 | CB7: 17 | CC7: 6 | CD7: 17 | CE7: 6 | CF7: 17 | CG7: 6 | CH7: 18 | CI7: 6 | CJ7: 18 | CK7: 6 | CL7: 18 | CM7: 6 | CN7: 18 | CO7: 6 | CP7: 19 | CQ7: 6 | CR7: 19 | CS7: 6 | CT7: 19 | CU7: 6 | CV7: 19 | CW7: 6 | CX7: 20 | CY7: 6 | CZ7: 20 | DA7: 6 | DB7: 20 | DC7: 6 | DD7: 20 | DE7: 6 | DF7: 21 | DG7: 6 | DH7: 21 | DI7: 6 | DJ7: 21 | DK7: 6 | DL7: 21 | DM7: 6 | DN7: 22
B8: =IF(B7="","",IF(SUM($B$7:B7)=$B$1,"Bye",IF(SUM($B$7:B7)<$B$1,1,""))) ->  | C8: =IF(B8="","",IF(B8="Bye","Bye",VLOOKUP(INDEX($E$2:$DN$33,A7,(($B$1-7)*2)),'Team List'!BC:BD,2,0))) ->  | O8: 13 | P8: BYE | Q8: 13 | R8: 14 | S8: 13 | T8: 14 | U8: 11 | V8: 15 | W8: 11 | X8: 15 | Y8: 11 | Z8: 15 | AA8: 11 | AB8: 15 | AC8: 12 | AD8: 17 | AE8: 12 | AF8: 17 | AG8: 12 | AH8: 17 | AI8: 12 | AJ8: 17 | AK8: 13 | AL8: 19 | AM8: 13 | AN8: 19 | AO8: 13 | AP8: 19 | AQ8: 13 | AR8: 19 | AS8: 7 | AT8: 14 | AU8: 7 | AV8: 14 | AW8: 7 | AX8: 14 | AY8: 7 | AZ8: 14 | BA8: 7 | BB8: 15 | BC8: 7 | BD8: 15 | BE8: 7 | BF8: 15 | BG8: 7 | BH8: 15 | BI8: 7 | BJ8: 16 | BK8: 7 | BL8: 16 | BM8: 7 | BN8: 16 | BO8: 7 | BP8: 16 | BQ8: 7 | BR8: 17 | BS8: 7 | BT8: 17 | BU8: 7 | BV8: 17 | BW8: 7 | BX8: 17 | BY8: 7 | BZ8: 18 | CA8: 7 | CB8: 18 | CC8: 7 | CD8: 18 | CE8: 7 | CF8: 18 | CG8: 7 | CH8: 19 | CI8: 7 | CJ8: 19 | CK8: 7 | CL8: 19 | CM8: 7 | CN8: 19 | CO8: 7 | CP8: 20 | CQ8: 7 | CR8: 20 | CS8: 7 | CT8: 20 | CU8: 7 | CV8: 20 | CW8: 7 | CX8: 21 | CY8: 7 | CZ8: 21 | DA8: 7 | DB8: 21 | DC8: 7 | DD8: 21 | DE8: 7 | DF8: 22 | DG8: 7 | DH8: 22 | DI8: 7 | DJ8: 22 | DK8: 7 | DL8: 22 | DM8: 7 | DN8: 23
A9: 2 | C9: =IF(B9="","",VLOOKUP(INDEX($E$2:$DN$33,A9,(($B$1-7)*2)-1),'Team List'!BC:BD,2,0)) ->  | S9: 15 | T9: BYE | U9: 12 | V9: 16 | W9: 12 | X9: 16 | Y9: 12 | Z9: 16 | AA9: 12 | AB9: 16 | AC9: 13 | AD9: 18 | AE9: 13 | AF9: 18 | AG9: 13 | AH9: 18 | AI9: 13 | AJ9: 18 | AK9: 14 | AL9: 20 | AM9: 14 | AN9: 20 | AO9: 14 | AP9: 20 | AQ9: 14 | AR9: 20 | AS9: 15 | AT9: 22 | AU9: 15 | AV9: 22 | AW9: 15 | AX9: 22 | AY9: 15 | AZ9: 22 | BA9: 8 | BB9: 16 | BC9: 8 | BD9: 16 | BE9: 8 | BF9: 16 | BG9: 8 | BH9: 16 | BI9: 8 | BJ9: 17 | BK9: 8 | BL9: 17 | BM9: 8 | BN9: 17 | BO9: 8 | BP9: 17 | BQ9: 8 | BR9: 18 | BS9: 8 | BT9: 18 | BU9: 8 | BV9: 18 | BW9: 8 | BX9: 18 | BY9: 8 | BZ9: 19 | CA9: 8 | CB9: 19 | CC9: 8 | CD9: 19 | CE9: 8 | CF9: 19 | CG9: 8 | CH9: 20 | CI9: 8 | CJ9: 20 | CK9: 8 | CL9: 20 | CM9: 8 | CN9: 20 | CO9: 8 | CP9: 21 | CQ9: 8 | CR9: 21 | CS9: 8 | CT9: 21 | CU9: 8 | CV9: 21 | CW9: 8 | CX9: 22 | CY9: 8 | CZ9: 22 | DA9: 8 | DB9: 22 | DC9: 8 | DD9: 22 | DE9: 8 | DF9: 23 | DG9: 8 | DH9: 23 | DI9: 8 | DJ9: 23 | DK9: 8 | DL9: 23 | DM9: 8 | DN9: 24
B10: =IF(B9="","",IF(SUM($B$7:B9)=$B$1,"Bye",IF(SUM($B$7:B9)<$B$1,1,""))) ->  | C10: =IF(B10="","",IF(B10="Bye","Bye",VLOOKUP(INDEX($E$2:$DN$33,A9,(($B$1-7)*2)),'Team List'!BC:BD,2,0))) ->  | W10: 17 | X10: BYE | Y10: 17 | Z10: 18 | AA10: 17 | AB10: 18 | AC10: 14 | AD10: 19 | AE10: 14 | AF10: 19 | AG10: 14 | AH10: 19 | AI10: 14 | AJ10: 19 | AK10: 15 | AL10: 21 | AM10: 15 | AN10: 21 | AO10: 15 | AP10: 21 | AQ10: 15 | AR10: 21 | AS10: 16 | AT10: 23 | AU10: 16 | AV10: 23 | AW10: 16 | AX10: 23 | AY10: 16 | AZ10: 23 | BA10: 17 | BB10: 25 | BC10: 17 | BD10: 25 | BE10: 17 | BF10: 25 | BG10: 17 | BH10: 25 | BI10: 9 | BJ10: 18 | BK10: 9 | BL10: 18 | BM10: 9 | BN10: 18 | BO10: 9 | BP10: 18 | BQ10: 9 | BR10: 19 | BS10: 9 | BT10: 19 | BU10: 9 | BV10: 19 | BW10: 9 | BX10: 19 | BY10: 9 | BZ10: 20 | CA10: 9 | CB10: 20 | CC10: 9 | CD10: 20 | CE10: 9 | CF10: 20 | CG10: 9 | CH10: 21 | CI10: 9 | CJ10: 21 | CK10: 9 | CL10: 21 | CM10: 9 | CN10: 21 | CO10: 9 | CP10: 22 | CQ10: 9 | CR10: 22 | CS10: 9 | CT10: 22 | CU10: 9 | CV10: 22 | CW10: 9 | CX10: 23 | CY10: 9 | CZ10: 23 | DA10: 9 | DB10: 23 | DC10: 9 | DD10: 23 | DE10: 9 | DF10: 24 | DG10: 9 | DH10: 24 | DI10: 9 | DJ10: 24 | DK10: 9 | DL10: 24 | DM10: 9 | DN10: 25
A11: 3 | C11: =IF(B11="","",VLOOKUP(INDEX($E$2:$DN$33,A11,(($B$1-7)*2)-1),'Team List'!BC:BD,2,0)) ->  | AA11: 19 | AB11: BYE | AC11: 15 | AD11: 20 | AE11: 15 | AF11: 20 | AG11: 15 | AH11: 20 | AI11: 15 | AJ11: 20 | AK11: 16 | AL11: 22 | AM11: 16 | AN11: 22 | AO11: 16 | AP11: 22 | AQ11: 16 | AR11: 22 | AS11: 17 | AT11: 24 | AU11: 17 | AV11: 24 | AW11: 17 | AX11: 24 | AY11: 17 | AZ11: 24 | BA11: 18 | BB11: 26 | BC11: 18 | BD11: 26 | BE11: 18 | BF11: 26 | BG11: 18 | BH11: 26 | BI11: 19 | BJ11: 28 | BK11: 19 | BL11: 28 | BM11: 19 | BN11: 28 | BO11: 19 | BP11: 28 | BQ11: 10 | BR11: 20 | BS11: 10 | BT11: 20 | BU11: 10 | BV11: 20 | BW11: 10 | BX11: 20 | BY11: 10 | BZ11: 21 | CA11: 10 | CB11: 21 | CC11: 10 | CD11: 21 | CE11: 10 | CF11: 21 | CG11: 10 | CH11: 22 | CI11: 10 | CJ11: 22 | CK11: 10 | CL11: 22 | CM11: 10 | CN11: 22 | CO11: 10 | CP11: 23 | CQ11: 10 | CR11: 23 | CS11: 10 | CT11: 23 | CU11: 10 | CV11: 23 | CW11: 10 | CX11: 24 | CY11: 10 | CZ11: 24 | DA11: 10 | DB11: 24 | DC11: 10 | DD11: 24 | DE11: 10 | DF11: 25 | DG11: 10 | DH11: 25 | DI11: 10 | DJ11: 25 | DK11: 10 | DL11: 25 | DM11: 10 | DN11: 26
B12: =IF(B11="","",IF(SUM($B$7:B11)=$B$1,"Bye",IF(SUM($B$7:B11)<$B$1,1,""))) ->  | C12: =IF(B12="","",IF(B12="Bye","Bye",VLOOKUP(INDEX($E$2:$DN$33,A11,(($B$1-7)*2)),'Team List'!BC:BD,2,0))) ->  | AE12: 21 | AF12: BYE | AG12: 21 | AH12: 22 | AI12: 21 | AJ12: 22 | AK12: 17 | AL12: 23 | AM12: 17 | AN12: 23 | AO12: 17 | AP12: 23 | AQ12: 17 | AR12: 23 | AS12: 18 | AT12: 25 | AU12: 18 | AV12: 25 | AW12: 18 | AX12: 25 | AY12: 18 | AZ12: 25 | BA12: 19 | BB12: 27 | BC12: 19 | BD12: 27 | BE12: 19 | BF12: 27 | BG12: 19 | BH12: 27 | BI12: 20 | BJ12: 29 | BK12: 20 | BL12: 29 | BM12: 20 | BN12: 29 | BO12: 20 | BP12: 29 | BQ12: 21 | BR12: 31 | BS12: 21 | BT12: 31 | BU12: 21 | BV12: 31 | BW12: 21 | BX12: 31 | BY12: 11 | BZ12: 22 | CA12: 11 | CB12: 22 | CC12: 11 | CD12: 22 | CE12: 11 | CF12: 22 | CG12: 11 | CH12: 23 | CI12: 11 | CJ12: 23 | CK12: 11 | CL12: 23 | CM12: 11 | CN12: 23 | CO12: 11 | CP12: 24 | CQ12: 11 | CR12: 24 | CS12: 11 | CT12: 24 | CU12: 11 | CV12: 24 | CW12: 11 | CX12: 25 | CY12: 11 | CZ12: 25 | DA12: 11 | DB12: 25 | DC12: 11 | DD12: 25 | DE12: 11 | DF12: 26 | DG12: 11 | DH12: 26 | DI12: 11 | DJ12: 26 | DK12: 11 | DL12: 26 | DM12: 11 | DN12: 27
A13: 4 | C13: =IF(B13="","",VLOOKUP(INDEX($E$2:$DN$33,A13,(($B$1-7)*2)-1),'Team List'!BC:BD,2,0)) ->  | AI13: 23 | AJ13: BYE | AK13: 18 | AL13: 24 | AM13: 18 | AN13: 24 | AO13: 18 | AP13: 24 | AQ13: 18 | AR13: 24 | AS13: 19 | AT13: 26 | AU13: 19 | AV13: 26 | AW13: 19 | AX13: 26 | AY13: 19 | AZ13: 26 | BA13: 20 | BB13: 28 | BC13: 20 | BD13: 28 | BE13: 20 | BF13: 28 | BG13: 20 | BH13: 28 | BI13: 21 | BJ13: 30 | BK13: 21 | BL13: 30 | BM13: 21 | BN13: 30 | BO13: 21 | BP13: 30 | BQ13: 22 | BR13: 32 | BS13: 22 | BT13: 32 | BU13: 22 | BV13: 32 | BW13: 22 | BX13: 32 | BY13: 23 | BZ13: 34 | CA13: 23 | CB13: 34 | CC13: 23 | CD13: 34 | CE13: 23 | CF13: 34 | CG13: 12 | CH13: 24 | CI13: 12 | CJ13: 24 | CK13: 12 | CL13: 24 | CM13: 12 | CN13: 24 | CO13: 12 | CP13: 25 | CQ13: 12 | CR13: 25 | CS13: 12 | CT13: 25 | CU13: 12 | CV13: 25 | CW13: 12 | CX13: 26 | CY13: 12 | CZ13: 26 | DA13: 12 | DB13: 26 | DC13: 12 | DD13: 26 | DE13: 12 | DF13: 27 | DG13: 12 | DH13: 27 | DI13: 12 | DJ13: 27 | DK13: 12 | DL13: 27 | DM13: 12 | DN13: 28
B14: =IF(B13="","",IF(SUM($B$7:B13)=$B$1,"Bye",IF(SUM($B$7:B13)<$B$1,1,""))) ->  | C14: =IF(B14="","",IF(B14="Bye","Bye",VLOOKUP(INDEX($E$2:$DN$33,A13,(($B$1-7)*2)),'Team List'!BC:BD,2,0))) ->  | AM14: 25 | AN14: BYE | AO14: 25 | AP14: 26 | AQ14: 25 | AR14: 26 | AS14: 20 | AT14: 27 | AU14: 20 | AV14: 27 | AW14: 20 | AX14: 27 | AY14: 20 | AZ14: 27 | BA14: 21 | BB14: 29 | BC14: 21 | BD14: 29 | BE14: 21 | BF14: 29 | BG14: 21 | BH14: 29 | BI14: 22 | BJ14: 31 | BK14: 22 | BL14: 31 | BM14: 22 | BN14: 31 | BO14: 22 | BP14: 31 | BQ14: 23 | BR14: 33 | BS14: 23 | BT14: 33 | BU14: 23 | BV14: 33 | BW14: 23 | BX14: 33 | BY14: 24 | BZ14: 35 | CA14: 24 | CB14: 35 | CC14: 24 | CD14: 35 | CE14: 24 | CF14: 35 | CG14: 25 | CH14: 37 | CI14: 25 | CJ14: 37 | CK14: 25 | CL14: 37 | CM14: 25 | CN14: 37 | CO14: 13 | CP14: 26 | CQ14: 13 | CR14: 26 | CS14: 13 | CT14: 26 | CU14: 13 | CV14: 26 | CW14: 13 | CX14: 27 | CY14: 13 | CZ14: 27 | DA14: 13 | DB14: 27 | DC14: 13 | DD14: 27 | DE14: 13 | DF14: 28 | DG14: 13 | DH14: 28 | DI14: 13 | DJ14: 28 | DK14: 13 | DL14: 28 | DM14: 13 | DN14: 29
A15: 5 | C15: =IF(B15="","",VLOOKUP(INDEX($E$2:$DN$33,A15,(($B$1-7)*2)-1),'Team List'!BC:BD,2,0)) ->  | AQ15: 27 | AR15: BYE | AS15: 21 | AT15: 28 | AU15: 21 | AV15: 28 | AW15: 21 | AX15: 28 | AY15: 21 | AZ15: 28 | BA15: 22 | BB15: 30 | BC15: 22 | BD15: 30 | BE15: 22 | BF15: 30 | BG15: 22 | BH15: 30 | BI15: 23 | BJ15: 32 | BK15: 23 | BL15: 32 | BM15: 23 | BN15: 32 | BO15: 23 | BP15: 32 | BQ15: 24 | BR15: 34 | BS15: 24 | BT15: 34 | BU15: 24 | BV15: 34 | BW15: 24 | BX15: 34 | BY15: 25 | BZ15: 36 | CA15: 25 | CB15: 36 | CC15: 25 | CD15: 36 | CE15: 25 | CF15: 36 | CG15: 26 | CH15: 38 | CI15: 26 | CJ15: 38 | CK15: 26 | CL15: 38 | CM15: 26 | CN15: 38 | CO15: 27 | CP15: 40 | CQ15: 27 | CR15: 40 | CS15: 27 | CT15: 40 | CU15: 27 | CV15: 40 | CW15: 14 | CX15: 28 | CY15: 14 | CZ15: 28 | DA15: 14 | DB15: 28 | DC15: 14 | DD15: 28 | DE15: 14 | DF15: 29 | DG15: 14 | DH15: 29 | DI15: 14 | DJ15: 29 | DK15: 14 | DL15: 29 | DM15: 14 | DN15: 30
B16: =IF(B15="","",IF(SUM($B$7:B15)=$B$1,"Bye",IF(SUM($B$7:B15)<$B$1,1,""))) ->  | C16: =IF(B16="","",IF(B16="Bye","Bye",VLOOKUP(INDEX($E$2:$DN$33,A15,(($B$1-7)*2)),'Team List'!BC:BD,2,0))) ->  | AU16: 29 | AV16: BYE | AW16: 29 | AX16: 30 | AY16: 29 | AZ16: 30 | BA16: 23 | BB16: 31 | BC16: 23 | BD16: 31 | BE16: 23 | BF16: 31 | BG16: 23 | BH16: 31 | BI16: 24 | BJ16: 33 | BK16: 24 | BL16: 33 | BM16: 24 | BN16: 33 | BO16: 24 | BP16: 33 | BQ16: 25 | BR16: 35 | BS16: 25 | BT16: 35 | BU16: 25 | BV16: 35 | BW16: 25 | BX16: 35 | BY16: 26 | BZ16: 37 | CA16: 26 | CB16: 37 | CC16: 26 | CD16: 37 | CE16: 26 | CF16: 37 | CG16: 27 | CH16: 39 | CI16: 27 | CJ16: 39 | CK16: 27 | CL16: 39 | CM16: 27 | CN16: 39 | CO16: 28 | CP16: 41 | CQ16: 28 | CR16: 41 | CS16: 28 | CT16: 41 | CU16: 28 | CV16: 41 | CW16: 29 | CX16: 43 | CY16: 29 | CZ16: 43 | DA16: 29 | DB16: 43 | DC16: 29 | DD16: 43 | DE16: 15 | DF16: 30 | DG16: 15 | DH16: 30 | DI16: 15 | DJ16: 30 | DK16: 15 | DL16: 30 | DM16: 15 | DN16: 31
A17: 6 | C17: =IF(B17="","",VLOOKUP(INDEX($E$2:$DN$33,A17,(($B$1-7)*2)-1),'Team List'!BC:BD,2,0)) ->  | AY17: 31 | AZ17: BYE | BA17: 24 | BB17: 32 | BC17: 24 | BD17: 32 | BE17: 24 | BF17: 32 | BG17: 24 | BH17: 32 | BI17: 25 | BJ17: 34 | BK17: 25 | BL17: 34 | BM17: 25 | BN17: 34 | BO17: 25 | BP17: 34 | BQ17: 26 | BR17: 36 | BS17: 26 | BT17: 36 | BU17: 26 | BV17: 36 | BW17: 26 | BX17: 36 | BY17: 27 | BZ17: 38 | CA17: 27 | CB17: 38 | CC17: 27 | CD17: 38 | CE17: 27 | CF17: 38 | CG17: 28 | CH17: 40 | CI17: 28 | CJ17: 40 | CK17: 28 | CL17: 40 | CM17: 28 | CN17: 40 | CO17: 29 | CP17: 42 | CQ17: 29 | CR17: 42 | CS17: 29 | CT17: 42 | CU17: 29 | CV17: 42 | CW17: 30 | CX17: 44 | CY17: 30 | CZ17: 44 | DA17: 30 | DB17: 44 | DC17: 30 | DD17: 44 | DE17: 31 | DF17: 46 | DG17: 31 | DH17: 46 | DI17: 31 | DJ17: 46 | DK17: 31 | DL17: 46 | DM17: 16 | DN17: 32
B18: =IF(B17="","",IF(SUM($B$7:B17)=$B$1,"Bye",IF(SUM($B$7:B17)<$B$1,1,""))) ->  | C18: =IF(B18="","",IF(B18="Bye","Bye",VLOOKUP(INDEX($E$2:$DN$33,A17,(($B$1-7)*2)),'Team List'!BC:BD,2,0))) ->  | BC18: 33 | BD18: BYE | BE18: 33 | BF18: 34 | BG18: 33 | BH18: 34 | BI18: 26 | BJ18: 35 | BK18: 26 | BL18: 35 | BM18: 26 | BN18: 35 | BO18: 26 | BP18: 35 | BQ18: 27 | BR18: 37 | BS18: 27 | BT18: 37 | BU18: 27 | BV18: 37 | BW18: 27 | BX18: 37 | BY18: 28 | BZ18: 39 | CA18: 28 | CB18: 39 | CC18: 28 | CD18: 39 | CE18: 28 | CF18: 39 | CG18: 29 | CH18: 41 | CI18: 29 | CJ18: 41 | CK18: 29 | CL18: 41 | CM18: 29 | CN18: 41 | CO18: 30 | CP18: 43 | CQ18: 30 | CR18: 43 | CS18: 30 | CT18: 43 | CU18: 30 | CV18: 43 | CW18: 31 | CX18: 45 | CY18: 31 | CZ18: 45 | DA18: 31 | DB18: 45 | DC18: 31 | DD18: 45 | DE18: 32 | DF18: 47 | DG18: 32 | DH18: 47 | DI18: 32 | DJ18: 47 | DK18: 32 | DL18: 47 | DM18: 33 | DN18: 49
A19: 7 | C19: =IF(B19="","",VLOOKUP(INDEX($E$2:$DN$33,A19,(($B$1-7)*2)-1),'Team List'!BC:BD,2,0)) ->  | BG19: 35 | BH19: BYE | BI19: 27 | BJ19: 36 | BK19: 27 | BL19: 36 | BM19: 27 | BN19: 36 | BO19: 27 | BP19: 36 | BQ19: 28 | BR19: 38 | BS19: 28 | BT19: 38 | BU19: 28 | BV19: 38 | BW19: 28 | BX19: 38 | BY19: 29 | BZ19: 40 | CA19: 29 | CB19: 40 | CC19: 29 | CD19: 40 | CE19: 29 | CF19: 40 | CG19: 30 | CH19: 42 | CI19: 30 | CJ19: 42 | CK19: 30 | CL19: 42 | CM19: 30 | CN19: 42 | CO19: 31 | CP19: 44 | CQ19: 31 | CR19: 44 | CS19: 31 | CT19: 44 | CU19: 31 | CV19: 44 | CW19: 32 | CX19: 46 | CY19: 32 | CZ19: 46 | DA19: 32 | DB19: 46 | DC19: 32 | DD19: 46 | DE19: 33 | DF19: 48 | DG19: 33 | DH19: 48 | DI19: 33 | DJ19: 48 | DK19: 33 | DL19: 48 | DM19: 34 | DN19: 50
B20: =IF(B19="","",IF(SUM($B$7:B19)=$B$1,"Bye",IF(SUM($B$7:B19)<$B$1,1,""))) ->  | C20: =IF(B20="","",IF(B20="Bye","Bye",VLOOKUP(INDEX($E$2:$DN$33,A19,(($B$1-7)*2)),'Team List'!BC:BD,2,0))) ->  | BK20: 37 | BL20: BYE | BM20: 37 | BN20: 38 | BO20: 37 | BP20: 38 | BQ20: 29 | BR20: 39 | BS20: 29 | BT20: 39 | BU20: 29 | BV20: 39 | BW20: 29 | BX20: 39 | BY20: 30 | BZ20: 41 | CA20: 30 | CB20: 41 | CC20: 30 | CD20: 41 | CE20: 30 | CF20: 41 | CG20: 31 | CH20: 43 | CI20: 31 | CJ20: 43 | CK20: 31 | CL20: 43 | CM20: 31 | CN20: 43 | CO20: 32 | CP20: 45 | CQ20: 32 | CR20: 45 | CS20: 32 | CT20: 45 | CU20: 32 | CV20: 45 | CW20: 33 | CX20: 47 | CY20: 33 | CZ20: 47 | DA20: 33 | DB20: 47 | DC20: 33 | DD20: 47 | DE20: 34 | DF20: 49 | DG20: 34 | DH20: 49 | DI20: 34 | DJ20: 49 | DK20: 34 | DL20: 49 | DM20: 35 | DN20: 51
A21: 8 | C21: =IF(B21="","",VLOOKUP(INDEX($E$2:$DN$33,A21,(($B$1-7)*2)-1),'Team List'!BC:BD,2,0)) ->  | BO21: 39 | BP21: BYE | BQ21: 30 | BR21: 40 | BS21: 30 | BT21: 40 | BU21: 30 | BV21: 40 | BW21: 30 | BX21: 40 | BY21: 31 | BZ21: 42 | CA21: 31 | CB21: 42 | CC21: 31 | CD21: 42 | CE21: 31 | CF21: 42 | CG21: 32 | CH21: 44 | CI21: 32 | CJ21: 44 | CK21: 32 | CL21: 44 | CM21: 32 | CN21: 44 | CO21: 33 | CP21: 46 | CQ21: 33 | CR21: 46 | CS21: 33 | CT21: 46 | CU21: 33 | CV21: 46 | CW21: 34 | CX21: 48 | CY21: 34 | CZ21: 48 | DA21: 34 | DB21: 48 | DC21: 34 | DD21: 48 | DE21: 35 | DF21: 50 | DG21: 35 | DH21: 50 | DI21: 35 | DJ21: 50 | DK21: 35 | DL21: 50 | DM21: 36 | DN21: 52
B22: =IF(B21="","",IF(SUM($B$7:B21)=$B$1,"Bye",IF(SUM($B$7:B21)<$B$1,1,""))) ->  | C22: =IF(B22="","",IF(B22="Bye","Bye",VLOOKUP(INDEX($E$2:$DN$33,A21,(($B$1-7)*2)),'Team List'!BC:BD,2,0))) ->  | BS22: 41 | BT22: BYE | BU22: 41 | BV22: 42 | BW22: 41 | BX22: 42 | BY22: 32 | BZ22: 43 | CA22: 32 | CB22: 43 | CC22: 32 | CD22: 43 | CE22: 32 | CF22: 43 | CG22: 33 | CH22: 45 | CI22: 33 | CJ22: 45 | CK22: 33 | CL22: 45 | CM22: 33 | CN22: 45 | CO22: 34 | CP22: 47 | CQ22: 34 | CR22: 47 | CS22: 34 | CT22: 47 | CU22: 34 | CV22: 47 | CW22: 35 | CX22: 49 | CY22: 35 | CZ22: 49 | DA22: 35 | DB22: 49 | DC22: 35 | DD22: 49 | DE22: 36 | DF22: 51 | DG22: 36 | DH22: 51 | DI22: 36 | DJ22: 51 | DK22: 36 | DL22: 51 | DM22: 37 | DN22: 53
A23: 9 | C23: =IF(B23="","",VLOOKUP(INDEX($E$2:$DN$33,A23,(($B$1-7)*2)-1),'Team List'!BC:BD,2,0)) ->  | BW23: 43 | BX23: BYE | BY23: 33 | BZ23: 44 | CA23: 33 | CB23: 44 | CC23: 33 | CD23: 44 | CE23: 33 | CF23: 44 | CG23: 34 | CH23: 46 | CI23: 34 | CJ23: 46 | CK23: 34 | CL23: 46 | CM23: 34 | CN23: 46 | CO23: 35 | CP23: 48 | CQ23: 35 | CR23: 48 | CS23: 35 | CT23: 48 | CU23: 35 | CV23: 48 | CW23: 36 | CX23: 50 | CY23: 36 | CZ23: 50 | DA23: 36 | DB23: 50 | DC23: 36 | DD23: 50 | DE23: 37 | DF23: 52 | DG23: 37 | DH23: 52 | DI23: 37 | DJ23: 52 | DK23: 37 | DL23: 52 | DM23: 38 | DN23: 54
B24: =IF(B23="","",IF(SUM($B$7:B23)=$B$1,"Bye",IF(SUM($B$7:B23)<$B$1,1,""))) ->  | C24: =IF(B24="","",IF(B24="Bye","Bye",VLOOKUP(INDEX($E$2:$DN$33,A23,(($B$1-7)*2)),'Team List'!BC:BD,2,0))) ->  | CA24: 45 | CB24: BYE | CC24: 45 | CD24: 46 | CE24: 45 | CF24: 46 | CG24: 35 | CH24: 47 | CI24: 35 | CJ24: 47 | CK24: 35 | CL24: 47 | CM24: 35 | CN24: 47 | CO24: 36 | CP24: 49 | CQ24: 36 | CR24: 49 | CS24: 36 | CT24: 49 | CU24: 36 | CV24: 49 | CW24: 37 | CX24: 51 | CY24: 37 | CZ24: 51 | DA24: 37 | DB24: 51 | DC24: 37 | DD24: 51 | DE24: 38 | DF24: 53 | DG24: 38 | DH24: 53 | DI24: 38 | DJ24: 53 | DK24: 38 | DL24: 53 | DM24: 39 | DN24: 55
A25: 10 | C25: =IF(B25="","",VLOOKUP(INDEX($E$2:$DN$33,A25,(($B$1-7)*2)-1),'Team List'!BC:BD,2,0)) ->  | CE25: 47 | CF25: BYE | CG25: 36 | CH25: 48 | CI25: 36 | CJ25: 48 | CK25: 36 | CL25: 48 | CM25: 36 | CN25: 48 | CO25: 37 | CP25: 50 | CQ25: 37 | CR25: 50 | CS25: 37 | CT25: 50 | CU25: 37 | CV25: 50 | CW25: 38 | CX25: 52 | CY25: 38 | CZ25: 52 | DA25: 38 | DB25: 52 | DC25: 38 | DD25: 52 | DE25: 39 | DF25: 54 | DG25: 39 | DH25: 54 | DI25: 39 | DJ25: 54 | DK25: 39 | DL25: 54 | DM25: 40 | DN25: 56
B26: =IF(B25="","",IF(SUM($B$7:B25)=$B$1,"Bye",IF(SUM($B$7:B25)<$B$1,1,""))) ->  | C26: =IF(B26="","",IF(B26="Bye","Bye",VLOOKUP(INDEX($E$2:$DN$33,A25,(($B$1-7)*2)),'Team List'!BC:BD,2,0))) ->  | CI26: 49 | CJ26: BYE | CK26: 49 | CL26: 50 | CM26: 49 | CN26: 50 | CO26: 38 | CP26: 51 | CQ26: 38 | CR26: 51 | CS26: 38 | CT26: 51 | CU26: 38 | CV26: 51 | CW26: 39 | CX26: 53 | CY26: 39 | CZ26: 53 | DA26: 39 | DB26: 53 | DC26: 39 | DD26: 53 | DE26: 40 | DF26: 55 | DG26: 40 | DH26: 55 | DI26: 40 | DJ26: 55 | DK26: 40 | DL26: 55 | DM26: 41 | DN26: 57
A27: 11 | C27: =IF(B27="","",VLOOKUP(INDEX($E$2:$DN$33,A27,(($B$1-7)*2)-1),'Team List'!BC:BD,2,0)) ->  | CM27: 51 | CN27: BYE | CO27: 39 | CP27: 52 | CQ27: 39 | CR27: 52 | CS27: 39 | CT27: 52 | CU27: 39 | CV27: 52 | CW27: 40 | CX27: 54 | CY27: 40 | CZ27: 54 | DA27: 40 | DB27: 54 | DC27: 40 | DD27: 54 | DE27: 41 | DF27: 56 | DG27: 41 | DH27: 56 | DI27: 41 | DJ27: 56 | DK27: 41 | DL27: 56 | DM27: 42 | DN27: 58
B28: =IF(B27="","",IF(SUM($B$7:B27)=$B$1,"Bye",IF(SUM($B$7:B27)<$B$1,1,""))) ->  | C28: =IF(B28="","",IF(B28="Bye","Bye",VLOOKUP(INDEX($E$2:$DN$33,A27,(($B$1-7)*2)),'Team List'!BC:BD,2,0))) ->  | CQ28: 53 | CR28: BYE | CS28: 53 | CT28: 54 | CU28: 53 | CV28: 54 | CW28: 41 | CX28: 55 | CY28: 41 | CZ28: 55 | DA28: 41 | DB28: 55 | DC28: 41 | DD28: 55 | DE28: 42 | DF28: 57 | DG28: 42 | DH28: 57 | DI28: 42 | DJ28: 57 | DK28: 42 | DL28: 57 | DM28: 43 | DN28: 59
A29: 12 | C29: =IF(B29="","",VLOOKUP(INDEX($E$2:$DN$33,A29,(($B$1-7)*2)-1),'Team List'!BC:BD,2,0)) ->  | CU29: 55 | CV29: BYE | CW29: 42 | CX29: 56 | CY29: 42 | CZ29: 56 | DA29: 42 | DB29: 56 | DC29: 42 | DD29: 56 | DE29: 43 | DF29: 58 | DG29: 43 | DH29: 58 | DI29: 43 | DJ29: 58 | DK29: 43 | DL29: 58 | DM29: 44 | DN29: 60
B30: =IF(B29="","",IF(SUM($B$7:B29)=$B$1,"Bye",IF(SUM($B$7:B29)<$B$1,1,""))) ->  | C30: =IF(B30="","",IF(B30="Bye","Bye",VLOOKUP(INDEX($E$2:$DN$33,A29,(($B$1-7)*2)),'Team List'!BC:BD,2,0))) ->  | CY30: 57 | CZ30: BYE | DA30: 57 | DB30: 58 | DC30: 57 | DD30: 58 | DE30: 44 | DF30: 59 | DG30: 44 | DH30: 59 | DI30: 44 | DJ30: 59 | DK30: 44 | DL30: 59 | DM30: 45 | DN30: 61
A31: 13 | C31: =IF(B31="","",VLOOKUP(INDEX($E$2:$DN$33,A31,(($B$1-7)*2)-1),'Team List'!BC:BD,2,0)) ->  | DC31: 59 | DD31: BYE | DE31: 45 | DF31: 60 | DG31: 45 | DH31: 60 | DI31: 45 | DJ31: 60 | DK31: 45 | DL31: 60 | DM31: 46 | DN31: 62
B32: =IF(B31="","",IF(SUM($B$7:B31)=$B$1,"Bye",IF(SUM($B$7:B31)<$B$1,1,""))) ->  | C32: =IF(B32="","",IF(B32="Bye","Bye",VLOOKUP(INDEX($E$2:$DN$33,A31,(($B$1-7)*2)),'Team List'!BC:BD,2,0))) ->  | DG32: 61 | DH32: BYE | DI32: 61 | DJ32: 62 | DK32: 61 | DL32: 62 | DM32: 47 | DN32: 63
A33: 14 | C33: =IF(B33="","",VLOOKUP(INDEX($E$2:$DN$33,A33,(($B$1-7)*2)-1),'Team List'!BC:BD,2,0)) ->  | DK33: 63 | DL33: BYE | DM33: 48 | DN33: 64
B34: =IF(B33="","",IF(SUM($B$7:B33)=$B$1,"Bye",IF(SUM($B$7:B33)<$B$1,1,""))) ->  | C34: =IF(B34="","",IF(B34="Bye","Bye",VLOOKUP(INDEX($E$2:$DN$33,A33,(($B$1-7)*2)),'Team List'!BC:BD,2,0))) -> 
A35: 15 | C35: =IF(B35="","",VLOOKUP(INDEX($E$2:$DN$33,A35,(($B$1-7)*2)-1),'Team List'!BC:BD,2,0)) -> 
B36: =IF(B35="","",IF(SUM($B$7:B35)=$B$1,"Bye",IF(SUM($B$7:B35)<$B$1,1,""))) ->  | C36: =IF(B36="","",IF(B36="Bye","Bye",VLOOKUP(INDEX($E$2:$DN$33,A35,(($B$1-7)*2)),'Team List'!BC:BD,2,0))) -> 
A37: 16 | C37: =IF(B37="","",VLOOKUP(INDEX($E$2:$DN$33,A37,(($B$1-7)*2)-1),'Team List'!BC:BD,2,0)) -> 
B38: =IF(B37="","",IF(SUM($B$7:B37)=$B$1,"Bye",IF(SUM($B$7:B37)<$B$1,1,""))) ->  | C38: =IF(B38="","",IF(B38="Bye","Bye",VLOOKUP(INDEX($E$2:$DN$33,A37,(($B$1-7)*2)),'Team List'!BC:BD,2,0))) -> 
A39: 17 | C39: =IF(B39="","",VLOOKUP(INDEX($E$2:$DN$33,A39,(($B$1-7)*2)-1),'Team List'!BC:BD,2,0)) -> 
B40: =IF(B39="","",IF(SUM($B$7:B39)=$B$1,"Bye",IF(SUM($B$7:B39)<$B$1,1,""))) ->  | C40: =IF(B40="","",IF(B40="Bye","Bye",VLOOKUP(INDEX($E$2:$DN$33,A39,(($B$1-7)*2)),'Team List'!BC:BD,2,0))) -> 
A41: 18 | C41: =IF(B41="","",VLOOKUP(INDEX($E$2:$DN$33,A41,(($B$1-7)*2)-1),'Team List'!BC:BD,2,0)) -> 
B42: =IF(B41="","",IF(SUM($B$7:B41)=$B$1,"Bye",IF(SUM($B$7:B41)<$B$1,1,""))) ->  | C42: =IF(B42="","",IF(B42="Bye","Bye",VLOOKUP(INDEX($E$2:$DN$33,A41,(($B$1-7)*2)),'Team List'!BC:BD,2,0))) -> 
A43: 19 | C43: =IF(B43="","",VLOOKUP(INDEX($E$2:$DN$33,A43,(($B$1-7)*2)-1),'Team List'!BC:BD,2,0)) -> 
B44: =IF(B43="","",IF(SUM($B$7:B43)=$B$1,"Bye",IF(SUM($B$7:B43)<$B$1,1,""))) ->  | C44: =IF(B44="","",IF(B44="Bye","Bye",VLOOKUP(INDEX($E$2:$DN$33,A43,(($B$1-7)*2)),'Team List'!BC:BD,2,0))) -> 
A45: 20 | C45: =IF(B45="","",VLOOKUP(INDEX($E$2:$DN$33,A45,(($B$1-7)*2)-1),'Team List'!BC:BD,2,0)) -> 
B46: =IF(B45="","",IF(SUM($B$7:B45)=$B$1,"Bye",IF(SUM($B$7:B45)<$B$1,1,""))) ->  | C46: =IF(B46="","",IF(B46="Bye","Bye",VLOOKUP(INDEX($E$2:$DN$33,A45,(($B$1-7)*2)),'Team List'!BC:BD,2,0))) -> 
A47: 21 | C47: =IF(B47="","",VLOOKUP(INDEX($E$2:$DN$33,A47,(($B$1-7)*2)-1),'Team List'!BC:BD,2,0)) -> 
B48: =IF(B47="","",IF(SUM($B$7:B47)=$B$1,"Bye",IF(SUM($B$7:B47)<$B$1,1,""))) ->  | C48: =IF(B48="","",IF(B48="Bye","Bye",VLOOKUP(INDEX($E$2:$DN$33,A47,(($B$1-7)*2)),'Team List'!BC:BD,2,0))) -> 
A49: 22 | C49: =IF(B49="","",VLOOKUP(INDEX($E$2:$DN$33,A49,(($B$1-7)*2)-1),'Team List'!BC:BD,2,0)) -> 
B50: =IF(B49="","",IF(SUM($B$7:B49)=$B$1,"Bye",IF(SUM($B$7:B49)<$B$1,1,""))) ->  | C50: =IF(B50="","",IF(B50="Bye","Bye",VLOOKUP(INDEX($E$2:$DN$33,A49,(($B$1-7)*2)),'Team List'!BC:BD,2,0))) -> 
A51: 23 | C51: =IF(B51="","",VLOOKUP(INDEX($E$2:$DN$33,A51,(($B$1-7)*2)-1),'Team List'!BC:BD,2,0)) -> 
B52: =IF(B51="","",IF(SUM($B$7:B51)=$B$1,"Bye",IF(SUM($B$7:B51)<$B$1,1,""))) ->  | C52: =IF(B52="","",IF(B52="Bye","Bye",VLOOKUP(INDEX($E$2:$DN$33,A51,(($B$1-7)*2)),'Team List'!BC:BD,2,0))) -> 
A53: 24 | C53: =IF(B53="","",VLOOKUP(INDEX($E$2:$DN$33,A53,(($B$1-7)*2)-1),'Team List'!BC:BD,2,0)) -> 
B54: =IF(B53="","",IF(SUM($B$7:B53)=$B$1,"Bye",IF(SUM($B$7:B53)<$B$1,1,""))) ->  | C54: =IF(B54="","",IF(B54="Bye","Bye",VLOOKUP(INDEX($E$2:$DN$33,A53,(($B$1-7)*2)),'Team List'!BC:BD,2,0))) -> 
A55: 25 | C55: =IF(B55="","",VLOOKUP(INDEX($E$2:$DN$33,A55,(($B$1-7)*2)-1),'Team List'!BC:BD,2,0)) -> 
B56: =IF(B55="","",IF(SUM($B$7:B55)=$B$1,"Bye",IF(SUM($B$7:B55)<$B$1,1,""))) ->  | C56: =IF(B56="","",IF(B56="Bye","Bye",VLOOKUP(INDEX($E$2:$DN$33,A55,(($B$1-7)*2)),'Team List'!BC:BD,2,0))) -> 
A57: 26 | C57: =IF(B57="","",VLOOKUP(INDEX($E$2:$DN$33,A57,(($B$1-7)*2)-1),'Team List'!BC:BD,2,0)) -> 
B58: =IF(B57="","",IF(SUM($B$7:B57)=$B$1,"Bye",IF(SUM($B$7:B57)<$B$1,1,""))) ->  | C58: =IF(B58="","",IF(B58="Bye","Bye",VLOOKUP(INDEX($E$2:$DN$33,A57,(($B$1-7)*2)),'Team List'!BC:BD,2,0))) -> 
A59: 27 | C59: =IF(B59="","",VLOOKUP(INDEX($E$2:$DN$33,A59,(($B$1-7)*2)-1),'Team List'!BC:BD,2,0)) -> 
B60: =IF(B59="","",IF(SUM($B$7:B59)=$B$1,"Bye",IF(SUM($B$7:B59)<$B$1,1,""))) ->  | C60: =IF(B60="","",IF(B60="Bye","Bye",VLOOKUP(INDEX($E$2:$DN$33,A59,(($B$1-7)*2)),'Team List'!BC:BD,2,0))) -> 
A61: 28 | C61: =IF(B61="","",VLOOKUP(INDEX($E$2:$DN$33,A61,(($B$1-7)*2)-1),'Team List'!BC:BD,2,0)) -> 
B62: =IF(B61="","",IF(SUM($B$7:B61)=$B$1,"Bye",IF(SUM($B$7:B61)<$B$1,1,""))) ->  | C62: =IF(B62="","",IF(B62="Bye","Bye",VLOOKUP(INDEX($E$2:$DN$33,A61,(($B$1-7)*2)),'Team List'!BC:BD,2,0))) -> 
A63: 29 | C63: =IF(B63="","",VLOOKUP(INDEX($E$2:$DN$33,A63,(($B$1-7)*2)-1),'Team List'!BC:BD,2,0)) -> 
B64: =IF(B63="","",IF(SUM($B$7:B63)=$B$1,"Bye",IF(SUM($B$7:B63)<$B$1,1,""))) ->  | C64: =IF(B64="","",IF(B64="Bye","Bye",VLOOKUP(INDEX($E$2:$DN$33,A63,(($B$1-7)*2)),'Team List'!BC:BD,2,0))) -> 
A65: 30 | C65: =IF(B65="","",VLOOKUP(INDEX($E$2:$DN$33,A65,(($B$1-7)*2)-1),'Team List'!BC:BD,2,0)) -> 
B66: =IF(B65="","",IF(SUM($B$7:B65)=$B$1,"Bye",IF(SUM($B$7:B65)<$B$1,1,""))) ->  | C66: =IF(B66="","",IF(B66="Bye","Bye",VLOOKUP(INDEX($E$2:$DN$33,A65,(($B$1-7)*2)),'Team List'!BC:BD,2,0))) -> 
A67: 31 | C67: =IF(B67="","",VLOOKUP(INDEX($E$2:$DN$33,A67,(($B$1-7)*2)-1),'Team List'!BC:BD,2,0)) -> 
B68: =IF(B67="","",IF(SUM($B$7:B67)=$B$1,"Bye",IF(SUM($B$7:B67)<$B$1,1,""))) ->  | C68: =IF(B68="","",IF(B68="Bye","Bye",VLOOKUP(INDEX($E$2:$DN$33,A67,(($B$1-7)*2)),'Team List'!BC:BD,2,0))) -> 
A69: 32 | C69: =IF(B69="","",VLOOKUP(INDEX($E$2:$DN$33,A69,(($B$1-7)*2)-1),'Team List'!BC:BD,2,0)) -> 
B70: =IF(B69="","",IF(SUM($B$7:B69)=$B$1,"Bye",IF(SUM($B$7:B69)<$B$1,1,""))) ->  | C70: =IF(B70="","",IF(B70="Bye","Bye",VLOOKUP(INDEX($E$2:$DN$33,A69,(($B$1-7)*2)),'Team List'!BC:BD,2,0))) -> 

Sheet Team List
C1: DMK Klassic System 6.0
B2: T# | C2: Team Name | D2: Active? | E2: Round 1 | J2: Round 2 | O2: Round 3 | T2: Round 4 | Y2: Round 5 | AD2: Round 6 | AI2: Round 7 | AN2: Round 8 | AS2: Round 9 | AY2: Matches | AZ2: Score | BA2: Opp. Scr. | BB2: UseScore | BC2: Use Rank | BD2: Team# | BE2: Score | BF2: Rank
A3: Rand() | E3: Opp | F3: Opp. Rnd. Scr. | G3: Opp. Crnt. Scr. | H3: Result | I3: Score | J3: Opp | K3: Opp. Rnd. Scr. | L3: Opp. Crnt. Scr. | M3: Result | N3: Score | O3: Opp | P3: Opp. Rnd. Scr. | Q3: Opp. Crnt. Scr. | R3: Result | S3: Score | T3: Opp | U3: Opp. Rnd. Scr. | V3: Opp. Crnt. Scr. | W3: Result | X3: Score | Y3: Opp | Z3: Opp. Rnd. Scr. | AA3: Opp. Crnt. Scr. | AB3: Result | AC3: Score | AD3: Opp | AE3: Opp. Rnd. Scr. | AF3: Opp. Crnt. Scr. | AG3: Result | AH3: Score | AI3: Opp | AJ3: Opp. Rnd. Scr. | AK3: Opp. Crnt. Scr. | AL3: Result | AM3: Score | AN3: Opp | AO3: Opp. Rnd. Scr. | AP3: Opp. Crnt. Scr. | AQ3: Result | AR3: Score | AS3: Opp | AT3: Opp. Rnd. Scr. | AU3: Opp. Crnt. Scr. | AV3: Result | AW3: Score
A4: 0.4333219621 | B4: T01 | E4: =IF(ISERROR(VLOOKUP($B4,'Round One'!$C:$J,8,0)),0,IF(AND(LEN($C4)<>0,$D4="Yes"),VLOOKUP($B4,'Round One'!$C:$J,8,0),0)) -> 0 | F4: =IF(ISERROR(VLOOKUP(E4,'Round One'!$C:$J,7,0)),0,IF(AND(LEN($C4)<>0,$D4="Yes"),VALUE(VLOOKUP(E4,'Round One'!$C:$J,7,0)+1E-24),0)) -> 0 | G4: =IF(ISERROR(VLOOKUP(E4,$B:$AZ,51,0)),0,VLOOKUP(E4,$B:$AZ,51,0)+1E-24) -> 0 | H4: =IF(ISERROR(VLOOKUP($B4,'Round One'!$C:$J,6,0)),0,IF(AND(LEN($C4)<>0,$D4="Yes"),VLOOKUP($B4,'Round One'!$C:$J,6,0),"")) -> 0 | I4: =IF(ISERROR(VLOOKUP($B4,'Round One'!$C:$J,7,0)),0,IF(LEN($C4)<>0,VLOOKUP($B4,'Round One'!$C:$J,7,0)+1E-24,0)) -> 0 | J4: =IF(ISERROR(VLOOKUP($B4,'Round Two'!$C:$J,8,0)),0,IF(AND(LEN($C4)<>0,$D4="Yes"),VLOOKUP($B4,'Round Two'!$C:$J,8,0),"")) -> 0 | K4: =IF(ISERROR(VLOOKUP(J4,'Round Two'!$C:$J,7,0)),0,IF(AND(LEN($C4)<>0,$D4="Yes"),VALUE(VLOOKUP(J4,'Round Two'!$C:$J,7,0))+1E-24,0)) -> 0 | L4: =IF(ISERROR(VLOOKUP(J4,$B:$AZ,51,0)),0,VLOOKUP(J4,$B:$AZ,51,0)+1E-24) -> 0 | M4: =IF(ISERROR(VLOOKUP($B4,'Round Two'!$C:$J,6,0)),0,IF(AND(LEN($C4)<>0,$D4="Yes"),VLOOKUP($B4,'Round Two'!$C:$J,6,0),"")) -> 0 | N4: =IF(ISERROR(VLOOKUP($B4,'Round Two'!$C:$J,7,0)),0,IF(LEN($C4)<>0,VLOOKUP($B4,'Round Two'!$C:$J,7,0)+1E-24,0)) -> 0 | O4: =IF(ISERROR(VLOOKUP($B4,'Round Three'!$C:$J,8,0)),0,IF(AND(LEN($C4)<>0,$D4="Yes"),VLOOKUP($B4,'Round Three'!$C:$J,8,0),"")) -> 0 | P4: =IF(ISERROR(VLOOKUP(O4,'Round Three'!$C:$J,7,0)),0,IF(AND(LEN($C4)<>0,$D4="Yes"),VLOOKUP(O4,'Round Three'!$C:$J,7,0)+1E-24,0)) -> 0 | Q4: =IF(ISERROR(VLOOKUP(O4,$B:$AZ,51,0)),0,VLOOKUP(O4,$B:$AZ,51,0)+1E-24) -> 0 | R4: =IF(ISERROR(VLOOKUP($B4,'Round Three'!$C:$J,6,0)),0,IF(AND(LEN($C4)<>0,$D4="Yes"),VLOOKUP($B4,'Round Three'!$C:$J,6,0),"")) -> 0 | S4: =IF(ISERROR(VLOOKUP($B4,'Round Three'!$C:$J,7,0)),0,IF(LEN($C4)<>0,VLOOKUP($B4,'Round Three'!$C:$J,7,0)+1E-24,0)) -> 0 | T4: =IF(ISERROR(VLOOKUP($B4,'Round Four'!$C:$J,8,0)),0,IF(AND(LEN($C4)<>0,$D4="Yes"),VLOOKUP($B4,'Round Four'!$C:$J,8,0),"")) -> 0 | U4: =IF(ISERROR(VLOOKUP(T4,'Round Four'!$C:$J,7,0)),0,IF(AND(LEN($C4)<>0,$D4="Yes"),VLOOKUP(T4,'Round Four'!$C:$J,7,0)+1E-24,0)) -> 0 | V4: =IF(ISERROR(VLOOKUP(T4,$B:$AZ,51,0)),0,VLOOKUP(T4,$B:$AZ,51,0)+1E-24) -> 0 | W4: =IF(ISERROR(VLOOKUP($B4,'Round Four'!$C:$J,6,0)),0,IF(AND(LEN($C4)<>0,$D4="Yes"),VLOOKUP($B4,'Round Four'!$C:$J,6,0),"")) -> 0 | X4: =IF(ISERROR(VLOOKUP($B4,'Round Four'!$C:$J,7,0)),0,IF(LEN($C4)<>0,VLOOKUP($B4,'Round Four'!$C:$J,7,0)+1E-24,0)) -> 0 | Y4: =IF(ISERROR(VLOOKUP($B4,'Round Five'!$C:$J,8,0)),0,IF(AND(LEN($C4)<>0,$D4="Yes"),VLOOKUP($B4,'Round Five'!$C:$J,8,0),"")) -> 0 | Z4: =IF(ISERROR(VLOOKUP(Y4,'Round Five'!$C:$J,7,0)),0,IF(AND(LEN($C4)<>0,$D4="Yes"),VLOOKUP(Y4,'Round Five'!$C:$J,7,0)+1E-24,0)) -> 0 | AA4: =IF(ISERROR(VLOOKUP(Y4,$B:$AZ,51,0)),0,VLOOKUP(Y4,$B:$AZ,51,0)+1E-24) -> 0 | AB4: =IF(ISERROR(VLOOKUP($B4,'Round Five'!$C:$J,6,0)),0,IF(AND(LEN($C4)<>0,$D4="Yes"),VLOOKUP($B4,'Round Five'!$C:$J,6,0),"")) -> 0 | AC4: =IF(ISERROR(VLOOKUP($B4,'Round Five'!$C:$J,7,0)),0,IF(LEN($C4)<>0,VLOOKUP($B4,'Round Five'!$C:$J,7,0)+1E-24,0)) -> 0 | AD4: =IF(ISERROR(VLOOKUP($B4,'Round Six'!$C:$J,8,0)),0,IF(AND(LEN($C4)<>0,$D4="Yes"),VLOOKUP($B4,'Round Six'!$C:$J,8,0),"")) -> 0 | AE4: =IF(ISERROR(VLOOKUP(AD4,'Round Six'!$C:$J,7,0)),0,IF(AND(LEN($C4)<>0,$D4="Yes"),VLOOKUP(AD4,'Round Six'!$C:$J,7,0)+1E-24,0)) -> 0 | AF4: =IF(ISERROR(VLOOKUP(AD4,$B:$AZ,51,0)),0,VLOOKUP(AD4,$B:$AZ,51,0)+1E-24) -> 0 | AG4: =IF(ISERROR(VLOOKUP($B4,'Round Six'!$C:$J,6,0)),0,IF(AND(LEN($C4)<>0,$D4="Yes"),VLOOKUP($B4,'Round Six'!$C:$J,6,0),"")) -> 0 | AH4: =IF(ISERROR(VLOOKUP($B4,'Round Six'!$C:$J,7,0)),0,IF(LEN($C4)<>0,VLOOKUP($B4,'Round Six'!$C:$J,7,0)+1E-24,0)) -> 0 | AI4: =IF(ISERROR(VLOOKUP($B4,'Round Seven'!$C:$J,8,0)),0,IF(AND(LEN($C4)<>0,$D4="Yes"),VLOOKUP($B4,'Round Seven'!$C:$J,8,0),"")) -> 0 | AJ4: =IF(ISERROR(VLOOKUP(AI4,'Round Seven'!$C:$J,7,0)),0,IF(AND(LEN($C4)<>0,$D4="Yes"),VLOOKUP(AI4,'Round Seven'!$C:$J,7,0)+1E-24,0)) -> 0 | AK4: =IF(ISERROR(VLOOKUP(AI4,$B:$AZ,51,0)),0,VLOOKUP(AI4,$B:$AZ,51,0)+1E-24) -> 0 | AL4: =IF(ISERROR(VLOOKUP($B4,'Round Seven'!$C:$J,6,0)),0,IF(AND(LEN($C4)<>0,$D4="Yes"),VLOOKUP($B4,'Round Seven'!$C:$J,6,0),"")) -> 0 | AM4: =IF(ISERROR(VLOOKUP($B4,'Round Seven'!$C:$J,7,0)),0,IF(LEN($C4)<>0,VLOOKUP($B4,'Round Seven'!$C:$J,7,0)+1E-24,0)) -> 0 | AN4: =IF(ISERROR(VLOOKUP($B4,'Round Eight'!$C:$J,8,0)),0,IF(AND(LEN($C4)<>0,$D4="Yes"),VLOOKUP($B4,'Round Eight'!$C:$J,8,0),"")) -> 0 | AO4: =IF(ISERROR(VLOOKUP(AN4,'Round Eight'!$C:$J,7,0)),0,IF(AND(LEN($C4)<>0,$D4="Yes"),VLOOKUP(AN4,'Round Eight'!$C:$J,7,0)+1E-24,0)) -> 0 | AP4: =IF(ISERROR(VLOOKUP(AN4,$B:$AZ,51,0)),0,VLOOKUP(AN4,$B:$AZ,51,0)+1E-24) -> 0 | AQ4: =IF(ISERROR(VLOOKUP($B4,'Round Eight'!$C:$J,6,0)),0,IF(AND(LEN($C4)<>0,$D4="Yes"),VLOOKUP($B4,'Round Eight'!$C:$J,6,0),"")) -> 0 | AR4: =IF(ISERROR(VLOOKUP($B4,'Round Eight'!$C:$J,7,0)),0,IF(LEN($C4)<>0,VLOOKUP($B4,'Round Eight'!$C:$J,7,0)+1E-24,0)) -> 0 | AS4: =IF(ISERROR(VLOOKUP($B4,'Round Nine'!$C:$J,8,0)),0,IF(AND(LEN($C4)<>0,$D4="Yes"),VLOOKUP($B4,'Round Nine'!$C:$J,8,0),"")) -> 0 | AT4: =IF(ISERROR(VLOOKUP(AS4,'Round Nine'!$C:$J,7,0)),0,IF(AND(LEN($C4)<>0,$D4="Yes"),VLOOKUP(AS4,'Round Nine'!$C:$J,7,0)+1E-24,0)) -> 0 | AU4: =IF(ISERROR(VLOOKUP(AS4,$B:$AZ,51,0)),0,VLOOKUP(AS4,$B:$AZ,51,0)+1E-24) -> 0 | AV4: =IF(ISERROR(VLOOKUP($B4,'Round Nine'!$C:$J,6,0)),0,IF(AND(LEN($C4)<>0,$D4="Yes"),VLOOKUP($B4,'Round Nine'!$C:$J,6,0),"")) -> 0 | AW4: =IF(ISERROR(VLOOKUP($B4,'Round Nine'!$C:$J,7,0)),0,IF(LEN($C4)<>0,VLOOKUP($B4,'Round Nine'!$C:$J,7,0)+1E-24,0)) -> 0 | AY4: 0 | AZ4: =IF(E4="","",I4+N4+S4+X4+AC4+AH4+AM4+AR4+AW4) -> 0 | BA4: =SUM(G4,L4,Q4,V4,AA4,AF4,AK4,AP4,AU4)-SUM(F4,K4,P4,U4,Z4,AE4,AJ4,AO4,AT4) -> 0 | BB4: =IF(D4<>"Yes",A4*-10,AY4*1000000+AZ4*10000+BA4+(A4/100000))+IF(OR(Accel_Pairing_2!$B$4="no",D4<>"Yes",ISERROR(VLOOKUP(C4,PowerRanking!A:B,2,0))),0,(VLOOKUP(C4,PowerRanking!A:D,4,0)*1000000)+VLOOKUP(C4,PowerRanking!A:D,2,0)/10) -> -4.333219621 | BC4: =IF(E4="","",RANK(BB4,$BB$4:$BB$68,0)) -> 31 | BD4: T01 | BE4: =IF(D4<>"Yes",0,AY4*1000000+AZ4*10000+BA4+0.0000001) -> 0 | BF4: =IF(D4<>"Yes","",RANK(BE4,$BE$4:$BE$67,0)) -> 
A5: 0.7648230765 | B5: T02 | E5: =IF(ISERROR(VLOOKUP($B5,'Round One'!$C:$J,8,0)),0,IF(AND(LEN($C5)<>0,$D5="Yes"),VLOOKUP($B5,'Round One'!$C:$J,8,0),0)) -> 0 | F5: =IF(ISERROR(VLOOKUP(E5,'Round One'!$C:$J,7,0)),0,IF(AND(LEN($C5)<>0,$D5="Yes"),VALUE(VLOOKUP(E5,'Round One'!$C:$J,7,0)+1E-24),0)) -> 0 | G5: =IF(ISERROR(VLOOKUP(E5,$B:$AZ,51,0)),0,VLOOKUP(E5,$B:$AZ,51,0)+1E-24) -> 0 | H5: =IF(ISERROR(VLOOKUP($B5,'Round One'!$C:$J,6,0)),0,IF(AND(LEN($C5)<>0,$D5="Yes"),VLOOKUP($B5,'Round One'!$C:$J,6,0),"")) -> 0 | I5: =IF(ISERROR(VLOOKUP($B5,'Round One'!$C:$J,7,0)),0,IF(LEN($C5)<>0,VLOOKUP($B5,'Round One'!$C:$J,7,0)+1E-24,0)) -> 0 | J5: =IF(ISERROR(VLOOKUP($B5,'Round Two'!$C:$J,8,0)),0,IF(AND(LEN($C5)<>0,$D5="Yes"),VLOOKUP($B5,'Round Two'!$C:$J,8,0),"")) -> 0 | K5: =IF(ISERROR(VLOOKUP(J5,'Round Two'!$C:$J,7,0)),0,IF(AND(LEN($C5)<>0,$D5="Yes"),VLOOKUP(J5,'Round Two'!$C:$J,7,0)+1E-24,0)) -> 0 | L5: 0 | M5: =IF(ISERROR(VLOOKUP($B5,'Round Two'!$C:$J,6,0)),0,IF(AND(LEN($C5)<>0,$D5="Yes"),VLOOKUP($B5,'Round Two'!$C:$J,6,0),"")) -> 0 | N5: =IF(ISERROR(VLOOKUP($B5,'Round Two'!$C:$J,7,0)),0,IF(LEN($C5)<>0,VLOOKUP($B5,'Round Two'!$C:$J,7,0)+1E-24,0)) -> 0 | O5: =IF(ISERROR(VLOOKUP($B5,'Round Three'!$C:$J,8,0)),0,IF(AND(LEN($C5)<>0,$D5="Yes"),VLOOKUP($B5,'Round Three'!$C:$J,8,0),"")) -> 0 | P5: =IF(ISERROR(VLOOKUP(O5,'Round Three'!$C:$J,7,0)),0,IF(AND(LEN($C5)<>0,$D5="Yes"),VLOOKUP(O5,'Round Three'!$C:$J,7,0)+1E-24,0)) -> 0 | Q5: 0 | R5: =IF(ISERROR(VLOOKUP($B5,'Round Three'!$C:$J,6,0)),0,IF(AND(LEN($C5)<>0,$D5="Yes"),VLOOKUP($B5,'Round Three'!$C:$J,6,0),"")) -> 0 | S5: =IF(ISERROR(VLOOKUP($B5,'Round Three'!$C:$J,7,0)),0,IF(LEN($C5)<>0,VLOOKUP($B5,'Round Three'!$C:$J,7,0)+1E-24,0)) -> 0 | T5: =IF(ISERROR(VLOOKUP($B5,'Round Four'!$C:$J,8,0)),0,IF(AND(LEN($C5)<>0,$D5="Yes"),VLOOKUP($B5,'Round Four'!$C:$J,8,0),"")) -> 0 | U5: =IF(ISERROR(VLOOKUP(T5,'Round Four'!$C:$J,7,0)),0,IF(AND(LEN($C5)<>0,$D5="Yes"),VLOOKUP(T5,'Round Four'!$C:$J,7,0)+1E-24,0)) -> 0 | V5: 0 | W5: =IF(ISERROR(VLOOKUP($B5,'Round Four'!$C:$J,6,0)),0,IF(AND(LEN($C5)<>0,$D5="Yes"),VLOOKUP($B5,'Round Four'!$C:$J,6,0),"")) -> 0 | X5: =IF(ISERROR(VLOOKUP($B5,'Round Four'!$C:$J,7,0)),0,IF(LEN($C5)<>0,VLOOKUP($B5,'Round Four'!$C:$J,7,0)+1E-24,0)) -> 0 | Y5: =IF(ISERROR(VLOOKUP($B5,'Round Five'!$C:$J,8,0)),0,IF(AND(LEN($C5)<>0,$D5="Yes"),VLOOKUP($B5,'Round Five'!$C:$J,8,0),"")) -> 0 | Z5: =IF(ISERROR(VLOOKUP(Y5,'Round Five'!$C:$J,7,0)),0,IF(AND(LEN($C5)<>0,$D5="Yes"),VLOOKUP(Y5,'Round Five'!$C:$J,7,0)+1E-24,0)) -> 0 | AA5: 0 | AB5: =IF(ISERROR(VLOOKUP($B5,'Round Five'!$C:$J,6,0)),0,IF(AND(LEN($C5)<>0,$D5="Yes"),VLOOKUP($B5,'Round Five'!$C:$J,6,0),"")) -> 0 | AC5: =IF(ISERROR(VLOOKUP($B5,'Round Five'!$C:$J,7,0)),0,IF(LEN($C5)<>0,VLOOKUP($B5,'Round Five'!$C:$J,7,0)+1E-24,0)) -> 0 | AD5: =IF(ISERROR(VLOOKUP($B5,'Round Six'!$C:$J,8,0)),0,IF(AND(LEN($C5)<>0,$D5="Yes"),VLOOKUP($B5,'Round Six'!$C:$J,8,0),"")) -> 0 | AE5: =IF(ISERROR(VLOOKUP(AD5,'Round Six'!$C:$J,7,0)),0,IF(AND(LEN($C5)<>0,$D5="Yes"),VLOOKUP(AD5,'Round Six'!$C:$J,7,0)+1E-24,0)) -> 0 | AF5: 0 | AG5: =IF(ISERROR(VLOOKUP($B5,'Round Six'!$C:$J,6,0)),0,IF(AND(LEN($C5)<>0,$D5="Yes"),VLOOKUP($B5,'Round Six'!$C:$J,6,0),"")) -> 0 | AH5: =IF(ISERROR(VLOOKUP($B5,'Round Six'!$C:$J,7,0)),0,IF(LEN($C5)<>0,VLOOKUP($B5,'Round Six'!$C:$J,7,0)+1E-24,0)) -> 0 | AI5: =IF(ISERROR(VLOOKUP($B5,'Round Seven'!$C:$J,8,0)),0,IF(AND(LEN($C5)<>0,$D5="Yes"),VLOOKUP($B5,'Round Seven'!$C:$J,8,0),"")) -> 0 | AJ5: =IF(ISERROR(VLOOKUP(AI5,'Round Seven'!$C:$J,7,0)),0,IF(AND(LEN($C5)<>0,$D5="Yes"),VLOOKUP(AI5,'Round Seven'!$C:$J,7,0)+1E-24,0)) -> 0 | AK5: 0 | AL5: =IF(ISERROR(VLOOKUP($B5,'Round Seven'!$C:$J,6,0)),0,IF(AND(LEN($C5)<>0,$D5="Yes"),VLOOKUP($B5,'Round Seven'!$C:$J,6,0),"")) -> 0 | AM5: =IF(ISERROR(VLOOKUP($B5,'Round Seven'!$C:$J,7,0)),0,IF(LEN($C5)<>0,VLOOKUP($B5,'Round Seven'!$C:$J,7,0)+1E-24,0)) -> 0 | AN5: =IF(ISERROR(VLOOKUP($B5,'Round Eight'!$C:$J,8,0)),0,IF(AND(LEN($C5)<>0,$D5="Yes"),VLOOKUP($B5,'Round Eight'!$C:$J,8,0),"")) -> 0 | AO5: =IF(ISERROR(VLOOKUP(AN5,'Round Eight'!$C:$J,7,0)),0,IF(AND(LEN($C5)<>0,$D5="Yes"),VLOOKUP(AN5,'Round Eight'!$C:$J,7,0)+1E-24,0)) -> 0 | AP5: 0 | AQ5: =IF(ISERROR(VLOOKUP($B5,'Round Eight'!$C:$J,6,0)),0,IF(AND(LEN($C5)<>0,$D5="Yes"),VLOOKUP($B5,'Round Eight'!$C:$J,6,0),"")) -> 0 | AR5: =IF(ISERROR(VLOOKUP($B5,'Round Eight'!$C:$J,7,0)),0,IF(LEN($C5)<>0,VLOOKUP($B5,'Round Eight'!$C:$J,7,0)+1E-24,0)) -> 0 | AS5: =IF(ISERROR(VLOOKUP($B5,'Round Nine'!$C:$J,8,0)),0,IF(AND(LEN($C5)<>0,$D5="Yes"),VLOOKUP($B5,'Round Nine'!$C:$J,8,0),"")) -> 0 | AT5: =IF(ISERROR(VLOOKUP(AS5,'Round Nine'!$C:$J,7,0)),0,IF(AND(LEN($C5)<>0,$D5="Yes"),VLOOKUP(AS5,'Round Nine'!$C:$J,7,0)+1E-24,0)) -> 0 | AU5: 0 | AV5: =IF(ISERROR(VLOOKUP($B5,'Round Nine'!$C:$J,6,0)),0,IF(AND(LEN($C5)<>0,$D5="Yes"),VLOOKUP($B5,'Round Nine'!$C:$J,6,0),"")) -> 0 | AW5: =IF(ISERROR(VLOOKUP($B5,'Round Nine'!$C:$J,7,0)),0,IF(LEN($C5)<>0,VLOOKUP($B5,'Round Nine'!$C:$J,7,0)+1E-24,0)) -> 0 | AY5: 0 | AZ5: =IF(E5="","",I5+N5+S5+X5+AC5+AH5+AM5+AR5+AW5) -> 0 | BA5: =SUM(G5,L5,Q5,V5,AA5,AF5,AK5,AP5,AU5)-SUM(F5,K5,P5,U5,Z5,AE5,AJ5,AO5,AT5) -> 0 | BB5: =IF(D5<>"Yes",A5*-10,AY5*1000000+AZ5*10000+BA5+(A5/100000))+IF(OR(Accel_Pairing_2!$B$4="no",D5<>"Yes",ISERROR(VLOOKUP(C5,PowerRanking!A:B,2,0))),0,(VLOOKUP(C5,PowerRanking!A:D,4,0)*1000000)+VLOOKUP(C5,PowerRanking!A:D,2,0)/10) -> -7.648230765 | BC5: =IF(E5="","",RANK(BB5,$BB$4:$BB$68,0)) -> 49 | BD5: T02 | BE5: =IF(D5<>"Yes",0,AY5*1000000+AZ5*10000+BA5+0.0000001) -> 0 | BF5: =IF(D5<>"Yes","",RANK(BE5,$BE$4:$BE$67,0)) -> 
A6: 0.6131222754 | B6: T03 | E6: =IF(ISERROR(VLOOKUP($B6,'Round One'!$C:$J,8,0)),0,IF(AND(LEN($C6)<>0,$D6="Yes"),VLOOKUP($B6,'Round One'!$C:$J,8,0),0)) -> 0 | F6: =IF(ISERROR(VLOOKUP(E6,'Round One'!$C:$J,7,0)),0,IF(AND(LEN($C6)<>0,$D6="Yes"),VALUE(VLOOKUP(E6,'Round One'!$C:$J,7,0)+1E-24),0)) -> 0 | G6: 0 | H6: =IF(ISERROR(VLOOKUP($B6,'Round One'!$C:$J,6,0)),0,IF(AND(LEN($C6)<>0,$D6="Yes"),VLOOKUP($B6,'Round One'!$C:$J,6,0),"")) -> 0 | I6: =IF(ISERROR(VLOOKUP($B6,'Round One'!$C:$J,7,0)),0,IF(LEN($C6)<>0,VLOOKUP($B6,'Round One'!$C:$J,7,0)+1E-24,0)) -> 0 | J6: =IF(ISERROR(VLOOKUP($B6,'Round Two'!$C:$J,8,0)),0,IF(AND(LEN($C6)<>0,$D6="Yes"),VLOOKUP($B6,'Round Two'!$C:$J,8,0),"")) -> 0 | K6: =IF(ISERROR(VLOOKUP(J6,'Round Two'!$C:$J,7,0)),0,IF(AND(LEN($C6)<>0,$D6="Yes"),VLOOKUP(J6,'Round Two'!$C:$J,7,0)+1E-24,0)) -> 0 | L6: 0 | M6: =IF(ISERROR(VLOOKUP($B6,'Round Two'!$C:$J,6,0)),0,IF(AND(LEN($C6)<>0,$D6="Yes"),VLOOKUP($B6,'Round Two'!$C:$J,6,0),"")) -> 0 | N6: =IF(ISERROR(VLOOKUP($B6,'Round Two'!$C:$J,7,0)),0,IF(LEN($C6)<>0,VLOOKUP($B6,'Round Two'!$C:$J,7,0)+1E-24,0)) -> 0 | O6: =IF(ISERROR(VLOOKUP($B6,'Round Three'!$C:$J,8,0)),0,IF(AND(LEN($C6)<>0,$D6="Yes"),VLOOKUP($B6,'Round Three'!$C:$J,8,0),"")) -> 0 | P6: =IF(ISERROR(VLOOKUP(O6,'Round Three'!$C:$J,7,0)),0,IF(AND(LEN($C6)<>0,$D6="Yes"),VLOOKUP(O6,'Round Three'!$C:$J,7,0)+1E-24,0)) -> 0 | Q6: 0 | R6: =IF(ISERROR(VLOOKUP($B6,'Round Three'!$C:$J,6,0)),0,IF(AND(LEN($C6)<>0,$D6="Yes"),VLOOKUP($B6,'Round Three'!$C:$J,6,0),"")) -> 0 | S6: =IF(ISERROR(VLOOKUP($B6,'Round Three'!$C:$J,7,0)),0,IF(LEN($C6)<>0,VLOOKUP($B6,'Round Three'!$C:$J,7,0)+1E-24,0)) -> 0 | T6: =IF(ISERROR(VLOOKUP($B6,'Round Four'!$C:$J,8,0)),0,IF(AND(LEN($C6)<>0,$D6="Yes"),VLOOKUP($B6,'Round Four'!$C:$J,8,0),"")) -> 0 | U6: =IF(ISERROR(VLOOKUP(T6,'Round Four'!$C:$J,7,0)),0,IF(AND(LEN($C6)<>0,$D6="Yes"),VLOOKUP(T6,'Round Four'!$C:$J,7,0)+1E-24,0)) -> 0 | V6: 0 | W6: =IF(ISERROR(VLOOKUP($B6,'Round Four'!$C:$J,6,0)),0,IF(AND(LEN($C6)<>0,$D6="Yes"),VLOOKUP($B6,'Round Four'!$C:$J,6,0),"")) -> 0 | X6: =IF(ISERROR(VLOOKUP($B6,'Round Four'!$C:$J,7,0)),0,IF(LEN($C6)<>0,VLOOKUP($B6,'Round Four'!$C:$J,7,0)+1E-24,0)) -> 0 | Y6: =IF(ISERROR(VLOOKUP($B6,'Round Five'!$C:$J,8,0)),0,IF(AND(LEN($C6)<>0,$D6="Yes"),VLOOKUP($B6,'Round Five'!$C:$J,8,0),"")) -> 0 | Z6: =IF(ISERROR(VLOOKUP(Y6,'Round Five'!$C:$J,7,0)),0,IF(AND(LEN($C6)<>0,$D6="Yes"),VLOOKUP(Y6,'Round Five'!$C:$J,7,0)+1E-24,0)) -> 0 | AA6: 0 | AB6: =IF(ISERROR(VLOOKUP($B6,'Round Five'!$C:$J,6,0)),0,IF(AND(LEN($C6)<>0,$D6="Yes"),VLOOKUP($B6,'Round Five'!$C:$J,6,0),"")) -> 0 | AC6: =IF(ISERROR(VLOOKUP($B6,'Round Five'!$C:$J,7,0)),0,IF(LEN($C6)<>0,VLOOKUP($B6,'Round Five'!$C:$J,7,0)+1E-24,0)) -> 0 | AD6: =IF(ISERROR(VLOOKUP($B6,'Round Six'!$C:$J,8,0)),0,IF(AND(LEN($C6)<>0,$D6="Yes"),VLOOKUP($B6,'Round Six'!$C:$J,8,0),"")) -> 0 | AE6: =IF(ISERROR(VLOOKUP(AD6,'Round Six'!$C:$J,7,0)),0,IF(AND(LEN($C6)<>0,$D6="Yes"),VLOOKUP(AD6,'Round Six'!$C:$J,7,0)+1E-24,0)) -> 0 | AF6: 0 | AG6: =IF(ISERROR(VLOOKUP($B6,'Round Six'!$C:$J,6,0)),0,IF(AND(LEN($C6)<>0,$D6="Yes"),VLOOKUP($B6,'Round Six'!$C:$J,6,0),"")) -> 0 | AH6: =IF(ISERROR(VLOOKUP($B6,'Round Six'!$C:$J,7,0)),0,IF(LEN($C6)<>0,VLOOKUP($B6,'Round Six'!$C:$J,7,0)+1E-24,0)) -> 0 | AI6: =IF(ISERROR(VLOOKUP($B6,'Round Seven'!$C:$J,8,0)),0,IF(AND(LEN($C6)<>0,$D6="Yes"),VLOOKUP($B6,'Round Seven'!$C:$J,8,0),"")) -> 0 | AJ6: =IF(ISERROR(VLOOKUP(AI6,'Round Seven'!$C:$J,7,0)),0,IF(AND(LEN($C6)<>0,$D6="Yes"),VLOOKUP(AI6,'Round Seven'!$C:$J,7,0)+1E-24,0)) -> 0 | AK6: 0 | AL6: =IF(ISERROR(VLOOKUP($B6,'Round Seven'!$C:$J,6,0)),0,IF(AND(LEN($C6)<>0,$D6="Yes"),VLOOKUP($B6,'Round Seven'!$C:$J,6,0),"")) -> 0 | AM6: =IF(ISERROR(VLOOKUP($B6,'Round Seven'!$C:$J,7,0)),0,IF(LEN($C6)<>0,VLOOKUP($B6,'Round Seven'!$C:$J,7,0)+1E-24,0)) -> 0 | AN6: =IF(ISERROR(VLOOKUP($B6,'Round Eight'!$C:$J,8,0)),0,IF(AND(LEN($C6)<>0,$D6="Yes"),VLOOKUP($B6,'Round Eight'!$C:$J,8,0),"")) -> 0 | AO6: =IF(ISERROR(VLOOKUP(AN6,'Round Eight'!$C:$J,7,0)),0,IF(AND(LEN($C6)<>0,$D6="Yes"),VLOOKUP(AN6,'Round Eight'!$C:$J,7,0)+1E-24,0)) -> 0 | AP6: 0 | AQ6: =IF(ISERROR(VLOOKUP($B6,'Round Eight'!$C:$J,6,0)),0,IF(AND(LEN($C6)<>0,$D6="Yes"),VLOOKUP($B6,'Round Eight'!$C:$J,6,0),"")) -> 0 | AR6: =IF(ISERROR(VLOOKUP($B6,'Round Eight'!$C:$J,7,0)),0,IF(LEN($C6)<>0,VLOOKUP($B6,'Round Eight'!$C:$J,7,0)+1E-24,0)) -> 0 | AS6: =IF(ISERROR(VLOOKUP($B6,'Round Nine'!$C:$J,8,0)),0,IF(AND(LEN($C6)<>0,$D6="Yes"),VLOOKUP($B6,'Round Nine'!$C:$J,8,0),"")) -> 0 | AT6: =IF(ISERROR(VLOOKUP(AS6,'Round Nine'!$C:$J,7,0)),0,IF(AND(LEN($C6)<>0,$D6="Yes"),VLOOKUP(AS6,'Round Nine'!$C:$J,7,0)+1E-24,0)) -> 0 | AU6: 0 | AV6: =IF(ISERROR(VLOOKUP($B6,'Round Nine'!$C:$J,6,0)),0,IF(AND(LEN($C6)<>0,$D6="Yes"),VLOOKUP($B6,'Round Nine'!$C:$J,6,0),"")) -> 0 | AW6: =IF(ISERROR(VLOOKUP($B6,'Round Nine'!$C:$J,7,0)),0,IF(LEN($C6)<>0,VLOOKUP($B6,'Round Nine'!$C:$J,7,0)+1E-24,0)) -> 0 | AY6: 0 | AZ6: 0 | BA6: 0 | BB6: =IF(D6<>"Yes",A6*-10,AY6*1000000+AZ6*10000+BA6+(A6/100000))+IF(OR(Accel_Pairing_2!$B$4="no",D6<>"Yes",ISERROR(VLOOKUP(C6,PowerRanking!A:B,2,0))),0,(VLOOKUP(C6,PowerRanking!A:D,4,0)*1000000)+VLOOKUP(C6,PowerRanking!A:D,2,0)/10) -> -6.131222754 | BC6: 39 | BD6: T03 | BE6: 0
A7: 0.4059913585 | B7: T04 | E7: =IF(ISERROR(VLOOKUP($B7,'Round One'!$C:$J,8,0)),0,IF(AND(LEN($C7)<>0,$D7="Yes"),VLOOKUP($B7,'Round One'!$C:$J,8,0),0)) -> 0 | F7: =IF(ISERROR(VLOOKUP(E7,'Round One'!$C:$J,7,0)),0,IF(AND(LEN($C7)<>0,$D7="Yes"),VALUE(VLOOKUP(E7,'Round One'!$C:$J,7,0)+1E-24),0)) -> 0 | G7: 0 | H7: =IF(ISERROR(VLOOKUP($B7,'Round One'!$C:$J,6,0)),0,IF(AND(LEN($C7)<>0,$D7="Yes"),VLOOKUP($B7,'Round One'!$C:$J,6,0),"")) -> 0 | I7: =IF(ISERROR(VLOOKUP($B7,'Round One'!$C:$J,7,0)),0,IF(LEN($C7)<>0,VLOOKUP($B7,'Round One'!$C:$J,7,0)+1E-24,0)) -> 0 | J7: =IF(ISERROR(VLOOKUP($B7,'Round Two'!$C:$J,8,0)),0,IF(AND(LEN($C7)<>0,$D7="Yes"),VLOOKUP($B7,'Round Two'!$C:$J,8,0),"")) -> 0 | K7: =IF(ISERROR(VLOOKUP(J7,'Round Two'!$C:$J,7,0)),0,IF(AND(LEN($C7)<>0,$D7="Yes"),VLOOKUP(J7,'Round Two'!$C:$J,7,0)+1E-24,0)) -> 0 | L7: 0 | M7: =IF(ISERROR(VLOOKUP($B7,'Round Two'!$C:$J,6,0)),0,IF(AND(LEN($C7)<>0,$D7="Yes"),VLOOKUP($B7,'Round Two'!$C:$J,6,0),"")) -> 0 | N7: =IF(ISERROR(VLOOKUP($B7,'Round Two'!$C:$J,7,0)),0,IF(LEN($C7)<>0,VLOOKUP($B7,'Round Two'!$C:$J,7,0)+1E-24,0)) -> 0 | O7: =IF(ISERROR(VLOOKUP($B7,'Round Three'!$C:$J,8,0)),0,IF(AND(LEN($C7)<>0,$D7="Yes"),VLOOKUP($B7,'Round Three'!$C:$J,8,0),"")) -> 0 | P7: =IF(ISERROR(VLOOKUP(O7,'Round Three'!$C:$J,7,0)),0,IF(AND(LEN($C7)<>0,$D7="Yes"),VLOOKUP(O7,'Round Three'!$C:$J,7,0)+1E-24,0)) -> 0 | Q7: 0 | R7: =IF(ISERROR(VLOOKUP($B7,'Round Three'!$C:$J,6,0)),0,IF(AND(LEN($C7)<>0,$D7="Yes"),VLOOKUP($B7,'Round Three'!$C:$J,6,0),"")) -> 0 | S7: =IF(ISERROR(VLOOKUP($B7,'Round Three'!$C:$J,7,0)),0,IF(LEN($C7)<>0,VLOOKUP($B7,'Round Three'!$C:$J,7,0)+1E-24,0)) -> 0 | T7: =IF(ISERROR(VLOOKUP($B7,'Round Four'!$C:$J,8,0)),0,IF(AND(LEN($C7)<>0,$D7="Yes"),VLOOKUP($B7,'Round Four'!$C:$J,8,0),"")) -> 0 | U7: =IF(ISERROR(VLOOKUP(T7,'Round Four'!$C:$J,7,0)),0,IF(AND(LEN($C7)<>0,$D7="Yes"),VLOOKUP(T7,'Round Four'!$C:$J,7,0)+1E-24,0)) -> 0 | V7: 0 | W7: =IF(ISERROR(VLOOKUP($B7,'Round Four'!$C:$J,6,0)),0,IF(AND(LEN($C7)<>0,$D7="Yes"),VLOOKUP($B7,'Round Four'!$C:$J,6,0),"")) -> 0 | X7: =IF(ISERROR(VLOOKUP($B7,'Round Four'!$C:$J,7,0)),0,IF(LEN($C7)<>0,VLOOKUP($B7,'Round Four'!$C:$J,7,0)+1E-24,0)) -> 0 | Y7: =IF(ISERROR(VLOOKUP($B7,'Round Five'!$C:$J,8,0)),0,IF(AND(LEN($C7)<>0,$D7="Yes"),VLOOKUP($B7,'Round Five'!$C:$J,8,0),"")) -> 0 | Z7: =IF(ISERROR(VLOOKUP(Y7,'Round Five'!$C:$J,7,0)),0,IF(AND(LEN($C7)<>0,$D7="Yes"),VLOOKUP(Y7,'Round Five'!$C:$J,7,0)+1E-24,0)) -> 0 | AA7: 0 | AB7: =IF(ISERROR(VLOOKUP($B7,'Round Five'!$C:$J,6,0)),0,IF(AND(LEN($C7)<>0,$D7="Yes"),VLOOKUP($B7,'Round Five'!$C:$J,6,0),"")) -> 0 | AC7: =IF(ISERROR(VLOOKUP($B7,'Round Five'!$C:$J,7,0)),0,IF(LEN($C7)<>0,VLOOKUP($B7,'Round Five'!$C:$J,7,0)+1E-24,0)) -> 0 | AD7: =IF(ISERROR(VLOOKUP($B7,'Round Six'!$C:$J,8,0)),0,IF(AND(LEN($C7)<>0,$D7="Yes"),VLOOKUP($B7,'Round Six'!$C:$J,8,0),"")) -> 0 | AE7: =IF(ISERROR(VLOOKUP(AD7,'Round Six'!$C:$J,7,0)),0,IF(AND(LEN($C7)<>0,$D7="Yes"),VLOOKUP(AD7,'Round Six'!$C:$J,7,0)+1E-24,0)) -> 0 | AF7: 0 | AG7: =IF(ISERROR(VLOOKUP($B7,'Round Six'!$C:$J,6,0)),0,IF(AND(LEN($C7)<>0,$D7="Yes"),VLOOKUP($B7,'Round Six'!$C:$J,6,0),"")) -> 0 | AH7: =IF(ISERROR(VLOOKUP($B7,'Round Six'!$C:$J,7,0)),0,IF(LEN($C7)<>0,VLOOKUP($B7,'Round Six'!$C:$J,7,0)+1E-24,0)) -> 0 | AI7: =IF(ISERROR(VLOOKUP($B7,'Round Seven'!$C:$J,8,0)),0,IF(AND(LEN($C7)<>0,$D7="Yes"),VLOOKUP($B7,'Round Seven'!$C:$J,8,0),"")) -> 0 | AJ7: =IF(ISERROR(VLOOKUP(AI7,'Round Seven'!$C:$J,7,0)),0,IF(AND(LEN($C7)<>0,$D7="Yes"),VLOOKUP(AI7,'Round Seven'!$C:$J,7,0)+1E-24,0)) -> 0 | AK7: 0 | AL7: =IF(ISERROR(VLOOKUP($B7,'Round Seven'!$C:$J,6,0)),0,IF(AND(LEN($C7)<>0,$D7="Yes"),VLOOKUP($B7,'Round Seven'!$C:$J,6,0),"")) -> 0 | AM7: =IF(ISERROR(VLOOKUP($B7,'Round Seven'!$C:$J,7,0)),0,IF(LEN($C7)<>0,VLOOKUP($B7,'Round Seven'!$C:$J,7,0)+1E-24,0)) -> 0 | AN7: =IF(ISERROR(VLOOKUP($B7,'Round Eight'!$C:$J,8,0)),0,IF(AND(LEN($C7)<>0,$D7="Yes"),VLOOKUP($B7,'Round Eight'!$C:$J,8,0),"")) -> 0 | AO7: =IF(ISERROR(VLOOKUP(AN7,'Round Eight'!$C:$J,7,0)),0,IF(AND(LEN($C7)<>0,$D7="Yes"),VLOOKUP(AN7,'Round Eight'!$C:$J,7,0)+1E-24,0)) -> 0 | AP7: 0 | AQ7: =IF(ISERROR(VLOOKUP($B7,'Round Eight'!$C:$J,6,0)),0,IF(AND(LEN($C7)<>0,$D7="Yes"),VLOOKUP($B7,'Round Eight'!$C:$J,6,0),"")) -> 0 | AR7: =IF(ISERROR(VLOOKUP($B7,'Round Eight'!$C:$J,7,0)),0,IF(LEN($C7)<>0,VLOOKUP($B7,'Round Eight'!$C:$J,7,0)+1E-24,0)) -> 0 | AS7: =IF(ISERROR(VLOOKUP($B7,'Round Nine'!$C:$J,8,0)),0,IF(AND(LEN($C7)<>0,$D7="Yes"),VLOOKUP($B7,'Round Nine'!$C:$J,8,0),"")) -> 0 | AT7: =IF(ISERROR(VLOOKUP(AS7,'Round Nine'!$C:$J,7,0)),0,IF(AND(LEN($C7)<>0,$D7="Yes"),VLOOKUP(AS7,'Round Nine'!$C:$J,7,0)+1E-24,0)) -> 0 | AU7: 0 | AV7: =IF(ISERROR(VLOOKUP($B7,'Round Nine'!$C:$J,6,0)),0,IF(AND(LEN($C7)<>0,$D7="Yes"),VLOOKUP($B7,'Round Nine'!$C:$J,6,0),"")) -> 0 | AW7: =IF(ISERROR(VLOOKUP($B7,'Round Nine'!$C:$J,7,0)),0,IF(LEN($C7)<>0,VLOOKUP($B7,'Round Nine'!$C:$J,7,0)+1E-24,0)) -> 0 | AY7: 0 | AZ7: 0 | BA7: 0 | BB7: =IF(D7<>"Yes",A7*-10,AY7*1000000+AZ7*10000+BA7+(A7/100000))+IF(OR(Accel_Pairing_2!$B$4="no",D7<>"Yes",ISERROR(VLOOKUP(C7,PowerRanking!A:B,2,0))),0,(VLOOKUP(C7,PowerRanking!A:D,4,0)*1000000)+VLOOKUP(C7,PowerRanking!A:D,2,0)/10) -> -4.059913585 | BC7: 27 | BD7: T04 | BE7: 0
A8: 0.7422440339 | B8: T05 | E8: =IF(ISERROR(VLOOKUP($B8,'Round One'!$C:$J,8,0)),0,IF(AND(LEN($C8)<>0,$D8="Yes"),VLOOKUP($B8,'Round One'!$C:$J,8,0),0)) -> 0 | F8: =IF(ISERROR(VLOOKUP(E8,'Round One'!$C:$J,7,0)),0,IF(AND(LEN($C8)<>0,$D8="Yes"),VALUE(VLOOKUP(E8,'Round One'!$C:$J,7,0)+1E-24),0)) -> 0 | G8: 0 | H8: =IF(ISERROR(VLOOKUP($B8,'Round One'!$C:$J,6,0)),0,IF(AND(LEN($C8)<>0,$D8="Yes"),VLOOKUP($B8,'Round One'!$C:$J,6,0),"")) -> 0 | I8: =IF(ISERROR(VLOOKUP($B8,'Round One'!$C:$J,7,0)),0,IF(LEN($C8)<>0,VLOOKUP($B8,'Round One'!$C:$J,7,0)+1E-24,0)) -> 0 | J8: =IF(ISERROR(VLOOKUP($B8,'Round Two'!$C:$J,8,0)),0,IF(AND(LEN($C8)<>0,$D8="Yes"),VLOOKUP($B8,'Round Two'!$C:$J,8,0),"")) -> 0 | K8: =IF(ISERROR(VLOOKUP(J8,'Round Two'!$C:$J,7,0)),0,IF(AND(LEN($C8)<>0,$D8="Yes"),VLOOKUP(J8,'Round Two'!$C:$J,7,0)+1E-24,0)) -> 0 | L8: 0 | M8: =IF(ISERROR(VLOOKUP($B8,'Round Two'!$C:$J,6,0)),0,IF(AND(LEN($C8)<>0,$D8="Yes"),VLOOKUP($B8,'Round Two'!$C:$J,6,0),"")) -> 0 | N8: =IF(ISERROR(VLOOKUP($B8,'Round Two'!$C:$J,7,0)),0,IF(LEN($C8)<>0,VLOOKUP($B8,'Round Two'!$C:$J,7,0)+1E-24,0)) -> 0 | O8: =IF(ISERROR(VLOOKUP($B8,'Round Three'!$C:$J,8,0)),0,IF(AND(LEN($C8)<>0,$D8="Yes"),VLOOKUP($B8,'Round Three'!$C:$J,8,0),"")) -> 0 | P8: =IF(ISERROR(VLOOKUP(O8,'Round Three'!$C:$J,7,0)),0,IF(AND(LEN($C8)<>0,$D8="Yes"),VLOOKUP(O8,'Round Three'!$C:$J,7,0)+1E-24,0)) -> 0 | Q8: 0 | R8: =IF(ISERROR(VLOOKUP($B8,'Round Three'!$C:$J,6,0)),0,IF(AND(LEN($C8)<>0,$D8="Yes"),VLOOKUP($B8,'Round Three'!$C:$J,6,0),"")) -> 0 | S8: =IF(ISERROR(VLOOKUP($B8,'Round Three'!$C:$J,7,0)),0,IF(LEN($C8)<>0,VLOOKUP($B8,'Round Three'!$C:$J,7,0)+1E-24,0)) -> 0 | T8: =IF(ISERROR(VLOOKUP($B8,'Round Four'!$C:$J,8,0)),0,IF(AND(LEN($C8)<>0,$D8="Yes"),VLOOKUP($B8,'Round Four'!$C:$J,8,0),"")) -> 0 | U8: =IF(ISERROR(VLOOKUP(T8,'Round Four'!$C:$J,7,0)),0,IF(AND(LEN($C8)<>0,$D8="Yes"),VLOOKUP(T8,'Round Four'!$C:$J,7,0)+1E-24,0)) -> 0 | V8: 0 | W8: =IF(ISERROR(VLOOKUP($B8,'Round Four'!$C:$J,6,0)),0,IF(AND(LEN($C8)<>0,$D8="Yes"),VLOOKUP($B8,'Round Four'!$C:$J,6,0),"")) -> 0 | X8: =IF(ISERROR(VLOOKUP($B8,'Round Four'!$C:$J,7,0)),0,IF(LEN($C8)<>0,VLOOKUP($B8,'Round Four'!$C:$J,7,0)+1E-24,0)) -> 0 | Y8: =IF(ISERROR(VLOOKUP($B8,'Round Five'!$C:$J,8,0)),0,IF(AND(LEN($C8)<>0,$D8="Yes"),VLOOKUP($B8,'Round Five'!$C:$J,8,0),"")) -> 0 | Z8: =IF(ISERROR(VLOOKUP(Y8,'Round Five'!$C:$J,7,0)),0,IF(AND(LEN($C8)<>0,$D8="Yes"),VLOOKUP(Y8,'Round Five'!$C:$J,7,0)+1E-24,0)) -> 0 | AA8: 0 | AB8: =IF(ISERROR(VLOOKUP($B8,'Round Five'!$C:$J,6,0)),0,IF(AND(LEN($C8)<>0,$D8="Yes"),VLOOKUP($B8,'Round Five'!$C:$J,6,0),"")) -> 0 | AC8: =IF(ISERROR(VLOOKUP($B8,'Round Five'!$C:$J,7,0)),0,IF(LEN($C8)<>0,VLOOKUP($B8,'Round Five'!$C:$J,7,0)+1E-24,0)) -> 0 | AD8: =IF(ISERROR(VLOOKUP($B8,'Round Six'!$C:$J,8,0)),0,IF(AND(LEN($C8)<>0,$D8="Yes"),VLOOKUP($B8,'Round Six'!$C:$J,8,0),"")) -> 0 | AE8: =IF(ISERROR(VLOOKUP(AD8,'Round Six'!$C:$J,7,0)),0,IF(AND(LEN($C8)<>0,$D8="Yes"),VLOOKUP(AD8,'Round Six'!$C:$J,7,0)+1E-24,0)) -> 0 | AF8: 0 | AG8: =IF(ISERROR(VLOOKUP($B8,'Round Six'!$C:$J,6,0)),0,IF(AND(LEN($C8)<>0,$D8="Yes"),VLOOKUP($B8,'Round Six'!$C:$J,6,0),"")) -> 0 | AH8: =IF(ISERROR(VLOOKUP($B8,'Round Six'!$C:$J,7,0)),0,IF(LEN($C8)<>0,VLOOKUP($B8,'Round Six'!$C:$J,7,0)+1E-24,0)) -> 0 | AI8: =IF(ISERROR(VLOOKUP($B8,'Round Seven'!$C:$J,8,0)),0,IF(AND(LEN($C8)<>0,$D8="Yes"),VLOOKUP($B8,'Round Seven'!$C:$J,8,0),"")) -> 0 | AJ8: =IF(ISERROR(VLOOKUP(AI8,'Round Seven'!$C:$J,7,0)),0,IF(AND(LEN($C8)<>0,$D8="Yes"),VLOOKUP(AI8,'Round Seven'!$C:$J,7,0)+1E-24,0)) -> 0 | AK8: 0 | AL8: =IF(ISERROR(VLOOKUP($B8,'Round Seven'!$C:$J,6,0)),0,IF(AND(LEN($C8)<>0,$D8="Yes"),VLOOKUP($B8,'Round Seven'!$C:$J,6,0),"")) -> 0 | AM8: =IF(ISERROR(VLOOKUP($B8,'Round Seven'!$C:$J,7,0)),0,IF(LEN($C8)<>0,VLOOKUP($B8,'Round Seven'!$C:$J,7,0)+1E-24,0)) -> 0 | AN8: =IF(ISERROR(VLOOKUP($B8,'Round Eight'!$C:$J,8,0)),0,IF(AND(LEN($C8)<>0,$D8="Yes"),VLOOKUP($B8,'Round Eight'!$C:$J,8,0),"")) -> 0 | AO8: =IF(ISERROR(VLOOKUP(AN8,'Round Eight'!$C:$J,7,0)),0,IF(AND(LEN($C8)<>0,$D8="Yes"),VLOOKUP(AN8,'Round Eight'!$C:$J,7,0)+1E-24,0)) -> 0 | AP8: 0 | AQ8: =IF(ISERROR(VLOOKUP($B8,'Round Eight'!$C:$J,6,0)),0,IF(AND(LEN($C8)<>0,$D8="Yes"),VLOOKUP($B8,'Round Eight'!$C:$J,6,0),"")) -> 0 | AR8: =IF(ISERROR(VLOOKUP($B8,'Round Eight'!$C:$J,7,0)),0,IF(LEN($C8)<>0,VLOOKUP($B8,'Round Eight'!$C:$J,7,0)+1E-24,0)) -> 0 | AS8: =IF(ISERROR(VLOOKUP($B8,'Round Nine'!$C:$J,8,0)),0,IF(AND(LEN($C8)<>0,$D8="Yes"),VLOOKUP($B8,'Round Nine'!$C:$J,8,0),"")) -> 0 | AT8: =IF(ISERROR(VLOOKUP(AS8,'Round Nine'!$C:$J,7,0)),0,IF(AND(LEN($C8)<>0,$D8="Yes"),VLOOKUP(AS8,'Round Nine'!$C:$J,7,0)+1E-24,0)) -> 0 | AU8: 0 | AV8: =IF(ISERROR(VLOOKUP($B8,'Round Nine'!$C:$J,6,0)),0,IF(AND(LEN($C8)<>0,$D8="Yes"),VLOOKUP($B8,'Round Nine'!$C:$J,6,0),"")) -> 0 | AW8: =IF(ISERROR(VLOOKUP($B8,'Round Nine'!$C:$J,7,0)),0,IF(LEN($C8)<>0,VLOOKUP($B8,'Round Nine'!$C:$J,7,0)+1E-24,0)) -> 0 | AY8: 0 | AZ8: 0 | BA8: 0 | BB8: =IF(D8<>"Yes",A8*-10,AY8*1000000+AZ8*10000+BA8+(A8/100000))+IF(OR(Accel_Pairing_2!$B$4="no",D8<>"Yes",ISERROR(VLOOKUP(C8,PowerRanking!A:B,2,0))),0,(VLOOKUP(C8,PowerRanking!A:D,4,0)*1000000)+VLOOKUP(C8,PowerRanking!A:D,2,0)/10) -> -7.422440339 | BC8: 48 | BD8: T05 | BE8: 0
A9: 0.3140621351 | B9: T06 | E9: =IF(ISERROR(VLOOKUP($B9,'Round One'!$C:$J,8,0)),0,IF(AND(LEN($C9)<>0,$D9="Yes"),VLOOKUP($B9,'Round One'!$C:$J,8,0),0)) -> 0 | F9: =IF(ISERROR(VLOOKUP(E9,'Round One'!$C:$J,7,0)),0,IF(AND(LEN($C9)<>0,$D9="Yes"),VALUE(VLOOKUP(E9,'Round One'!$C:$J,7,0)+1E-24),0)) -> 0 | G9: 0 | H9: =IF(ISERROR(VLOOKUP($B9,'Round One'!$C:$J,6,0)),0,IF(AND(LEN($C9)<>0,$D9="Yes"),VLOOKUP($B9,'Round One'!$C:$J,6,0),"")) -> 0 | I9: =IF(ISERROR(VLOOKUP($B9,'Round One'!$C:$J,7,0)),0,IF(LEN($C9)<>0,VLOOKUP($B9,'Round One'!$C:$J,7,0)+1E-24,0)) -> 0 | J9: =IF(ISERROR(VLOOKUP($B9,'Round Two'!$C:$J,8,0)),0,IF(AND(LEN($C9)<>0,$D9="Yes"),VLOOKUP($B9,'Round Two'!$C:$J,8,0),"")) -> 0 | K9: =IF(ISERROR(VLOOKUP(J9,'Round Two'!$C:$J,7,0)),0,IF(AND(LEN($C9)<>0,$D9="Yes"),VLOOKUP(J9,'Round Two'!$C:$J,7,0)+1E-24,0)) -> 0 | L9: 0 | M9: =IF(ISERROR(VLOOKUP($B9,'Round Two'!$C:$J,6,0)),0,IF(AND(LEN($C9)<>0,$D9="Yes"),VLOOKUP($B9,'Round Two'!$C:$J,6,0),"")) -> 0 | N9: =IF(ISERROR(VLOOKUP($B9,'Round Two'!$C:$J,7,0)),0,IF(LEN($C9)<>0,VLOOKUP($B9,'Round Two'!$C:$J,7,0)+1E-24,0)) -> 0 | O9: =IF(ISERROR(VLOOKUP($B9,'Round Three'!$C:$J,8,0)),0,IF(AND(LEN($C9)<>0,$D9="Yes"),VLOOKUP($B9,'Round Three'!$C:$J,8,0),"")) -> 0 | P9: =IF(ISERROR(VLOOKUP(O9,'Round Three'!$C:$J,7,0)),0,IF(AND(LEN($C9)<>0,$D9="Yes"),VLOOKUP(O9,'Round Three'!$C:$J,7,0)+1E-24,0)) -> 0 | Q9: 0 | R9: =IF(ISERROR(VLOOKUP($B9,'Round Three'!$C:$J,6,0)),0,IF(AND(LEN($C9)<>0,$D9="Yes"),VLOOKUP($B9,'Round Three'!$C:$J,6,0),"")) -> 0 | S9: =IF(ISERROR(VLOOKUP($B9,'Round Three'!$C:$J,7,0)),0,IF(LEN($C9)<>0,VLOOKUP($B9,'Round Three'!$C:$J,7,0)+1E-24,0)) -> 0 | T9: =IF(ISERROR(VLOOKUP($B9,'Round Four'!$C:$J,8,0)),0,IF(AND(LEN($C9)<>0,$D9="Yes"),VLOOKUP($B9,'Round Four'!$C:$J,8,0),"")) -> 0 | U9: =IF(ISERROR(VLOOKUP(T9,'Round Four'!$C:$J,7,0)),0,IF(AND(LEN($C9)<>0,$D9="Yes"),VLOOKUP(T9,'Round Four'!$C:$J,7,0)+1E-24,0)) -> 0 | V9: 0 | W9: =IF(ISERROR(VLOOKUP($B9,'Round Four'!$C:$J,6,0)),0,IF(AND(LEN($C9)<>0,$D9="Yes"),VLOOKUP($B9,'Round Four'!$C:$J,6,0),"")) -> 0 | X9: =IF(ISERROR(VLOOKUP($B9,'Round Four'!$C:$J,7,0)),0,IF(LEN($C9)<>0,VLOOKUP($B9,'Round Four'!$C:$J,7,0)+1E-24,0)) -> 0 | Y9: =IF(ISERROR(VLOOKUP($B9,'Round Five'!$C:$J,8,0)),0,IF(AND(LEN($C9)<>0,$D9="Yes"),VLOOKUP($B9,'Round Five'!$C:$J,8,0),"")) -> 0 | Z9: =IF(ISERROR(VLOOKUP(Y9,'Round Five'!$C:$J,7,0)),0,IF(AND(LEN($C9)<>0,$D9="Yes"),VLOOKUP(Y9,'Round Five'!$C:$J,7,0)+1E-24,0)) -> 0 | AA9: 0 | AB9: =IF(ISERROR(VLOOKUP($B9,'Round Five'!$C:$J,6,0)),0,IF(AND(LEN($C9)<>0,$D9="Yes"),VLOOKUP($B9,'Round Five'!$C:$J,6,0),"")) -> 0 | AC9: =IF(ISERROR(VLOOKUP($B9,'Round Five'!$C:$J,7,0)),0,IF(LEN($C9)<>0,VLOOKUP($B9,'Round Five'!$C:$J,7,0)+1E-24,0)) -> 0 | AD9: =IF(ISERROR(VLOOKUP($B9,'Round Six'!$C:$J,8,0)),0,IF(AND(LEN($C9)<>0,$D9="Yes"),VLOOKUP($B9,'Round Six'!$C:$J,8,0),"")) -> 0 | AE9: =IF(ISERROR(VLOOKUP(AD9,'Round Six'!$C:$J,7,0)),0,IF(AND(LEN($C9)<>0,$D9="Yes"),VLOOKUP(AD9,'Round Six'!$C:$J,7,0)+1E-24,0)) -> 0 | AF9: 0 | AG9: =IF(ISERROR(VLOOKUP($B9,'Round Six'!$C:$J,6,0)),0,IF(AND(LEN($C9)<>0,$D9="Yes"),VLOOKUP($B9,'Round Six'!$C:$J,6,0),"")) -> 0 | AH9: =IF(ISERROR(VLOOKUP($B9,'Round Six'!$C:$J,7,0)),0,IF(LEN($C9)<>0,VLOOKUP($B9,'Round Six'!$C:$J,7,0)+1E-24,0)) -> 0 | AI9: =IF(ISERROR(VLOOKUP($B9,'Round Seven'!$C:$J,8,0)),0,IF(AND(LEN($C9)<>0,$D9="Yes"),VLOOKUP($B9,'Round Seven'!$C:$J,8,0),"")) -> 0 | AJ9: =IF(ISERROR(VLOOKUP(AI9,'Round Seven'!$C:$J,7,0)),0,IF(AND(LEN($C9)<>0,$D9="Yes"),VLOOKUP(AI9,'Round Seven'!$C:$J,7,0)+1E-24,0)) -> 0 | AK9: 0 | AL9: =IF(ISERROR(VLOOKUP($B9,'Round Seven'!$C:$J,6,0)),0,IF(AND(LEN($C9)<>0,$D9="Yes"),VLOOKUP($B9,'Round Seven'!$C:$J,6,0),"")) -> 0 | AM9: =IF(ISERROR(VLOOKUP($B9,'Round Seven'!$C:$J,7,0)),0,IF(LEN($C9)<>0,VLOOKUP($B9,'Round Seven'!$C:$J,7,0)+1E-24,0)) -> 0 | AN9: =IF(ISERROR(VLOOKUP($B9,'Round Eight'!$C:$J,8,0)),0,IF(AND(LEN($C9)<>0,$D9="Yes"),VLOOKUP($B9,'Round Eight'!$C:$J,8,0),"")) -> 0 | AO9: =IF(ISERROR(VLOOKUP(AN9,'Round Eight'!$C:$J,7,0)),0,IF(AND(LEN($C9)<>0,$D9="Yes"),VLOOKUP(AN9,'Round Eight'!$C:$J,7,0)+1E-24,0)) -> 0 | AP9: 0 | AQ9: =IF(ISERROR(VLOOKUP($B9,'Round Eight'!$C:$J,6,0)),0,IF(AND(LEN($C9)<>0,$D9="Yes"),VLOOKUP($B9,'Round Eight'!$C:$J,6,0),"")) -> 0 | AR9: =IF(ISERROR(VLOOKUP($B9,'Round Eight'!$C:$J,7,0)),0,IF(LEN($C9)<>0,VLOOKUP($B9,'Round Eight'!$C:$J,7,0)+1E-24,0)) -> 0 | AS9: =IF(ISERROR(VLOOKUP($B9,'Round Nine'!$C:$J,8,0)),0,IF(AND(LEN($C9)<>0,$D9="Yes"),VLOOKUP($B9,'Round Nine'!$C:$J,8,0),"")) -> 0 | AT9: =IF(ISERROR(VLOOKUP(AS9,'Round Nine'!$C:$J,7,0)),0,IF(AND(LEN($C9)<>0,$D9="Yes"),VLOOKUP(AS9,'Round Nine'!$C:$J,7,0)+1E-24,0)) -> 0 | AU9: 0 | AV9: =IF(ISERROR(VLOOKUP($B9,'Round Nine'!$C:$J,6,0)),0,IF(AND(LEN($C9)<>0,$D9="Yes"),VLOOKUP($B9,'Round Nine'!$C:$J,6,0),"")) -> 0 | AW9: =IF(ISERROR(VLOOKUP($B9,'Round Nine'!$C:$J,7,0)),0,IF(LEN($C9)<>0,VLOOKUP($B9,'Round Nine'!$C:$J,7,0)+1E-24,0)) -> 0 | AY9: 0 | AZ9: 0 | BA9: 0 | BB9: =IF(D9<>"Yes",A9*-10,AY9*1000000+AZ9*10000+BA9+(A9/100000))+IF(OR(Accel_Pairing_2!$B$4="no",D9<>"Yes",ISERROR(VLOOKUP(C9,PowerRanking!A:B,2,0))),0,(VLOOKUP(C9,PowerRanking!A:D,4,0)*1000000)+VLOOKUP(C9,PowerRanking!A:D,2,0)/10) -> -3.140621351 | BC9: 19 | BD9: T06 | BE9: 0
A10: 0.5274139944 | B10: T07 | E10: =IF(ISERROR(VLOOKUP($B10,'Round One'!$C:$J,8,0)),0,IF(AND(LEN($C10)<>0,$D10="Yes"),VLOOKUP($B10,'Round One'!$C:$J,8,0),0)) -> 0 | F10: =IF(ISERROR(VLOOKUP(E10,'Round One'!$C:$J,7,0)),0,IF(AND(LEN($C10)<>0,$D10="Yes"),VALUE(VLOOKUP(E10,'Round One'!$C:$J,7,0)+1E-24),0)) -> 0 | G10: 0 | H10: =IF(ISERROR(VLOOKUP($B10,'Round One'!$C:$J,6,0)),0,IF(AND(LEN($C10)<>0,$D10="Yes"),VLOOKUP($B10,'Round One'!$C:$J,6,0),"")) -> 0 | I10: =IF(ISERROR(VLOOKUP($B10,'Round One'!$C:$J,7,0)),0,IF(LEN($C10)<>0,VLOOKUP($B10,'Round One'!$C:$J,7,0)+1E-24,0)) -> 0 | J10: =IF(ISERROR(VLOOKUP($B10,'Round Two'!$C:$J,8,0)),0,IF(AND(LEN($C10)<>0,$D10="Yes"),VLOOKUP($B10,'Round Two'!$C:$J,8,0),"")) -> 0 | K10: =IF(ISERROR(VLOOKUP(J10,'Round Two'!$C:$J,7,0)),0,IF(AND(LEN($C10)<>0,$D10="Yes"),VLOOKUP(J10,'Round Two'!$C:$J,7,0)+1E-24,0)) -> 0 | L10: 0 | M10: =IF(ISERROR(VLOOKUP($B10,'Round Two'!$C:$J,6,0)),0,IF(AND(LEN($C10)<>0,$D10="Yes"),VLOOKUP($B10,'Round Two'!$C:$J,6,0),"")) -> 0 | N10: =IF(ISERROR(VLOOKUP($B10,'Round Two'!$C:$J,7,0)),0,IF(LEN($C10)<>0,VLOOKUP($B10,'Round Two'!$C:$J,7,0)+1E-24,0)) -> 0 | O10: =IF(ISERROR(VLOOKUP($B10,'Round Three'!$C:$J,8,0)),0,IF(AND(LEN($C10)<>0,$D10="Yes"),VLOOKUP($B10,'Round Three'!$C:$J,8,0),"")) -> 0 | P10: =IF(ISERROR(VLOOKUP(O10,'Round Three'!$C:$J,7,0)),0,IF(AND(LEN($C10)<>0,$D10="Yes"),VLOOKUP(O10,'Round Three'!$C:$J,7,0)+1E-24,0)) -> 0 | Q10: 0 | R10: =IF(ISERROR(VLOOKUP($B10,'Round Three'!$C:$J,6,0)),0,IF(AND(LEN($C10)<>0,$D10="Yes"),VLOOKUP($B10,'Round Three'!$C:$J,6,0),"")) -> 0 | S10: =IF(ISERROR(VLOOKUP($B10,'Round Three'!$C:$J,7,0)),0,IF(LEN($C10)<>0,VLOOKUP($B10,'Round Three'!$C:$J,7,0)+1E-24,0)) -> 0 | T10: =IF(ISERROR(VLOOKUP($B10,'Round Four'!$C:$J,8,0)),0,IF(AND(LEN($C10)<>0,$D10="Yes"),VLOOKUP($B10,'Round Four'!$C:$J,8,0),"")) -> 0 | U10: =IF(ISERROR(VLOOKUP(T10,'Round Four'!$C:$J,7,0)),0,IF(AND(LEN($C10)<>0,$D10="Yes"),VLOOKUP(T10,'Round Four'!$C:$J,7,0)+1E-24,0)) -> 0 | V10: 0 | W10: =IF(ISERROR(VLOOKUP($B10,'Round Four'!$C:$J,6,0)),0,IF(AND(LEN($C10)<>0,$D10="Yes"),VLOOKUP($B10,'Round Four'!$C:$J,6,0),"")) -> 0 | X10: =IF(ISERROR(VLOOKUP($B10,'Round Four'!$C:$J,7,0)),0,IF(LEN($C10)<>0,VLOOKUP($B10,'Round Four'!$C:$J,7,0)+1E-24,0)) -> 0 | Y10: =IF(ISERROR(VLOOKUP($B10,'Round Five'!$C:$J,8,0)),0,IF(AND(LEN($C10)<>0,$D10="Yes"),VLOOKUP($B10,'Round Five'!$C:$J,8,0),"")) -> 0 | Z10: =IF(ISERROR(VLOOKUP(Y10,'Round Five'!$C:$J,7,0)),0,IF(AND(LEN($C10)<>0,$D10="Yes"),VLOOKUP(Y10,'Round Five'!$C:$J,7,0)+1E-24,0)) -> 0 | AA10: 0 | AB10: =IF(ISERROR(VLOOKUP($B10,'Round Five'!$C:$J,6,0)),0,IF(AND(LEN($C10)<>0,$D10="Yes"),VLOOKUP($B10,'Round Five'!$C:$J,6,0),"")) -> 0 | AC10: =IF(ISERROR(VLOOKUP($B10,'Round Five'!$C:$J,7,0)),0,IF(LEN($C10)<>0,VLOOKUP($B10,'Round Five'!$C:$J,7,0)+1E-24,0)) -> 0 | AD10: =IF(ISERROR(VLOOKUP($B10,'Round Six'!$C:$J,8,0)),0,IF(AND(LEN($C10)<>0,$D10="Yes"),VLOOKUP($B10,'Round Six'!$C:$J,8,0),"")) -> 0 | AE10: =IF(ISERROR(VLOOKUP(AD10,'Round Six'!$C:$J,7,0)),0,IF(AND(LEN($C10)<>0,$D10="Yes"),VLOOKUP(AD10,'Round Six'!$C:$J,7,0)+1E-24,0)) -> 0 | AF10: 0 | AG10: =IF(ISERROR(VLOOKUP($B10,'Round Six'!$C:$J,6,0)),0,IF(AND(LEN($C10)<>0,$D10="Yes"),VLOOKUP($B10,'Round Six'!$C:$J,6,0),"")) -> 0 | AH10: =IF(ISERROR(VLOOKUP($B10,'Round Six'!$C:$J,7,0)),0,IF(LEN($C10)<>0,VLOOKUP($B10,'Round Six'!$C:$J,7,0)+1E-24,0)) -> 0 | AI10: =IF(ISERROR(VLOOKUP($B10,'Round Seven'!$C:$J,8,0)),0,IF(AND(LEN($C10)<>0,$D10="Yes"),VLOOKUP($B10,'Round Seven'!$C:$J,8,0),"")) -> 0 | AJ10: =IF(ISERROR(VLOOKUP(AI10,'Round Seven'!$C:$J,7,0)),0,IF(AND(LEN($C10)<>0,$D10="Yes"),VLOOKUP(AI10,'Round Seven'!$C:$J,7,0)+1E-24,0)) -> 0 | AK10: 0 | AL10: =IF(ISERROR(VLOOKUP($B10,'Round Seven'!$C:$J,6,0)),0,IF(AND(LEN($C10)<>0,$D10="Yes"),VLOOKUP($B10,'Round Seven'!$C:$J,6,0),"")) -> 0 | AM10: =IF(ISERROR(VLOOKUP($B10,'Round Seven'!$C:$J,7,0)),0,IF(LEN($C10)<>0,VLOOKUP($B10,'Round Seven'!$C:$J,7,0)+1E-24,0)) -> 0 | AN10: =IF(ISERROR(VLOOKUP($B10,'Round Eight'!$C:$J,8,0)),0,IF(AND(LEN($C10)<>0,$D10="Yes"),VLOOKUP($B10,'Round Eight'!$C:$J,8,0),"")) -> 0 | AO10: =IF(ISERROR(VLOOKUP(AN10,'Round Eight'!$C:$J,7,0)),0,IF(AND(LEN($C10)<>0,$D10="Yes"),VLOOKUP(AN10,'Round Eight'!$C:$J,7,0)+1E-24,0)) -> 0 | AP10: 0 | AQ10: =IF(ISERROR(VLOOKUP($B10,'Round Eight'!$C:$J,6,0)),0,IF(AND(LEN($C10)<>0,$D10="Yes"),VLOOKUP($B10,'Round Eight'!$C:$J,6,0),"")) -> 0 | AR10: =IF(ISERROR(VLOOKUP($B10,'Round Eight'!$C:$J,7,0)),0,IF(LEN($C10)<>0,VLOOKUP($B10,'Round Eight'!$C:$J,7,0)+1E-24,0)) -> 0 | AS10: =IF(ISERROR(VLOOKUP($B10,'Round Nine'!$C:$J,8,0)),0,IF(AND(LEN($C10)<>0,$D10="Yes"),VLOOKUP($B10,'Round Nine'!$C:$J,8,0),"")) -> 0 | AT10: =IF(ISERROR(VLOOKUP(AS10,'Round Nine'!$C:$J,7,0)),0,IF(AND(LEN($C10)<>0,$D10="Yes"),VLOOKUP(AS10,'Round Nine'!$C:$J,7,0)+1E-24,0)) -> 0 | AU10: 0 | AV10: =IF(ISERROR(VLOOKUP($B10,'Round Nine'!$C:$J,6,0)),0,IF(AND(LEN($C10)<>0,$D10="Yes"),VLOOKUP($B10,'Round Nine'!$C:$J,6,0),"")) -> 0 | AW10: =IF(ISERROR(VLOOKUP($B10,'Round Nine'!$C:$J,7,0)),0,IF(LEN($C10)<>0,VLOOKUP($B10,'Round Nine'!$C:$J,7,0)+1E-24,0)) -> 0 | AY10: 0 | AZ10: 0 | BA10: 0 | BB10: =IF(D10<>"Yes",A10*-10,AY10*1000000+AZ10*10000+BA10+(A10/100000))+IF(OR(Accel_Pairing_2!$B$4="no",D10<>"Yes",ISERROR(VLOOKUP(C10,PowerRanking!A:B,2,0))),0,(VLOOKUP(C10,PowerRanking!A:D,4,0)*1000000)+VLOOKUP(C10,PowerRanking!A:D,2,0)/10) -> -5.274139944 | BC10: 36 | BD10: T07 | BE10: 0
A11: 0.9451487669 | B11: T08 | E11: =IF(ISERROR(VLOOKUP($B11,'Round One'!$C:$J,8,0)),0,IF(AND(LEN($C11)<>0,$D11="Yes"),VLOOKUP($B11,'Round One'!$C:$J,8,0),0)) -> 0 | F11: =IF(ISERROR(VLOOKUP(E11,'Round One'!$C:$J,7,0)),0,IF(AND(LEN($C11)<>0,$D11="Yes"),VALUE(VLOOKUP(E11,'Round One'!$C:$J,7,0)+1E-24),0)) -> 0 | G11: 0 | H11: =IF(ISERROR(VLOOKUP($B11,'Round One'!$C:$J,6,0)),0,IF(AND(LEN($C11)<>0,$D11="Yes"),VLOOKUP($B11,'Round One'!$C:$J,6,0),"")) -> 0 | I11: =IF(ISERROR(VLOOKUP($B11,'Round One'!$C:$J,7,0)),0,IF(LEN($C11)<>0,VLOOKUP($B11,'Round One'!$C:$J,7,0)+1E-24,0)) -> 0 | J11: =IF(ISERROR(VLOOKUP($B11,'Round Two'!$C:$J,8,0)),0,IF(AND(LEN($C11)<>0,$D11="Yes"),VLOOKUP($B11,'Round Two'!$C:$J,8,0),"")) -> 0 | K11: =IF(ISERROR(VLOOKUP(J11,'Round Two'!$C:$J,7,0)),0,IF(AND(LEN($C11)<>0,$D11="Yes"),VLOOKUP(J11,'Round Two'!$C:$J,7,0)+1E-24,0)) -> 0 | L11: 0 | M11: =IF(ISERROR(VLOOKUP($B11,'Round Two'!$C:$J,6,0)),0,IF(AND(LEN($C11)<>0,$D11="Yes"),VLOOKUP($B11,'Round Two'!$C:$J,6,0),"")) -> 0 | N11: =IF(ISERROR(VLOOKUP($B11,'Round Two'!$C:$J,7,0)),0,IF(LEN($C11)<>0,VLOOKUP($B11,'Round Two'!$C:$J,7,0)+1E-24,0)) -> 0 | O11: =IF(ISERROR(VLOOKUP($B11,'Round Three'!$C:$J,8,0)),0,IF(AND(LEN($C11)<>0,$D11="Yes"),VLOOKUP($B11,'Round Three'!$C:$J,8,0),"")) -> 0 | P11: =IF(ISERROR(VLOOKUP(O11,'Round Three'!$C:$J,7,0)),0,IF(AND(LEN($C11)<>0,$D11="Yes"),VLOOKUP(O11,'Round Three'!$C:$J,7,0)+1E-24,0)) -> 0 | Q11: 0 | R11: =IF(ISERROR(VLOOKUP($B11,'Round Three'!$C:$J,6,0)),0,IF(AND(LEN($C11)<>0,$D11="Yes"),VLOOKUP($B11,'Round Three'!$C:$J,6,0),"")) -> 0 | S11: =IF(ISERROR(VLOOKUP($B11,'Round Three'!$C:$J,7,0)),0,IF(LEN($C11)<>0,VLOOKUP($B11,'Round Three'!$C:$J,7,0)+1E-24,0)) -> 0 | T11: =IF(ISERROR(VLOOKUP($B11,'Round Four'!$C:$J,8,0)),0,IF(AND(LEN($C11)<>0,$D11="Yes"),VLOOKUP($B11,'Round Four'!$C:$J,8,0),"")) -> 0 | U11: =IF(ISERROR(VLOOKUP(T11,'Round Four'!$C:$J,7,0)),0,IF(AND(LEN($C11)<>0,$D11="Yes"),VLOOKUP(T11,'Round Four'!$C:$J,7,0)+1E-24,0)) -> 0 | V11: 0 | W11: =IF(ISERROR(VLOOKUP($B11,'Round Four'!$C:$J,6,0)),0,IF(AND(LEN($C11)<>0,$D11="Yes"),VLOOKUP($B11,'Round Four'!$C:$J,6,0),"")) -> 0 | X11: =IF(ISERROR(VLOOKUP($B11,'Round Four'!$C:$J,7,0)),0,IF(LEN($C11)<>0,VLOOKUP($B11,'Round Four'!$C:$J,7,0)+1E-24,0)) -> 0 | Y11: =IF(ISERROR(VLOOKUP($B11,'Round Five'!$C:$J,8,0)),0,IF(AND(LEN($C11)<>0,$D11="Yes"),VLOOKUP($B11,'Round Five'!$C:$J,8,0),"")) -> 0 | Z11: =IF(ISERROR(VLOOKUP(Y11,'Round Five'!$C:$J,7,0)),0,IF(AND(LEN($C11)<>0,$D11="Yes"),VLOOKUP(Y11,'Round Five'!$C:$J,7,0)+1E-24,0)) -> 0 | AA11: 0 | AB11: =IF(ISERROR(VLOOKUP($B11,'Round Five'!$C:$J,6,0)),0,IF(AND(LEN($C11)<>0,$D11="Yes"),VLOOKUP($B11,'Round Five'!$C:$J,6,0),"")) -> 0 | AC11: =IF(ISERROR(VLOOKUP($B11,'Round Five'!$C:$J,7,0)),0,IF(LEN($C11)<>0,VLOOKUP($B11,'Round Five'!$C:$J,7,0)+1E-24,0)) -> 0 | AD11: =IF(ISERROR(VLOOKUP($B11,'Round Six'!$C:$J,8,0)),0,IF(AND(LEN($C11)<>0,$D11="Yes"),VLOOKUP($B11,'Round Six'!$C:$J,8,0),"")) -> 0 | AE11: =IF(ISERROR(VLOOKUP(AD11,'Round Six'!$C:$J,7,0)),0,IF(AND(LEN($C11)<>0,$D11="Yes"),VLOOKUP(AD11,'Round Six'!$C:$J,7,0)+1E-24,0)) -> 0 | AF11: 0 | AG11: =IF(ISERROR(VLOOKUP($B11,'Round Six'!$C:$J,6,0)),0,IF(AND(LEN($C11)<>0,$D11="Yes"),VLOOKUP($B11,'Round Six'!$C:$J,6,0),"")) -> 0 | AH11: =IF(ISERROR(VLOOKUP($B11,'Round Six'!$C:$J,7,0)),0,IF(LEN($C11)<>0,VLOOKUP($B11,'Round Six'!$C:$J,7,0)+1E-24,0)) -> 0 | AI11: =IF(ISERROR(VLOOKUP($B11,'Round Seven'!$C:$J,8,0)),0,IF(AND(LEN($C11)<>0,$D11="Yes"),VLOOKUP($B11,'Round Seven'!$C:$J,8,0),"")) -> 0 | AJ11: =IF(ISERROR(VLOOKUP(AI11,'Round Seven'!$C:$J,7,0)),0,IF(AND(LEN($C11)<>0,$D11="Yes"),VLOOKUP(AI11,'Round Seven'!$C:$J,7,0)+1E-24,0)) -> 0 | AK11: 0 | AL11: =IF(ISERROR(VLOOKUP($B11,'Round Seven'!$C:$J,6,0)),0,IF(AND(LEN($C11)<>0,$D11="Yes"),VLOOKUP($B11,'Round Seven'!$C:$J,6,0),"")) -> 0 | AM11: =IF(ISERROR(VLOOKUP($B11,'Round Seven'!$C:$J,7,0)),0,IF(LEN($C11)<>0,VLOOKUP($B11,'Round Seven'!$C:$J,7,0)+1E-24,0)) -> 0 | AN11: =IF(ISERROR(VLOOKUP($B11,'Round Eight'!$C:$J,8,0)),0,IF(AND(LEN($C11)<>0,$D11="Yes"),VLOOKUP($B11,'Round Eight'!$C:$J,8,0),"")) -> 0 | AO11: =IF(ISERROR(VLOOKUP(AN11,'Round Eight'!$C:$J,7,0)),0,IF(AND(LEN($C11)<>0,$D11="Yes"),VLOOKUP(AN11,'Round Eight'!$C:$J,7,0)+1E-24,0)) -> 0 | AP11: 0 | AQ11: =IF(ISERROR(VLOOKUP($B11,'Round Eight'!$C:$J,6,0)),0,IF(AND(LEN($C11)<>0,$D11="Yes"),VLOOKUP($B11,'Round Eight'!$C:$J,6,0),"")) -> 0 | AR11: =IF(ISERROR(VLOOKUP($B11,'Round Eight'!$C:$J,7,0)),0,IF(LEN($C11)<>0,VLOOKUP($B11,'Round Eight'!$C:$J,7,0)+1E-24,0)) -> 0 | AS11: =IF(ISERROR(VLOOKUP($B11,'Round Nine'!$C:$J,8,0)),0,IF(AND(LEN($C11)<>0,$D11="Yes"),VLOOKUP($B11,'Round Nine'!$C:$J,8,0),"")) -> 0 | AT11: =IF(ISERROR(VLOOKUP(AS11,'Round Nine'!$C:$J,7,0)),0,IF(AND(LEN($C11)<>0,$D11="Yes"),VLOOKUP(AS11,'Round Nine'!$C:$J,7,0)+1E-24,0)) -> 0 | AU11: 0 | AV11: =IF(ISERROR(VLOOKUP($B11,'Round Nine'!$C:$J,6,0)),0,IF(AND(LEN($C11)<>0,$D11="Yes"),VLOOKUP($B11,'Round Nine'!$C:$J,6,0),"")) -> 0 | AW11: =IF(ISERROR(VLOOKUP($B11,'Round Nine'!$C:$J,7,0)),0,IF(LEN($C11)<>0,VLOOKUP($B11,'Round Nine'!$C:$J,7,0)+1E-24,0)) -> 0 | AY11: 0 | AZ11: 0 | BA11: 0 | BB11: =IF(D11<>"Yes",A11*-10,AY11*1000000+AZ11*10000+BA11+(A11/100000))+IF(OR(Accel_Pairing_2!$B$4="no",D11<>"Yes",ISERROR(VLOOKUP(C11,PowerRanking!A:B,2,0))),0,(VLOOKUP(C11,PowerRanking!A:D,4,0)*1000000)+VLOOKUP(C11,PowerRanking!A:D,2,0)/10) -> -9.451487669 | BC11: 60 | BD11: T08 | BE11: 0
A12: 0.1289951587 | B12: T09 | E12: =IF(ISERROR(VLOOKUP($B12,'Round One'!$C:$J,8,0)),0,IF(AND(LEN($C12)<>0,$D12="Yes"),VLOOKUP($B12,'Round One'!$C:$J,8,0),0)) -> 0 | F12: =IF(ISERROR(VLOOKUP(E12,'Round One'!$C:$J,7,0)),0,IF(AND(LEN($C12)<>0,$D12="Yes"),VALUE(VLOOKUP(E12,'Round One'!$C:$J,7,0)+1E-24),0)) -> 0 | G12: 0 | H12: =IF(ISERROR(VLOOKUP($B12,'Round One'!$C:$J,6,0)),0,IF(AND(LEN($C12)<>0,$D12="Yes"),VLOOKUP($B12,'Round One'!$C:$J,6,0),"")) -> 0 | I12: =IF(ISERROR(VLOOKUP($B12,'Round One'!$C:$J,7,0)),0,IF(LEN($C12)<>0,VLOOKUP($B12,'Round One'!$C:$J,7,0)+1E-24,0)) -> 0 | J12: =IF(ISERROR(VLOOKUP($B12,'Round Two'!$C:$J,8,0)),0,IF(AND(LEN($C12)<>0,$D12="Yes"),VLOOKUP($B12,'Round Two'!$C:$J,8,0),"")) -> 0 | K12: =IF(ISERROR(VLOOKUP(J12,'Round Two'!$C:$J,7,0)),0,IF(AND(LEN($C12)<>0,$D12="Yes"),VLOOKUP(J12,'Round Two'!$C:$J,7,0)+1E-24,0)) -> 0 | L12: 0 | M12: =IF(ISERROR(VLOOKUP($B12,'Round Two'!$C:$J,6,0)),0,IF(AND(LEN($C12)<>0,$D12="Yes"),VLOOKUP($B12,'Round Two'!$C:$J,6,0),"")) -> 0 | N12: =IF(ISERROR(VLOOKUP($B12,'Round Two'!$C:$J,7,0)),0,IF(LEN($C12)<>0,VLOOKUP($B12,'Round Two'!$C:$J,7,0)+1E-24,0)) -> 0 | O12: =IF(ISERROR(VLOOKUP($B12,'Round Three'!$C:$J,8,0)),0,IF(AND(LEN($C12)<>0,$D12="Yes"),VLOOKUP($B12,'Round Three'!$C:$J,8,0),"")) -> 0 | P12: =IF(ISERROR(VLOOKUP(O12,'Round Three'!$C:$J,7,0)),0,IF(AND(LEN($C12)<>0,$D12="Yes"),VLOOKUP(O12,'Round Three'!$C:$J,7,0)+1E-24,0)) -> 0 | Q12: 0 | R12: =IF(ISERROR(VLOOKUP($B12,'Round Three'!$C:$J,6,0)),0,IF(AND(LEN($C12)<>0,$D12="Yes"),VLOOKUP($B12,'Round Three'!$C:$J,6,0),"")) -> 0 | S12: =IF(ISERROR(VLOOKUP($B12,'Round Three'!$C:$J,7,0)),0,IF(LEN($C12)<>0,VLOOKUP($B12,'Round Three'!$C:$J,7,0)+1E-24,0)) -> 0 | T12: =IF(ISERROR(VLOOKUP($B12,'Round Four'!$C:$J,8,0)),0,IF(AND(LEN($C12)<>0,$D12="Yes"),VLOOKUP($B12,'Round Four'!$C:$J,8,0),"")) -> 0 | U12: =IF(ISERROR(VLOOKUP(T12,'Round Four'!$C:$J,7,0)),0,IF(AND(LEN($C12)<>0,$D12="Yes"),VLOOKUP(T12,'Round Four'!$C:$J,7,0)+1E-24,0)) -> 0 | V12: 0 | W12: =IF(ISERROR(VLOOKUP($B12,'Round Four'!$C:$J,6,0)),0,IF(AND(LEN($C12)<>0,$D12="Yes"),VLOOKUP($B12,'Round Four'!$C:$J,6,0),"")) -> 0 | X12: =IF(ISERROR(VLOOKUP($B12,'Round Four'!$C:$J,7,0)),0,IF(LEN($C12)<>0,VLOOKUP($B12,'Round Four'!$C:$J,7,0)+1E-24,0)) -> 0 | Y12: =IF(ISERROR(VLOOKUP($B12,'Round Five'!$C:$J,8,0)),0,IF(AND(LEN($C12)<>0,$D12="Yes"),VLOOKUP($B12,'Round Five'!$C:$J,8,0),"")) -> 0 | Z12: =IF(ISERROR(VLOOKUP(Y12,'Round Five'!$C:$J,7,0)),0,IF(AND(LEN($C12)<>0,$D12="Yes"),VLOOKUP(Y12,'Round Five'!$C:$J,7,0)+1E-24,0)) -> 0 | AA12: 0 | AB12: =IF(ISERROR(VLOOKUP($B12,'Round Five'!$C:$J,6,0)),0,IF(AND(LEN($C12)<>0,$D12="Yes"),VLOOKUP($B12,'Round Five'!$C:$J,6,0),"")) -> 0 | AC12: =IF(ISERROR(VLOOKUP($B12,'Round Five'!$C:$J,7,0)),0,IF(LEN($C12)<>0,VLOOKUP($B12,'Round Five'!$C:$J,7,0)+1E-24,0)) -> 0 | AD12: =IF(ISERROR(VLOOKUP($B12,'Round Six'!$C:$J,8,0)),0,IF(AND(LEN($C12)<>0,$D12="Yes"),VLOOKUP($B12,'Round Six'!$C:$J,8,0),"")) -> 0 | AE12: =IF(ISERROR(VLOOKUP(AD12,'Round Six'!$C:$J,7,0)),0,IF(AND(LEN($C12)<>0,$D12="Yes"),VLOOKUP(AD12,'Round Six'!$C:$J,7,0)+1E-24,0)) -> 0 | AF12: 0 | AG12: =IF(ISERROR(VLOOKUP($B12,'Round Six'!$C:$J,6,0)),0,IF(AND(LEN($C12)<>0,$D12="Yes"),VLOOKUP($B12,'Round Six'!$C:$J,6,0),"")) -> 0 | AH12: =IF(ISERROR(VLOOKUP($B12,'Round Six'!$C:$J,7,0)),0,IF(LEN($C12)<>0,VLOOKUP($B12,'Round Six'!$C:$J,7,0)+1E-24,0)) -> 0 | AI12: =IF(ISERROR(VLOOKUP($B12,'Round Seven'!$C:$J,8,0)),0,IF(AND(LEN($C12)<>0,$D12="Yes"),VLOOKUP($B12,'Round Seven'!$C:$J,8,0),"")) -> 0 | AJ12: =IF(ISERROR(VLOOKUP(AI12,'Round Seven'!$C:$J,7,0)),0,IF(AND(LEN($C12)<>0,$D12="Yes"),VLOOKUP(AI12,'Round Seven'!$C:$J,7,0)+1E-24,0)) -> 0 | AK12: 0 | AL12: =IF(ISERROR(VLOOKUP($B12,'Round Seven'!$C:$J,6,0)),0,IF(AND(LEN($C12)<>0,$D12="Yes"),VLOOKUP($B12,'Round Seven'!$C:$J,6,0),"")) -> 0 | AM12: =IF(ISERROR(VLOOKUP($B12,'Round Seven'!$C:$J,7,0)),0,IF(LEN($C12)<>0,VLOOKUP($B12,'Round Seven'!$C:$J,7,0)+1E-24,0)) -> 0 | AN12: =IF(ISERROR(VLOOKUP($B12,'Round Eight'!$C:$J,8,0)),0,IF(AND(LEN($C12)<>0,$D12="Yes"),VLOOKUP($B12,'Round Eight'!$C:$J,8,0),"")) -> 0 | AO12: =IF(ISERROR(VLOOKUP(AN12,'Round Eight'!$C:$J,7,0)),0,IF(AND(LEN($C12)<>0,$D12="Yes"),VLOOKUP(AN12,'Round Eight'!$C:$J,7,0)+1E-24,0)) -> 0 | AP12: 0 | AQ12: =IF(ISERROR(VLOOKUP($B12,'Round Eight'!$C:$J,6,0)),0,IF(AND(LEN($C12)<>0,$D12="Yes"),VLOOKUP($B12,'Round Eight'!$C:$J,6,0),"")) -> 0 | AR12: =IF(ISERROR(VLOOKUP($B12,'Round Eight'!$C:$J,7,0)),0,IF(LEN($C12)<>0,VLOOKUP($B12,'Round Eight'!$C:$J,7,0)+1E-24,0)) -> 0 | AS12: =IF(ISERROR(VLOOKUP($B12,'Round Nine'!$C:$J,8,0)),0,IF(AND(LEN($C12)<>0,$D12="Yes"),VLOOKUP($B12,'Round Nine'!$C:$J,8,0),"")) -> 0 | AT12: =IF(ISERROR(VLOOKUP(AS12,'Round Nine'!$C:$J,7,0)),0,IF(AND(LEN($C12)<>0,$D12="Yes"),VLOOKUP(AS12,'Round Nine'!$C:$J,7,0)+1E-24,0)) -> 0 | AU12: 0 | AV12: =IF(ISERROR(VLOOKUP($B12,'Round Nine'!$C:$J,6,0)),0,IF(AND(LEN($C12)<>0,$D12="Yes"),VLOOKUP($B12,'Round Nine'!$C:$J,6,0),"")) -> 0 | AW12: =IF(ISERROR(VLOOKUP($B12,'Round Nine'!$C:$J,7,0)),0,IF(LEN($C12)<>0,VLOOKUP($B12,'Round Nine'!$C:$J,7,0)+1E-24,0)) -> 0 | AY12: 0 | AZ12: 0 | BA12: 0 | BB12: =IF(D12<>"Yes",A12*-10,AY12*1000000+AZ12*10000+BA12+(A12/100000))+IF(OR(Accel_Pairing_2!$B$4="no",D12<>"Yes",ISERROR(VLOOKUP(C12,PowerRanking!A:B,2,0))),0,(VLOOKUP(C12,PowerRanking!A:D,4,0)*1000000)+VLOOKUP(C12,PowerRanking!A:D,2,0)/10) -> -1.289951587 | BC12: 8 | BD12: T09 | BE12: 0
A13: 0.2383402495 | B13: T10 | E13: =IF(ISERROR(VLOOKUP($B13,'Round One'!$C:$J,8,0)),0,IF(AND(LEN($C13)<>0,$D13="Yes"),VLOOKUP($B13,'Round One'!$C:$J,8,0),0)) -> 0 | F13: =IF(ISERROR(VLOOKUP(E13,'Round One'!$C:$J,7,0)),0,IF(AND(LEN($C13)<>0,$D13="Yes"),VALUE(VLOOKUP(E13,'Round One'!$C:$J,7,0)+1E-24),0)) -> 0 | G13: 0 | H13: =IF(ISERROR(VLOOKUP($B13,'Round One'!$C:$J,6,0)),0,IF(AND(LEN($C13)<>0,$D13="Yes"),VLOOKUP($B13,'Round One'!$C:$J,6,0),"")) -> 0 | I13: =IF(ISERROR(VLOOKUP($B13,'Round One'!$C:$J,7,0)),0,IF(LEN($C13)<>0,VLOOKUP($B13,'Round One'!$C:$J,7,0)+1E-24,0)) -> 0 | J13: =IF(ISERROR(VLOOKUP($B13,'Round Two'!$C:$J,8,0)),0,IF(AND(LEN($C13)<>0,$D13="Yes"),VLOOKUP($B13,'Round Two'!$C:$J,8,0),"")) -> 0 | K13: =IF(ISERROR(VLOOKUP(J13,'Round Two'!$C:$J,7,0)),0,IF(AND(LEN($C13)<>0,$D13="Yes"),VLOOKUP(J13,'Round Two'!$C:$J,7,0)+1E-24,0)) -> 0 | L13: 0 | M13: =IF(ISERROR(VLOOKUP($B13,'Round Two'!$C:$J,6,0)),0,IF(AND(LEN($C13)<>0,$D13="Yes"),VLOOKUP($B13,'Round Two'!$C:$J,6,0),"")) -> 0 | N13: =IF(ISERROR(VLOOKUP($B13,'Round Two'!$C:$J,7,0)),0,IF(LEN($C13)<>0,VLOOKUP($B13,'Round Two'!$C:$J,7,0)+1E-24,0)) -> 0 | O13: =IF(ISERROR(VLOOKUP($B13,'Round Three'!$C:$J,8,0)),0,IF(AND(LEN($C13)<>0,$D13="Yes"),VLOOKUP($B13,'Round Three'!$C:$J,8,0),"")) -> 0 | P13: =IF(ISERROR(VLOOKUP(O13,'Round Three'!$C:$J,7,0)),0,IF(AND(LEN($C13)<>0,$D13="Yes"),VLOOKUP(O13,'Round Three'!$C:$J,7,0)+1E-24,0)) -> 0 | Q13: 0 | R13: =IF(ISERROR(VLOOKUP($B13,'Round Three'!$C:$J,6,0)),0,IF(AND(LEN($C13)<>0,$D13="Yes"),VLOOKUP($B13,'Round Three'!$C:$J,6,0),"")) -> 0 | S13: =IF(ISERROR(VLOOKUP($B13,'Round Three'!$C:$J,7,0)),0,IF(LEN($C13)<>0,VLOOKUP($B13,'Round Three'!$C:$J,7,0)+1E-24,0)) -> 0 | T13: =IF(ISERROR(VLOOKUP($B13,'Round Four'!$C:$J,8,0)),0,IF(AND(LEN($C13)<>0,$D13="Yes"),VLOOKUP($B13,'Round Four'!$C:$J,8,0),"")) -> 0 | U13: =IF(ISERROR(VLOOKUP(T13,'Round Four'!$C:$J,7,0)),0,IF(AND(LEN($C13)<>0,$D13="Yes"),VLOOKUP(T13,'Round Four'!$C:$J,7,0)+1E-24,0)) -> 0 | V13: 0 | W13: =IF(ISERROR(VLOOKUP($B13,'Round Four'!$C:$J,6,0)),0,IF(AND(LEN($C13)<>0,$D13="Yes"),VLOOKUP($B13,'Round Four'!$C:$J,6,0),"")) -> 0 | X13: =IF(ISERROR(VLOOKUP($B13,'Round Four'!$C:$J,7,0)),0,IF(LEN($C13)<>0,VLOOKUP($B13,'Round Four'!$C:$J,7,0)+1E-24,0)) -> 0 | Y13: =IF(ISERROR(VLOOKUP($B13,'Round Five'!$C:$J,8,0)),0,IF(AND(LEN($C13)<>0,$D13="Yes"),VLOOKUP($B13,'Round Five'!$C:$J,8,0),"")) -> 0 | Z13: =IF(ISERROR(VLOOKUP(Y13,'Round Five'!$C:$J,7,0)),0,IF(AND(LEN($C13)<>0,$D13="Yes"),VLOOKUP(Y13,'Round Five'!$C:$J,7,0)+1E-24,0)) -> 0 | AA13: 0 | AB13: =IF(ISERROR(VLOOKUP($B13,'Round Five'!$C:$J,6,0)),0,IF(AND(LEN($C13)<>0,$D13="Yes"),VLOOKUP($B13,'Round Five'!$C:$J,6,0),"")) -> 0 | AC13: =IF(ISERROR(VLOOKUP($B13,'Round Five'!$C:$J,7,0)),0,IF(LEN($C13)<>0,VLOOKUP($B13,'Round Five'!$C:$J,7,0)+1E-24,0)) -> 0 | AD13: =IF(ISERROR(VLOOKUP($B13,'Round Six'!$C:$J,8,0)),0,IF(AND(LEN($C13)<>0,$D13="Yes"),VLOOKUP($B13,'Round Six'!$C:$J,8,0),"")) -> 0 | AE13: =IF(ISERROR(VLOOKUP(AD13,'Round Six'!$C:$J,7,0)),0,IF(AND(LEN($C13)<>0,$D13="Yes"),VLOOKUP(AD13,'Round Six'!$C:$J,7,0)+1E-24,0)) -> 0 | AF13: 0 | AG13: =IF(ISERROR(VLOOKUP($B13,'Round Six'!$C:$J,6,0)),0,IF(AND(LEN($C13)<>0,$D13="Yes"),VLOOKUP($B13,'Round Six'!$C:$J,6,0),"")) -> 0 | AH13: =IF(ISERROR(VLOOKUP($B13,'Round Six'!$C:$J,7,0)),0,IF(LEN($C13)<>0,VLOOKUP($B13,'Round Six'!$C:$J,7,0)+1E-24,0)) -> 0 | AI13: =IF(ISERROR(VLOOKUP($B13,'Round Seven'!$C:$J,8,0)),0,IF(AND(LEN($C13)<>0,$D13="Yes"),VLOOKUP($B13,'Round Seven'!$C:$J,8,0),"")) -> 0 | AJ13: =IF(ISERROR(VLOOKUP(AI13,'Round Seven'!$C:$J,7,0)),0,IF(AND(LEN($C13)<>0,$D13="Yes"),VLOOKUP(AI13,'Round Seven'!$C:$J,7,0)+1E-24,0)) -> 0 | AK13: 0 | AL13: =IF(ISERROR(VLOOKUP($B13,'Round Seven'!$C:$J,6,0)),0,IF(AND(LEN($C13)<>0,$D13="Yes"),VLOOKUP($B13,'Round Seven'!$C:$J,6,0),"")) -> 0 | AM13: =IF(ISERROR(VLOOKUP($B13,'Round Seven'!$C:$J,7,0)),0,IF(LEN($C13)<>0,VLOOKUP($B13,'Round Seven'!$C:$J,7,0)+1E-24,0)) -> 0 | AN13: =IF(ISERROR(VLOOKUP($B13,'Round Eight'!$C:$J,8,0)),0,IF(AND(LEN($C13)<>0,$D13="Yes"),VLOOKUP($B13,'Round Eight'!$C:$J,8,0),"")) -> 0 | AO13: =IF(ISERROR(VLOOKUP(AN13,'Round Eight'!$C:$J,7,0)),0,IF(AND(LEN($C13)<>0,$D13="Yes"),VLOOKUP(AN13,'Round Eight'!$C:$J,7,0)+1E-24,0)) -> 0 | AP13: 0 | AQ13: =IF(ISERROR(VLOOKUP($B13,'Round Eight'!$C:$J,6,0)),0,IF(AND(LEN($C13)<>0,$D13="Yes"),VLOOKUP($B13,'Round Eight'!$C:$J,6,0),"")) -> 0 | AR13: =IF(ISERROR(VLOOKUP($B13,'Round Eight'!$C:$J,7,0)),0,IF(LEN($C13)<>0,VLOOKUP($B13,'Round Eight'!$C:$J,7,0)+1E-24,0)) -> 0 | AS13: =IF(ISERROR(VLOOKUP($B13,'Round Nine'!$C:$J,8,0)),0,IF(AND(LEN($C13)<>0,$D13="Yes"),VLOOKUP($B13,'Round Nine'!$C:$J,8,0),"")) -> 0 | AT13: =IF(ISERROR(VLOOKUP(AS13,'Round Nine'!$C:$J,7,0)),0,IF(AND(LEN($C13)<>0,$D13="Yes"),VLOOKUP(AS13,'Round Nine'!$C:$J,7,0)+1E-24,0)) -> 0 | AU13: 0 | AV13: =IF(ISERROR(VLOOKUP($B13,'Round Nine'!$C:$J,6,0)),0,IF(AND(LEN($C13)<>0,$D13="Yes"),VLOOKUP($B13,'Round Nine'!$C:$J,6,0),"")) -> 0 | AW13: =IF(ISERROR(VLOOKUP($B13,'Round Nine'!$C:$J,7,0)),0,IF(LEN($C13)<>0,VLOOKUP($B13,'Round Nine'!$C:$J,7,0)+1E-24,0)) -> 0 | AY13: 0 | AZ13: 0 | BA13: 0 | BB13: =IF(D13<>"Yes",A13*-10,AY13*1000000+AZ13*10000+BA13+(A13/100000))+IF(OR(Accel_Pairing_2!$B$4="no",D13<>"Yes",ISERROR(VLOOKUP(C13,PowerRanking!A:B,2,0))),0,(VLOOKUP(C13,PowerRanking!A:D,4,0)*1000000)+VLOOKUP(C13,PowerRanking!A:D,2,0)/10) -> -2.383402495 | BC13: 14 | BD13: T10 | BE13: 0
A14: 0.0639705009 | B14: T11 | E14: =IF(ISERROR(VLOOKUP($B14,'Round One'!$C:$J,8,0)),0,IF(AND(LEN($C14)<>0,$D14="Yes"),VLOOKUP($B14,'Round One'!$C:$J,8,0),0)) -> 0 | F14: =IF(ISERROR(VLOOKUP(E14,'Round One'!$C:$J,7,0)),0,IF(AND(LEN($C14)<>0,$D14="Yes"),VALUE(VLOOKUP(E14,'Round One'!$C:$J,7,0)+1E-24),0)) -> 0 | G14: 0 | H14: =IF(ISERROR(VLOOKUP($B14,'Round One'!$C:$J,6,0)),0,IF(AND(LEN($C14)<>0,$D14="Yes"),VLOOKUP($B14,'Round One'!$C:$J,6,0),"")) -> 0 | I14: =IF(ISERROR(VLOOKUP($B14,'Round One'!$C:$J,7,0)),0,IF(LEN($C14)<>0,VLOOKUP($B14,'Round One'!$C:$J,7,0)+1E-24,0)) -> 0 | J14: =IF(ISERROR(VLOOKUP($B14,'Round Two'!$C:$J,8,0)),0,IF(AND(LEN($C14)<>0,$D14="Yes"),VLOOKUP($B14,'Round Two'!$C:$J,8,0),"")) -> 0 | K14: =IF(ISERROR(VLOOKUP(J14,'Round Two'!$C:$J,7,0)),0,IF(AND(LEN($C14)<>0,$D14="Yes"),VLOOKUP(J14,'Round Two'!$C:$J,7,0)+1E-24,0)) -> 0 | L14: 0 | M14: =IF(ISERROR(VLOOKUP($B14,'Round Two'!$C:$J,6,0)),0,IF(AND(LEN($C14)<>0,$D14="Yes"),VLOOKUP($B14,'Round Two'!$C:$J,6,0),"")) -> 0 | N14: =IF(ISERROR(VLOOKUP($B14,'Round Two'!$C:$J,7,0)),0,IF(LEN($C14)<>0,VLOOKUP($B14,'Round Two'!$C:$J,7,0)+1E-24,0)) -> 0 | O14: =IF(ISERROR(VLOOKUP($B14,'Round Three'!$C:$J,8,0)),0,IF(AND(LEN($C14)<>0,$D14="Yes"),VLOOKUP($B14,'Round Three'!$C:$J,8,0),"")) -> 0 | P14: =IF(ISERROR(VLOOKUP(O14,'Round Three'!$C:$J,7,0)),0,IF(AND(LEN($C14)<>0,$D14="Yes"),VLOOKUP(O14,'Round Three'!$C:$J,7,0)+1E-24,0)) -> 0 | Q14: 0 | R14: =IF(ISERROR(VLOOKUP($B14,'Round Three'!$C:$J,6,0)),0,IF(AND(LEN($C14)<>0,$D14="Yes"),VLOOKUP($B14,'Round Three'!$C:$J,6,0),"")) -> 0 | S14: =IF(ISERROR(VLOOKUP($B14,'Round Three'!$C:$J,7,0)),0,IF(LEN($C14)<>0,VLOOKUP($B14,'Round Three'!$C:$J,7,0)+1E-24,0)) -> 0 | T14: =IF(ISERROR(VLOOKUP($B14,'Round Four'!$C:$J,8,0)),0,IF(AND(LEN($C14)<>0,$D14="Yes"),VLOOKUP($B14,'Round Four'!$C:$J,8,0),"")) -> 0 | U14: =IF(ISERROR(VLOOKUP(T14,'Round Four'!$C:$J,7,0)),0,IF(AND(LEN($C14)<>0,$D14="Yes"),VLOOKUP(T14,'Round Four'!$C:$J,7,0)+1E-24,0)) -> 0 | V14: 0 | W14: =IF(ISERROR(VLOOKUP($B14,'Round Four'!$C:$J,6,0)),0,IF(AND(LEN($C14)<>0,$D14="Yes"),VLOOKUP($B14,'Round Four'!$C:$J,6,0),"")) -> 0 | X14: =IF(ISERROR(VLOOKUP($B14,'Round Four'!$C:$J,7,0)),0,IF(LEN($C14)<>0,VLOOKUP($B14,'Round Four'!$C:$J,7,0)+1E-24,0)) -> 0 | Y14: =IF(ISERROR(VLOOKUP($B14,'Round Five'!$C:$J,8,0)),0,IF(AND(LEN($C14)<>0,$D14="Yes"),VLOOKUP($B14,'Round Five'!$C:$J,8,0),"")) -> 0 | Z14: =IF(ISERROR(VLOOKUP(Y14,'Round Five'!$C:$J,7,0)),0,IF(AND(LEN($C14)<>0,$D14="Yes"),VLOOKUP(Y14,'Round Five'!$C:$J,7,0)+1E-24,0)) -> 0 | AA14: 0 | AB14: =IF(ISERROR(VLOOKUP($B14,'Round Five'!$C:$J,6,0)),0,IF(AND(LEN($C14)<>0,$D14="Yes"),VLOOKUP($B14,'Round Five'!$C:$J,6,0),"")) -> 0 | AC14: =IF(ISERROR(VLOOKUP($B14,'Round Five'!$C:$J,7,0)),0,IF(LEN($C14)<>0,VLOOKUP($B14,'Round Five'!$C:$J,7,0)+1E-24,0)) -> 0 | AD14: =IF(ISERROR(VLOOKUP($B14,'Round Six'!$C:$J,8,0)),0,IF(AND(LEN($C14)<>0,$D14="Yes"),VLOOKUP($B14,'Round Six'!$C:$J,8,0),"")) -> 0 | AE14: =IF(ISERROR(VLOOKUP(AD14,'Round Six'!$C:$J,7,0)),0,IF(AND(LEN($C14)<>0,$D14="Yes"),VLOOKUP(AD14,'Round Six'!$C:$J,7,0)+1E-24,0)) -> 0 | AF14: 0 | AG14: =IF(ISERROR(VLOOKUP($B14,'Round Six'!$C:$J,6,0)),0,IF(AND(LEN($C14)<>0,$D14="Yes"),VLOOKUP($B14,'Round Six'!$C:$J,6,0),"")) -> 0 | AH14: =IF(ISERROR(VLOOKUP($B14,'Round Six'!$C:$J,7,0)),0,IF(LEN($C14)<>0,VLOOKUP($B14,'Round Six'!$C:$J,7,0)+1E-24,0)) -> 0 | AI14: =IF(ISERROR(VLOOKUP($B14,'Round Seven'!$C:$J,8,0)),0,IF(AND(LEN($C14)<>0,$D14="Yes"),VLOOKUP($B14,'Round Seven'!$C:$J,8,0),"")) -> 0 | AJ14: =IF(ISERROR(VLOOKUP(AI14,'Round Seven'!$C:$J,7,0)),0,IF(AND(LEN($C14)<>0,$D14="Yes"),VLOOKUP(AI14,'Round Seven'!$C:$J,7,0)+1E-24,0)) -> 0 | AK14: 0 | AL14: =IF(ISERROR(VLOOKUP($B14,'Round Seven'!$C:$J,6,0)),0,IF(AND(LEN($C14)<>0,$D14="Yes"),VLOOKUP($B14,'Round Seven'!$C:$J,6,0),"")) -> 0 | AM14: =IF(ISERROR(VLOOKUP($B14,'Round Seven'!$C:$J,7,0)),0,IF(LEN($C14)<>0,VLOOKUP($B14,'Round Seven'!$C:$J,7,0)+1E-24,0)) -> 0 | AN14: =IF(ISERROR(VLOOKUP($B14,'Round Eight'!$C:$J,8,0)),0,IF(AND(LEN($C14)<>0,$D14="Yes"),VLOOKUP($B14,'Round Eight'!$C:$J,8,0),"")) -> 0 | AO14: =IF(ISERROR(VLOOKUP(AN14,'Round Eight'!$C:$J,7,0)),0,IF(AND(LEN($C14)<>0,$D14="Yes"),VLOOKUP(AN14,'Round Eight'!$C:$J,7,0)+1E-24,0)) -> 0 | AP14: 0 | AQ14: =IF(ISERROR(VLOOKUP($B14,'Round Eight'!$C:$J,6,0)),0,IF(AND(LEN($C14)<>0,$D14="Yes"),VLOOKUP($B14,'Round Eight'!$C:$J,6,0),"")) -> 0 | AR14: =IF(ISERROR(VLOOKUP($B14,'Round Eight'!$C:$J,7,0)),0,IF(LEN($C14)<>0,VLOOKUP($B14,'Round Eight'!$C:$J,7,0)+1E-24,0)) -> 0 | AS14: =IF(ISERROR(VLOOKUP($B14,'Round Nine'!$C:$J,8,0)),0,IF(AND(LEN($C14)<>0,$D14="Yes"),VLOOKUP($B14,'Round Nine'!$C:$J,8,0),"")) -> 0 | AT14: =IF(ISERROR(VLOOKUP(AS14,'Round Nine'!$C:$J,7,0)),0,IF(AND(LEN($C14)<>0,$D14="Yes"),VLOOKUP(AS14,'Round Nine'!$C:$J,7,0)+1E-24,0)) -> 0 | AU14: 0 | AV14: =IF(ISERROR(VLOOKUP($B14,'Round Nine'!$C:$J,6,0)),0,IF(AND(LEN($C14)<>0,$D14="Yes"),VLOOKUP($B14,'Round Nine'!$C:$J,6,0),"")) -> 0 | AW14: =IF(ISERROR(VLOOKUP($B14,'Round Nine'!$C:$J,7,0)),0,IF(LEN($C14)<>0,VLOOKUP($B14,'Round Nine'!$C:$J,7,0)+1E-24,0)) -> 0 | AY14: 0 | AZ14: 0 | BA14: 0 | BB14: =IF(D14<>"Yes",A14*-10,AY14*1000000+AZ14*10000+BA14+(A14/100000))+IF(OR(Accel_Pairing_2!$B$4="no",D14<>"Yes",ISERROR(VLOOKUP(C14,PowerRanking!A:B,2,0))),0,(VLOOKUP(C14,PowerRanking!A:D,4,0)*1000000)+VLOOKUP(C14,PowerRanking!A:D,2,0)/10) -> -0.639705009 | BC14: 3 | BD14: T11 | BE14: 0
A15: 0.3912559224 | B15: T12 | E15: =IF(ISERROR(VLOOKUP($B15,'Round One'!$C:$J,8,0)),0,IF(AND(LEN($C15)<>0,$D15="Yes"),VLOOKUP($B15,'Round One'!$C:$J,8,0),0)) -> 0 | F15: =IF(ISERROR(VLOOKUP(E15,'Round One'!$C:$J,7,0)),0,IF(AND(LEN($C15)<>0,$D15="Yes"),VALUE(VLOOKUP(E15,'Round One'!$C:$J,7,0)+1E-24),0)) -> 0 | G15: 0 | H15: =IF(ISERROR(VLOOKUP($B15,'Round One'!$C:$J,6,0)),0,IF(AND(LEN($C15)<>0,$D15="Yes"),VLOOKUP($B15,'Round One'!$C:$J,6,0),"")) -> 0 | I15: =IF(ISERROR(VLOOKUP($B15,'Round One'!$C:$J,7,0)),0,IF(LEN($C15)<>0,VLOOKUP($B15,'Round One'!$C:$J,7,0)+1E-24,0)) -> 0 | J15: =IF(ISERROR(VLOOKUP($B15,'Round Two'!$C:$J,8,0)),0,IF(AND(LEN($C15)<>0,$D15="Yes"),VLOOKUP($B15,'Round Two'!$C:$J,8,0),"")) -> 0 | K15: =IF(ISERROR(VLOOKUP(J15,'Round Two'!$C:$J,7,0)),0,IF(AND(LEN($C15)<>0,$D15="Yes"),VLOOKUP(J15,'Round Two'!$C:$J,7,0)+1E-24,0)) -> 0 | L15: 0 | M15: =IF(ISERROR(VLOOKUP($B15,'Round Two'!$C:$J,6,0)),0,IF(AND(LEN($C15)<>0,$D15="Yes"),VLOOKUP($B15,'Round Two'!$C:$J,6,0),"")) -> 0 | N15: =IF(ISERROR(VLOOKUP($B15,'Round Two'!$C:$J,7,0)),0,IF(LEN($C15)<>0,VLOOKUP($B15,'Round Two'!$C:$J,7,0)+1E-24,0)) -> 0 | O15: =IF(ISERROR(VLOOKUP($B15,'Round Three'!$C:$J,8,0)),0,IF(AND(LEN($C15)<>0,$D15="Yes"),VLOOKUP($B15,'Round Three'!$C:$J,8,0),"")) -> 0 | P15: =IF(ISERROR(VLOOKUP(O15,'Round Three'!$C:$J,7,0)),0,IF(AND(LEN($C15)<>0,$D15="Yes"),VLOOKUP(O15,'Round Three'!$C:$J,7,0)+1E-24,0)) -> 0 | Q15: 0 | R15: =IF(ISERROR(VLOOKUP($B15,'Round Three'!$C:$J,6,0)),0,IF(AND(LEN($C15)<>0,$D15="Yes"),VLOOKUP($B15,'Round Three'!$C:$J,6,0),"")) -> 0 | S15: =IF(ISERROR(VLOOKUP($B15,'Round Three'!$C:$J,7,0)),0,IF(LEN($C15)<>0,VLOOKUP($B15,'Round Three'!$C:$J,7,0)+1E-24,0)) -> 0 | T15: =IF(ISERROR(VLOOKUP($B15,'Round Four'!$C:$J,8,0)),0,IF(AND(LEN($C15)<>0,$D15="Yes"),VLOOKUP($B15,'Round Four'!$C:$J,8,0),"")) -> 0 | U15: =IF(ISERROR(VLOOKUP(T15,'Round Four'!$C:$J,7,0)),0,IF(AND(LEN($C15)<>0,$D15="Yes"),VLOOKUP(T15,'Round Four'!$C:$J,7,0)+1E-24,0)) -> 0 | V15: 0 | W15: =IF(ISERROR(VLOOKUP($B15,'Round Four'!$C:$J,6,0)),0,IF(AND(LEN($C15)<>0,$D15="Yes"),VLOOKUP($B15,'Round Four'!$C:$J,6,0),"")) -> 0 | X15: =IF(ISERROR(VLOOKUP($B15,'Round Four'!$C:$J,7,0)),0,IF(LEN($C15)<>0,VLOOKUP($B15,'Round Four'!$C:$J,7,0)+1E-24,0)) -> 0 | Y15: =IF(ISERROR(VLOOKUP($B15,'Round Five'!$C:$J,8,0)),0,IF(AND(LEN($C15)<>0,$D15="Yes"),VLOOKUP($B15,'Round Five'!$C:$J,8,0),"")) -> 0 | Z15: =IF(ISERROR(VLOOKUP(Y15,'Round Five'!$C:$J,7,0)),0,IF(AND(LEN($C15)<>0,$D15="Yes"),VLOOKUP(Y15,'Round Five'!$C:$J,7,0)+1E-24,0)) -> 0 | AA15: 0 | AB15: =IF(ISERROR(VLOOKUP($B15,'Round Five'!$C:$J,6,0)),0,IF(AND(LEN($C15)<>0,$D15="Yes"),VLOOKUP($B15,'Round Five'!$C:$J,6,0),"")) -> 0 | AC15: =IF(ISERROR(VLOOKUP($B15,'Round Five'!$C:$J,7,0)),0,IF(LEN($C15)<>0,VLOOKUP($B15,'Round Five'!$C:$J,7,0)+1E-24,0)) -> 0 | AD15: =IF(ISERROR(VLOOKUP($B15,'Round Six'!$C:$J,8,0)),0,IF(AND(LEN($C15)<>0,$D15="Yes"),VLOOKUP($B15,'Round Six'!$C:$J,8,0),"")) -> 0 | AE15: =IF(ISERROR(VLOOKUP(AD15,'Round Six'!$C:$J,7,0)),0,IF(AND(LEN($C15)<>0,$D15="Yes"),VLOOKUP(AD15,'Round Six'!$C:$J,7,0)+1E-24,0)) -> 0 | AF15: 0 | AG15: =IF(ISERROR(VLOOKUP($B15,'Round Six'!$C:$J,6,0)),0,IF(AND(LEN($C15)<>0,$D15="Yes"),VLOOKUP($B15,'Round Six'!$C:$J,6,0),"")) -> 0 | AH15: =IF(ISERROR(VLOOKUP($B15,'Round Six'!$C:$J,7,0)),0,IF(LEN($C15)<>0,VLOOKUP($B15,'Round Six'!$C:$J,7,0)+1E-24,0)) -> 0 | AI15: =IF(ISERROR(VLOOKUP($B15,'Round Seven'!$C:$J,8,0)),0,IF(AND(LEN($C15)<>0,$D15="Yes"),VLOOKUP($B15,'Round Seven'!$C:$J,8,0),"")) -> 0 | AJ15: =IF(ISERROR(VLOOKUP(AI15,'Round Seven'!$C:$J,7,0)),0,IF(AND(LEN($C15)<>0,$D15="Yes"),VLOOKUP(AI15,'Round Seven'!$C:$J,7,0)+1E-24,0)) -> 0 | AK15: 0 | AL15: =IF(ISERROR(VLOOKUP($B15,'Round Seven'!$C:$J,6,0)),0,IF(AND(LEN($C15)<>0,$D15="Yes"),VLOOKUP($B15,'Round Seven'!$C:$J,6,0),"")) -> 0 | AM15: =IF(ISERROR(VLOOKUP($B15,'Round Seven'!$C:$J,7,0)),0,IF(LEN($C15)<>0,VLOOKUP($B15,'Round Seven'!$C:$J,7,0)+1E-24,0)) -> 0 | AN15: =IF(ISERROR(VLOOKUP($B15,'Round Eight'!$C:$J,8,0)),0,IF(AND(LEN($C15)<>0,$D15="Yes"),VLOOKUP($B15,'Round Eight'!$C:$J,8,0),"")) -> 0 | AO15: =IF(ISERROR(VLOOKUP(AN15,'Round Eight'!$C:$J,7,0)),0,IF(AND(LEN($C15)<>0,$D15="Yes"),VLOOKUP(AN15,'Round Eight'!$C:$J,7,0)+1E-24,0)) -> 0 | AP15: 0 | AQ15: =IF(ISERROR(VLOOKUP($B15,'Round Eight'!$C:$J,6,0)),0,IF(AND(LEN($C15)<>0,$D15="Yes"),VLOOKUP($B15,'Round Eight'!$C:$J,6,0),"")) -> 0 | AR15: =IF(ISERROR(VLOOKUP($B15,'Round Eight'!$C:$J,7,0)),0,IF(LEN($C15)<>0,VLOOKUP($B15,'Round Eight'!$C:$J,7,0)+1E-24,0)) -> 0 | AS15: =IF(ISERROR(VLOOKUP($B15,'Round Nine'!$C:$J,8,0)),0,IF(AND(LEN($C15)<>0,$D15="Yes"),VLOOKUP($B15,'Round Nine'!$C:$J,8,0),"")) -> 0 | AT15: =IF(ISERROR(VLOOKUP(AS15,'Round Nine'!$C:$J,7,0)),0,IF(AND(LEN($C15)<>0,$D15="Yes"),VLOOKUP(AS15,'Round Nine'!$C:$J,7,0)+1E-24,0)) -> 0 | AU15: 0 | AV15: =IF(ISERROR(VLOOKUP($B15,'Round Nine'!$C:$J,6,0)),0,IF(AND(LEN($C15)<>0,$D15="Yes"),VLOOKUP($B15,'Round Nine'!$C:$J,6,0),"")) -> 0 | AW15: =IF(ISERROR(VLOOKUP($B15,'Round Nine'!$C:$J,7,0)),0,IF(LEN($C15)<>0,VLOOKUP($B15,'Round Nine'!$C:$J,7,0)+1E-24,0)) -> 0 | AY15: 0 | AZ15: 0 | BA15: 0 | BB15: =IF(D15<>"Yes",A15*-10,AY15*1000000+AZ15*10000+BA15+(A15/100000))+IF(OR(Accel_Pairing_2!$B$4="no",D15<>"Yes",ISERROR(VLOOKUP(C15,PowerRanking!A:B,2,0))),0,(VLOOKUP(C15,PowerRanking!A:D,4,0)*1000000)+VLOOKUP(C15,PowerRanking!A:D,2,0)/10) -> -3.912559224 | BC15: 25 | BD15: T12 | BE15: 0
A16: 0.2522710213 | B16: T13 | E16: =IF(ISERROR(VLOOKUP($B16,'Round One'!$C:$J,8,0)),0,IF(AND(LEN($C16)<>0,$D16="Yes"),VLOOKUP($B16,'Round One'!$C:$J,8,0),0)) -> 0 | F16: =IF(ISERROR(VLOOKUP(E16,'Round One'!$C:$J,7,0)),0,IF(AND(LEN($C16)<>0,$D16="Yes"),VALUE(VLOOKUP(E16,'Round One'!$C:$J,7,0)+1E-24),0)) -> 0 | G16: 0 | H16: =IF(ISERROR(VLOOKUP($B16,'Round One'!$C:$J,6,0)),0,IF(AND(LEN($C16)<>0,$D16="Yes"),VLOOKUP($B16,'Round One'!$C:$J,6,0),"")) -> 0 | I16: =IF(ISERROR(VLOOKUP($B16,'Round One'!$C:$J,7,0)),0,IF(LEN($C16)<>0,VLOOKUP($B16,'Round One'!$C:$J,7,0)+1E-24,0)) -> 0 | J16: =IF(ISERROR(VLOOKUP($B16,'Round Two'!$C:$J,8,0)),0,IF(AND(LEN($C16)<>0,$D16="Yes"),VLOOKUP($B16,'Round Two'!$C:$J,8,0),"")) -> 0 | K16: =IF(ISERROR(VLOOKUP(J16,'Round Two'!$C:$J,7,0)),0,IF(AND(LEN($C16)<>0,$D16="Yes"),VLOOKUP(J16,'Round Two'!$C:$J,7,0)+1E-24,0)) -> 0 | L16: 0 | M16: =IF(ISERROR(VLOOKUP($B16,'Round Two'!$C:$J,6,0)),0,IF(AND(LEN($C16)<>0,$D16="Yes"),VLOOKUP($B16,'Round Two'!$C:$J,6,0),"")) -> 0 | N16: =IF(ISERROR(VLOOKUP($B16,'Round Two'!$C:$J,7,0)),0,IF(LEN($C16)<>0,VLOOKUP($B16,'Round Two'!$C:$J,7,0)+1E-24,0)) -> 0 | O16: =IF(ISERROR(VLOOKUP($B16,'Round Three'!$C:$J,8,0)),0,IF(AND(LEN($C16)<>0,$D16="Yes"),VLOOKUP($B16,'Round Three'!$C:$J,8,0),"")) -> 0 | P16: =IF(ISERROR(VLOOKUP(O16,'Round Three'!$C:$J,7,0)),0,IF(AND(LEN($C16)<>0,$D16="Yes"),VLOOKUP(O16,'Round Three'!$C:$J,7,0)+1E-24,0)) -> 0 | Q16: 0 | R16: =IF(ISERROR(VLOOKUP($B16,'Round Three'!$C:$J,6,0)),0,IF(AND(LEN($C16)<>0,$D16="Yes"),VLOOKUP($B16,'Round Three'!$C:$J,6,0),"")) -> 0 | S16: =IF(ISERROR(VLOOKUP($B16,'Round Three'!$C:$J,7,0)),0,IF(LEN($C16)<>0,VLOOKUP($B16,'Round Three'!$C:$J,7,0)+1E-24,0)) -> 0 | T16: =IF(ISERROR(VLOOKUP($B16,'Round Four'!$C:$J,8,0)),0,IF(AND(LEN($C16)<>0,$D16="Yes"),VLOOKUP($B16,'Round Four'!$C:$J,8,0),"")) -> 0 | U16: =IF(ISERROR(VLOOKUP(T16,'Round Four'!$C:$J,7,0)),0,IF(AND(LEN($C16)<>0,$D16="Yes"),VLOOKUP(T16,'Round Four'!$C:$J,7,0)+1E-24,0)) -> 0 | V16: 0 | W16: =IF(ISERROR(VLOOKUP($B16,'Round Four'!$C:$J,6,0)),0,IF(AND(LEN($C16)<>0,$D16="Yes"),VLOOKUP($B16,'Round Four'!$C:$J,6,0),"")) -> 0 | X16: =IF(ISERROR(VLOOKUP($B16,'Round Four'!$C:$J,7,0)),0,IF(LEN($C16)<>0,VLOOKUP($B16,'Round Four'!$C:$J,7,0)+1E-24,0)) -> 0 | Y16: =IF(ISERROR(VLOOKUP($B16,'Round Five'!$C:$J,8,0)),0,IF(AND(LEN($C16)<>0,$D16="Yes"),VLOOKUP($B16,'Round Five'!$C:$J,8,0),"")) -> 0 | Z16: =IF(ISERROR(VLOOKUP(Y16,'Round Five'!$C:$J,7,0)),0,IF(AND(LEN($C16)<>0,$D16="Yes"),VLOOKUP(Y16,'Round Five'!$C:$J,7,0)+1E-24,0)) -> 0 | AA16: 0 | AB16: =IF(ISERROR(VLOOKUP($B16,'Round Five'!$C:$J,6,0)),0,IF(AND(LEN($C16)<>0,$D16="Yes"),VLOOKUP($B16,'Round Five'!$C:$J,6,0),"")) -> 0 | AC16: =IF(ISERROR(VLOOKUP($B16,'Round Five'!$C:$J,7,0)),0,IF(LEN($C16)<>0,VLOOKUP($B16,'Round Five'!$C:$J,7,0)+1E-24,0)) -> 0 | AD16: =IF(ISERROR(VLOOKUP($B16,'Round Six'!$C:$J,8,0)),0,IF(AND(LEN($C16)<>0,$D16="Yes"),VLOOKUP($B16,'Round Six'!$C:$J,8,0),"")) -> 0 | AE16: =IF(ISERROR(VLOOKUP(AD16,'Round Six'!$C:$J,7,0)),0,IF(AND(LEN($C16)<>0,$D16="Yes"),VLOOKUP(AD16,'Round Six'!$C:$J,7,0)+1E-24,0)) -> 0 | AF16: 0 | AG16: =IF(ISERROR(VLOOKUP($B16,'Round Six'!$C:$J,6,0)),0,IF(AND(LEN($C16)<>0,$D16="Yes"),VLOOKUP($B16,'Round Six'!$C:$J,6,0),"")) -> 0 | AH16: =IF(ISERROR(VLOOKUP($B16,'Round Six'!$C:$J,7,0)),0,IF(LEN($C16)<>0,VLOOKUP($B16,'Round Six'!$C:$J,7,0)+1E-24,0)) -> 0 | AI16: =IF(ISERROR(VLOOKUP($B16,'Round Seven'!$C:$J,8,0)),0,IF(AND(LEN($C16)<>0,$D16="Yes"),VLOOKUP($B16,'Round Seven'!$C:$J,8,0),"")) -> 0 | AJ16: =IF(ISERROR(VLOOKUP(AI16,'Round Seven'!$C:$J,7,0)),0,IF(AND(LEN($C16)<>0,$D16="Yes"),VLOOKUP(AI16,'Round Seven'!$C:$J,7,0)+1E-24,0)) -> 0 | AK16: 0 | AL16: =IF(ISERROR(VLOOKUP($B16,'Round Seven'!$C:$J,6,0)),0,IF(AND(LEN($C16)<>0,$D16="Yes"),VLOOKUP($B16,'Round Seven'!$C:$J,6,0),"")) -> 0 | AM16: =IF(ISERROR(VLOOKUP($B16,'Round Seven'!$C:$J,7,0)),0,IF(LEN($C16)<>0,VLOOKUP($B16,'Round Seven'!$C:$J,7,0)+1E-24,0)) -> 0 | AN16: =IF(ISERROR(VLOOKUP($B16,'Round Eight'!$C:$J,8,0)),0,IF(AND(LEN($C16)<>0,$D16="Yes"),VLOOKUP($B16,'Round Eight'!$C:$J,8,0),"")) -> 0 | AO16: =IF(ISERROR(VLOOKUP(AN16,'Round Eight'!$C:$J,7,0)),0,IF(AND(LEN($C16)<>0,$D16="Yes"),VLOOKUP(AN16,'Round Eight'!$C:$J,7,0)+1E-24,0)) -> 0 | AP16: 0 | AQ16: =IF(ISERROR(VLOOKUP($B16,'Round Eight'!$C:$J,6,0)),0,IF(AND(LEN($C16)<>0,$D16="Yes"),VLOOKUP($B16,'Round Eight'!$C:$J,6,0),"")) -> 0 | AR16: =IF(ISERROR(VLOOKUP($B16,'Round Eight'!$C:$J,7,0)),0,IF(LEN($C16)<>0,VLOOKUP($B16,'Round Eight'!$C:$J,7,0)+1E-24,0)) -> 0 | AS16: =IF(ISERROR(VLOOKUP($B16,'Round Nine'!$C:$J,8,0)),0,IF(AND(LEN($C16)<>0,$D16="Yes"),VLOOKUP($B16,'Round Nine'!$C:$J,8,0),"")) -> 0 | AT16: =IF(ISERROR(VLOOKUP(AS16,'Round Nine'!$C:$J,7,0)),0,IF(AND(LEN($C16)<>0,$D16="Yes"),VLOOKUP(AS16,'Round Nine'!$C:$J,7,0)+1E-24,0)) -> 0 | AU16: 0 | AV16: =IF(ISERROR(VLOOKUP($B16,'Round Nine'!$C:$J,6,0)),0,IF(AND(LEN($C16)<>0,$D16="Yes"),VLOOKUP($B16,'Round Nine'!$C:$J,6,0),"")) -> 0 | AW16: =IF(ISERROR(VLOOKUP($B16,'Round Nine'!$C:$J,7,0)),0,IF(LEN($C16)<>0,VLOOKUP($B16,'Round Nine'!$C:$J,7,0)+1E-24,0)) -> 0 | AY16: 0 | AZ16: 0 | BA16: 0 | BB16: =IF(D16<>"Yes",A16*-10,AY16*1000000+AZ16*10000+BA16+(A16/100000))+IF(OR(Accel_Pairing_2!$B$4="no",D16<>"Yes",ISERROR(VLOOKUP(C16,PowerRanking!A:B,2,0))),0,(VLOOKUP(C16,PowerRanking!A:D,4,0)*1000000)+VLOOKUP(C16,PowerRanking!A:D,2,0)/10) -> -2.522710213 | BC16: 15 | BD16: T13 | BE16: 0
A17: 0.2259450453 | B17: T14 | E17: =IF(ISERROR(VLOOKUP($B17,'Round One'!$C:$J,8,0)),0,IF(AND(LEN($C17)<>0,$D17="Yes"),VLOOKUP($B17,'Round One'!$C:$J,8,0),0)) -> 0 | F17: =IF(ISERROR(VLOOKUP(E17,'Round One'!$C:$J,7,0)),0,IF(AND(LEN($C17)<>0,$D17="Yes"),VALUE(VLOOKUP(E17,'Round One'!$C:$J,7,0)+1E-24),0)) -> 0 | G17: 0 | H17: =IF(ISERROR(VLOOKUP($B17,'Round One'!$C:$J,6,0)),0,IF(AND(LEN($C17)<>0,$D17="Yes"),VLOOKUP($B17,'Round One'!$C:$J,6,0),"")) -> 0 | I17: =IF(ISERROR(VLOOKUP($B17,'Round One'!$C:$J,7,0)),0,IF(LEN($C17)<>0,VLOOKUP($B17,'Round One'!$C:$J,7,0)+1E-24,0)) -> 0 | J17: =IF(ISERROR(VLOOKUP($B17,'Round Two'!$C:$J,8,0)),0,IF(AND(LEN($C17)<>0,$D17="Yes"),VLOOKUP($B17,'Round Two'!$C:$J,8,0),"")) -> 0 | K17: =IF(ISERROR(VLOOKUP(J17,'Round Two'!$C:$J,7,0)),0,IF(AND(LEN($C17)<>0,$D17="Yes"),VLOOKUP(J17,'Round Two'!$C:$J,7,0)+1E-24,0)) -> 0 | L17: 0 | M17: =IF(ISERROR(VLOOKUP($B17,'Round Two'!$C:$J,6,0)),0,IF(AND(LEN($C17)<>0,$D17="Yes"),VLOOKUP($B17,'Round Two'!$C:$J,6,0),"")) -> 0 | N17: =IF(ISERROR(VLOOKUP($B17,'Round Two'!$C:$J,7,0)),0,IF(LEN($C17)<>0,VLOOKUP($B17,'Round Two'!$C:$J,7,0)+1E-24,0)) -> 0 | O17: =IF(ISERROR(VLOOKUP($B17,'Round Three'!$C:$J,8,0)),0,IF(AND(LEN($C17)<>0,$D17="Yes"),VLOOKUP($B17,'Round Three'!$C:$J,8,0),"")) -> 0 | P17: =IF(ISERROR(VLOOKUP(O17,'Round Three'!$C:$J,7,0)),0,IF(AND(LEN($C17)<>0,$D17="Yes"),VLOOKUP(O17,'Round Three'!$C:$J,7,0)+1E-24,0)) -> 0 | Q17: 0 | R17: =IF(ISERROR(VLOOKUP($B17,'Round Three'!$C:$J,6,0)),0,IF(AND(LEN($C17)<>0,$D17="Yes"),VLOOKUP($B17,'Round Three'!$C:$J,6,0),"")) -> 0 | S17: =IF(ISERROR(VLOOKUP($B17,'Round Three'!$C:$J,7,0)),0,IF(LEN($C17)<>0,VLOOKUP($B17,'Round Three'!$C:$J,7,0)+1E-24,0)) -> 0 | T17: =IF(ISERROR(VLOOKUP($B17,'Round Four'!$C:$J,8,0)),0,IF(AND(LEN($C17)<>0,$D17="Yes"),VLOOKUP($B17,'Round Four'!$C:$J,8,0),"")) -> 0 | U17: =IF(ISERROR(VLOOKUP(T17,'Round Four'!$C:$J,7,0)),0,IF(AND(LEN($C17)<>0,$D17="Yes"),VLOOKUP(T17,'Round Four'!$C:$J,7,0)+1E-24,0)) -> 0 | V17: 0 | W17: =IF(ISERROR(VLOOKUP($B17,'Round Four'!$C:$J,6,0)),0,IF(AND(LEN($C17)<>0,$D17="Yes"),VLOOKUP($B17,'Round Four'!$C:$J,6,0),"")) -> 0 | X17: =IF(ISERROR(VLOOKUP($B17,'Round Four'!$C:$J,7,0)),0,IF(LEN($C17)<>0,VLOOKUP($B17,'Round Four'!$C:$J,7,0)+1E-24,0)) -> 0 | Y17: =IF(ISERROR(VLOOKUP($B17,'Round Five'!$C:$J,8,0)),0,IF(AND(LEN($C17)<>0,$D17="Yes"),VLOOKUP($B17,'Round Five'!$C:$J,8,0),"")) -> 0 | Z17: =IF(ISERROR(VLOOKUP(Y17,'Round Five'!$C:$J,7,0)),0,IF(AND(LEN($C17)<>0,$D17="Yes"),VLOOKUP(Y17,'Round Five'!$C:$J,7,0)+1E-24,0)) -> 0 | AA17: 0 | AB17: =IF(ISERROR(VLOOKUP($B17,'Round Five'!$C:$J,6,0)),0,IF(AND(LEN($C17)<>0,$D17="Yes"),VLOOKUP($B17,'Round Five'!$C:$J,6,0),"")) -> 0 | AC17: =IF(ISERROR(VLOOKUP($B17,'Round Five'!$C:$J,7,0)),0,IF(LEN($C17)<>0,VLOOKUP($B17,'Round Five'!$C:$J,7,0)+1E-24,0)) -> 0 | AD17: =IF(ISERROR(VLOOKUP($B17,'Round Six'!$C:$J,8,0)),0,IF(AND(LEN($C17)<>0,$D17="Yes"),VLOOKUP($B17,'Round Six'!$C:$J,8,0),"")) -> 0 | AE17: =IF(ISERROR(VLOOKUP(AD17,'Round Six'!$C:$J,7,0)),0,IF(AND(LEN($C17)<>0,$D17="Yes"),VLOOKUP(AD17,'Round Six'!$C:$J,7,0)+1E-24,0)) -> 0 | AF17: 0 | AG17: =IF(ISERROR(VLOOKUP($B17,'Round Six'!$C:$J,6,0)),0,IF(AND(LEN($C17)<>0,$D17="Yes"),VLOOKUP($B17,'Round Six'!$C:$J,6,0),"")) -> 0 | AH17: =IF(ISERROR(VLOOKUP($B17,'Round Six'!$C:$J,7,0)),0,IF(LEN($C17)<>0,VLOOKUP($B17,'Round Six'!$C:$J,7,0)+1E-24,0)) -> 0 | AI17: =IF(ISERROR(VLOOKUP($B17,'Round Seven'!$C:$J,8,0)),0,IF(AND(LEN($C17)<>0,$D17="Yes"),VLOOKUP($B17,'Round Seven'!$C:$J,8,0),"")) -> 0 | AJ17: =IF(ISERROR(VLOOKUP(AI17,'Round Seven'!$C:$J,7,0)),0,IF(AND(LEN($C17)<>0,$D17="Yes"),VLOOKUP(AI17,'Round Seven'!$C:$J,7,0)+1E-24,0)) -> 0 | AK17: 0 | AL17: =IF(ISERROR(VLOOKUP($B17,'Round Seven'!$C:$J,6,0)),0,IF(AND(LEN($C17)<>0,$D17="Yes"),VLOOKUP($B17,'Round Seven'!$C:$J,6,0),"")) -> 0 | AM17: =IF(ISERROR(VLOOKUP($B17,'Round Seven'!$C:$J,7,0)),0,IF(LEN($C17)<>0,VLOOKUP($B17,'Round Seven'!$C:$J,7,0)+1E-24,0)) -> 0 | AN17: =IF(ISERROR(VLOOKUP($B17,'Round Eight'!$C:$J,8,0)),0,IF(AND(LEN($C17)<>0,$D17="Yes"),VLOOKUP($B17,'Round Eight'!$C:$J,8,0),"")) -> 0 | AO17: =IF(ISERROR(VLOOKUP(AN17,'Round Eight'!$C:$J,7,0)),0,IF(AND(LEN($C17)<>0,$D17="Yes"),VLOOKUP(AN17,'Round Eight'!$C:$J,7,0)+1E-24,0)) -> 0 | AP17: 0 | AQ17: =IF(ISERROR(VLOOKUP($B17,'Round Eight'!$C:$J,6,0)),0,IF(AND(LEN($C17)<>0,$D17="Yes"),VLOOKUP($B17,'Round Eight'!$C:$J,6,0),"")) -> 0 | AR17: =IF(ISERROR(VLOOKUP($B17,'Round Eight'!$C:$J,7,0)),0,IF(LEN($C17)<>0,VLOOKUP($B17,'Round Eight'!$C:$J,7,0)+1E-24,0)) -> 0 | AS17: =IF(ISERROR(VLOOKUP($B17,'Round Nine'!$C:$J,8,0)),0,IF(AND(LEN($C17)<>0,$D17="Yes"),VLOOKUP($B17,'Round Nine'!$C:$J,8,0),"")) -> 0 | AT17: =IF(ISERROR(VLOOKUP(AS17,'Round Nine'!$C:$J,7,0)),0,IF(AND(LEN($C17)<>0,$D17="Yes"),VLOOKUP(AS17,'Round Nine'!$C:$J,7,0)+1E-24,0)) -> 0 | AU17: 0 | AV17: =IF(ISERROR(VLOOKUP($B17,'Round Nine'!$C:$J,6,0)),0,IF(AND(LEN($C17)<>0,$D17="Yes"),VLOOKUP($B17,'Round Nine'!$C:$J,6,0),"")) -> 0 | AW17: =IF(ISERROR(VLOOKUP($B17,'Round Nine'!$C:$J,7,0)),0,IF(LEN($C17)<>0,VLOOKUP($B17,'Round Nine'!$C:$J,7,0)+1E-24,0)) -> 0 | AY17: 0 | AZ17: 0 | BA17: 0 | BB17: =IF(D17<>"Yes",A17*-10,AY17*1000000+AZ17*10000+BA17+(A17/100000))+IF(OR(Accel_Pairing_2!$B$4="no",D17<>"Yes",ISERROR(VLOOKUP(C17,PowerRanking!A:B,2,0))),0,(VLOOKUP(C17,PowerRanking!A:D,4,0)*1000000)+VLOOKUP(C17,PowerRanking!A:D,2,0)/10) -> -2.259450453 | BC17: 13 | BD17: T14 | BE17: 0
A18: 0.3439564067 | B18: T15 | E18: =IF(ISERROR(VLOOKUP($B18,'Round One'!$C:$J,8,0)),0,IF(AND(LEN($C18)<>0,$D18="Yes"),VLOOKUP($B18,'Round One'!$C:$J,8,0),0)) -> 0 | F18: =IF(ISERROR(VLOOKUP(E18,'Round One'!$C:$J,7,0)),0,IF(AND(LEN($C18)<>0,$D18="Yes"),VALUE(VLOOKUP(E18,'Round One'!$C:$J,7,0)+1E-24),0)) -> 0 | G18: 0 | H18: =IF(ISERROR(VLOOKUP($B18,'Round One'!$C:$J,6,0)),0,IF(AND(LEN($C18)<>0,$D18="Yes"),VLOOKUP($B18,'Round One'!$C:$J,6,0),"")) -> 0 | I18: =IF(ISERROR(VLOOKUP($B18,'Round One'!$C:$J,7,0)),0,IF(LEN($C18)<>0,VLOOKUP($B18,'Round One'!$C:$J,7,0)+1E-24,0)) -> 0 | J18: =IF(ISERROR(VLOOKUP($B18,'Round Two'!$C:$J,8,0)),0,IF(AND(LEN($C18)<>0,$D18="Yes"),VLOOKUP($B18,'Round Two'!$C:$J,8,0),"")) -> 0 | K18: =IF(ISERROR(VLOOKUP(J18,'Round Two'!$C:$J,7,0)),0,IF(AND(LEN($C18)<>0,$D18="Yes"),VLOOKUP(J18,'Round Two'!$C:$J,7,0)+1E-24,0)) -> 0 | L18: 0 | M18: =IF(ISERROR(VLOOKUP($B18,'Round Two'!$C:$J,6,0)),0,IF(AND(LEN($C18)<>0,$D18="Yes"),VLOOKUP($B18,'Round Two'!$C:$J,6,0),"")) -> 0 | N18: =IF(ISERROR(VLOOKUP($B18,'Round Two'!$C:$J,7,0)),0,IF(LEN($C18)<>0,VLOOKUP($B18,'Round Two'!$C:$J,7,0)+1E-24,0)) -> 0 | O18: =IF(ISERROR(VLOOKUP($B18,'Round Three'!$C:$J,8,0)),0,IF(AND(LEN($C18)<>0,$D18="Yes"),VLOOKUP($B18,'Round Three'!$C:$J,8,0),"")) -> 0 | P18: =IF(ISERROR(VLOOKUP(O18,'Round Three'!$C:$J,7,0)),0,IF(AND(LEN($C18)<>0,$D18="Yes"),VLOOKUP(O18,'Round Three'!$C:$J,7,0)+1E-24,0)) -> 0 | Q18: 0 | R18: =IF(ISERROR(VLOOKUP($B18,'Round Three'!$C:$J,6,0)),0,IF(AND(LEN($C18)<>0,$D18="Yes"),VLOOKUP($B18,'Round Three'!$C:$J,6,0),"")) -> 0 | S18: =IF(ISERROR(VLOOKUP($B18,'Round Three'!$C:$J,7,0)),0,IF(LEN($C18)<>0,VLOOKUP($B18,'Round Three'!$C:$J,7,0)+1E-24,0)) -> 0 | T18: =IF(ISERROR(VLOOKUP($B18,'Round Four'!$C:$J,8,0)),0,IF(AND(LEN($C18)<>0,$D18="Yes"),VLOOKUP($B18,'Round Four'!$C:$J,8,0),"")) -> 0 | U18: =IF(ISERROR(VLOOKUP(T18,'Round Four'!$C:$J,7,0)),0,IF(AND(LEN($C18)<>0,$D18="Yes"),VLOOKUP(T18,'Round Four'!$C:$J,7,0)+1E-24,0)) -> 0 | V18: 0 | W18: =IF(ISERROR(VLOOKUP($B18,'Round Four'!$C:$J,6,0)),0,IF(AND(LEN($C18)<>0,$D18="Yes"),VLOOKUP($B18,'Round Four'!$C:$J,6,0),"")) -> 0 | X18: =IF(ISERROR(VLOOKUP($B18,'Round Four'!$C:$J,7,0)),0,IF(LEN($C18)<>0,VLOOKUP($B18,'Round Four'!$C:$J,7,0)+1E-24,0)) -> 0 | Y18: =IF(ISERROR(VLOOKUP($B18,'Round Five'!$C:$J,8,0)),0,IF(AND(LEN($C18)<>0,$D18="Yes"),VLOOKUP($B18,'Round Five'!$C:$J,8,0),"")) -> 0 | Z18: =IF(ISERROR(VLOOKUP(Y18,'Round Five'!$C:$J,7,0)),0,IF(AND(LEN($C18)<>0,$D18="Yes"),VLOOKUP(Y18,'Round Five'!$C:$J,7,0)+1E-24,0)) -> 0 | AA18: 0 | AB18: =IF(ISERROR(VLOOKUP($B18,'Round Five'!$C:$J,6,0)),0,IF(AND(LEN($C18)<>0,$D18="Yes"),VLOOKUP($B18,'Round Five'!$C:$J,6,0),"")) -> 0 | AC18: =IF(ISERROR(VLOOKUP($B18,'Round Five'!$C:$J,7,0)),0,IF(LEN($C18)<>0,VLOOKUP($B18,'Round Five'!$C:$J,7,0)+1E-24,0)) -> 0 | AD18: =IF(ISERROR(VLOOKUP($B18,'Round Six'!$C:$J,8,0)),0,IF(AND(LEN($C18)<>0,$D18="Yes"),VLOOKUP($B18,'Round Six'!$C:$J,8,0),"")) -> 0 | AE18: =IF(ISERROR(VLOOKUP(AD18,'Round Six'!$C:$J,7,0)),0,IF(AND(LEN($C18)<>0,$D18="Yes"),VLOOKUP(AD18,'Round Six'!$C:$J,7,0)+1E-24,0)) -> 0 | AF18: 0 | AG18: =IF(ISERROR(VLOOKUP($B18,'Round Six'!$C:$J,6,0)),0,IF(AND(LEN($C18)<>0,$D18="Yes"),VLOOKUP($B18,'Round Six'!$C:$J,6,0),"")) -> 0 | AH18: =IF(ISERROR(VLOOKUP($B18,'Round Six'!$C:$J,7,0)),0,IF(LEN($C18)<>0,VLOOKUP($B18,'Round Six'!$C:$J,7,0)+1E-24,0)) -> 0 | AI18: =IF(ISERROR(VLOOKUP($B18,'Round Seven'!$C:$J,8,0)),0,IF(AND(LEN($C18)<>0,$D18="Yes"),VLOOKUP($B18,'Round Seven'!$C:$J,8,0),"")) -> 0 | AJ18: =IF(ISERROR(VLOOKUP(AI18,'Round Seven'!$C:$J,7,0)),0,IF(AND(LEN($C18)<>0,$D18="Yes"),VLOOKUP(AI18,'Round Seven'!$C:$J,7,0)+1E-24,0)) -> 0 | AK18: 0 | AL18: =IF(ISERROR(VLOOKUP($B18,'Round Seven'!$C:$J,6,0)),0,IF(AND(LEN($C18)<>0,$D18="Yes"),VLOOKUP($B18,'Round Seven'!$C:$J,6,0),"")) -> 0 | AM18: =IF(ISERROR(VLOOKUP($B18,'Round Seven'!$C:$J,7,0)),0,IF(LEN($C18)<>0,VLOOKUP($B18,'Round Seven'!$C:$J,7,0)+1E-24,0)) -> 0 | AN18: =IF(ISERROR(VLOOKUP($B18,'Round Eight'!$C:$J,8,0)),0,IF(AND(LEN($C18)<>0,$D18="Yes"),VLOOKUP($B18,'Round Eight'!$C:$J,8,0),"")) -> 0 | AO18: =IF(ISERROR(VLOOKUP(AN18,'Round Eight'!$C:$J,7,0)),0,IF(AND(LEN($C18)<>0,$D18="Yes"),VLOOKUP(AN18,'Round Eight'!$C:$J,7,0)+1E-24,0)) -> 0 | AP18: 0 | AQ18: =IF(ISERROR(VLOOKUP($B18,'Round Eight'!$C:$J,6,0)),0,IF(AND(LEN($C18)<>0,$D18="Yes"),VLOOKUP($B18,'Round Eight'!$C:$J,6,0),"")) -> 0 | AR18: =IF(ISERROR(VLOOKUP($B18,'Round Eight'!$C:$J,7,0)),0,IF(LEN($C18)<>0,VLOOKUP($B18,'Round Eight'!$C:$J,7,0)+1E-24,0)) -> 0 | AS18: =IF(ISERROR(VLOOKUP($B18,'Round Nine'!$C:$J,8,0)),0,IF(AND(LEN($C18)<>0,$D18="Yes"),VLOOKUP($B18,'Round Nine'!$C:$J,8,0),"")) -> 0 | AT18: =IF(ISERROR(VLOOKUP(AS18,'Round Nine'!$C:$J,7,0)),0,IF(AND(LEN($C18)<>0,$D18="Yes"),VLOOKUP(AS18,'Round Nine'!$C:$J,7,0)+1E-24,0)) -> 0 | AU18: 0 | AV18: =IF(ISERROR(VLOOKUP($B18,'Round Nine'!$C:$J,6,0)),0,IF(AND(LEN($C18)<>0,$D18="Yes"),VLOOKUP($B18,'Round Nine'!$C:$J,6,0),"")) -> 0 | AW18: =IF(ISERROR(VLOOKUP($B18,'Round Nine'!$C:$J,7,0)),0,IF(LEN($C18)<>0,VLOOKUP($B18,'Round Nine'!$C:$J,7,0)+1E-24,0)) -> 0 | AY18: 0 | AZ18: 0 | BA18: 0 | BB18: =IF(D18<>"Yes",A18*-10,AY18*1000000+AZ18*10000+BA18+(A18/100000))+IF(OR(Accel_Pairing_2!$B$4="no",D18<>"Yes",ISERROR(VLOOKUP(C18,PowerRanking!A:B,2,0))),0,(VLOOKUP(C18,PowerRanking!A:D,4,0)*1000000)+VLOOKUP(C18,PowerRanking!A:D,2,0)/10) -> -3.439564067 | BC18: 22 | BD18: T15 | BE18: 0
A19: 0.2980404971 | B19: T16 | E19: =IF(ISERROR(VLOOKUP($B19,'Round One'!$C:$J,8,0)),0,IF(AND(LEN($C19)<>0,$D19="Yes"),VLOOKUP($B19,'Round One'!$C:$J,8,0),0)) -> 0 | F19: =IF(ISERROR(VLOOKUP(E19,'Round One'!$C:$J,7,0)),0,IF(AND(LEN($C19)<>0,$D19="Yes"),VALUE(VLOOKUP(E19,'Round One'!$C:$J,7,0)+1E-24),0)) -> 0 | G19: 0 | H19: =IF(ISERROR(VLOOKUP($B19,'Round One'!$C:$J,6,0)),0,IF(AND(LEN($C19)<>0,$D19="Yes"),VLOOKUP($B19,'Round One'!$C:$J,6,0),"")) -> 0 | I19: =IF(ISERROR(VLOOKUP($B19,'Round One'!$C:$J,7,0)),0,IF(LEN($C19)<>0,VLOOKUP($B19,'Round One'!$C:$J,7,0)+1E-24,0)) -> 0 | J19: =IF(ISERROR(VLOOKUP($B19,'Round Two'!$C:$J,8,0)),0,IF(AND(LEN($C19)<>0,$D19="Yes"),VLOOKUP($B19,'Round Two'!$C:$J,8,0),"")) -> 0 | K19: =IF(ISERROR(VLOOKUP(J19,'Round Two'!$C:$J,7,0)),0,IF(AND(LEN($C19)<>0,$D19="Yes"),VLOOKUP(J19,'Round Two'!$C:$J,7,0)+1E-24,0)) -> 0 | L19: 0 | M19: =IF(ISERROR(VLOOKUP($B19,'Round Two'!$C:$J,6,0)),0,IF(AND(LEN($C19)<>0,$D19="Yes"),VLOOKUP($B19,'Round Two'!$C:$J,6,0),"")) -> 0 | N19: =IF(ISERROR(VLOOKUP($B19,'Round Two'!$C:$J,7,0)),0,IF(LEN($C19)<>0,VLOOKUP($B19,'Round Two'!$C:$J,7,0)+1E-24,0)) -> 0 | O19: =IF(ISERROR(VLOOKUP($B19,'Round Three'!$C:$J,8,0)),0,IF(AND(LEN($C19)<>0,$D19="Yes"),VLOOKUP($B19,'Round Three'!$C:$J,8,0),"")) -> 0 | P19: =IF(ISERROR(VLOOKUP(O19,'Round Three'!$C:$J,7,0)),0,IF(AND(LEN($C19)<>0,$D19="Yes"),VLOOKUP(O19,'Round Three'!$C:$J,7,0)+1E-24,0)) -> 0 | Q19: 0 | R19: =IF(ISERROR(VLOOKUP($B19,'Round Three'!$C:$J,6,0)),0,IF(AND(LEN($C19)<>0,$D19="Yes"),VLOOKUP($B19,'Round Three'!$C:$J,6,0),"")) -> 0 | S19: =IF(ISERROR(VLOOKUP($B19,'Round Three'!$C:$J,7,0)),0,IF(LEN($C19)<>0,VLOOKUP($B19,'Round Three'!$C:$J,7,0)+1E-24,0)) -> 0 | T19: =IF(ISERROR(VLOOKUP($B19,'Round Four'!$C:$J,8,0)),0,IF(AND(LEN($C19)<>0,$D19="Yes"),VLOOKUP($B19,'Round Four'!$C:$J,8,0),"")) -> 0 | U19: =IF(ISERROR(VLOOKUP(T19,'Round Four'!$C:$J,7,0)),0,IF(AND(LEN($C19)<>0,$D19="Yes"),VLOOKUP(T19,'Round Four'!$C:$J,7,0)+1E-24,0)) -> 0 | V19: 0 | W19: =IF(ISERROR(VLOOKUP($B19,'Round Four'!$C:$J,6,0)),0,IF(AND(LEN($C19)<>0,$D19="Yes"),VLOOKUP($B19,'Round Four'!$C:$J,6,0),"")) -> 0 | X19: =IF(ISERROR(VLOOKUP($B19,'Round Four'!$C:$J,7,0)),0,IF(LEN($C19)<>0,VLOOKUP($B19,'Round Four'!$C:$J,7,0)+1E-24,0)) -> 0 | Y19: =IF(ISERROR(VLOOKUP($B19,'Round Five'!$C:$J,8,0)),0,IF(AND(LEN($C19)<>0,$D19="Yes"),VLOOKUP($B19,'Round Five'!$C:$J,8,0),"")) -> 0 | Z19: =IF(ISERROR(VLOOKUP(Y19,'Round Five'!$C:$J,7,0)),0,IF(AND(LEN($C19)<>0,$D19="Yes"),VLOOKUP(Y19,'Round Five'!$C:$J,7,0)+1E-24,0)) -> 0 | AA19: 0 | AB19: =IF(ISERROR(VLOOKUP($B19,'Round Five'!$C:$J,6,0)),0,IF(AND(LEN($C19)<>0,$D19="Yes"),VLOOKUP($B19,'Round Five'!$C:$J,6,0),"")) -> 0 | AC19: =IF(ISERROR(VLOOKUP($B19,'Round Five'!$C:$J,7,0)),0,IF(LEN($C19)<>0,VLOOKUP($B19,'Round Five'!$C:$J,7,0)+1E-24,0)) -> 0 | AD19: =IF(ISERROR(VLOOKUP($B19,'Round Six'!$C:$J,8,0)),0,IF(AND(LEN($C19)<>0,$D19="Yes"),VLOOKUP($B19,'Round Six'!$C:$J,8,0),"")) -> 0 | AE19: =IF(ISERROR(VLOOKUP(AD19,'Round Six'!$C:$J,7,0)),0,IF(AND(LEN($C19)<>0,$D19="Yes"),VLOOKUP(AD19,'Round Six'!$C:$J,7,0)+1E-24,0)) -> 0 | AF19: 0 | AG19: =IF(ISERROR(VLOOKUP($B19,'Round Six'!$C:$J,6,0)),0,IF(AND(LEN($C19)<>0,$D19="Yes"),VLOOKUP($B19,'Round Six'!$C:$J,6,0),"")) -> 0 | AH19: =IF(ISERROR(VLOOKUP($B19,'Round Six'!$C:$J,7,0)),0,IF(LEN($C19)<>0,VLOOKUP($B19,'Round Six'!$C:$J,7,0)+1E-24,0)) -> 0 | AI19: =IF(ISERROR(VLOOKUP($B19,'Round Seven'!$C:$J,8,0)),0,IF(AND(LEN($C19)<>0,$D19="Yes"),VLOOKUP($B19,'Round Seven'!$C:$J,8,0),"")) -> 0 | AJ19: =IF(ISERROR(VLOOKUP(AI19,'Round Seven'!$C:$J,7,0)),0,IF(AND(LEN($C19)<>0,$D19="Yes"),VLOOKUP(AI19,'Round Seven'!$C:$J,7,0)+1E-24,0)) -> 0 | AK19: 0 | AL19: =IF(ISERROR(VLOOKUP($B19,'Round Seven'!$C:$J,6,0)),0,IF(AND(LEN($C19)<>0,$D19="Yes"),VLOOKUP($B19,'Round Seven'!$C:$J,6,0),"")) -> 0 | AM19: =IF(ISERROR(VLOOKUP($B19,'Round Seven'!$C:$J,7,0)),0,IF(LEN($C19)<>0,VLOOKUP($B19,'Round Seven'!$C:$J,7,0)+1E-24,0)) -> 0 | AN19: =IF(ISERROR(VLOOKUP($B19,'Round Eight'!$C:$J,8,0)),0,IF(AND(LEN($C19)<>0,$D19="Yes"),VLOOKUP($B19,'Round Eight'!$C:$J,8,0),"")) -> 0 | AO19: =IF(ISERROR(VLOOKUP(AN19,'Round Eight'!$C:$J,7,0)),0,IF(AND(LEN($C19)<>0,$D19="Yes"),VLOOKUP(AN19,'Round Eight'!$C:$J,7,0)+1E-24,0)) -> 0 | AP19: 0 | AQ19: =IF(ISERROR(VLOOKUP($B19,'Round Eight'!$C:$J,6,0)),0,IF(AND(LEN($C19)<>0,$D19="Yes"),VLOOKUP($B19,'Round Eight'!$C:$J,6,0),"")) -> 0 | AR19: =IF(ISERROR(VLOOKUP($B19,'Round Eight'!$C:$J,7,0)),0,IF(LEN($C19)<>0,VLOOKUP($B19,'Round Eight'!$C:$J,7,0)+1E-24,0)) -> 0 | AS19: =IF(ISERROR(VLOOKUP($B19,'Round Nine'!$C:$J,8,0)),0,IF(AND(LEN($C19)<>0,$D19="Yes"),VLOOKUP($B19,'Round Nine'!$C:$J,8,0),"")) -> 0 | AT19: =IF(ISERROR(VLOOKUP(AS19,'Round Nine'!$C:$J,7,0)),0,IF(AND(LEN($C19)<>0,$D19="Yes"),VLOOKUP(AS19,'Round Nine'!$C:$J,7,0)+1E-24,0)) -> 0 | AU19: 0 | AV19: =IF(ISERROR(VLOOKUP($B19,'Round Nine'!$C:$J,6,0)),0,IF(AND(LEN($C19)<>0,$D19="Yes"),VLOOKUP($B19,'Round Nine'!$C:$J,6,0),"")) -> 0 | AW19: =IF(ISERROR(VLOOKUP($B19,'Round Nine'!$C:$J,7,0)),0,IF(LEN($C19)<>0,VLOOKUP($B19,'Round Nine'!$C:$J,7,0)+1E-24,0)) -> 0 | AY19: 0 | AZ19: 0 | BA19: =SUM(G19,L19,Q19,V19,AA19,AF19,AK19,AP19,AU19)-SUM(F19,K19,P19,U19,Z19,AE19,AJ19,AO19,AT19) -> 0 | BB19: =IF(D19<>"Yes",A19*-10,AY19*1000000+AZ19*10000+BA19+(A19/100000))+IF(OR(Accel_Pairing_2!$B$4="no",D19<>"Yes",ISERROR(VLOOKUP(C19,PowerRanking!A:B,2,0))),0,(VLOOKUP(C19,PowerRanking!A:D,4,0)*1000000)+VLOOKUP(C19,PowerRanking!A:D,2,0)/10) -> -2.980404971 | BC19: 18 | BD19: T16 | BE19: 0
A20: 0.3354452154 | B20: T17 | E20: =IF(ISERROR(VLOOKUP($B20,'Round One'!$C:$J,8,0)),0,IF(AND(LEN($C20)<>0,$D20="Yes"),VLOOKUP($B20,'Round One'!$C:$J,8,0),0)) -> 0 | F20: =IF(ISERROR(VLOOKUP(E20,'Round One'!$C:$J,7,0)),0,IF(AND(LEN($C20)<>0,$D20="Yes"),VALUE(VLOOKUP(E20,'Round One'!$C:$J,7,0)+1E-24),0)) -> 0 | G20: 0 | H20: =IF(ISERROR(VLOOKUP($B20,'Round One'!$C:$J,6,0)),0,IF(AND(LEN($C20)<>0,$D20="Yes"),VLOOKUP($B20,'Round One'!$C:$J,6,0),"")) -> 0 | I20: =IF(ISERROR(VLOOKUP($B20,'Round One'!$C:$J,7,0)),0,IF(LEN($C20)<>0,VLOOKUP($B20,'Round One'!$C:$J,7,0)+1E-24,0)) -> 0 | J20: =IF(ISERROR(VLOOKUP($B20,'Round Two'!$C:$J,8,0)),0,IF(AND(LEN($C20)<>0,$D20="Yes"),VLOOKUP($B20,'Round Two'!$C:$J,8,0),"")) -> 0 | K20: =IF(ISERROR(VLOOKUP(J20,'Round Two'!$C:$J,7,0)),0,IF(AND(LEN($C20)<>0,$D20="Yes"),VLOOKUP(J20,'Round Two'!$C:$J,7,0)+1E-24,0)) -> 0 | L20: 0 | M20: =IF(ISERROR(VLOOKUP($B20,'Round Two'!$C:$J,6,0)),0,IF(AND(LEN($C20)<>0,$D20="Yes"),VLOOKUP($B20,'Round Two'!$C:$J,6,0),"")) -> 0 | N20: =IF(ISERROR(VLOOKUP($B20,'Round Two'!$C:$J,7,0)),0,IF(LEN($C20)<>0,VLOOKUP($B20,'Round Two'!$C:$J,7,0)+1E-24,0)) -> 0 | O20: =IF(ISERROR(VLOOKUP($B20,'Round Three'!$C:$J,8,0)),0,IF(AND(LEN($C20)<>0,$D20="Yes"),VLOOKUP($B20,'Round Three'!$C:$J,8,0),"")) -> 0 | P20: =IF(ISERROR(VLOOKUP(O20,'Round Three'!$C:$J,7,0)),0,IF(AND(LEN($C20)<>0,$D20="Yes"),VLOOKUP(O20,'Round Three'!$C:$J,7,0)+1E-24,0)) -> 0 | Q20: 0 | R20: =IF(ISERROR(VLOOKUP($B20,'Round Three'!$C:$J,6,0)),0,IF(AND(LEN($C20)<>0,$D20="Yes"),VLOOKUP($B20,'Round Three'!$C:$J,6,0),"")) -> 0 | S20: =IF(ISERROR(VLOOKUP($B20,'Round Three'!$C:$J,7,0)),0,IF(LEN($C20)<>0,VLOOKUP($B20,'Round Three'!$C:$J,7,0)+1E-24,0)) -> 0 | T20: =IF(ISERROR(VLOOKUP($B20,'Round Four'!$C:$J,8,0)),0,IF(AND(LEN($C20)<>0,$D20="Yes"),VLOOKUP($B20,'Round Four'!$C:$J,8,0),"")) -> 0 | U20: =IF(ISERROR(VLOOKUP(T20,'Round Four'!$C:$J,7,0)),0,IF(AND(LEN($C20)<>0,$D20="Yes"),VLOOKUP(T20,'Round Four'!$C:$J,7,0)+1E-24,0)) -> 0 | V20: 0 | W20: =IF(ISERROR(VLOOKUP($B20,'Round Four'!$C:$J,6,0)),0,IF(AND(LEN($C20)<>0,$D20="Yes"),VLOOKUP($B20,'Round Four'!$C:$J,6,0),"")) -> 0 | X20: =IF(ISERROR(VLOOKUP($B20,'Round Four'!$C:$J,7,0)),0,IF(LEN($C20)<>0,VLOOKUP($B20,'Round Four'!$C:$J,7,0)+1E-24,0)) -> 0 | Y20: =IF(ISERROR(VLOOKUP($B20,'Round Five'!$C:$J,8,0)),0,IF(AND(LEN($C20)<>0,$D20="Yes"),VLOOKUP($B20,'Round Five'!$C:$J,8,0),"")) -> 0 | Z20: =IF(ISERROR(VLOOKUP(Y20,'Round Five'!$C:$J,7,0)),0,IF(AND(LEN($C20)<>0,$D20="Yes"),VLOOKUP(Y20,'Round Five'!$C:$J,7,0)+1E-24,0)) -> 0 | AA20: 0 | AB20: =IF(ISERROR(VLOOKUP($B20,'Round Five'!$C:$J,6,0)),0,IF(AND(LEN($C20)<>0,$D20="Yes"),VLOOKUP($B20,'Round Five'!$C:$J,6,0),"")) -> 0 | AC20: =IF(ISERROR(VLOOKUP($B20,'Round Five'!$C:$J,7,0)),0,IF(LEN($C20)<>0,VLOOKUP($B20,'Round Five'!$C:$J,7,0)+1E-24,0)) -> 0 | AD20: =IF(ISERROR(VLOOKUP($B20,'Round Six'!$C:$J,8,0)),0,IF(AND(LEN($C20)<>0,$D20="Yes"),VLOOKUP($B20,'Round Six'!$C:$J,8,0),"")) -> 0 | AE20: =IF(ISERROR(VLOOKUP(AD20,'Round Six'!$C:$J,7,0)),0,IF(AND(LEN($C20)<>0,$D20="Yes"),VLOOKUP(AD20,'Round Six'!$C:$J,7,0)+1E-24,0)) -> 0 | AF20: 0 | AG20: =IF(ISERROR(VLOOKUP($B20,'Round Six'!$C:$J,6,0)),0,IF(AND(LEN($C20)<>0,$D20="Yes"),VLOOKUP($B20,'Round Six'!$C:$J,6,0),"")) -> 0 | AH20: =IF(ISERROR(VLOOKUP($B20,'Round Six'!$C:$J,7,0)),0,IF(LEN($C20)<>0,VLOOKUP($B20,'Round Six'!$C:$J,7,0)+1E-24,0)) -> 0 | AI20: =IF(ISERROR(VLOOKUP($B20,'Round Seven'!$C:$J,8,0)),0,IF(AND(LEN($C20)<>0,$D20="Yes"),VLOOKUP($B20,'Round Seven'!$C:$J,8,0),"")) -> 0 | AJ20: =IF(ISERROR(VLOOKUP(AI20,'Round Seven'!$C:$J,7,0)),0,IF(AND(LEN($C20)<>0,$D20="Yes"),VLOOKUP(AI20,'Round Seven'!$C:$J,7,0)+1E-24,0)) -> 0 | AK20: 0 | AL20: =IF(ISERROR(VLOOKUP($B20,'Round Seven'!$C:$J,6,0)),0,IF(AND(LEN($C20)<>0,$D20="Yes"),VLOOKUP($B20,'Round Seven'!$C:$J,6,0),"")) -> 0 | AM20: =IF(ISERROR(VLOOKUP($B20,'Round Seven'!$C:$J,7,0)),0,IF(LEN($C20)<>0,VLOOKUP($B20,'Round Seven'!$C:$J,7,0)+1E-24,0)) -> 0 | AN20: =IF(ISERROR(VLOOKUP($B20,'Round Eight'!$C:$J,8,0)),0,IF(AND(LEN($C20)<>0,$D20="Yes"),VLOOKUP($B20,'Round Eight'!$C:$J,8,0),"")) -> 0 | AO20: =IF(ISERROR(VLOOKUP(AN20,'Round Eight'!$C:$J,7,0)),0,IF(AND(LEN($C20)<>0,$D20="Yes"),VLOOKUP(AN20,'Round Eight'!$C:$J,7,0)+1E-24,0)) -> 0 | AP20: 0 | AQ20: =IF(ISERROR(VLOOKUP($B20,'Round Eight'!$C:$J,6,0)),0,IF(AND(LEN($C20)<>0,$D20="Yes"),VLOOKUP($B20,'Round Eight'!$C:$J,6,0),"")) -> 0 | AR20: =IF(ISERROR(VLOOKUP($B20,'Round Eight'!$C:$J,7,0)),0,IF(LEN($C20)<>0,VLOOKUP($B20,'Round Eight'!$C:$J,7,0)+1E-24,0)) -> 0 | AS20: =IF(ISERROR(VLOOKUP($B20,'Round Nine'!$C:$J,8,0)),0,IF(AND(LEN($C20)<>0,$D20="Yes"),VLOOKUP($B20,'Round Nine'!$C:$J,8,0),"")) -> 0 | AT20: =IF(ISERROR(VLOOKUP(AS20,'Round Nine'!$C:$J,7,0)),0,IF(AND(LEN($C20)<>0,$D20="Yes"),VLOOKUP(AS20,'Round Nine'!$C:$J,7,0)+1E-24,0)) -> 0 | AU20: 0 | AV20: =IF(ISERROR(VLOOKUP($B20,'Round Nine'!$C:$J,6,0)),0,IF(AND(LEN($C20)<>0,$D20="Yes"),VLOOKUP($B20,'Round Nine'!$C:$J,6,0),"")) -> 0 | AW20: =IF(ISERROR(VLOOKUP($B20,'Round Nine'!$C:$J,7,0)),0,IF(LEN($C20)<>0,VLOOKUP($B20,'Round Nine'!$C:$J,7,0)+1E-24,0)) -> 0 | AY20: 0 | AZ20: 0 | BA20: 0 | BB20: =IF(D20<>"Yes",A20*-10,AY20*1000000+AZ20*10000+BA20+(A20/100000))+IF(OR(Accel_Pairing_2!$B$4="no",D20<>"Yes",ISERROR(VLOOKUP(C20,PowerRanking!A:B,2,0))),0,(VLOOKUP(C20,PowerRanking!A:D,4,0)*1000000)+VLOOKUP(C20,PowerRanking!A:D,2,0)/10) -> -3.354452154 | BC20: 20 | BD20: T17 | BE20: 0
A21: 0.3945366055 | B21: T18 | E21: =IF(ISERROR(VLOOKUP($B21,'Round One'!$C:$J,8,0)),0,IF(AND(LEN($C21)<>0,$D21="Yes"),VLOOKUP($B21,'Round One'!$C:$J,8,0),0)) -> 0 | F21: =IF(ISERROR(VLOOKUP(E21,'Round One'!$C:$J,7,0)),0,IF(AND(LEN($C21)<>0,$D21="Yes"),VALUE(VLOOKUP(E21,'Round One'!$C:$J,7,0)+1E-24),0)) -> 0 | G21: 0 | H21: =IF(ISERROR(VLOOKUP($B21,'Round One'!$C:$J,6,0)),0,IF(AND(LEN($C21)<>0,$D21="Yes"),VLOOKUP($B21,'Round One'!$C:$J,6,0),"")) -> 0 | I21: =IF(ISERROR(VLOOKUP($B21,'Round One'!$C:$J,7,0)),0,IF(LEN($C21)<>0,VLOOKUP($B21,'Round One'!$C:$J,7,0)+1E-24,0)) -> 0 | J21: =IF(ISERROR(VLOOKUP($B21,'Round Two'!$C:$J,8,0)),0,IF(AND(LEN($C21)<>0,$D21="Yes"),VLOOKUP($B21,'Round Two'!$C:$J,8,0),"")) -> 0 | K21: =IF(ISERROR(VLOOKUP(J21,'Round Two'!$C:$J,7,0)),0,IF(AND(LEN($C21)<>0,$D21="Yes"),VLOOKUP(J21,'Round Two'!$C:$J,7,0)+1E-24,0)) -> 0 | L21: 0 | M21: =IF(ISERROR(VLOOKUP($B21,'Round Two'!$C:$J,6,0)),0,IF(AND(LEN($C21)<>0,$D21="Yes"),VLOOKUP($B21,'Round Two'!$C:$J,6,0),"")) -> 0 | N21: =IF(ISERROR(VLOOKUP($B21,'Round Two'!$C:$J,7,0)),0,IF(LEN($C21)<>0,VLOOKUP($B21,'Round Two'!$C:$J,7,0)+1E-24,0)) -> 0 | O21: =IF(ISERROR(VLOOKUP($B21,'Round Three'!$C:$J,8,0)),0,IF(AND(LEN($C21)<>0,$D21="Yes"),VLOOKUP($B21,'Round Three'!$C:$J,8,0),"")) -> 0 | P21: =IF(ISERROR(VLOOKUP(O21,'Round Three'!$C:$J,7,0)),0,IF(AND(LEN($C21)<>0,$D21="Yes"),VLOOKUP(O21,'Round Three'!$C:$J,7,0)+1E-24,0)) -> 0 | Q21: 0 | R21: =IF(ISERROR(VLOOKUP($B21,'Round Three'!$C:$J,6,0)),0,IF(AND(LEN($C21)<>0,$D21="Yes"),VLOOKUP($B21,'Round Three'!$C:$J,6,0),"")) -> 0 | S21: =IF(ISERROR(VLOOKUP($B21,'Round Three'!$C:$J,7,0)),0,IF(LEN($C21)<>0,VLOOKUP($B21,'Round Three'!$C:$J,7,0)+1E-24,0)) -> 0 | T21: =IF(ISERROR(VLOOKUP($B21,'Round Four'!$C:$J,8,0)),0,IF(AND(LEN($C21)<>0,$D21="Yes"),VLOOKUP($B21,'Round Four'!$C:$J,8,0),"")) -> 0 | U21: =IF(ISERROR(VLOOKUP(T21,'Round Four'!$C:$J,7,0)),0,IF(AND(LEN($C21)<>0,$D21="Yes"),VLOOKUP(T21,'Round Four'!$C:$J,7,0)+1E-24,0)) -> 0 | V21: 0 | W21: =IF(ISERROR(VLOOKUP($B21,'Round Four'!$C:$J,6,0)),0,IF(AND(LEN($C21)<>0,$D21="Yes"),VLOOKUP($B21,'Round Four'!$C:$J,6,0),"")) -> 0 | X21: =IF(ISERROR(VLOOKUP($B21,'Round Four'!$C:$J,7,0)),0,IF(LEN($C21)<>0,VLOOKUP($B21,'Round Four'!$C:$J,7,0)+1E-24,0)) -> 0 | Y21: =IF(ISERROR(VLOOKUP($B21,'Round Five'!$C:$J,8,0)),0,IF(AND(LEN($C21)<>0,$D21="Yes"),VLOOKUP($B21,'Round Five'!$C:$J,8,0),"")) -> 0 | Z21: =IF(ISERROR(VLOOKUP(Y21,'Round Five'!$C:$J,7,0)),0,IF(AND(LEN($C21)<>0,$D21="Yes"),VLOOKUP(Y21,'Round Five'!$C:$J,7,0)+1E-24,0)) -> 0 | AA21: 0 | AB21: =IF(ISERROR(VLOOKUP($B21,'Round Five'!$C:$J,6,0)),0,IF(AND(LEN($C21)<>0,$D21="Yes"),VLOOKUP($B21,'Round Five'!$C:$J,6,0),"")) -> 0 | AC21: =IF(ISERROR(VLOOKUP($B21,'Round Five'!$C:$J,7,0)),0,IF(LEN($C21)<>0,VLOOKUP($B21,'Round Five'!$C:$J,7,0)+1E-24,0)) -> 0 | AD21: =IF(ISERROR(VLOOKUP($B21,'Round Six'!$C:$J,8,0)),0,IF(AND(LEN($C21)<>0,$D21="Yes"),VLOOKUP($B21,'Round Six'!$C:$J,8,0),"")) -> 0 | AE21: =IF(ISERROR(VLOOKUP(AD21,'Round Six'!$C:$J,7,0)),0,IF(AND(LEN($C21)<>0,$D21="Yes"),VLOOKUP(AD21,'Round Six'!$C:$J,7,0)+1E-24,0)) -> 0 | AF21: 0 | AG21: =IF(ISERROR(VLOOKUP($B21,'Round Six'!$C:$J,6,0)),0,IF(AND(LEN($C21)<>0,$D21="Yes"),VLOOKUP($B21,'Round Six'!$C:$J,6,0),"")) -> 0 | AH21: =IF(ISERROR(VLOOKUP($B21,'Round Six'!$C:$J,7,0)),0,IF(LEN($C21)<>0,VLOOKUP($B21,'Round Six'!$C:$J,7,0)+1E-24,0)) -> 0 | AI21: =IF(ISERROR(VLOOKUP($B21,'Round Seven'!$C:$J,8,0)),0,IF(AND(LEN($C21)<>0,$D21="Yes"),VLOOKUP($B21,'Round Seven'!$C:$J,8,0),"")) -> 0 | AJ21: =IF(ISERROR(VLOOKUP(AI21,'Round Seven'!$C:$J,7,0)),0,IF(AND(LEN($C21)<>0,$D21="Yes"),VLOOKUP(AI21,'Round Seven'!$C:$J,7,0)+1E-24,0)) -> 0 | AK21: 0 | AL21: =IF(ISERROR(VLOOKUP($B21,'Round Seven'!$C:$J,6,0)),0,IF(AND(LEN($C21)<>0,$D21="Yes"),VLOOKUP($B21,'Round Seven'!$C:$J,6,0),"")) -> 0 | AM21: =IF(ISERROR(VLOOKUP($B21,'Round Seven'!$C:$J,7,0)),0,IF(LEN($C21)<>0,VLOOKUP($B21,'Round Seven'!$C:$J,7,0)+1E-24,0)) -> 0 | AN21: =IF(ISERROR(VLOOKUP($B21,'Round Eight'!$C:$J,8,0)),0,IF(AND(LEN($C21)<>0,$D21="Yes"),VLOOKUP($B21,'Round Eight'!$C:$J,8,0),"")) -> 0 | AO21: =IF(ISERROR(VLOOKUP(AN21,'Round Eight'!$C:$J,7,0)),0,IF(AND(LEN($C21)<>0,$D21="Yes"),VLOOKUP(AN21,'Round Eight'!$C:$J,7,0)+1E-24,0)) -> 0 | AP21: 0 | AQ21: =IF(ISERROR(VLOOKUP($B21,'Round Eight'!$C:$J,6,0)),0,IF(AND(LEN($C21)<>0,$D21="Yes"),VLOOKUP($B21,'Round Eight'!$C:$J,6,0),"")) -> 0 | AR21: =IF(ISERROR(VLOOKUP($B21,'Round Eight'!$C:$J,7,0)),0,IF(LEN($C21)<>0,VLOOKUP($B21,'Round Eight'!$C:$J,7,0)+1E-24,0)) -> 0 | AS21: =IF(ISERROR(VLOOKUP($B21,'Round Nine'!$C:$J,8,0)),0,IF(AND(LEN($C21)<>0,$D21="Yes"),VLOOKUP($B21,'Round Nine'!$C:$J,8,0),"")) -> 0 | AT21: =IF(ISERROR(VLOOKUP(AS21,'Round Nine'!$C:$J,7,0)),0,IF(AND(LEN($C21)<>0,$D21="Yes"),VLOOKUP(AS21,'Round Nine'!$C:$J,7,0)+1E-24,0)) -> 0 | AU21: 0 | AV21: =IF(ISERROR(VLOOKUP($B21,'Round Nine'!$C:$J,6,0)),0,IF(AND(LEN($C21)<>0,$D21="Yes"),VLOOKUP($B21,'Round Nine'!$C:$J,6,0),"")) -> 0 | AW21: =IF(ISERROR(VLOOKUP($B21,'Round Nine'!$C:$J,7,0)),0,IF(LEN($C21)<>0,VLOOKUP($B21,'Round Nine'!$C:$J,7,0)+1E-24,0)) -> 0 | AY21: 0 | AZ21: 0 | BA21: 0 | BB21: =IF(D21<>"Yes",A21*-10,AY21*1000000+AZ21*10000+BA21+(A21/100000))+IF(OR(Accel_Pairing_2!$B$4="no",D21<>"Yes",ISERROR(VLOOKUP(C21,PowerRanking!A:B,2,0))),0,(VLOOKUP(C21,PowerRanking!A:D,4,0)*1000000)+VLOOKUP(C21,PowerRanking!A:D,2,0)/10) -> -3.945366055 | BC21: 26 | BD21: T18 | BE21: 0
A22: 0.5302692634 | B22: T19 | E22: =IF(ISERROR(VLOOKUP($B22,'Round One'!$C:$J,8,0)),0,IF(AND(LEN($C22)<>0,$D22="Yes"),VLOOKUP($B22,'Round One'!$C:$J,8,0),0)) -> 0 | F22: =IF(ISERROR(VLOOKUP(E22,'Round One'!$C:$J,7,0)),0,IF(AND(LEN($C22)<>0,$D22="Yes"),VALUE(VLOOKUP(E22,'Round One'!$C:$J,7,0)+1E-24),0)) -> 0 | G22: 0 | H22: =IF(ISERROR(VLOOKUP($B22,'Round One'!$C:$J,6,0)),0,IF(AND(LEN($C22)<>0,$D22="Yes"),VLOOKUP($B22,'Round One'!$C:$J,6,0),"")) -> 0 | I22: =IF(ISERROR(VLOOKUP($B22,'Round One'!$C:$J,7,0)),0,IF(LEN($C22)<>0,VLOOKUP($B22,'Round One'!$C:$J,7,0)+1E-24,0)) -> 0 | J22: =IF(ISERROR(VLOOKUP($B22,'Round Two'!$C:$J,8,0)),0,IF(AND(LEN($C22)<>0,$D22="Yes"),VLOOKUP($B22,'Round Two'!$C:$J,8,0),"")) -> 0 | K22: =IF(ISERROR(VLOOKUP(J22,'Round Two'!$C:$J,7,0)),0,IF(AND(LEN($C22)<>0,$D22="Yes"),VLOOKUP(J22,'Round Two'!$C:$J,7,0)+1E-24,0)) -> 0 | L22: 0 | M22: =IF(ISERROR(VLOOKUP($B22,'Round Two'!$C:$J,6,0)),0,IF(AND(LEN($C22)<>0,$D22="Yes"),VLOOKUP($B22,'Round Two'!$C:$J,6,0),"")) -> 0 | N22: =IF(ISERROR(VLOOKUP($B22,'Round Two'!$C:$J,7,0)),0,IF(LEN($C22)<>0,VLOOKUP($B22,'Round Two'!$C:$J,7,0)+1E-24,0)) -> 0 | O22: =IF(ISERROR(VLOOKUP($B22,'Round Three'!$C:$J,8,0)),0,IF(AND(LEN($C22)<>0,$D22="Yes"),VLOOKUP($B22,'Round Three'!$C:$J,8,0),"")) -> 0 | P22: =IF(ISERROR(VLOOKUP(O22,'Round Three'!$C:$J,7,0)),0,IF(AND(LEN($C22)<>0,$D22="Yes"),VLOOKUP(O22,'Round Three'!$C:$J,7,0)+1E-24,0)) -> 0 | Q22: 0 | R22: =IF(ISERROR(VLOOKUP($B22,'Round Three'!$C:$J,6,0)),0,IF(AND(LEN($C22)<>0,$D22="Yes"),VLOOKUP($B22,'Round Three'!$C:$J,6,0),"")) -> 0 | S22: =IF(ISERROR(VLOOKUP($B22,'Round Three'!$C:$J,7,0)),0,IF(LEN($C22)<>0,VLOOKUP($B22,'Round Three'!$C:$J,7,0)+1E-24,0)) -> 0 | T22: =IF(ISERROR(VLOOKUP($B22,'Round Four'!$C:$J,8,0)),0,IF(AND(LEN($C22)<>0,$D22="Yes"),VLOOKUP($B22,'Round Four'!$C:$J,8,0),"")) -> 0 | U22: =IF(ISERROR(VLOOKUP(T22,'Round Four'!$C:$J,7,0)),0,IF(AND(LEN($C22)<>0,$D22="Yes"),VLOOKUP(T22,'Round Four'!$C:$J,7,0)+1E-24,0)) -> 0 | V22: 0 | W22: =IF(ISERROR(VLOOKUP($B22,'Round Four'!$C:$J,6,0)),0,IF(AND(LEN($C22)<>0,$D22="Yes"),VLOOKUP($B22,'Round Four'!$C:$J,6,0),"")) -> 0 | X22: =IF(ISERROR(VLOOKUP($B22,'Round Four'!$C:$J,7,0)),0,IF(LEN($C22)<>0,VLOOKUP($B22,'Round Four'!$C:$J,7,0)+1E-24,0)) -> 0 | Y22: =IF(ISERROR(VLOOKUP($B22,'Round Five'!$C:$J,8,0)),0,IF(AND(LEN($C22)<>0,$D22="Yes"),VLOOKUP($B22,'Round Five'!$C:$J,8,0),"")) -> 0 | Z22: =IF(ISERROR(VLOOKUP(Y22,'Round Five'!$C:$J,7,0)),0,IF(AND(LEN($C22)<>0,$D22="Yes"),VLOOKUP(Y22,'Round Five'!$C:$J,7,0)+1E-24,0)) -> 0 | AA22: 0 | AB22: =IF(ISERROR(VLOOKUP($B22,'Round Five'!$C:$J,6,0)),0,IF(AND(LEN($C22)<>0,$D22="Yes"),VLOOKUP($B22,'Round Five'!$C:$J,6,0),"")) -> 0 | AC22: =IF(ISERROR(VLOOKUP($B22,'Round Five'!$C:$J,7,0)),0,IF(LEN($C22)<>0,VLOOKUP($B22,'Round Five'!$C:$J,7,0)+1E-24,0)) -> 0 | AD22: =IF(ISERROR(VLOOKUP($B22,'Round Six'!$C:$J,8,0)),0,IF(AND(LEN($C22)<>0,$D22="Yes"),VLOOKUP($B22,'Round Six'!$C:$J,8,0),"")) -> 0 | AE22: =IF(ISERROR(VLOOKUP(AD22,'Round Six'!$C:$J,7,0)),0,IF(AND(LEN($C22)<>0,$D22="Yes"),VLOOKUP(AD22,'Round Six'!$C:$J,7,0)+1E-24,0)) -> 0 | AF22: 0 | AG22: =IF(ISERROR(VLOOKUP($B22,'Round Six'!$C:$J,6,0)),0,IF(AND(LEN($C22)<>0,$D22="Yes"),VLOOKUP($B22,'Round Six'!$C:$J,6,0),"")) -> 0 | AH22: =IF(ISERROR(VLOOKUP($B22,'Round Six'!$C:$J,7,0)),0,IF(LEN($C22)<>0,VLOOKUP($B22,'Round Six'!$C:$J,7,0)+1E-24,0)) -> 0 | AI22: =IF(ISERROR(VLOOKUP($B22,'Round Seven'!$C:$J,8,0)),0,IF(AND(LEN($C22)<>0,$D22="Yes"),VLOOKUP($B22,'Round Seven'!$C:$J,8,0),"")) -> 0 | AJ22: =IF(ISERROR(VLOOKUP(AI22,'Round Seven'!$C:$J,7,0)),0,IF(AND(LEN($C22)<>0,$D22="Yes"),VLOOKUP(AI22,'Round Seven'!$C:$J,7,0)+1E-24,0)) -> 0 | AK22: 0 | AL22: =IF(ISERROR(VLOOKUP($B22,'Round Seven'!$C:$J,6,0)),0,IF(AND(LEN($C22)<>0,$D22="Yes"),VLOOKUP($B22,'Round Seven'!$C:$J,6,0),"")) -> 0 | AM22: =IF(ISERROR(VLOOKUP($B22,'Round Seven'!$C:$J,7,0)),0,IF(LEN($C22)<>0,VLOOKUP($B22,'Round Seven'!$C:$J,7,0)+1E-24,0)) -> 0 | AN22: =IF(ISERROR(VLOOKUP($B22,'Round Eight'!$C:$J,8,0)),0,IF(AND(LEN($C22)<>0,$D22="Yes"),VLOOKUP($B22,'Round Eight'!$C:$J,8,0),"")) -> 0 | AO22: =IF(ISERROR(VLOOKUP(AN22,'Round Eight'!$C:$J,7,0)),0,IF(AND(LEN($C22)<>0,$D22="Yes"),VLOOKUP(AN22,'Round Eight'!$C:$J,7,0)+1E-24,0)) -> 0 | AP22: 0 | AQ22: =IF(ISERROR(VLOOKUP($B22,'Round Eight'!$C:$J,6,0)),0,IF(AND(LEN($C22)<>0,$D22="Yes"),VLOOKUP($B22,'Round Eight'!$C:$J,6,0),"")) -> 0 | AR22: =IF(ISERROR(VLOOKUP($B22,'Round Eight'!$C:$J,7,0)),0,IF(LEN($C22)<>0,VLOOKUP($B22,'Round Eight'!$C:$J,7,0)+1E-24,0)) -> 0 | AS22: =IF(ISERROR(VLOOKUP($B22,'Round Nine'!$C:$J,8,0)),0,IF(AND(LEN($C22)<>0,$D22="Yes"),VLOOKUP($B22,'Round Nine'!$C:$J,8,0),"")) -> 0 | AT22: =IF(ISERROR(VLOOKUP(AS22,'Round Nine'!$C:$J,7,0)),0,IF(AND(LEN($C22)<>0,$D22="Yes"),VLOOKUP(AS22,'Round Nine'!$C:$J,7,0)+1E-24,0)) -> 0 | AU22: 0 | AV22: =IF(ISERROR(VLOOKUP($B22,'Round Nine'!$C:$J,6,0)),0,IF(AND(LEN($C22)<>0,$D22="Yes"),VLOOKUP($B22,'Round Nine'!$C:$J,6,0),"")) -> 0 | AW22: =IF(ISERROR(VLOOKUP($B22,'Round Nine'!$C:$J,7,0)),0,IF(LEN($C22)<>0,VLOOKUP($B22,'Round Nine'!$C:$J,7,0)+1E-24,0)) -> 0 | AY22: 0 | AZ22: 0 | BA22: 0 | BB22: =IF(D22<>"Yes",A22*-10,AY22*1000000+AZ22*10000+BA22+(A22/100000))+IF(OR(Accel_Pairing_2!$B$4="no",D22<>"Yes",ISERROR(VLOOKUP(C22,PowerRanking!A:B,2,0))),0,(VLOOKUP(C22,PowerRanking!A:D,4,0)*1000000)+VLOOKUP(C22,PowerRanking!A:D,2,0)/10) -> -5.302692634 | BC22: 37 | BD22: T19 | BE22: 0
A23: 0.3854929297 | B23: T20 | E23: =IF(ISERROR(VLOOKUP($B23,'Round One'!$C:$J,8,0)),0,IF(AND(LEN($C23)<>0,$D23="Yes"),VLOOKUP($B23,'Round One'!$C:$J,8,0),0)) -> 0 | F23: =IF(ISERROR(VLOOKUP(E23,'Round One'!$C:$J,7,0)),0,IF(AND(LEN($C23)<>0,$D23="Yes"),VALUE(VLOOKUP(E23,'Round One'!$C:$J,7,0)+1E-24),0)) -> 0 | G23: 0 | H23: =IF(ISERROR(VLOOKUP($B23,'Round One'!$C:$J,6,0)),0,IF(AND(LEN($C23)<>0,$D23="Yes"),VLOOKUP($B23,'Round One'!$C:$J,6,0),"")) -> 0 | I23: =IF(ISERROR(VLOOKUP($B23,'Round One'!$C:$J,7,0)),0,IF(LEN($C23)<>0,VLOOKUP($B23,'Round One'!$C:$J,7,0)+1E-24,0)) -> 0 | J23: =IF(ISERROR(VLOOKUP($B23,'Round Two'!$C:$J,8,0)),0,IF(AND(LEN($C23)<>0,$D23="Yes"),VLOOKUP($B23,'Round Two'!$C:$J,8,0),"")) -> 0 | K23: =IF(ISERROR(VLOOKUP(J23,'Round Two'!$C:$J,7,0)),0,IF(AND(LEN($C23)<>0,$D23="Yes"),VLOOKUP(J23,'Round Two'!$C:$J,7,0)+1E-24,0)) -> 0 | L23: 0 | M23: =IF(ISERROR(VLOOKUP($B23,'Round Two'!$C:$J,6,0)),0,IF(AND(LEN($C23)<>0,$D23="Yes"),VLOOKUP($B23,'Round Two'!$C:$J,6,0),"")) -> 0 | N23: =IF(ISERROR(VLOOKUP($B23,'Round Two'!$C:$J,7,0)),0,IF(LEN($C23)<>0,VLOOKUP($B23,'Round Two'!$C:$J,7,0)+1E-24,0)) -> 0 | O23: =IF(ISERROR(VLOOKUP($B23,'Round Three'!$C:$J,8,0)),0,IF(AND(LEN($C23)<>0,$D23="Yes"),VLOOKUP($B23,'Round Three'!$C:$J,8,0),"")) -> 0 | P23: =IF(ISERROR(VLOOKUP(O23,'Round Three'!$C:$J,7,0)),0,IF(AND(LEN($C23)<>0,$D23="Yes"),VLOOKUP(O23,'Round Three'!$C:$J,7,0)+1E-24,0)) -> 0 | Q23: 0 | R23: =IF(ISERROR(VLOOKUP($B23,'Round Three'!$C:$J,6,0)),0,IF(AND(LEN($C23)<>0,$D23="Yes"),VLOOKUP($B23,'Round Three'!$C:$J,6,0),"")) -> 0 | S23: =IF(ISERROR(VLOOKUP($B23,'Round Three'!$C:$J,7,0)),0,IF(LEN($C23)<>0,VLOOKUP($B23,'Round Three'!$C:$J,7,0)+1E-24,0)) -> 0 | T23: =IF(ISERROR(VLOOKUP($B23,'Round Four'!$C:$J,8,0)),0,IF(AND(LEN($C23)<>0,$D23="Yes"),VLOOKUP($B23,'Round Four'!$C:$J,8,0),"")) -> 0 | U23: =IF(ISERROR(VLOOKUP(T23,'Round Four'!$C:$J,7,0)),0,IF(AND(LEN($C23)<>0,$D23="Yes"),VLOOKUP(T23,'Round Four'!$C:$J,7,0)+1E-24,0)) -> 0 | V23: 0 | W23: =IF(ISERROR(VLOOKUP($B23,'Round Four'!$C:$J,6,0)),0,IF(AND(LEN($C23)<>0,$D23="Yes"),VLOOKUP($B23,'Round Four'!$C:$J,6,0),"")) -> 0 | X23: =IF(ISERROR(VLOOKUP($B23,'Round Four'!$C:$J,7,0)),0,IF(LEN($C23)<>0,VLOOKUP($B23,'Round Four'!$C:$J,7,0)+1E-24,0)) -> 0 | Y23: =IF(ISERROR(VLOOKUP($B23,'Round Five'!$C:$J,8,0)),0,IF(AND(LEN($C23)<>0,$D23="Yes"),VLOOKUP($B23,'Round Five'!$C:$J,8,0),"")) -> 0 | Z23: =IF(ISERROR(VLOOKUP(Y23,'Round Five'!$C:$J,7,0)),0,IF(AND(LEN($C23)<>0,$D23="Yes"),VLOOKUP(Y23,'Round Five'!$C:$J,7,0)+1E-24,0)) -> 0 | AA23: 0 | AB23: =IF(ISERROR(VLOOKUP($B23,'Round Five'!$C:$J,6,0)),0,IF(AND(LEN($C23)<>0,$D23="Yes"),VLOOKUP($B23,'Round Five'!$C:$J,6,0),"")) -> 0 | AC23: =IF(ISERROR(VLOOKUP($B23,'Round Five'!$C:$J,7,0)),0,IF(LEN($C23)<>0,VLOOKUP($B23,'Round Five'!$C:$J,7,0)+1E-24,0)) -> 0 | AD23: =IF(ISERROR(VLOOKUP($B23,'Round Six'!$C:$J,8,0)),0,IF(AND(LEN($C23)<>0,$D23="Yes"),VLOOKUP($B23,'Round Six'!$C:$J,8,0),"")) -> 0 | AE23: =IF(ISERROR(VLOOKUP(AD23,'Round Six'!$C:$J,7,0)),0,IF(AND(LEN($C23)<>0,$D23="Yes"),VLOOKUP(AD23,'Round Six'!$C:$J,7,0)+1E-24,0)) -> 0 | AF23: 0 | AG23: =IF(ISERROR(VLOOKUP($B23,'Round Six'!$C:$J,6,0)),0,IF(AND(LEN($C23)<>0,$D23="Yes"),VLOOKUP($B23,'Round Six'!$C:$J,6,0),"")) -> 0 | AH23: =IF(ISERROR(VLOOKUP($B23,'Round Six'!$C:$J,7,0)),0,IF(LEN($C23)<>0,VLOOKUP($B23,'Round Six'!$C:$J,7,0)+1E-24,0)) -> 0 | AI23: =IF(ISERROR(VLOOKUP($B23,'Round Seven'!$C:$J,8,0)),0,IF(AND(LEN($C23)<>0,$D23="Yes"),VLOOKUP($B23,'Round Seven'!$C:$J,8,0),"")) -> 0 | AJ23: =IF(ISERROR(VLOOKUP(AI23,'Round Seven'!$C:$J,7,0)),0,IF(AND(LEN($C23)<>0,$D23="Yes"),VLOOKUP(AI23,'Round Seven'!$C:$J,7,0)+1E-24,0)) -> 0 | AK23: 0 | AL23: =IF(ISERROR(VLOOKUP($B23,'Round Seven'!$C:$J,6,0)),0,IF(AND(LEN($C23)<>0,$D23="Yes"),VLOOKUP($B23,'Round Seven'!$C:$J,6,0),"")) -> 0 | AM23: =IF(ISERROR(VLOOKUP($B23,'Round Seven'!$C:$J,7,0)),0,IF(LEN($C23)<>0,VLOOKUP($B23,'Round Seven'!$C:$J,7,0)+1E-24,0)) -> 0 | AN23: =IF(ISERROR(VLOOKUP($B23,'Round Eight'!$C:$J,8,0)),0,IF(AND(LEN($C23)<>0,$D23="Yes"),VLOOKUP($B23,'Round Eight'!$C:$J,8,0),"")) -> 0 | AO23: =IF(ISERROR(VLOOKUP(AN23,'Round Eight'!$C:$J,7,0)),0,IF(AND(LEN($C23)<>0,$D23="Yes"),VLOOKUP(AN23,'Round Eight'!$C:$J,7,0)+1E-24,0)) -> 0 | AP23: 0 | AQ23: =IF(ISERROR(VLOOKUP($B23,'Round Eight'!$C:$J,6,0)),0,IF(AND(LEN($C23)<>0,$D23="Yes"),VLOOKUP($B23,'Round Eight'!$C:$J,6,0),"")) -> 0 | AR23: =IF(ISERROR(VLOOKUP($B23,'Round Eight'!$C:$J,7,0)),0,IF(LEN($C23)<>0,VLOOKUP($B23,'Round Eight'!$C:$J,7,0)+1E-24,0)) -> 0 | AS23: =IF(ISERROR(VLOOKUP($B23,'Round Nine'!$C:$J,8,0)),0,IF(AND(LEN($C23)<>0,$D23="Yes"),VLOOKUP($B23,'Round Nine'!$C:$J,8,0),"")) -> 0 | AT23: =IF(ISERROR(VLOOKUP(AS23,'Round Nine'!$C:$J,7,0)),0,IF(AND(LEN($C23)<>0,$D23="Yes"),VLOOKUP(AS23,'Round Nine'!$C:$J,7,0)+1E-24,0)) -> 0 | AU23: 0 | AV23: =IF(ISERROR(VLOOKUP($B23,'Round Nine'!$C:$J,6,0)),0,IF(AND(LEN($C23)<>0,$D23="Yes"),VLOOKUP($B23,'Round Nine'!$C:$J,6,0),"")) -> 0 | AW23: =IF(ISERROR(VLOOKUP($B23,'Round Nine'!$C:$J,7,0)),0,IF(LEN($C23)<>0,VLOOKUP($B23,'Round Nine'!$C:$J,7,0)+1E-24,0)) -> 0 | AY23: 0 | AZ23: 0 | BA23: 0 | BB23: =IF(D23<>"Yes",A23*-10,AY23*1000000+AZ23*10000+BA23+(A23/100000))+IF(OR(Accel_Pairing_2!$B$4="no",D23<>"Yes",ISERROR(VLOOKUP(C23,PowerRanking!A:B,2,0))),0,(VLOOKUP(C23,PowerRanking!A:D,4,0)*1000000)+VLOOKUP(C23,PowerRanking!A:D,2,0)/10) -> -3.854929297 | BC23: 24 | BD23: T20 | BE23: 0
A24: 0.4690265376 | B24: T21 | E24: =IF(ISERROR(VLOOKUP($B24,'Round One'!$C:$J,8,0)),0,IF(AND(LEN($C24)<>0,$D24="Yes"),VLOOKUP($B24,'Round One'!$C:$J,8,0),0)) -> 0 | F24: =IF(ISERROR(VLOOKUP(E24,'Round One'!$C:$J,7,0)),0,IF(AND(LEN($C24)<>0,$D24="Yes"),VALUE(VLOOKUP(E24,'Round One'!$C:$J,7,0)+1E-24),0)) -> 0 | G24: 0 | H24: =IF(ISERROR(VLOOKUP($B24,'Round One'!$C:$J,6,0)),0,IF(AND(LEN($C24)<>0,$D24="Yes"),VLOOKUP($B24,'Round One'!$C:$J,6,0),"")) -> 0 | I24: =IF(ISERROR(VLOOKUP($B24,'Round One'!$C:$J,7,0)),0,IF(LEN($C24)<>0,VLOOKUP($B24,'Round One'!$C:$J,7,0)+1E-24,0)) -> 0 | J24: =IF(ISERROR(VLOOKUP($B24,'Round Two'!$C:$J,8,0)),0,IF(AND(LEN($C24)<>0,$D24="Yes"),VLOOKUP($B24,'Round Two'!$C:$J,8,0),"")) -> 0 | K24: =IF(ISERROR(VLOOKUP(J24,'Round Two'!$C:$J,7,0)),0,IF(AND(LEN($C24)<>0,$D24="Yes"),VLOOKUP(J24,'Round Two'!$C:$J,7,0)+1E-24,0)) -> 0 | L24: 0 | M24: =IF(ISERROR(VLOOKUP($B24,'Round Two'!$C:$J,6,0)),0,IF(AND(LEN($C24)<>0,$D24="Yes"),VLOOKUP($B24,'Round Two'!$C:$J,6,0),"")) -> 0 | N24: =IF(ISERROR(VLOOKUP($B24,'Round Two'!$C:$J,7,0)),0,IF(LEN($C24)<>0,VLOOKUP($B24,'Round Two'!$C:$J,7,0)+1E-24,0)) -> 0 | O24: =IF(ISERROR(VLOOKUP($B24,'Round Three'!$C:$J,8,0)),0,IF(AND(LEN($C24)<>0,$D24="Yes"),VLOOKUP($B24,'Round Three'!$C:$J,8,0),"")) -> 0 | P24: =IF(ISERROR(VLOOKUP(O24,'Round Three'!$C:$J,7,0)),0,IF(AND(LEN($C24)<>0,$D24="Yes"),VLOOKUP(O24,'Round Three'!$C:$J,7,0)+1E-24,0)) -> 0 | Q24: 0 | R24: =IF(ISERROR(VLOOKUP($B24,'Round Three'!$C:$J,6,0)),0,IF(AND(LEN($C24)<>0,$D24="Yes"),VLOOKUP($B24,'Round Three'!$C:$J,6,0),"")) -> 0 | S24: =IF(ISERROR(VLOOKUP($B24,'Round Three'!$C:$J,7,0)),0,IF(LEN($C24)<>0,VLOOKUP($B24,'Round Three'!$C:$J,7,0)+1E-24,0)) -> 0 | T24: =IF(ISERROR(VLOOKUP($B24,'Round Four'!$C:$J,8,0)),0,IF(AND(LEN($C24)<>0,$D24="Yes"),VLOOKUP($B24,'Round Four'!$C:$J,8,0),"")) -> 0 | U24: =IF(ISERROR(VLOOKUP(T24,'Round Four'!$C:$J,7,0)),0,IF(AND(LEN($C24)<>0,$D24="Yes"),VLOOKUP(T24,'Round Four'!$C:$J,7,0)+1E-24,0)) -> 0 | V24: 0 | W24: =IF(ISERROR(VLOOKUP($B24,'Round Four'!$C:$J,6,0)),0,IF(AND(LEN($C24)<>0,$D24="Yes"),VLOOKUP($B24,'Round Four'!$C:$J,6,0),"")) -> 0 | X24: =IF(ISERROR(VLOOKUP($B24,'Round Four'!$C:$J,7,0)),0,IF(LEN($C24)<>0,VLOOKUP($B24,'Round Four'!$C:$J,7,0)+1E-24,0)) -> 0 | Y24: =IF(ISERROR(VLOOKUP($B24,'Round Five'!$C:$J,8,0)),0,IF(AND(LEN($C24)<>0,$D24="Yes"),VLOOKUP($B24,'Round Five'!$C:$J,8,0),"")) -> 0 | Z24: =IF(ISERROR(VLOOKUP(Y24,'Round Five'!$C:$J,7,0)),0,IF(AND(LEN($C24)<>0,$D24="Yes"),VLOOKUP(Y24,'Round Five'!$C:$J,7,0)+1E-24,0)) -> 0 | AA24: 0 | AB24: =IF(ISERROR(VLOOKUP($B24,'Round Five'!$C:$J,6,0)),0,IF(AND(LEN($C24)<>0,$D24="Yes"),VLOOKUP($B24,'Round Five'!$C:$J,6,0),"")) -> 0 | AC24: =IF(ISERROR(VLOOKUP($B24,'Round Five'!$C:$J,7,0)),0,IF(LEN($C24)<>0,VLOOKUP($B24,'Round Five'!$C:$J,7,0)+1E-24,0)) -> 0 | AD24: =IF(ISERROR(VLOOKUP($B24,'Round Six'!$C:$J,8,0)),0,IF(AND(LEN($C24)<>0,$D24="Yes"),VLOOKUP($B24,'Round Six'!$C:$J,8,0),"")) -> 0 | AE24: =IF(ISERROR(VLOOKUP(AD24,'Round Six'!$C:$J,7,0)),0,IF(AND(LEN($C24)<>0,$D24="Yes"),VLOOKUP(AD24,'Round Six'!$C:$J,7,0)+1E-24,0)) -> 0 | AF24: 0 | AG24: =IF(ISERROR(VLOOKUP($B24,'Round Six'!$C:$J,6,0)),0,IF(AND(LEN($C24)<>0,$D24="Yes"),VLOOKUP($B24,'Round Six'!$C:$J,6,0),"")) -> 0 | AH24: =IF(ISERROR(VLOOKUP($B24,'Round Six'!$C:$J,7,0)),0,IF(LEN($C24)<>0,VLOOKUP($B24,'Round Six'!$C:$J,7,0)+1E-24,0)) -> 0 | AI24: =IF(ISERROR(VLOOKUP($B24,'Round Seven'!$C:$J,8,0)),0,IF(AND(LEN($C24)<>0,$D24="Yes"),VLOOKUP($B24,'Round Seven'!$C:$J,8,0),"")) -> 0 | AJ24: =IF(ISERROR(VLOOKUP(AI24,'Round Seven'!$C:$J,7,0)),0,IF(AND(LEN($C24)<>0,$D24="Yes"),VLOOKUP(AI24,'Round Seven'!$C:$J,7,0)+1E-24,0)) -> 0 | AK24: 0 | AL24: =IF(ISERROR(VLOOKUP($B24,'Round Seven'!$C:$J,6,0)),0,IF(AND(LEN($C24)<>0,$D24="Yes"),VLOOKUP($B24,'Round Seven'!$C:$J,6,0),"")) -> 0 | AM24: =IF(ISERROR(VLOOKUP($B24,'Round Seven'!$C:$J,7,0)),0,IF(LEN($C24)<>0,VLOOKUP($B24,'Round Seven'!$C:$J,7,0)+1E-24,0)) -> 0 | AN24: =IF(ISERROR(VLOOKUP($B24,'Round Eight'!$C:$J,8,0)),0,IF(AND(LEN($C24)<>0,$D24="Yes"),VLOOKUP($B24,'Round Eight'!$C:$J,8,0),"")) -> 0 | AO24: =IF(ISERROR(VLOOKUP(AN24,'Round Eight'!$C:$J,7,0)),0,IF(AND(LEN($C24)<>0,$D24="Yes"),VLOOKUP(AN24,'Round Eight'!$C:$J,7,0)+1E-24,0)) -> 0 | AP24: 0 | AQ24: =IF(ISERROR(VLOOKUP($B24,'Round Eight'!$C:$J,6,0)),0,IF(AND(LEN($C24)<>0,$D24="Yes"),VLOOKUP($B24,'Round Eight'!$C:$J,6,0),"")) -> 0 | AR24: =IF(ISERROR(VLOOKUP($B24,'Round Eight'!$C:$J,7,0)),0,IF(LEN($C24)<>0,VLOOKUP($B24,'Round Eight'!$C:$J,7,0)+1E-24,0)) -> 0 | AS24: =IF(ISERROR(VLOOKUP($B24,'Round Nine'!$C:$J,8,0)),0,IF(AND(LEN($C24)<>0,$D24="Yes"),VLOOKUP($B24,'Round Nine'!$C:$J,8,0),"")) -> 0 | AT24: =IF(ISERROR(VLOOKUP(AS24,'Round Nine'!$C:$J,7,0)),0,IF(AND(LEN($C24)<>0,$D24="Yes"),VLOOKUP(AS24,'Round Nine'!$C:$J,7,0)+1E-24,0)) -> 0 | AU24: 0 | AV24: =IF(ISERROR(VLOOKUP($B24,'Round Nine'!$C:$J,6,0)),0,IF(AND(LEN($C24)<>0,$D24="Yes"),VLOOKUP($B24,'Round Nine'!$C:$J,6,0),"")) -> 0 | AW24: =IF(ISERROR(VLOOKUP($B24,'Round Nine'!$C:$J,7,0)),0,IF(LEN($C24)<>0,VLOOKUP($B24,'Round Nine'!$C:$J,7,0)+1E-24,0)) -> 0 | AY24: 0 | AZ24: 0 | BA24: 0 | BB24: =IF(D24<>"Yes",A24*-10,AY24*1000000+AZ24*10000+BA24+(A24/100000))+IF(OR(Accel_Pairing_2!$B$4="no",D24<>"Yes",ISERROR(VLOOKUP(C24,PowerRanking!A:B,2,0))),0,(VLOOKUP(C24,PowerRanking!A:D,4,0)*1000000)+VLOOKUP(C24,PowerRanking!A:D,2,0)/10) -> -4.690265376 | BC24: 35 | BD24: T21 | BE24: 0
A25: 0.7693861624 | B25: T22 | E25: =IF(ISERROR(VLOOKUP($B25,'Round One'!$C:$J,8,0)),0,IF(AND(LEN($C25)<>0,$D25="Yes"),VLOOKUP($B25,'Round One'!$C:$J,8,0),0)) -> 0 | F25: =IF(ISERROR(VLOOKUP(E25,'Round One'!$C:$J,7,0)),0,IF(AND(LEN($C25)<>0,$D25="Yes"),VALUE(VLOOKUP(E25,'Round One'!$C:$J,7,0)+1E-24),0)) -> 0 | G25: 0 | H25: =IF(ISERROR(VLOOKUP($B25,'Round One'!$C:$J,6,0)),0,IF(AND(LEN($C25)<>0,$D25="Yes"),VLOOKUP($B25,'Round One'!$C:$J,6,0),"")) -> 0 | I25: =IF(ISERROR(VLOOKUP($B25,'Round One'!$C:$J,7,0)),0,IF(LEN($C25)<>0,VLOOKUP($B25,'Round One'!$C:$J,7,0)+1E-24,0)) -> 0 | J25: =IF(ISERROR(VLOOKUP($B25,'Round Two'!$C:$J,8,0)),0,IF(AND(LEN($C25)<>0,$D25="Yes"),VLOOKUP($B25,'Round Two'!$C:$J,8,0),"")) -> 0 | K25: =IF(ISERROR(VLOOKUP(J25,'Round Two'!$C:$J,7,0)),0,IF(AND(LEN($C25)<>0,$D25="Yes"),VLOOKUP(J25,'Round Two'!$C:$J,7,0)+1E-24,0)) -> 0 | L25: 0 | M25: =IF(ISERROR(VLOOKUP($B25,'Round Two'!$C:$J,6,0)),0,IF(AND(LEN($C25)<>0,$D25="Yes"),VLOOKUP($B25,'Round Two'!$C:$J,6,0),"")) -> 0 | N25: =IF(ISERROR(VLOOKUP($B25,'Round Two'!$C:$J,7,0)),0,IF(LEN($C25)<>0,VLOOKUP($B25,'Round Two'!$C:$J,7,0)+1E-24,0)) -> 0 | O25: =IF(ISERROR(VLOOKUP($B25,'Round Three'!$C:$J,8,0)),0,IF(AND(LEN($C25)<>0,$D25="Yes"),VLOOKUP($B25,'Round Three'!$C:$J,8,0),"")) -> 0 | P25: =IF(ISERROR(VLOOKUP(O25,'Round Three'!$C:$J,7,0)),0,IF(AND(LEN($C25)<>0,$D25="Yes"),VLOOKUP(O25,'Round Three'!$C:$J,7,0)+1E-24,0)) -> 0 | Q25: 0 | R25: =IF(ISERROR(VLOOKUP($B25,'Round Three'!$C:$J,6,0)),0,IF(AND(LEN($C25)<>0,$D25="Yes"),VLOOKUP($B25,'Round Three'!$C:$J,6,0),"")) -> 0 | S25: =IF(ISERROR(VLOOKUP($B25,'Round Three'!$C:$J,7,0)),0,IF(LEN($C25)<>0,VLOOKUP($B25,'Round Three'!$C:$J,7,0)+1E-24,0)) -> 0 | T25: =IF(ISERROR(VLOOKUP($B25,'Round Four'!$C:$J,8,0)),0,IF(AND(LEN($C25)<>0,$D25="Yes"),VLOOKUP($B25,'Round Four'!$C:$J,8,0),"")) -> 0 | U25: =IF(ISERROR(VLOOKUP(T25,'Round Four'!$C:$J,7,0)),0,IF(AND(LEN($C25)<>0,$D25="Yes"),VLOOKUP(T25,'Round Four'!$C:$J,7,0)+1E-24,0)) -> 0 | V25: 0 | W25: =IF(ISERROR(VLOOKUP($B25,'Round Four'!$C:$J,6,0)),0,IF(AND(LEN($C25)<>0,$D25="Yes"),VLOOKUP($B25,'Round Four'!$C:$J,6,0),"")) -> 0 | X25: =IF(ISERROR(VLOOKUP($B25,'Round Four'!$C:$J,7,0)),0,IF(LEN($C25)<>0,VLOOKUP($B25,'Round Four'!$C:$J,7,0)+1E-24,0)) -> 0 | Y25: =IF(ISERROR(VLOOKUP($B25,'Round Five'!$C:$J,8,0)),0,IF(AND(LEN($C25)<>0,$D25="Yes"),VLOOKUP($B25,'Round Five'!$C:$J,8,0),"")) -> 0 | Z25: =IF(ISERROR(VLOOKUP(Y25,'Round Five'!$C:$J,7,0)),0,IF(AND(LEN($C25)<>0,$D25="Yes"),VLOOKUP(Y25,'Round Five'!$C:$J,7,0)+1E-24,0)) -> 0 | AA25: 0 | AB25: =IF(ISERROR(VLOOKUP($B25,'Round Five'!$C:$J,6,0)),0,IF(AND(LEN($C25)<>0,$D25="Yes"),VLOOKUP($B25,'Round Five'!$C:$J,6,0),"")) -> 0 | AC25: =IF(ISERROR(VLOOKUP($B25,'Round Five'!$C:$J,7,0)),0,IF(LEN($C25)<>0,VLOOKUP($B25,'Round Five'!$C:$J,7,0)+1E-24,0)) -> 0 | AD25: =IF(ISERROR(VLOOKUP($B25,'Round Six'!$C:$J,8,0)),0,IF(AND(LEN($C25)<>0,$D25="Yes"),VLOOKUP($B25,'Round Six'!$C:$J,8,0),"")) -> 0 | AE25: =IF(ISERROR(VLOOKUP(AD25,'Round Six'!$C:$J,7,0)),0,IF(AND(LEN($C25)<>0,$D25="Yes"),VLOOKUP(AD25,'Round Six'!$C:$J,7,0)+1E-24,0)) -> 0 | AF25: 0 | AG25: =IF(ISERROR(VLOOKUP($B25,'Round Six'!$C:$J,6,0)),0,IF(AND(LEN($C25)<>0,$D25="Yes"),VLOOKUP($B25,'Round Six'!$C:$J,6,0),"")) -> 0 | AH25: =IF(ISERROR(VLOOKUP($B25,'Round Six'!$C:$J,7,0)),0,IF(LEN($C25)<>0,VLOOKUP($B25,'Round Six'!$C:$J,7,0)+1E-24,0)) -> 0 | AI25: =IF(ISERROR(VLOOKUP($B25,'Round Seven'!$C:$J,8,0)),0,IF(AND(LEN($C25)<>0,$D25="Yes"),VLOOKUP($B25,'Round Seven'!$C:$J,8,0),"")) -> 0 | AJ25: =IF(ISERROR(VLOOKUP(AI25,'Round Seven'!$C:$J,7,0)),0,IF(AND(LEN($C25)<>0,$D25="Yes"),VLOOKUP(AI25,'Round Seven'!$C:$J,7,0)+1E-24,0)) -> 0 | AK25: 0 | AL25: =IF(ISERROR(VLOOKUP($B25,'Round Seven'!$C:$J,6,0)),0,IF(AND(LEN($C25)<>0,$D25="Yes"),VLOOKUP($B25,'Round Seven'!$C:$J,6,0),"")) -> 0 | AM25: =IF(ISERROR(VLOOKUP($B25,'Round Seven'!$C:$J,7,0)),0,IF(LEN($C25)<>0,VLOOKUP($B25,'Round Seven'!$C:$J,7,0)+1E-24,0)) -> 0 | AN25: =IF(ISERROR(VLOOKUP($B25,'Round Eight'!$C:$J,8,0)),0,IF(AND(LEN($C25)<>0,$D25="Yes"),VLOOKUP($B25,'Round Eight'!$C:$J,8,0),"")) -> 0 | AO25: =IF(ISERROR(VLOOKUP(AN25,'Round Eight'!$C:$J,7,0)),0,IF(AND(LEN($C25)<>0,$D25="Yes"),VLOOKUP(AN25,'Round Eight'!$C:$J,7,0)+1E-24,0)) -> 0 | AP25: 0 | AQ25: =IF(ISERROR(VLOOKUP($B25,'Round Eight'!$C:$J,6,0)),0,IF(AND(LEN($C25)<>0,$D25="Yes"),VLOOKUP($B25,'Round Eight'!$C:$J,6,0),"")) -> 0 | AR25: =IF(ISERROR(VLOOKUP($B25,'Round Eight'!$C:$J,7,0)),0,IF(LEN($C25)<>0,VLOOKUP($B25,'Round Eight'!$C:$J,7,0)+1E-24,0)) -> 0 | AS25: =IF(ISERROR(VLOOKUP($B25,'Round Nine'!$C:$J,8,0)),0,IF(AND(LEN($C25)<>0,$D25="Yes"),VLOOKUP($B25,'Round Nine'!$C:$J,8,0),"")) -> 0 | AT25: =IF(ISERROR(VLOOKUP(AS25,'Round Nine'!$C:$J,7,0)),0,IF(AND(LEN($C25)<>0,$D25="Yes"),VLOOKUP(AS25,'Round Nine'!$C:$J,7,0)+1E-24,0)) -> 0 | AU25: 0 | AV25: =IF(ISERROR(VLOOKUP($B25,'Round Nine'!$C:$J,6,0)),0,IF(AND(LEN($C25)<>0,$D25="Yes"),VLOOKUP($B25,'Round Nine'!$C:$J,6,0),"")) -> 0 | AW25: =IF(ISERROR(VLOOKUP($B25,'Round Nine'!$C:$J,7,0)),0,IF(LEN($C25)<>0,VLOOKUP($B25,'Round Nine'!$C:$J,7,0)+1E-24,0)) -> 0 | AY25: 0 | AZ25: 0 | BA25: 0 | BB25: =IF(D25<>"Yes",A25*-10,AY25*1000000+AZ25*10000+BA25+(A25/100000))+IF(OR(Accel_Pairing_2!$B$4="no",D25<>"Yes",ISERROR(VLOOKUP(C25,PowerRanking!A:B,2,0))),0,(VLOOKUP(C25,PowerRanking!A:D,4,0)*1000000)+VLOOKUP(C25,PowerRanking!A:D,2,0)/10) -> -7.693861624 | BC25: 50 | BD25: T22 | BE25: 0
A26: 0.4318948419 | B26: T23 | E26: =IF(ISERROR(VLOOKUP($B26,'Round One'!$C:$J,8,0)),0,IF(AND(LEN($C26)<>0,$D26="Yes"),VLOOKUP($B26,'Round One'!$C:$J,8,0),0)) -> 0 | F26: =IF(ISERROR(VLOOKUP(E26,'Round One'!$C:$J,7,0)),0,IF(AND(LEN($C26)<>0,$D26="Yes"),VALUE(VLOOKUP(E26,'Round One'!$C:$J,7,0)+1E-24),0)) -> 0 | G26: 0 | H26: =IF(ISERROR(VLOOKUP($B26,'Round One'!$C:$J,6,0)),0,IF(AND(LEN($C26)<>0,$D26="Yes"),VLOOKUP($B26,'Round One'!$C:$J,6,0),"")) -> 0 | I26: =IF(ISERROR(VLOOKUP($B26,'Round One'!$C:$J,7,0)),0,IF(LEN($C26)<>0,VLOOKUP($B26,'Round One'!$C:$J,7,0)+1E-24,0)) -> 0 | J26: =IF(ISERROR(VLOOKUP($B26,'Round Two'!$C:$J,8,0)),0,IF(AND(LEN($C26)<>0,$D26="Yes"),VLOOKUP($B26,'Round Two'!$C:$J,8,0),"")) -> 0 | K26: =IF(ISERROR(VLOOKUP(J26,'Round Two'!$C:$J,7,0)),0,IF(AND(LEN($C26)<>0,$D26="Yes"),VLOOKUP(J26,'Round Two'!$C:$J,7,0)+1E-24,0)) -> 0 | L26: 0 | M26: =IF(ISERROR(VLOOKUP($B26,'Round Two'!$C:$J,6,0)),0,IF(AND(LEN($C26)<>0,$D26="Yes"),VLOOKUP($B26,'Round Two'!$C:$J,6,0),"")) -> 0 | N26: =IF(ISERROR(VLOOKUP($B26,'Round Two'!$C:$J,7,0)),0,IF(LEN($C26)<>0,VLOOKUP($B26,'Round Two'!$C:$J,7,0)+1E-24,0)) -> 0 | O26: =IF(ISERROR(VLOOKUP($B26,'Round Three'!$C:$J,8,0)),0,IF(AND(LEN($C26)<>0,$D26="Yes"),VLOOKUP($B26,'Round Three'!$C:$J,8,0),"")) -> 0 | P26: =IF(ISERROR(VLOOKUP(O26,'Round Three'!$C:$J,7,0)),0,IF(AND(LEN($C26)<>0,$D26="Yes"),VLOOKUP(O26,'Round Three'!$C:$J,7,0)+1E-24,0)) -> 0 | Q26: 0 | R26: =IF(ISERROR(VLOOKUP($B26,'Round Three'!$C:$J,6,0)),0,IF(AND(LEN($C26)<>0,$D26="Yes"),VLOOKUP($B26,'Round Three'!$C:$J,6,0),"")) -> 0 | S26: =IF(ISERROR(VLOOKUP($B26,'Round Three'!$C:$J,7,0)),0,IF(LEN($C26)<>0,VLOOKUP($B26,'Round Three'!$C:$J,7,0)+1E-24,0)) -> 0 | T26: =IF(ISERROR(VLOOKUP($B26,'Round Four'!$C:$J,8,0)),0,IF(AND(LEN($C26)<>0,$D26="Yes"),VLOOKUP($B26,'Round Four'!$C:$J,8,0),"")) -> 0 | U26: =IF(ISERROR(VLOOKUP(T26,'Round Four'!$C:$J,7,0)),0,IF(AND(LEN($C26)<>0,$D26="Yes"),VLOOKUP(T26,'Round Four'!$C:$J,7,0)+1E-24,0)) -> 0 | V26: 0 | W26: =IF(ISERROR(VLOOKUP($B26,'Round Four'!$C:$J,6,0)),0,IF(AND(LEN($C26)<>0,$D26="Yes"),VLOOKUP($B26,'Round Four'!$C:$J,6,0),"")) -> 0 | X26: =IF(ISERROR(VLOOKUP($B26,'Round Four'!$C:$J,7,0)),0,IF(LEN($C26)<>0,VLOOKUP($B26,'Round Four'!$C:$J,7,0)+1E-24,0)) -> 0 | Y26: =IF(ISERROR(VLOOKUP($B26,'Round Five'!$C:$J,8,0)),0,IF(AND(LEN($C26)<>0,$D26="Yes"),VLOOKUP($B26,'Round Five'!$C:$J,8,0),"")) -> 0 | Z26: =IF(ISERROR(VLOOKUP(Y26,'Round Five'!$C:$J,7,0)),0,IF(AND(LEN($C26)<>0,$D26="Yes"),VLOOKUP(Y26,'Round Five'!$C:$J,7,0)+1E-24,0)) -> 0 | AA26: 0 | AB26: =IF(ISERROR(VLOOKUP($B26,'Round Five'!$C:$J,6,0)),0,IF(AND(LEN($C26)<>0,$D26="Yes"),VLOOKUP($B26,'Round Five'!$C:$J,6,0),"")) -> 0 | AC26: =IF(ISERROR(VLOOKUP($B26,'Round Five'!$C:$J,7,0)),0,IF(LEN($C26)<>0,VLOOKUP($B26,'Round Five'!$C:$J,7,0)+1E-24,0)) -> 0 | AD26: =IF(ISERROR(VLOOKUP($B26,'Round Six'!$C:$J,8,0)),0,IF(AND(LEN($C26)<>0,$D26="Yes"),VLOOKUP($B26,'Round Six'!$C:$J,8,0),"")) -> 0 | AE26: =IF(ISERROR(VLOOKUP(AD26,'Round Six'!$C:$J,7,0)),0,IF(AND(LEN($C26)<>0,$D26="Yes"),VLOOKUP(AD26,'Round Six'!$C:$J,7,0)+1E-24,0)) -> 0 | AF26: 0 | AG26: =IF(ISERROR(VLOOKUP($B26,'Round Six'!$C:$J,6,0)),0,IF(AND(LEN($C26)<>0,$D26="Yes"),VLOOKUP($B26,'Round Six'!$C:$J,6,0),"")) -> 0 | AH26: =IF(ISERROR(VLOOKUP($B26,'Round Six'!$C:$J,7,0)),0,IF(LEN($C26)<>0,VLOOKUP($B26,'Round Six'!$C:$J,7,0)+1E-24,0)) -> 0 | AI26: =IF(ISERROR(VLOOKUP($B26,'Round Seven'!$C:$J,8,0)),0,IF(AND(LEN($C26)<>0,$D26="Yes"),VLOOKUP($B26,'Round Seven'!$C:$J,8,0),"")) -> 0 | AJ26: =IF(ISERROR(VLOOKUP(AI26,'Round Seven'!$C:$J,7,0)),0,IF(AND(LEN($C26)<>0,$D26="Yes"),VLOOKUP(AI26,'Round Seven'!$C:$J,7,0)+1E-24,0)) -> 0 | AK26: 0 | AL26: =IF(ISERROR(VLOOKUP($B26,'Round Seven'!$C:$J,6,0)),0,IF(AND(LEN($C26)<>0,$D26="Yes"),VLOOKUP($B26,'Round Seven'!$C:$J,6,0),"")) -> 0 | AM26: =IF(ISERROR(VLOOKUP($B26,'Round Seven'!$C:$J,7,0)),0,IF(LEN($C26)<>0,VLOOKUP($B26,'Round Seven'!$C:$J,7,0)+1E-24,0)) -> 0 | AN26: =IF(ISERROR(VLOOKUP($B26,'Round Eight'!$C:$J,8,0)),0,IF(AND(LEN($C26)<>0,$D26="Yes"),VLOOKUP($B26,'Round Eight'!$C:$J,8,0),"")) -> 0 | AO26: =IF(ISERROR(VLOOKUP(AN26,'Round Eight'!$C:$J,7,0)),0,IF(AND(LEN($C26)<>0,$D26="Yes"),VLOOKUP(AN26,'Round Eight'!$C:$J,7,0)+1E-24,0)) -> 0 | AP26: 0 | AQ26: =IF(ISERROR(VLOOKUP($B26,'Round Eight'!$C:$J,6,0)),0,IF(AND(LEN($C26)<>0,$D26="Yes"),VLOOKUP($B26,'Round Eight'!$C:$J,6,0),"")) -> 0 | AR26: =IF(ISERROR(VLOOKUP($B26,'Round Eight'!$C:$J,7,0)),0,IF(LEN($C26)<>0,VLOOKUP($B26,'Round Eight'!$C:$J,7,0)+1E-24,0)) -> 0 | AS26: =IF(ISERROR(VLOOKUP($B26,'Round Nine'!$C:$J,8,0)),0,IF(AND(LEN($C26)<>0,$D26="Yes"),VLOOKUP($B26,'Round Nine'!$C:$J,8,0),"")) -> 0 | AT26: =IF(ISERROR(VLOOKUP(AS26,'Round Nine'!$C:$J,7,0)),0,IF(AND(LEN($C26)<>0,$D26="Yes"),VLOOKUP(AS26,'Round Nine'!$C:$J,7,0)+1E-24,0)) -> 0 | AU26: 0 | AV26: =IF(ISERROR(VLOOKUP($B26,'Round Nine'!$C:$J,6,0)),0,IF(AND(LEN($C26)<>0,$D26="Yes"),VLOOKUP($B26,'Round Nine'!$C:$J,6,0),"")) -> 0 | AW26: =IF(ISERROR(VLOOKUP($B26,'Round Nine'!$C:$J,7,0)),0,IF(LEN($C26)<>0,VLOOKUP($B26,'Round Nine'!$C:$J,7,0)+1E-24,0)) -> 0 | AY26: 0 | AZ26: 0 | BA26: 0 | BB26: =IF(D26<>"Yes",A26*-10,AY26*1000000+AZ26*10000+BA26+(A26/100000))+IF(OR(Accel_Pairing_2!$B$4="no",D26<>"Yes",ISERROR(VLOOKUP(C26,PowerRanking!A:B,2,0))),0,(VLOOKUP(C26,PowerRanking!A:D,4,0)*1000000)+VLOOKUP(C26,PowerRanking!A:D,2,0)/10) -> -4.318948419 | BC26: 30 | BD26: T23 | BE26: 0
A27: 0.9876598071 | B27: T24 | E27: =IF(ISERROR(VLOOKUP($B27,'Round One'!$C:$J,8,0)),0,IF(AND(LEN($C27)<>0,$D27="Yes"),VLOOKUP($B27,'Round One'!$C:$J,8,0),0)) -> 0 | F27: =IF(ISERROR(VLOOKUP(E27,'Round One'!$C:$J,7,0)),0,IF(AND(LEN($C27)<>0,$D27="Yes"),VALUE(VLOOKUP(E27,'Round One'!$C:$J,7,0)+1E-24),0)) -> 0 | G27: 0 | H27: =IF(ISERROR(VLOOKUP($B27,'Round One'!$C:$J,6,0)),0,IF(AND(LEN($C27)<>0,$D27="Yes"),VLOOKUP($B27,'Round One'!$C:$J,6,0),"")) -> 0 | I27: =IF(ISERROR(VLOOKUP($B27,'Round One'!$C:$J,7,0)),0,IF(LEN($C27)<>0,VLOOKUP($B27,'Round One'!$C:$J,7,0)+1E-24,0)) -> 0 | J27: =IF(ISERROR(VLOOKUP($B27,'Round Two'!$C:$J,8,0)),0,IF(AND(LEN($C27)<>0,$D27="Yes"),VLOOKUP($B27,'Round Two'!$C:$J,8,0),"")) -> 0 | K27: =IF(ISERROR(VLOOKUP(J27,'Round Two'!$C:$J,7,0)),0,IF(AND(LEN($C27)<>0,$D27="Yes"),VLOOKUP(J27,'Round Two'!$C:$J,7,0)+1E-24,0)) -> 0 | L27: 0 | M27: =IF(ISERROR(VLOOKUP($B27,'Round Two'!$C:$J,6,0)),0,IF(AND(LEN($C27)<>0,$D27="Yes"),VLOOKUP($B27,'Round Two'!$C:$J,6,0),"")) -> 0 | N27: =IF(ISERROR(VLOOKUP($B27,'Round Two'!$C:$J,7,0)),0,IF(LEN($C27)<>0,VLOOKUP($B27,'Round Two'!$C:$J,7,0)+1E-24,0)) -> 0 | O27: =IF(ISERROR(VLOOKUP($B27,'Round Three'!$C:$J,8,0)),0,IF(AND(LEN($C27)<>0,$D27="Yes"),VLOOKUP($B27,'Round Three'!$C:$J,8,0),"")) -> 0 | P27: =IF(ISERROR(VLOOKUP(O27,'Round Three'!$C:$J,7,0)),0,IF(AND(LEN($C27)<>0,$D27="Yes"),VLOOKUP(O27,'Round Three'!$C:$J,7,0)+1E-24,0)) -> 0 | Q27: 0 | R27: =IF(ISERROR(VLOOKUP($B27,'Round Three'!$C:$J,6,0)),0,IF(AND(LEN($C27)<>0,$D27="Yes"),VLOOKUP($B27,'Round Three'!$C:$J,6,0),"")) -> 0 | S27: =IF(ISERROR(VLOOKUP($B27,'Round Three'!$C:$J,7,0)),0,IF(LEN($C27)<>0,VLOOKUP($B27,'Round Three'!$C:$J,7,0)+1E-24,0)) -> 0 | T27: =IF(ISERROR(VLOOKUP($B27,'Round Four'!$C:$J,8,0)),0,IF(AND(LEN($C27)<>0,$D27="Yes"),VLOOKUP($B27,'Round Four'!$C:$J,8,0),"")) -> 0 | U27: =IF(ISERROR(VLOOKUP(T27,'Round Four'!$C:$J,7,0)),0,IF(AND(LEN($C27)<>0,$D27="Yes"),VLOOKUP(T27,'Round Four'!$C:$J,7,0)+1E-24,0)) -> 0 | V27: 0 | W27: =IF(ISERROR(VLOOKUP($B27,'Round Four'!$C:$J,6,0)),0,IF(AND(LEN($C27)<>0,$D27="Yes"),VLOOKUP($B27,'Round Four'!$C:$J,6,0),"")) -> 0 | X27: =IF(ISERROR(VLOOKUP($B27,'Round Four'!$C:$J,7,0)),0,IF(LEN($C27)<>0,VLOOKUP($B27,'Round Four'!$C:$J,7,0)+1E-24,0)) -> 0 | Y27: =IF(ISERROR(VLOOKUP($B27,'Round Five'!$C:$J,8,0)),0,IF(AND(LEN($C27)<>0,$D27="Yes"),VLOOKUP($B27,'Round Five'!$C:$J,8,0),"")) -> 0 | Z27: =IF(ISERROR(VLOOKUP(Y27,'Round Five'!$C:$J,7,0)),0,IF(AND(LEN($C27)<>0,$D27="Yes"),VLOOKUP(Y27,'Round Five'!$C:$J,7,0)+1E-24,0)) -> 0 | AA27: 0 | AB27: =IF(ISERROR(VLOOKUP($B27,'Round Five'!$C:$J,6,0)),0,IF(AND(LEN($C27)<>0,$D27="Yes"),VLOOKUP($B27,'Round Five'!$C:$J,6,0),"")) -> 0 | AC27: =IF(ISERROR(VLOOKUP($B27,'Round Five'!$C:$J,7,0)),0,IF(LEN($C27)<>0,VLOOKUP($B27,'Round Five'!$C:$J,7,0)+1E-24,0)) -> 0 | AD27: =IF(ISERROR(VLOOKUP($B27,'Round Six'!$C:$J,8,0)),0,IF(AND(LEN($C27)<>0,$D27="Yes"),VLOOKUP($B27,'Round Six'!$C:$J,8,0),"")) -> 0 | AE27: =IF(ISERROR(VLOOKUP(AD27,'Round Six'!$C:$J,7,0)),0,IF(AND(LEN($C27)<>0,$D27="Yes"),VLOOKUP(AD27,'Round Six'!$C:$J,7,0)+1E-24,0)) -> 0 | AF27: 0 | AG27: =IF(ISERROR(VLOOKUP($B27,'Round Six'!$C:$J,6,0)),0,IF(AND(LEN($C27)<>0,$D27="Yes"),VLOOKUP($B27,'Round Six'!$C:$J,6,0),"")) -> 0 | AH27: =IF(ISERROR(VLOOKUP($B27,'Round Six'!$C:$J,7,0)),0,IF(LEN($C27)<>0,VLOOKUP($B27,'Round Six'!$C:$J,7,0)+1E-24,0)) -> 0 | AI27: =IF(ISERROR(VLOOKUP($B27,'Round Seven'!$C:$J,8,0)),0,IF(AND(LEN($C27)<>0,$D27="Yes"),VLOOKUP($B27,'Round Seven'!$C:$J,8,0),"")) -> 0 | AJ27: =IF(ISERROR(VLOOKUP(AI27,'Round Seven'!$C:$J,7,0)),0,IF(AND(LEN($C27)<>0,$D27="Yes"),VLOOKUP(AI27,'Round Seven'!$C:$J,7,0)+1E-24,0)) -> 0 | AK27: 0 | AL27: =IF(ISERROR(VLOOKUP($B27,'Round Seven'!$C:$J,6,0)),0,IF(AND(LEN($C27)<>0,$D27="Yes"),VLOOKUP($B27,'Round Seven'!$C:$J,6,0),"")) -> 0 | AM27: =IF(ISERROR(VLOOKUP($B27,'Round Seven'!$C:$J,7,0)),0,IF(LEN($C27)<>0,VLOOKUP($B27,'Round Seven'!$C:$J,7,0)+1E-24,0)) -> 0 | AN27: =IF(ISERROR(VLOOKUP($B27,'Round Eight'!$C:$J,8,0)),0,IF(AND(LEN($C27)<>0,$D27="Yes"),VLOOKUP($B27,'Round Eight'!$C:$J,8,0),"")) -> 0 | AO27: =IF(ISERROR(VLOOKUP(AN27,'Round Eight'!$C:$J,7,0)),0,IF(AND(LEN($C27)<>0,$D27="Yes"),VLOOKUP(AN27,'Round Eight'!$C:$J,7,0)+1E-24,0)) -> 0 | AP27: 0 | AQ27: =IF(ISERROR(VLOOKUP($B27,'Round Eight'!$C:$J,6,0)),0,IF(AND(LEN($C27)<>0,$D27="Yes"),VLOOKUP($B27,'Round Eight'!$C:$J,6,0),"")) -> 0 | AR27: =IF(ISERROR(VLOOKUP($B27,'Round Eight'!$C:$J,7,0)),0,IF(LEN($C27)<>0,VLOOKUP($B27,'Round Eight'!$C:$J,7,0)+1E-24,0)) -> 0 | AS27: =IF(ISERROR(VLOOKUP($B27,'Round Nine'!$C:$J,8,0)),0,IF(AND(LEN($C27)<>0,$D27="Yes"),VLOOKUP($B27,'Round Nine'!$C:$J,8,0),"")) -> 0 | AT27: =IF(ISERROR(VLOOKUP(AS27,'Round Nine'!$C:$J,7,0)),0,IF(AND(LEN($C27)<>0,$D27="Yes"),VLOOKUP(AS27,'Round Nine'!$C:$J,7,0)+1E-24,0)) -> 0 | AU27: 0 | AV27: =IF(ISERROR(VLOOKUP($B27,'Round Nine'!$C:$J,6,0)),0,IF(AND(LEN($C27)<>0,$D27="Yes"),VLOOKUP($B27,'Round Nine'!$C:$J,6,0),"")) -> 0 | AW27: =IF(ISERROR(VLOOKUP($B27,'Round Nine'!$C:$J,7,0)),0,IF(LEN($C27)<>0,VLOOKUP($B27,'Round Nine'!$C:$J,7,0)+1E-24,0)) -> 0 | AY27: 0 | AZ27: 0 | BA27: 0 | BB27: =IF(D27<>"Yes",A27*-10,AY27*1000000+AZ27*10000+BA27+(A27/100000))+IF(OR(Accel_Pairing_2!$B$4="no",D27<>"Yes",ISERROR(VLOOKUP(C27,PowerRanking!A:B,2,0))),0,(VLOOKUP(C27,PowerRanking!A:D,4,0)*1000000)+VLOOKUP(C27,PowerRanking!A:D,2,0)/10) -> -9.876598071 | BC27: 64 | BD27: T24 | BE27: 0
A28: 0.9007628961 | B28: T25 | E28: =IF(ISERROR(VLOOKUP($B28,'Round One'!$C:$J,8,0)),0,IF(AND(LEN($C28)<>0,$D28="Yes"),VLOOKUP($B28,'Round One'!$C:$J,8,0),0)) -> 0 | F28: =IF(ISERROR(VLOOKUP(E28,'Round One'!$C:$J,7,0)),0,IF(AND(LEN($C28)<>0,$D28="Yes"),VALUE(VLOOKUP(E28,'Round One'!$C:$J,7,0)+1E-24),0)) -> 0 | G28: 0 | H28: =IF(ISERROR(VLOOKUP($B28,'Round One'!$C:$J,6,0)),0,IF(AND(LEN($C28)<>0,$D28="Yes"),VLOOKUP($B28,'Round One'!$C:$J,6,0),"")) -> 0 | I28: =IF(ISERROR(VLOOKUP($B28,'Round One'!$C:$J,7,0)),0,IF(LEN($C28)<>0,VLOOKUP($B28,'Round One'!$C:$J,7,0)+1E-24,0)) -> 0 | J28: =IF(ISERROR(VLOOKUP($B28,'Round Two'!$C:$J,8,0)),0,IF(AND(LEN($C28)<>0,$D28="Yes"),VLOOKUP($B28,'Round Two'!$C:$J,8,0),"")) -> 0 | K28: =IF(ISERROR(VLOOKUP(J28,'Round Two'!$C:$J,7,0)),0,IF(AND(LEN($C28)<>0,$D28="Yes"),VLOOKUP(J28,'Round Two'!$C:$J,7,0)+1E-24,0)) -> 0 | L28: 0 | M28: =IF(ISERROR(VLOOKUP($B28,'Round Two'!$C:$J,6,0)),0,IF(AND(LEN($C28)<>0,$D28="Yes"),VLOOKUP($B28,'Round Two'!$C:$J,6,0),"")) -> 0 | N28: =IF(ISERROR(VLOOKUP($B28,'Round Two'!$C:$J,7,0)),0,IF(LEN($C28)<>0,VLOOKUP($B28,'Round Two'!$C:$J,7,0)+1E-24,0)) -> 0 | O28: =IF(ISERROR(VLOOKUP($B28,'Round Three'!$C:$J,8,0)),0,IF(AND(LEN($C28)<>0,$D28="Yes"),VLOOKUP($B28,'Round Three'!$C:$J,8,0),"")) -> 0 | P28: =IF(ISERROR(VLOOKUP(O28,'Round Three'!$C:$J,7,0)),0,IF(AND(LEN($C28)<>0,$D28="Yes"),VLOOKUP(O28,'Round Three'!$C:$J,7,0)+1E-24,0)) -> 0 | Q28: 0 | R28: =IF(ISERROR(VLOOKUP($B28,'Round Three'!$C:$J,6,0)),0,IF(AND(LEN($C28)<>0,$D28="Yes"),VLOOKUP($B28,'Round Three'!$C:$J,6,0),"")) -> 0 | S28: =IF(ISERROR(VLOOKUP($B28,'Round Three'!$C:$J,7,0)),0,IF(LEN($C28)<>0,VLOOKUP($B28,'Round Three'!$C:$J,7,0)+1E-24,0)) -> 0 | T28: =IF(ISERROR(VLOOKUP($B28,'Round Four'!$C:$J,8,0)),0,IF(AND(LEN($C28)<>0,$D28="Yes"),VLOOKUP($B28,'Round Four'!$C:$J,8,0),"")) -> 0 | U28: =IF(ISERROR(VLOOKUP(T28,'Round Four'!$C:$J,7,0)),0,IF(AND(LEN($C28)<>0,$D28="Yes"),VLOOKUP(T28,'Round Four'!$C:$J,7,0)+1E-24,0)) -> 0 | V28: 0 | W28: =IF(ISERROR(VLOOKUP($B28,'Round Four'!$C:$J,6,0)),0,IF(AND(LEN($C28)<>0,$D28="Yes"),VLOOKUP($B28,'Round Four'!$C:$J,6,0),"")) -> 0 | X28: =IF(ISERROR(VLOOKUP($B28,'Round Four'!$C:$J,7,0)),0,IF(LEN($C28)<>0,VLOOKUP($B28,'Round Four'!$C:$J,7,0)+1E-24,0)) -> 0 | Y28: =IF(ISERROR(VLOOKUP($B28,'Round Five'!$C:$J,8,0)),0,IF(AND(LEN($C28)<>0,$D28="Yes"),VLOOKUP($B28,'Round Five'!$C:$J,8,0),"")) -> 0 | Z28: =IF(ISERROR(VLOOKUP(Y28,'Round Five'!$C:$J,7,0)),0,IF(AND(LEN($C28)<>0,$D28="Yes"),VLOOKUP(Y28,'Round Five'!$C:$J,7,0)+1E-24,0)) -> 0 | AA28: 0 | AB28: =IF(ISERROR(VLOOKUP($B28,'Round Five'!$C:$J,6,0)),0,IF(AND(LEN($C28)<>0,$D28="Yes"),VLOOKUP($B28,'Round Five'!$C:$J,6,0),"")) -> 0 | AC28: =IF(ISERROR(VLOOKUP($B28,'Round Five'!$C:$J,7,0)),0,IF(LEN($C28)<>0,VLOOKUP($B28,'Round Five'!$C:$J,7,0)+1E-24,0)) -> 0 | AD28: =IF(ISERROR(VLOOKUP($B28,'Round Six'!$C:$J,8,0)),0,IF(AND(LEN($C28)<>0,$D28="Yes"),VLOOKUP($B28,'Round Six'!$C:$J,8,0),"")) -> 0 | AE28: =IF(ISERROR(VLOOKUP(AD28,'Round Six'!$C:$J,7,0)),0,IF(AND(LEN($C28)<>0,$D28="Yes"),VLOOKUP(AD28,'Round Six'!$C:$J,7,0)+1E-24,0)) -> 0 | AF28: 0 | AG28: =IF(ISERROR(VLOOKUP($B28,'Round Six'!$C:$J,6,0)),0,IF(AND(LEN($C28)<>0,$D28="Yes"),VLOOKUP($B28,'Round Six'!$C:$J,6,0),"")) -> 0 | AH28: =IF(ISERROR(VLOOKUP($B28,'Round Six'!$C:$J,7,0)),0,IF(LEN($C28)<>0,VLOOKUP($B28,'Round Six'!$C:$J,7,0)+1E-24,0)) -> 0 | AI28: =IF(ISERROR(VLOOKUP($B28,'Round Seven'!$C:$J,8,0)),0,IF(AND(LEN($C28)<>0,$D28="Yes"),VLOOKUP($B28,'Round Seven'!$C:$J,8,0),"")) -> 0 | AJ28: =IF(ISERROR(VLOOKUP(AI28,'Round Seven'!$C:$J,7,0)),0,IF(AND(LEN($C28)<>0,$D28="Yes"),VLOOKUP(AI28,'Round Seven'!$C:$J,7,0)+1E-24,0)) -> 0 | AK28: 0 | AL28: =IF(ISERROR(VLOOKUP($B28,'Round Seven'!$C:$J,6,0)),0,IF(AND(LEN($C28)<>0,$D28="Yes"),VLOOKUP($B28,'Round Seven'!$C:$J,6,0),"")) -> 0 | AM28: =IF(ISERROR(VLOOKUP($B28,'Round Seven'!$C:$J,7,0)),0,IF(LEN($C28)<>0,VLOOKUP($B28,'Round Seven'!$C:$J,7,0)+1E-24,0)) -> 0 | AN28: =IF(ISERROR(VLOOKUP($B28,'Round Eight'!$C:$J,8,0)),0,IF(AND(LEN($C28)<>0,$D28="Yes"),VLOOKUP($B28,'Round Eight'!$C:$J,8,0),"")) -> 0 | AO28: =IF(ISERROR(VLOOKUP(AN28,'Round Eight'!$C:$J,7,0)),0,IF(AND(LEN($C28)<>0,$D28="Yes"),VLOOKUP(AN28,'Round Eight'!$C:$J,7,0)+1E-24,0)) -> 0 | AP28: 0 | AQ28: =IF(ISERROR(VLOOKUP($B28,'Round Eight'!$C:$J,6,0)),0,IF(AND(LEN($C28)<>0,$D28="Yes"),VLOOKUP($B28,'Round Eight'!$C:$J,6,0),"")) -> 0 | AR28: =IF(ISERROR(VLOOKUP($B28,'Round Eight'!$C:$J,7,0)),0,IF(LEN($C28)<>0,VLOOKUP($B28,'Round Eight'!$C:$J,7,0)+1E-24,0)) -> 0 | AS28: =IF(ISERROR(VLOOKUP($B28,'Round Nine'!$C:$J,8,0)),0,IF(AND(LEN($C28)<>0,$D28="Yes"),VLOOKUP($B28,'Round Nine'!$C:$J,8,0),"")) -> 0 | AT28: =IF(ISERROR(VLOOKUP(AS28,'Round Nine'!$C:$J,7,0)),0,IF(AND(LEN($C28)<>0,$D28="Yes"),VLOOKUP(AS28,'Round Nine'!$C:$J,7,0)+1E-24,0)) -> 0 | AU28: 0 | AV28: =IF(ISERROR(VLOOKUP($B28,'Round Nine'!$C:$J,6,0)),0,IF(AND(LEN($C28)<>0,$D28="Yes"),VLOOKUP($B28,'Round Nine'!$C:$J,6,0),"")) -> 0 | AW28: =IF(ISERROR(VLOOKUP($B28,'Round Nine'!$C:$J,7,0)),0,IF(LEN($C28)<>0,VLOOKUP($B28,'Round Nine'!$C:$J,7,0)+1E-24,0)) -> 0 | AY28: 0 | AZ28: 0 | BA28: 0 | BB28: =IF(D28<>"Yes",A28*-10,AY28*1000000+AZ28*10000+BA28+(A28/100000))+IF(OR(Accel_Pairing_2!$B$4="no",D28<>"Yes",ISERROR(VLOOKUP(C28,PowerRanking!A:B,2,0))),0,(VLOOKUP(C28,PowerRanking!A:D,4,0)*1000000)+VLOOKUP(C28,PowerRanking!A:D,2,0)/10) -> -9.007628961 | BC28: 57 | BD28: T25 | BE28: 0
A29: 0.4072396047 | B29: T26 | E29: =IF(ISERROR(VLOOKUP($B29,'Round One'!$C:$J,8,0)),0,IF(AND(LEN($C29)<>0,$D29="Yes"),VLOOKUP($B29,'Round One'!$C:$J,8,0),0)) -> 0 | F29: =IF(ISERROR(VLOOKUP(E29,'Round One'!$C:$J,7,0)),0,IF(AND(LEN($C29)<>0,$D29="Yes"),VALUE(VLOOKUP(E29,'Round One'!$C:$J,7,0)+1E-24),0)) -> 0 | G29: 0 | H29: =IF(ISERROR(VLOOKUP($B29,'Round One'!$C:$J,6,0)),0,IF(AND(LEN($C29)<>0,$D29="Yes"),VLOOKUP($B29,'Round One'!$C:$J,6,0),"")) -> 0 | I29: =IF(ISERROR(VLOOKUP($B29,'Round One'!$C:$J,7,0)),0,IF(LEN($C29)<>0,VLOOKUP($B29,'Round One'!$C:$J,7,0)+1E-24,0)) -> 0 | J29: =IF(ISERROR(VLOOKUP($B29,'Round Two'!$C:$J,8,0)),0,IF(AND(LEN($C29)<>0,$D29="Yes"),VLOOKUP($B29,'Round Two'!$C:$J,8,0),"")) -> 0 | K29: =IF(ISERROR(VLOOKUP(J29,'Round Two'!$C:$J,7,0)),0,IF(AND(LEN($C29)<>0,$D29="Yes"),VLOOKUP(J29,'Round Two'!$C:$J,7,0)+1E-24,0)) -> 0 | L29: 0 | M29: =IF(ISERROR(VLOOKUP($B29,'Round Two'!$C:$J,6,0)),0,IF(AND(LEN($C29)<>0,$D29="Yes"),VLOOKUP($B29,'Round Two'!$C:$J,6,0),"")) -> 0 | N29: =IF(ISERROR(VLOOKUP($B29,'Round Two'!$C:$J,7,0)),0,IF(LEN($C29)<>0,VLOOKUP($B29,'Round Two'!$C:$J,7,0)+1E-24,0)) -> 0 | O29: =IF(ISERROR(VLOOKUP($B29,'Round Three'!$C:$J,8,0)),0,IF(AND(LEN($C29)<>0,$D29="Yes"),VLOOKUP($B29,'Round Three'!$C:$J,8,0),"")) -> 0 | P29: =IF(ISERROR(VLOOKUP(O29,'Round Three'!$C:$J,7,0)),0,IF(AND(LEN($C29)<>0,$D29="Yes"),VLOOKUP(O29,'Round Three'!$C:$J,7,0)+1E-24,0)) -> 0 | Q29: 0 | R29: =IF(ISERROR(VLOOKUP($B29,'Round Three'!$C:$J,6,0)),0,IF(AND(LEN($C29)<>0,$D29="Yes"),VLOOKUP($B29,'Round Three'!$C:$J,6,0),"")) -> 0 | S29: =IF(ISERROR(VLOOKUP($B29,'Round Three'!$C:$J,7,0)),0,IF(LEN($C29)<>0,VLOOKUP($B29,'Round Three'!$C:$J,7,0)+1E-24,0)) -> 0 | T29: =IF(ISERROR(VLOOKUP($B29,'Round Four'!$C:$J,8,0)),0,IF(AND(LEN($C29)<>0,$D29="Yes"),VLOOKUP($B29,'Round Four'!$C:$J,8,0),"")) -> 0 | U29: =IF(ISERROR(VLOOKUP(T29,'Round Four'!$C:$J,7,0)),0,IF(AND(LEN($C29)<>0,$D29="Yes"),VLOOKUP(T29,'Round Four'!$C:$J,7,0)+1E-24,0)) -> 0 | V29: 0 | W29: =IF(ISERROR(VLOOKUP($B29,'Round Four'!$C:$J,6,0)),0,IF(AND(LEN($C29)<>0,$D29="Yes"),VLOOKUP($B29,'Round Four'!$C:$J,6,0),"")) -> 0 | X29: =IF(ISERROR(VLOOKUP($B29,'Round Four'!$C:$J,7,0)),0,IF(LEN($C29)<>0,VLOOKUP($B29,'Round Four'!$C:$J,7,0)+1E-24,0)) -> 0 | Y29: =IF(ISERROR(VLOOKUP($B29,'Round Five'!$C:$J,8,0)),0,IF(AND(LEN($C29)<>0,$D29="Yes"),VLOOKUP($B29,'Round Five'!$C:$J,8,0),"")) -> 0 | Z29: =IF(ISERROR(VLOOKUP(Y29,'Round Five'!$C:$J,7,0)),0,IF(AND(LEN($C29)<>0,$D29="Yes"),VLOOKUP(Y29,'Round Five'!$C:$J,7,0)+1E-24,0)) -> 0 | AA29: 0 | AB29: =IF(ISERROR(VLOOKUP($B29,'Round Five'!$C:$J,6,0)),0,IF(AND(LEN($C29)<>0,$D29="Yes"),VLOOKUP($B29,'Round Five'!$C:$J,6,0),"")) -> 0 | AC29: =IF(ISERROR(VLOOKUP($B29,'Round Five'!$C:$J,7,0)),0,IF(LEN($C29)<>0,VLOOKUP($B29,'Round Five'!$C:$J,7,0)+1E-24,0)) -> 0 | AD29: =IF(ISERROR(VLOOKUP($B29,'Round Six'!$C:$J,8,0)),0,IF(AND(LEN($C29)<>0,$D29="Yes"),VLOOKUP($B29,'Round Six'!$C:$J,8,0),"")) -> 0 | AE29: =IF(ISERROR(VLOOKUP(AD29,'Round Six'!$C:$J,7,0)),0,IF(AND(LEN($C29)<>0,$D29="Yes"),VLOOKUP(AD29,'Round Six'!$C:$J,7,0)+1E-24,0)) -> 0 | AF29: 0 | AG29: =IF(ISERROR(VLOOKUP($B29,'Round Six'!$C:$J,6,0)),0,IF(AND(LEN($C29)<>0,$D29="Yes"),VLOOKUP($B29,'Round Six'!$C:$J,6,0),"")) -> 0 | AH29: =IF(ISERROR(VLOOKUP($B29,'Round Six'!$C:$J,7,0)),0,IF(LEN($C29)<>0,VLOOKUP($B29,'Round Six'!$C:$J,7,0)+1E-24,0)) -> 0 | AI29: =IF(ISERROR(VLOOKUP($B29,'Round Seven'!$C:$J,8,0)),0,IF(AND(LEN($C29)<>0,$D29="Yes"),VLOOKUP($B29,'Round Seven'!$C:$J,8,0),"")) -> 0 | AJ29: =IF(ISERROR(VLOOKUP(AI29,'Round Seven'!$C:$J,7,0)),0,IF(AND(LEN($C29)<>0,$D29="Yes"),VLOOKUP(AI29,'Round Seven'!$C:$J,7,0)+1E-24,0)) -> 0 | AK29: 0 | AL29: =IF(ISERROR(VLOOKUP($B29,'Round Seven'!$C:$J,6,0)),0,IF(AND(LEN($C29)<>0,$D29="Yes"),VLOOKUP($B29,'Round Seven'!$C:$J,6,0),"")) -> 0 | AM29: =IF(ISERROR(VLOOKUP($B29,'Round Seven'!$C:$J,7,0)),0,IF(LEN($C29)<>0,VLOOKUP($B29,'Round Seven'!$C:$J,7,0)+1E-24,0)) -> 0 | AN29: =IF(ISERROR(VLOOKUP($B29,'Round Eight'!$C:$J,8,0)),0,IF(AND(LEN($C29)<>0,$D29="Yes"),VLOOKUP($B29,'Round Eight'!$C:$J,8,0),"")) -> 0 | AO29: =IF(ISERROR(VLOOKUP(AN29,'Round Eight'!$C:$J,7,0)),0,IF(AND(LEN($C29)<>0,$D29="Yes"),VLOOKUP(AN29,'Round Eight'!$C:$J,7,0)+1E-24,0)) -> 0 | AP29: 0 | AQ29: =IF(ISERROR(VLOOKUP($B29,'Round Eight'!$C:$J,6,0)),0,IF(AND(LEN($C29)<>0,$D29="Yes"),VLOOKUP($B29,'Round Eight'!$C:$J,6,0),"")) -> 0 | AR29: =IF(ISERROR(VLOOKUP($B29,'Round Eight'!$C:$J,7,0)),0,IF(LEN($C29)<>0,VLOOKUP($B29,'Round Eight'!$C:$J,7,0)+1E-24,0)) -> 0 | AS29: =IF(ISERROR(VLOOKUP($B29,'Round Nine'!$C:$J,8,0)),0,IF(AND(LEN($C29)<>0,$D29="Yes"),VLOOKUP($B29,'Round Nine'!$C:$J,8,0),"")) -> 0 | AT29: =IF(ISERROR(VLOOKUP(AS29,'Round Nine'!$C:$J,7,0)),0,IF(AND(LEN($C29)<>0,$D29="Yes"),VLOOKUP(AS29,'Round Nine'!$C:$J,7,0)+1E-24,0)) -> 0 | AU29: 0 | AV29: =IF(ISERROR(VLOOKUP($B29,'Round Nine'!$C:$J,6,0)),0,IF(AND(LEN($C29)<>0,$D29="Yes"),VLOOKUP($B29,'Round Nine'!$C:$J,6,0),"")) -> 0 | AW29: =IF(ISERROR(VLOOKUP($B29,'Round Nine'!$C:$J,7,0)),0,IF(LEN($C29)<>0,VLOOKUP($B29,'Round Nine'!$C:$J,7,0)+1E-24,0)) -> 0 | AY29: 0 | AZ29: 0 | BA29: 0 | BB29: =IF(D29<>"Yes",A29*-10,AY29*1000000+AZ29*10000+BA29+(A29/100000))+IF(OR(Accel_Pairing_2!$B$4="no",D29<>"Yes",ISERROR(VLOOKUP(C29,PowerRanking!A:B,2,0))),0,(VLOOKUP(C29,PowerRanking!A:D,4,0)*1000000)+VLOOKUP(C29,PowerRanking!A:D,2,0)/10) -> -4.072396047 | BC29: 28 | BD29: T26 | BE29: 0
A30: 0.204867698 | B30: T27 | E30: =IF(ISERROR(VLOOKUP($B30,'Round One'!$C:$J,8,0)),0,IF(AND(LEN($C30)<>0,$D30="Yes"),VLOOKUP($B30,'Round One'!$C:$J,8,0),0)) -> 0 | F30: =IF(ISERROR(VLOOKUP(E30,'Round One'!$C:$J,7,0)),0,IF(AND(LEN($C30)<>0,$D30="Yes"),VALUE(VLOOKUP(E30,'Round One'!$C:$J,7,0)+1E-24),0)) -> 0 | G30: 0 | H30: =IF(ISERROR(VLOOKUP($B30,'Round One'!$C:$J,6,0)),0,IF(AND(LEN($C30)<>0,$D30="Yes"),VLOOKUP($B30,'Round One'!$C:$J,6,0),"")) -> 0 | I30: =IF(ISERROR(VLOOKUP($B30,'Round One'!$C:$J,7,0)),0,IF(LEN($C30)<>0,VLOOKUP($B30,'Round One'!$C:$J,7,0)+1E-24,0)) -> 0 | J30: =IF(ISERROR(VLOOKUP($B30,'Round Two'!$C:$J,8,0)),0,IF(AND(LEN($C30)<>0,$D30="Yes"),VLOOKUP($B30,'Round Two'!$C:$J,8,0),"")) -> 0 | K30: =IF(ISERROR(VLOOKUP(J30,'Round Two'!$C:$J,7,0)),0,IF(AND(LEN($C30)<>0,$D30="Yes"),VLOOKUP(J30,'Round Two'!$C:$J,7,0)+1E-24,0)) -> 0 | L30: 0 | M30: =IF(ISERROR(VLOOKUP($B30,'Round Two'!$C:$J,6,0)),0,IF(AND(LEN($C30)<>0,$D30="Yes"),VLOOKUP($B30,'Round Two'!$C:$J,6,0),"")) -> 0 | N30: =IF(ISERROR(VLOOKUP($B30,'Round Two'!$C:$J,7,0)),0,IF(LEN($C30)<>0,VLOOKUP($B30,'Round Two'!$C:$J,7,0)+1E-24,0)) -> 0 | O30: =IF(ISERROR(VLOOKUP($B30,'Round Three'!$C:$J,8,0)),0,IF(AND(LEN($C30)<>0,$D30="Yes"),VLOOKUP($B30,'Round Three'!$C:$J,8,0),"")) -> 0 | P30: =IF(ISERROR(VLOOKUP(O30,'Round Three'!$C:$J,7,0)),0,IF(AND(LEN($C30)<>0,$D30="Yes"),VLOOKUP(O30,'Round Three'!$C:$J,7,0)+1E-24,0)) -> 0 | Q30: 0 | R30: =IF(ISERROR(VLOOKUP($B30,'Round Three'!$C:$J,6,0)),0,IF(AND(LEN($C30)<>0,$D30="Yes"),VLOOKUP($B30,'Round Three'!$C:$J,6,0),"")) -> 0 | S30: =IF(ISERROR(VLOOKUP($B30,'Round Three'!$C:$J,7,0)),0,IF(LEN($C30)<>0,VLOOKUP($B30,'Round Three'!$C:$J,7,0)+1E-24,0)) -> 0 | T30: =IF(ISERROR(VLOOKUP($B30,'Round Four'!$C:$J,8,0)),0,IF(AND(LEN($C30)<>0,$D30="Yes"),VLOOKUP($B30,'Round Four'!$C:$J,8,0),"")) -> 0 | U30: =IF(ISERROR(VLOOKUP(T30,'Round Four'!$C:$J,7,0)),0,IF(AND(LEN($C30)<>0,$D30="Yes"),VLOOKUP(T30,'Round Four'!$C:$J,7,0)+1E-24,0)) -> 0 | V30: 0 | W30: =IF(ISERROR(VLOOKUP($B30,'Round Four'!$C:$J,6,0)),0,IF(AND(LEN($C30)<>0,$D30="Yes"),VLOOKUP($B30,'Round Four'!$C:$J,6,0),"")) -> 0 | X30: =IF(ISERROR(VLOOKUP($B30,'Round Four'!$C:$J,7,0)),0,IF(LEN($C30)<>0,VLOOKUP($B30,'Round Four'!$C:$J,7,0)+1E-24,0)) -> 0 | Y30: =IF(ISERROR(VLOOKUP($B30,'Round Five'!$C:$J,8,0)),0,IF(AND(LEN($C30)<>0,$D30="Yes"),VLOOKUP($B30,'Round Five'!$C:$J,8,0),"")) -> 0 | Z30: =IF(ISERROR(VLOOKUP(Y30,'Round Five'!$C:$J,7,0)),0,IF(AND(LEN($C30)<>0,$D30="Yes"),VLOOKUP(Y30,'Round Five'!$C:$J,7,0)+1E-24,0)) -> 0 | AA30: 0 | AB30: =IF(ISERROR(VLOOKUP($B30,'Round Five'!$C:$J,6,0)),0,IF(AND(LEN($C30)<>0,$D30="Yes"),VLOOKUP($B30,'Round Five'!$C:$J,6,0),"")) -> 0 | AC30: =IF(ISERROR(VLOOKUP($B30,'Round Five'!$C:$J,7,0)),0,IF(LEN($C30)<>0,VLOOKUP($B30,'Round Five'!$C:$J,7,0)+1E-24,0)) -> 0 | AD30: =IF(ISERROR(VLOOKUP($B30,'Round Six'!$C:$J,8,0)),0,IF(AND(LEN($C30)<>0,$D30="Yes"),VLOOKUP($B30,'Round Six'!$C:$J,8,0),"")) -> 0 | AE30: =IF(ISERROR(VLOOKUP(AD30,'Round Six'!$C:$J,7,0)),0,IF(AND(LEN($C30)<>0,$D30="Yes"),VLOOKUP(AD30,'Round Six'!$C:$J,7,0)+1E-24,0)) -> 0 | AF30: 0 | AG30: =IF(ISERROR(VLOOKUP($B30,'Round Six'!$C:$J,6,0)),0,IF(AND(LEN($C30)<>0,$D30="Yes"),VLOOKUP($B30,'Round Six'!$C:$J,6,0),"")) -> 0 | AH30: =IF(ISERROR(VLOOKUP($B30,'Round Six'!$C:$J,7,0)),0,IF(LEN($C30)<>0,VLOOKUP($B30,'Round Six'!$C:$J,7,0)+1E-24,0)) -> 0 | AI30: =IF(ISERROR(VLOOKUP($B30,'Round Seven'!$C:$J,8,0)),0,IF(AND(LEN($C30)<>0,$D30="Yes"),VLOOKUP($B30,'Round Seven'!$C:$J,8,0),"")) -> 0 | AJ30: =IF(ISERROR(VLOOKUP(AI30,'Round Seven'!$C:$J,7,0)),0,IF(AND(LEN($C30)<>0,$D30="Yes"),VLOOKUP(AI30,'Round Seven'!$C:$J,7,0)+1E-24,0)) -> 0 | AK30: 0 | AL30: =IF(ISERROR(VLOOKUP($B30,'Round Seven'!$C:$J,6,0)),0,IF(AND(LEN($C30)<>0,$D30="Yes"),VLOOKUP($B30,'Round Seven'!$C:$J,6,0),"")) -> 0 | AM30: =IF(ISERROR(VLOOKUP($B30,'Round Seven'!$C:$J,7,0)),0,IF(LEN($C30)<>0,VLOOKUP($B30,'Round Seven'!$C:$J,7,0)+1E-24,0)) -> 0 | AN30: =IF(ISERROR(VLOOKUP($B30,'Round Eight'!$C:$J,8,0)),0,IF(AND(LEN($C30)<>0,$D30="Yes"),VLOOKUP($B30,'Round Eight'!$C:$J,8,0),"")) -> 0 | AO30: =IF(ISERROR(VLOOKUP(AN30,'Round Eight'!$C:$J,7,0)),0,IF(AND(LEN($C30)<>0,$D30="Yes"),VLOOKUP(AN30,'Round Eight'!$C:$J,7,0)+1E-24,0)) -> 0 | AP30: 0 | AQ30: =IF(ISERROR(VLOOKUP($B30,'Round Eight'!$C:$J,6,0)),0,IF(AND(LEN($C30)<>0,$D30="Yes"),VLOOKUP($B30,'Round Eight'!$C:$J,6,0),"")) -> 0 | AR30: =IF(ISERROR(VLOOKUP($B30,'Round Eight'!$C:$J,7,0)),0,IF(LEN($C30)<>0,VLOOKUP($B30,'Round Eight'!$C:$J,7,0)+1E-24,0)) -> 0 | AS30: =IF(ISERROR(VLOOKUP($B30,'Round Nine'!$C:$J,8,0)),0,IF(AND(LEN($C30)<>0,$D30="Yes"),VLOOKUP($B30,'Round Nine'!$C:$J,8,0),"")) -> 0 | AT30: =IF(ISERROR(VLOOKUP(AS30,'Round Nine'!$C:$J,7,0)),0,IF(AND(LEN($C30)<>0,$D30="Yes"),VLOOKUP(AS30,'Round Nine'!$C:$J,7,0)+1E-24,0)) -> 0 | AU30: 0 | AV30: =IF(ISERROR(VLOOKUP($B30,'Round Nine'!$C:$J,6,0)),0,IF(AND(LEN($C30)<>0,$D30="Yes"),VLOOKUP($B30,'Round Nine'!$C:$J,6,0),"")) -> 0 | AW30: =IF(ISERROR(VLOOKUP($B30,'Round Nine'!$C:$J,7,0)),0,IF(LEN($C30)<>0,VLOOKUP($B30,'Round Nine'!$C:$J,7,0)+1E-24,0)) -> 0 | AY30: 0 | AZ30: 0 | BA30: 0 | BB30: =IF(D30<>"Yes",A30*-10,AY30*1000000+AZ30*10000+BA30+(A30/100000))+IF(OR(Accel_Pairing_2!$B$4="no",D30<>"Yes",ISERROR(VLOOKUP(C30,PowerRanking!A:B,2,0))),0,(VLOOKUP(C30,PowerRanking!A:D,4,0)*1000000)+VLOOKUP(C30,PowerRanking!A:D,2,0)/10) -> -2.04867698 | BC30: 10 | BD30: T27 | BE30: 0
A31: 0.2110726043 | B31: T28 | E31: =IF(ISERROR(VLOOKUP($B31,'Round One'!$C:$J,8,0)),0,IF(AND(LEN($C31)<>0,$D31="Yes"),VLOOKUP($B31,'Round One'!$C:$J,8,0),0)) -> 0 | F31: =IF(ISERROR(VLOOKUP(E31,'Round One'!$C:$J,7,0)),0,IF(AND(LEN($C31)<>0,$D31="Yes"),VALUE(VLOOKUP(E31,'Round One'!$C:$J,7,0)+1E-24),0)) -> 0 | G31: 0 | H31: =IF(ISERROR(VLOOKUP($B31,'Round One'!$C:$J,6,0)),0,IF(AND(LEN($C31)<>0,$D31="Yes"),VLOOKUP($B31,'Round One'!$C:$J,6,0),"")) -> 0 | I31: =IF(ISERROR(VLOOKUP($B31,'Round One'!$C:$J,7,0)),0,IF(LEN($C31)<>0,VLOOKUP($B31,'Round One'!$C:$J,7,0)+1E-24,0)) -> 0 | J31: =IF(ISERROR(VLOOKUP($B31,'Round Two'!$C:$J,8,0)),0,IF(AND(LEN($C31)<>0,$D31="Yes"),VLOOKUP($B31,'Round Two'!$C:$J,8,0),"")) -> 0 | K31: =IF(ISERROR(VLOOKUP(J31,'Round Two'!$C:$J,7,0)),0,IF(AND(LEN($C31)<>0,$D31="Yes"),VLOOKUP(J31,'Round Two'!$C:$J,7,0)+1E-24,0)) -> 0 | L31: 0 | M31: =IF(ISERROR(VLOOKUP($B31,'Round Two'!$C:$J,6,0)),0,IF(AND(LEN($C31)<>0,$D31="Yes"),VLOOKUP($B31,'Round Two'!$C:$J,6,0),"")) -> 0 | N31: =IF(ISERROR(VLOOKUP($B31,'Round Two'!$C:$J,7,0)),0,IF(LEN($C31)<>0,VLOOKUP($B31,'Round Two'!$C:$J,7,0)+1E-24,0)) -> 0 | O31: =IF(ISERROR(VLOOKUP($B31,'Round Three'!$C:$J,8,0)),0,IF(AND(LEN($C31)<>0,$D31="Yes"),VLOOKUP($B31,'Round Three'!$C:$J,8,0),"")) -> 0 | P31: =IF(ISERROR(VLOOKUP(O31,'Round Three'!$C:$J,7,0)),0,IF(AND(LEN($C31)<>0,$D31="Yes"),VLOOKUP(O31,'Round Three'!$C:$J,7,0)+1E-24,0)) -> 0 | Q31: 0 | R31: =IF(ISERROR(VLOOKUP($B31,'Round Three'!$C:$J,6,0)),0,IF(AND(LEN($C31)<>0,$D31="Yes"),VLOOKUP($B31,'Round Three'!$C:$J,6,0),"")) -> 0 | S31: =IF(ISERROR(VLOOKUP($B31,'Round Three'!$C:$J,7,0)),0,IF(LEN($C31)<>0,VLOOKUP($B31,'Round Three'!$C:$J,7,0)+1E-24,0)) -> 0 | T31: =IF(ISERROR(VLOOKUP($B31,'Round Four'!$C:$J,8,0)),0,IF(AND(LEN($C31)<>0,$D31="Yes"),VLOOKUP($B31,'Round Four'!$C:$J,8,0),"")) -> 0 | U31: =IF(ISERROR(VLOOKUP(T31,'Round Four'!$C:$J,7,0)),0,IF(AND(LEN($C31)<>0,$D31="Yes"),VLOOKUP(T31,'Round Four'!$C:$J,7,0)+1E-24,0)) -> 0 | V31: 0 | W31: =IF(ISERROR(VLOOKUP($B31,'Round Four'!$C:$J,6,0)),0,IF(AND(LEN($C31)<>0,$D31="Yes"),VLOOKUP($B31,'Round Four'!$C:$J,6,0),"")) -> 0 | X31: =IF(ISERROR(VLOOKUP($B31,'Round Four'!$C:$J,7,0)),0,IF(LEN($C31)<>0,VLOOKUP($B31,'Round Four'!$C:$J,7,0)+1E-24,0)) -> 0 | Y31: =IF(ISERROR(VLOOKUP($B31,'Round Five'!$C:$J,8,0)),0,IF(AND(LEN($C31)<>0,$D31="Yes"),VLOOKUP($B31,'Round Five'!$C:$J,8,0),"")) -> 0 | Z31: =IF(ISERROR(VLOOKUP(Y31,'Round Five'!$C:$J,7,0)),0,IF(AND(LEN($C31)<>0,$D31="Yes"),VLOOKUP(Y31,'Round Five'!$C:$J,7,0)+1E-24,0)) -> 0 | AA31: 0 | AB31: =IF(ISERROR(VLOOKUP($B31,'Round Five'!$C:$J,6,0)),0,IF(AND(LEN($C31)<>0,$D31="Yes"),VLOOKUP($B31,'Round Five'!$C:$J,6,0),"")) -> 0 | AC31: =IF(ISERROR(VLOOKUP($B31,'Round Five'!$C:$J,7,0)),0,IF(LEN($C31)<>0,VLOOKUP($B31,'Round Five'!$C:$J,7,0)+1E-24,0)) -> 0 | AD31: =IF(ISERROR(VLOOKUP($B31,'Round Six'!$C:$J,8,0)),0,IF(AND(LEN($C31)<>0,$D31="Yes"),VLOOKUP($B31,'Round Six'!$C:$J,8,0),"")) -> 0 | AE31: =IF(ISERROR(VLOOKUP(AD31,'Round Six'!$C:$J,7,0)),0,IF(AND(LEN($C31)<>0,$D31="Yes"),VLOOKUP(AD31,'Round Six'!$C:$J,7,0)+1E-24,0)) -> 0 | AF31: 0 | AG31: =IF(ISERROR(VLOOKUP($B31,'Round Six'!$C:$J,6,0)),0,IF(AND(LEN($C31)<>0,$D31="Yes"),VLOOKUP($B31,'Round Six'!$C:$J,6,0),"")) -> 0 | AH31: =IF(ISERROR(VLOOKUP($B31,'Round Six'!$C:$J,7,0)),0,IF(LEN($C31)<>0,VLOOKUP($B31,'Round Six'!$C:$J,7,0)+1E-24,0)) -> 0 | AI31: =IF(ISERROR(VLOOKUP($B31,'Round Seven'!$C:$J,8,0)),0,IF(AND(LEN($C31)<>0,$D31="Yes"),VLOOKUP($B31,'Round Seven'!$C:$J,8,0),"")) -> 0 | AJ31: =IF(ISERROR(VLOOKUP(AI31,'Round Seven'!$C:$J,7,0)),0,IF(AND(LEN($C31)<>0,$D31="Yes"),VLOOKUP(AI31,'Round Seven'!$C:$J,7,0)+1E-24,0)) -> 0 | AK31: 0 | AL31: =IF(ISERROR(VLOOKUP($B31,'Round Seven'!$C:$J,6,0)),0,IF(AND(LEN($C31)<>0,$D31="Yes"),VLOOKUP($B31,'Round Seven'!$C:$J,6,0),"")) -> 0 | AM31: =IF(ISERROR(VLOOKUP($B31,'Round Seven'!$C:$J,7,0)),0,IF(LEN($C31)<>0,VLOOKUP($B31,'Round Seven'!$C:$J,7,0)+1E-24,0)) -> 0 | AN31: =IF(ISERROR(VLOOKUP($B31,'Round Eight'!$C:$J,8,0)),0,IF(AND(LEN($C31)<>0,$D31="Yes"),VLOOKUP($B31,'Round Eight'!$C:$J,8,0),"")) -> 0 | AO31: =IF(ISERROR(VLOOKUP(AN31,'Round Eight'!$C:$J,7,0)),0,IF(AND(LEN($C31)<>0,$D31="Yes"),VLOOKUP(AN31,'Round Eight'!$C:$J,7,0)+1E-24,0)) -> 0 | AP31: 0 | AQ31: =IF(ISERROR(VLOOKUP($B31,'Round Eight'!$C:$J,6,0)),0,IF(AND(LEN($C31)<>0,$D31="Yes"),VLOOKUP($B31,'Round Eight'!$C:$J,6,0),"")) -> 0 | AR31: =IF(ISERROR(VLOOKUP($B31,'Round Eight'!$C:$J,7,0)),0,IF(LEN($C31)<>0,VLOOKUP($B31,'Round Eight'!$C:$J,7,0)+1E-24,0)) -> 0 | AS31: =IF(ISERROR(VLOOKUP($B31,'Round Nine'!$C:$J,8,0)),0,IF(AND(LEN($C31)<>0,$D31="Yes"),VLOOKUP($B31,'Round Nine'!$C:$J,8,0),"")) -> 0 | AT31: =IF(ISERROR(VLOOKUP(AS31,'Round Nine'!$C:$J,7,0)),0,IF(AND(LEN($C31)<>0,$D31="Yes"),VLOOKUP(AS31,'Round Nine'!$C:$J,7,0)+1E-24,0)) -> 0 | AU31: 0 | AV31: =IF(ISERROR(VLOOKUP($B31,'Round Nine'!$C:$J,6,0)),0,IF(AND(LEN($C31)<>0,$D31="Yes"),VLOOKUP($B31,'Round Nine'!$C:$J,6,0),"")) -> 0 | AW31: =IF(ISERROR(VLOOKUP($B31,'Round Nine'!$C:$J,7,0)),0,IF(LEN($C31)<>0,VLOOKUP($B31,'Round Nine'!$C:$J,7,0)+1E-24,0)) -> 0 | AY31: 0 | AZ31: 0 | BA31: 0 | BB31: =IF(D31<>"Yes",A31*-10,AY31*1000000+AZ31*10000+BA31+(A31/100000))+IF(OR(Accel_Pairing_2!$B$4="no",D31<>"Yes",ISERROR(VLOOKUP(C31,PowerRanking!A:B,2,0))),0,(VLOOKUP(C31,PowerRanking!A:D,4,0)*1000000)+VLOOKUP(C31,PowerRanking!A:D,2,0)/10) -> -2.110726043 | BC31: 12 | BD31: T28 | BE31: 0
A32: 0.3720107803 | B32: T29 | E32: =IF(ISERROR(VLOOKUP($B32,'Round One'!$C:$J,8,0)),0,IF(AND(LEN($C32)<>0,$D32="Yes"),VLOOKUP($B32,'Round One'!$C:$J,8,0),0)) -> 0 | F32: =IF(ISERROR(VLOOKUP(E32,'Round One'!$C:$J,7,0)),0,IF(AND(LEN($C32)<>0,$D32="Yes"),VALUE(VLOOKUP(E32,'Round One'!$C:$J,7,0)+1E-24),0)) -> 0 | G32: 0 | H32: =IF(ISERROR(VLOOKUP($B32,'Round One'!$C:$J,6,0)),0,IF(AND(LEN($C32)<>0,$D32="Yes"),VLOOKUP($B32,'Round One'!$C:$J,6,0),"")) -> 0 | I32: =IF(ISERROR(VLOOKUP($B32,'Round One'!$C:$J,7,0)),0,IF(LEN($C32)<>0,VLOOKUP($B32,'Round One'!$C:$J,7,0)+1E-24,0)) -> 0 | J32: =IF(ISERROR(VLOOKUP($B32,'Round Two'!$C:$J,8,0)),0,IF(AND(LEN($C32)<>0,$D32="Yes"),VLOOKUP($B32,'Round Two'!$C:$J,8,0),"")) -> 0 | K32: =IF(ISERROR(VLOOKUP(J32,'Round Two'!$C:$J,7,0)),0,IF(AND(LEN($C32)<>0,$D32="Yes"),VLOOKUP(J32,'Round Two'!$C:$J,7,0)+1E-24,0)) -> 0 | L32: 0 | M32: =IF(ISERROR(VLOOKUP($B32,'Round Two'!$C:$J,6,0)),0,IF(AND(LEN($C32)<>0,$D32="Yes"),VLOOKUP($B32,'Round Two'!$C:$J,6,0),"")) -> 0 | N32: =IF(ISERROR(VLOOKUP($B32,'Round Two'!$C:$J,7,0)),0,IF(LEN($C32)<>0,VLOOKUP($B32,'Round Two'!$C:$J,7,0)+1E-24,0)) -> 0 | O32: =IF(ISERROR(VLOOKUP($B32,'Round Three'!$C:$J,8,0)),0,IF(AND(LEN($C32)<>0,$D32="Yes"),VLOOKUP($B32,'Round Three'!$C:$J,8,0),"")) -> 0 | P32: =IF(ISERROR(VLOOKUP(O32,'Round Three'!$C:$J,7,0)),0,IF(AND(LEN($C32)<>0,$D32="Yes"),VLOOKUP(O32,'Round Three'!$C:$J,7,0)+1E-24,0)) -> 0 | Q32: 0 | R32: =IF(ISERROR(VLOOKUP($B32,'Round Three'!$C:$J,6,0)),0,IF(AND(LEN($C32)<>0,$D32="Yes"),VLOOKUP($B32,'Round Three'!$C:$J,6,0),"")) -> 0 | S32: =IF(ISERROR(VLOOKUP($B32,'Round Three'!$C:$J,7,0)),0,IF(LEN($C32)<>0,VLOOKUP($B32,'Round Three'!$C:$J,7,0)+1E-24,0)) -> 0 | T32: =IF(ISERROR(VLOOKUP($B32,'Round Four'!$C:$J,8,0)),0,IF(AND(LEN($C32)<>0,$D32="Yes"),VLOOKUP($B32,'Round Four'!$C:$J,8,0),"")) -> 0 | U32: =IF(ISERROR(VLOOKUP(T32,'Round Four'!$C:$J,7,0)),0,IF(AND(LEN($C32)<>0,$D32="Yes"),VLOOKUP(T32,'Round Four'!$C:$J,7,0)+1E-24,0)) -> 0 | V32: 0 | W32: =IF(ISERROR(VLOOKUP($B32,'Round Four'!$C:$J,6,0)),0,IF(AND(LEN($C32)<>0,$D32="Yes"),VLOOKUP($B32,'Round Four'!$C:$J,6,0),"")) -> 0 | X32: =IF(ISERROR(VLOOKUP($B32,'Round Four'!$C:$J,7,0)),0,IF(LEN($C32)<>0,VLOOKUP($B32,'Round Four'!$C:$J,7,0)+1E-24,0)) -> 0 | Y32: =IF(ISERROR(VLOOKUP($B32,'Round Five'!$C:$J,8,0)),0,IF(AND(LEN($C32)<>0,$D32="Yes"),VLOOKUP($B32,'Round Five'!$C:$J,8,0),"")) -> 0 | Z32: =IF(ISERROR(VLOOKUP(Y32,'Round Five'!$C:$J,7,0)),0,IF(AND(LEN($C32)<>0,$D32="Yes"),VLOOKUP(Y32,'Round Five'!$C:$J,7,0)+1E-24,0)) -> 0 | AA32: 0 | AB32: =IF(ISERROR(VLOOKUP($B32,'Round Five'!$C:$J,6,0)),0,IF(AND(LEN($C32)<>0,$D32="Yes"),VLOOKUP($B32,'Round Five'!$C:$J,6,0),"")) -> 0 | AC32: =IF(ISERROR(VLOOKUP($B32,'Round Five'!$C:$J,7,0)),0,IF(LEN($C32)<>0,VLOOKUP($B32,'Round Five'!$C:$J,7,0)+1E-24,0)) -> 0 | AD32: =IF(ISERROR(VLOOKUP($B32,'Round Six'!$C:$J,8,0)),0,IF(AND(LEN($C32)<>0,$D32="Yes"),VLOOKUP($B32,'Round Six'!$C:$J,8,0),"")) -> 0 | AE32: =IF(ISERROR(VLOOKUP(AD32,'Round Six'!$C:$J,7,0)),0,IF(AND(LEN($C32)<>0,$D32="Yes"),VLOOKUP(AD32,'Round Six'!$C:$J,7,0)+1E-24,0)) -> 0 | AF32: 0 | AG32: =IF(ISERROR(VLOOKUP($B32,'Round Six'!$C:$J,6,0)),0,IF(AND(LEN($C32)<>0,$D32="Yes"),VLOOKUP($B32,'Round Six'!$C:$J,6,0),"")) -> 0 | AH32: =IF(ISERROR(VLOOKUP($B32,'Round Six'!$C:$J,7,0)),0,IF(LEN($C32)<>0,VLOOKUP($B32,'Round Six'!$C:$J,7,0)+1E-24,0)) -> 0 | AI32: =IF(ISERROR(VLOOKUP($B32,'Round Seven'!$C:$J,8,0)),0,IF(AND(LEN($C32)<>0,$D32="Yes"),VLOOKUP($B32,'Round Seven'!$C:$J,8,0),"")) -> 0 | AJ32: =IF(ISERROR(VLOOKUP(AI32,'Round Seven'!$C:$J,7,0)),0,IF(AND(LEN($C32)<>0,$D32="Yes"),VLOOKUP(AI32,'Round Seven'!$C:$J,7,0)+1E-24,0)) -> 0 | AK32: 0 | AL32: =IF(ISERROR(VLOOKUP($B32,'Round Seven'!$C:$J,6,0)),0,IF(AND(LEN($C32)<>0,$D32="Yes"),VLOOKUP($B32,'Round Seven'!$C:$J,6,0),"")) -> 0 | AM32: =IF(ISERROR(VLOOKUP($B32,'Round Seven'!$C:$J,7,0)),0,IF(LEN($C32)<>0,VLOOKUP($B32,'Round Seven'!$C:$J,7,0)+1E-24,0)) -> 0 | AN32: =IF(ISERROR(VLOOKUP($B32,'Round Eight'!$C:$J,8,0)),0,IF(AND(LEN($C32)<>0,$D32="Yes"),VLOOKUP($B32,'Round Eight'!$C:$J,8,0),"")) -> 0 | AO32: =IF(ISERROR(VLOOKUP(AN32,'Round Eight'!$C:$J,7,0)),0,IF(AND(LEN($C32)<>0,$D32="Yes"),VLOOKUP(AN32,'Round Eight'!$C:$J,7,0)+1E-24,0)) -> 0 | AP32: 0 | AQ32: =IF(ISERROR(VLOOKUP($B32,'Round Eight'!$C:$J,6,0)),0,IF(AND(LEN($C32)<>0,$D32="Yes"),VLOOKUP($B32,'Round Eight'!$C:$J,6,0),"")) -> 0 | AR32: =IF(ISERROR(VLOOKUP($B32,'Round Eight'!$C:$J,7,0)),0,IF(LEN($C32)<>0,VLOOKUP($B32,'Round Eight'!$C:$J,7,0)+1E-24,0)) -> 0 | AS32: =IF(ISERROR(VLOOKUP($B32,'Round Nine'!$C:$J,8,0)),0,IF(AND(LEN($C32)<>0,$D32="Yes"),VLOOKUP($B32,'Round Nine'!$C:$J,8,0),"")) -> 0 | AT32: =IF(ISERROR(VLOOKUP(AS32,'Round Nine'!$C:$J,7,0)),0,IF(AND(LEN($C32)<>0,$D32="Yes"),VLOOKUP(AS32,'Round Nine'!$C:$J,7,0)+1E-24,0)) -> 0 | AU32: 0 | AV32: =IF(ISERROR(VLOOKUP($B32,'Round Nine'!$C:$J,6,0)),0,IF(AND(LEN($C32)<>0,$D32="Yes"),VLOOKUP($B32,'Round Nine'!$C:$J,6,0),"")) -> 0 | AW32: =IF(ISERROR(VLOOKUP($B32,'Round Nine'!$C:$J,7,0)),0,IF(LEN($C32)<>0,VLOOKUP($B32,'Round Nine'!$C:$J,7,0)+1E-24,0)) -> 0 | AY32: 0 | AZ32: 0 | BA32: 0 | BB32: =IF(D32<>"Yes",A32*-10,AY32*1000000+AZ32*10000+BA32+(A32/100000))+IF(OR(Accel_Pairing_2!$B$4="no",D32<>"Yes",ISERROR(VLOOKUP(C32,PowerRanking!A:B,2,0))),0,(VLOOKUP(C32,PowerRanking!A:D,4,0)*1000000)+VLOOKUP(C32,PowerRanking!A:D,2,0)/10) -> -3.720107803 | BC32: 23 | BD32: T29 | BE32: 0
A33: 0.428649334 | B33: T30 | E33: =IF(ISERROR(VLOOKUP($B33,'Round One'!$C:$J,8,0)),0,IF(AND(LEN($C33)<>0,$D33="Yes"),VLOOKUP($B33,'Round One'!$C:$J,8,0),0)) -> 0 | F33: =IF(ISERROR(VLOOKUP(E33,'Round One'!$C:$J,7,0)),0,IF(AND(LEN($C33)<>0,$D33="Yes"),VALUE(VLOOKUP(E33,'Round One'!$C:$J,7,0)+1E-24),0)) -> 0 | G33: 0 | H33: =IF(ISERROR(VLOOKUP($B33,'Round One'!$C:$J,6,0)),0,IF(AND(LEN($C33)<>0,$D33="Yes"),VLOOKUP($B33,'Round One'!$C:$J,6,0),"")) -> 0 | I33: =IF(ISERROR(VLOOKUP($B33,'Round One'!$C:$J,7,0)),0,IF(LEN($C33)<>0,VLOOKUP($B33,'Round One'!$C:$J,7,0)+1E-24,0)) -> 0 | J33: =IF(ISERROR(VLOOKUP($B33,'Round Two'!$C:$J,8,0)),0,IF(AND(LEN($C33)<>0,$D33="Yes"),VLOOKUP($B33,'Round Two'!$C:$J,8,0),"")) -> 0 | K33: =IF(ISERROR(VLOOKUP(J33,'Round Two'!$C:$J,7,0)),0,IF(AND(LEN($C33)<>0,$D33="Yes"),VLOOKUP(J33,'Round Two'!$C:$J,7,0)+1E-24,0)) -> 0 | L33: 0 | M33: =IF(ISERROR(VLOOKUP($B33,'Round Two'!$C:$J,6,0)),0,IF(AND(LEN($C33)<>0,$D33="Yes"),VLOOKUP($B33,'Round Two'!$C:$J,6,0),"")) -> 0 | N33: =IF(ISERROR(VLOOKUP($B33,'Round Two'!$C:$J,7,0)),0,IF(LEN($C33)<>0,VLOOKUP($B33,'Round Two'!$C:$J,7,0)+1E-24,0)) -> 0 | O33: =IF(ISERROR(VLOOKUP($B33,'Round Three'!$C:$J,8,0)),0,IF(AND(LEN($C33)<>0,$D33="Yes"),VLOOKUP($B33,'Round Three'!$C:$J,8,0),"")) -> 0 | P33: =IF(ISERROR(VLOOKUP(O33,'Round Three'!$C:$J,7,0)),0,IF(AND(LEN($C33)<>0,$D33="Yes"),VLOOKUP(O33,'Round Three'!$C:$J,7,0)+1E-24,0)) -> 0 | Q33: 0 | R33: =IF(ISERROR(VLOOKUP($B33,'Round Three'!$C:$J,6,0)),0,IF(AND(LEN($C33)<>0,$D33="Yes"),VLOOKUP($B33,'Round Three'!$C:$J,6,0),"")) -> 0 | S33: =IF(ISERROR(VLOOKUP($B33,'Round Three'!$C:$J,7,0)),0,IF(LEN($C33)<>0,VLOOKUP($B33,'Round Three'!$C:$J,7,0)+1E-24,0)) -> 0 | T33: =IF(ISERROR(VLOOKUP($B33,'Round Four'!$C:$J,8,0)),0,IF(AND(LEN($C33)<>0,$D33="Yes"),VLOOKUP($B33,'Round Four'!$C:$J,8,0),"")) -> 0 | U33: =IF(ISERROR(VLOOKUP(T33,'Round Four'!$C:$J,7,0)),0,IF(AND(LEN($C33)<>0,$D33="Yes"),VLOOKUP(T33,'Round Four'!$C:$J,7,0)+1E-24,0)) -> 0 | V33: 0 | W33: =IF(ISERROR(VLOOKUP($B33,'Round Four'!$C:$J,6,0)),0,IF(AND(LEN($C33)<>0,$D33="Yes"),VLOOKUP($B33,'Round Four'!$C:$J,6,0),"")) -> 0 | X33: =IF(ISERROR(VLOOKUP($B33,'Round Four'!$C:$J,7,0)),0,IF(LEN($C33)<>0,VLOOKUP($B33,'Round Four'!$C:$J,7,0)+1E-24,0)) -> 0 | Y33: =IF(ISERROR(VLOOKUP($B33,'Round Five'!$C:$J,8,0)),0,IF(AND(LEN($C33)<>0,$D33="Yes"),VLOOKUP($B33,'Round Five'!$C:$J,8,0),"")) -> 0 | Z33: =IF(ISERROR(VLOOKUP(Y33,'Round Five'!$C:$J,7,0)),0,IF(AND(LEN($C33)<>0,$D33="Yes"),VLOOKUP(Y33,'Round Five'!$C:$J,7,0)+1E-24,0)) -> 0 | AA33: 0 | AB33: =IF(ISERROR(VLOOKUP($B33,'Round Five'!$C:$J,6,0)),0,IF(AND(LEN($C33)<>0,$D33="Yes"),VLOOKUP($B33,'Round Five'!$C:$J,6,0),"")) -> 0 | AC33: =IF(ISERROR(VLOOKUP($B33,'Round Five'!$C:$J,7,0)),0,IF(LEN($C33)<>0,VLOOKUP($B33,'Round Five'!$C:$J,7,0)+1E-24,0)) -> 0 | AD33: =IF(ISERROR(VLOOKUP($B33,'Round Six'!$C:$J,8,0)),0,IF(AND(LEN($C33)<>0,$D33="Yes"),VLOOKUP($B33,'Round Six'!$C:$J,8,0),"")) -> 0 | AE33: =IF(ISERROR(VLOOKUP(AD33,'Round Six'!$C:$J,7,0)),0,IF(AND(LEN($C33)<>0,$D33="Yes"),VLOOKUP(AD33,'Round Six'!$C:$J,7,0)+1E-24,0)) -> 0 | AF33: 0 | AG33: =IF(ISERROR(VLOOKUP($B33,'Round Six'!$C:$J,6,0)),0,IF(AND(LEN($C33)<>0,$D33="Yes"),VLOOKUP($B33,'Round Six'!$C:$J,6,0),"")) -> 0 | AH33: =IF(ISERROR(VLOOKUP($B33,'Round Six'!$C:$J,7,0)),0,IF(LEN($C33)<>0,VLOOKUP($B33,'Round Six'!$C:$J,7,0)+1E-24,0)) -> 0 | AI33: =IF(ISERROR(VLOOKUP($B33,'Round Seven'!$C:$J,8,0)),0,IF(AND(LEN($C33)<>0,$D33="Yes"),VLOOKUP($B33,'Round Seven'!$C:$J,8,0),"")) -> 0 | AJ33: =IF(ISERROR(VLOOKUP(AI33,'Round Seven'!$C:$J,7,0)),0,IF(AND(LEN($C33)<>0,$D33="Yes"),VLOOKUP(AI33,'Round Seven'!$C:$J,7,0)+1E-24,0)) -> 0 | AK33: 0 | AL33: =IF(ISERROR(VLOOKUP($B33,'Round Seven'!$C:$J,6,0)),0,IF(AND(LEN($C33)<>0,$D33="Yes"),VLOOKUP($B33,'Round Seven'!$C:$J,6,0),"")) -> 0 | AM33: =IF(ISERROR(VLOOKUP($B33,'Round Seven'!$C:$J,7,0)),0,IF(LEN($C33)<>0,VLOOKUP($B33,'Round Seven'!$C:$J,7,0)+1E-24,0)) -> 0 | AN33: =IF(ISERROR(VLOOKUP($B33,'Round Eight'!$C:$J,8,0)),0,IF(AND(LEN($C33)<>0,$D33="Yes"),VLOOKUP($B33,'Round Eight'!$C:$J,8,0),"")) -> 0 | AO33: =IF(ISERROR(VLOOKUP(AN33,'Round Eight'!$C:$J,7,0)),0,IF(AND(LEN($C33)<>0,$D33="Yes"),VLOOKUP(AN33,'Round Eight'!$C:$J,7,0)+1E-24,0)) -> 0 | AP33: 0 | AQ33: =IF(ISERROR(VLOOKUP($B33,'Round Eight'!$C:$J,6,0)),0,IF(AND(LEN($C33)<>0,$D33="Yes"),VLOOKUP($B33,'Round Eight'!$C:$J,6,0),"")) -> 0 | AR33: =IF(ISERROR(VLOOKUP($B33,'Round Eight'!$C:$J,7,0)),0,IF(LEN($C33)<>0,VLOOKUP($B33,'Round Eight'!$C:$J,7,0)+1E-24,0)) -> 0 | AS33: =IF(ISERROR(VLOOKUP($B33,'Round Nine'!$C:$J,8,0)),0,IF(AND(LEN($C33)<>0,$D33="Yes"),VLOOKUP($B33,'Round Nine'!$C:$J,8,0),"")) -> 0 | AT33: =IF(ISERROR(VLOOKUP(AS33,'Round Nine'!$C:$J,7,0)),0,IF(AND(LEN($C33)<>0,$D33="Yes"),VLOOKUP(AS33,'Round Nine'!$C:$J,7,0)+1E-24,0)) -> 0 | AU33: 0 | AV33: =IF(ISERROR(VLOOKUP($B33,'Round Nine'!$C:$J,6,0)),0,IF(AND(LEN($C33)<>0,$D33="Yes"),VLOOKUP($B33,'Round Nine'!$C:$J,6,0),"")) -> 0 | AW33: =IF(ISERROR(VLOOKUP($B33,'Round Nine'!$C:$J,7,0)),0,IF(LEN($C33)<>0,VLOOKUP($B33,'Round Nine'!$C:$J,7,0)+1E-24,0)) -> 0 | AY33: 0 | AZ33: 0 | BA33: 0 | BB33: =IF(D33<>"Yes",A33*-10,AY33*1000000+AZ33*10000+BA33+(A33/100000))+IF(OR(Accel_Pairing_2!$B$4="no",D33<>"Yes",ISERROR(VLOOKUP(C33,PowerRanking!A:B,2,0))),0,(VLOOKUP(C33,PowerRanking!A:D,4,0)*1000000)+VLOOKUP(C33,PowerRanking!A:D,2,0)/10) -> -4.28649334 | BC33: 29 | BD33: T30 | BE33: 0
A34: 0.3431964547 | B34: T31 | E34: =IF(ISERROR(VLOOKUP($B34,'Round One'!$C:$J,8,0)),0,IF(AND(LEN($C34)<>0,$D34="Yes"),VLOOKUP($B34,'Round One'!$C:$J,8,0),0)) -> 0 | F34: =IF(ISERROR(VLOOKUP(E34,'Round One'!$C:$J,7,0)),0,IF(AND(LEN($C34)<>0,$D34="Yes"),VALUE(VLOOKUP(E34,'Round One'!$C:$J,7,0)+1E-24),0)) -> 0 | G34: 0 | H34: =IF(ISERROR(VLOOKUP($B34,'Round One'!$C:$J,6,0)),0,IF(AND(LEN($C34)<>0,$D34="Yes"),VLOOKUP($B34,'Round One'!$C:$J,6,0),"")) -> 0 | I34: =IF(ISERROR(VLOOKUP($B34,'Round One'!$C:$J,7,0)),0,IF(LEN($C34)<>0,VLOOKUP($B34,'Round One'!$C:$J,7,0)+1E-24,0)) -> 0 | J34: =IF(ISERROR(VLOOKUP($B34,'Round Two'!$C:$J,8,0)),0,IF(AND(LEN($C34)<>0,$D34="Yes"),VLOOKUP($B34,'Round Two'!$C:$J,8,0),"")) -> 0 | K34: =IF(ISERROR(VLOOKUP(J34,'Round Two'!$C:$J,7,0)),0,IF(AND(LEN($C34)<>0,$D34="Yes"),VLOOKUP(J34,'Round Two'!$C:$J,7,0)+1E-24,0)) -> 0 | L34: 0 | M34: =IF(ISERROR(VLOOKUP($B34,'Round Two'!$C:$J,6,0)),0,IF(AND(LEN($C34)<>0,$D34="Yes"),VLOOKUP($B34,'Round Two'!$C:$J,6,0),"")) -> 0 | N34: =IF(ISERROR(VLOOKUP($B34,'Round Two'!$C:$J,7,0)),0,IF(LEN($C34)<>0,VLOOKUP($B34,'Round Two'!$C:$J,7,0)+1E-24,0)) -> 0 | O34: =IF(ISERROR(VLOOKUP($B34,'Round Three'!$C:$J,8,0)),0,IF(AND(LEN($C34)<>0,$D34="Yes"),VLOOKUP($B34,'Round Three'!$C:$J,8,0),"")) -> 0 | P34: =IF(ISERROR(VLOOKUP(O34,'Round Three'!$C:$J,7,0)),0,IF(AND(LEN($C34)<>0,$D34="Yes"),VLOOKUP(O34,'Round Three'!$C:$J,7,0)+1E-24,0)) -> 0 | Q34: 0 | R34: =IF(ISERROR(VLOOKUP($B34,'Round Three'!$C:$J,6,0)),0,IF(AND(LEN($C34)<>0,$D34="Yes"),VLOOKUP($B34,'Round Three'!$C:$J,6,0),"")) -> 0 | S34: =IF(ISERROR(VLOOKUP($B34,'Round Three'!$C:$J,7,0)),0,IF(LEN($C34)<>0,VLOOKUP($B34,'Round Three'!$C:$J,7,0)+1E-24,0)) -> 0 | T34: =IF(ISERROR(VLOOKUP($B34,'Round Four'!$C:$J,8,0)),0,IF(AND(LEN($C34)<>0,$D34="Yes"),VLOOKUP($B34,'Round Four'!$C:$J,8,0),"")) -> 0 | U34: =IF(ISERROR(VLOOKUP(T34,'Round Four'!$C:$J,7,0)),0,IF(AND(LEN($C34)<>0,$D34="Yes"),VLOOKUP(T34,'Round Four'!$C:$J,7,0)+1E-24,0)) -> 0 | V34: 0 | W34: =IF(ISERROR(VLOOKUP($B34,'Round Four'!$C:$J,6,0)),0,IF(AND(LEN($C34)<>0,$D34="Yes"),VLOOKUP($B34,'Round Four'!$C:$J,6,0),"")) -> 0 | X34: =IF(ISERROR(VLOOKUP($B34,'Round Four'!$C:$J,7,0)),0,IF(LEN($C34)<>0,VLOOKUP($B34,'Round Four'!$C:$J,7,0)+1E-24,0)) -> 0 | Y34: =IF(ISERROR(VLOOKUP($B34,'Round Five'!$C:$J,8,0)),0,IF(AND(LEN($C34)<>0,$D34="Yes"),VLOOKUP($B34,'Round Five'!$C:$J,8,0),"")) -> 0 | Z34: =IF(ISERROR(VLOOKUP(Y34,'Round Five'!$C:$J,7,0)),0,IF(AND(LEN($C34)<>0,$D34="Yes"),VLOOKUP(Y34,'Round Five'!$C:$J,7,0)+1E-24,0)) -> 0 | AA34: 0 | AB34: =IF(ISERROR(VLOOKUP($B34,'Round Five'!$C:$J,6,0)),0,IF(AND(LEN($C34)<>0,$D34="Yes"),VLOOKUP($B34,'Round Five'!$C:$J,6,0),"")) -> 0 | AC34: =IF(ISERROR(VLOOKUP($B34,'Round Five'!$C:$J,7,0)),0,IF(LEN($C34)<>0,VLOOKUP($B34,'Round Five'!$C:$J,7,0)+1E-24,0)) -> 0 | AD34: =IF(ISERROR(VLOOKUP($B34,'Round Six'!$C:$J,8,0)),0,IF(AND(LEN($C34)<>0,$D34="Yes"),VLOOKUP($B34,'Round Six'!$C:$J,8,0),"")) -> 0 | AE34: =IF(ISERROR(VLOOKUP(AD34,'Round Six'!$C:$J,7,0)),0,IF(AND(LEN($C34)<>0,$D34="Yes"),VLOOKUP(AD34,'Round Six'!$C:$J,7,0)+1E-24,0)) -> 0 | AF34: 0 | AG34: =IF(ISERROR(VLOOKUP($B34,'Round Six'!$C:$J,6,0)),0,IF(AND(LEN($C34)<>0,$D34="Yes"),VLOOKUP($B34,'Round Six'!$C:$J,6,0),"")) -> 0 | AH34: =IF(ISERROR(VLOOKUP($B34,'Round Six'!$C:$J,7,0)),0,IF(LEN($C34)<>0,VLOOKUP($B34,'Round Six'!$C:$J,7,0)+1E-24,0)) -> 0 | AI34: =IF(ISERROR(VLOOKUP($B34,'Round Seven'!$C:$J,8,0)),0,IF(AND(LEN($C34)<>0,$D34="Yes"),VLOOKUP($B34,'Round Seven'!$C:$J,8,0),"")) -> 0 | AJ34: =IF(ISERROR(VLOOKUP(AI34,'Round Seven'!$C:$J,7,0)),0,IF(AND(LEN($C34)<>0,$D34="Yes"),VLOOKUP(AI34,'Round Seven'!$C:$J,7,0)+1E-24,0)) -> 0 | AK34: 0 | AL34: =IF(ISERROR(VLOOKUP($B34,'Round Seven'!$C:$J,6,0)),0,IF(AND(LEN($C34)<>0,$D34="Yes"),VLOOKUP($B34,'Round Seven'!$C:$J,6,0),"")) -> 0 | AM34: =IF(ISERROR(VLOOKUP($B34,'Round Seven'!$C:$J,7,0)),0,IF(LEN($C34)<>0,VLOOKUP($B34,'Round Seven'!$C:$J,7,0)+1E-24,0)) -> 0 | AN34: =IF(ISERROR(VLOOKUP($B34,'Round Eight'!$C:$J,8,0)),0,IF(AND(LEN($C34)<>0,$D34="Yes"),VLOOKUP($B34,'Round Eight'!$C:$J,8,0),"")) -> 0 | AO34: =IF(ISERROR(VLOOKUP(AN34,'Round Eight'!$C:$J,7,0)),0,IF(AND(LEN($C34)<>0,$D34="Yes"),VLOOKUP(AN34,'Round Eight'!$C:$J,7,0)+1E-24,0)) -> 0 | AP34: 0 | AQ34: =IF(ISERROR(VLOOKUP($B34,'Round Eight'!$C:$J,6,0)),0,IF(AND(LEN($C34)<>0,$D34="Yes"),VLOOKUP($B34,'Round Eight'!$C:$J,6,0),"")) -> 0 | AR34: =IF(ISERROR(VLOOKUP($B34,'Round Eight'!$C:$J,7,0)),0,IF(LEN($C34)<>0,VLOOKUP($B34,'Round Eight'!$C:$J,7,0)+1E-24,0)) -> 0 | AS34: =IF(ISERROR(VLOOKUP($B34,'Round Nine'!$C:$J,8,0)),0,IF(AND(LEN($C34)<>0,$D34="Yes"),VLOOKUP($B34,'Round Nine'!$C:$J,8,0),"")) -> 0 | AT34: =IF(ISERROR(VLOOKUP(AS34,'Round Nine'!$C:$J,7,0)),0,IF(AND(LEN($C34)<>0,$D34="Yes"),VLOOKUP(AS34,'Round Nine'!$C:$J,7,0)+1E-24,0)) -> 0 | AU34: 0 | AV34: =IF(ISERROR(VLOOKUP($B34,'Round Nine'!$C:$J,6,0)),0,IF(AND(LEN($C34)<>0,$D34="Yes"),VLOOKUP($B34,'Round Nine'!$C:$J,6,0),"")) -> 0 | AW34: =IF(ISERROR(VLOOKUP($B34,'Round Nine'!$C:$J,7,0)),0,IF(LEN($C34)<>0,VLOOKUP($B34,'Round Nine'!$C:$J,7,0)+1E-24,0)) -> 0 | AY34: 0 | AZ34: 0 | BA34: 0 | BB34: =IF(D34<>"Yes",A34*-10,AY34*1000000+AZ34*10000+BA34+(A34/100000))+IF(OR(Accel_Pairing_2!$B$4="no",D34<>"Yes",ISERROR(VLOOKUP(C34,PowerRanking!A:B,2,0))),0,(VLOOKUP(C34,PowerRanking!A:D,4,0)*1000000)+VLOOKUP(C34,PowerRanking!A:D,2,0)/10) -> -3.431964547 | BC34: 21 | BD34: T31 | BE34: 0
